Workbook

Sheet 00_GuV
A1: GuV & Bilanz
A4: GuV | T4: Bilanz
A5: 1 | B5: 2 | C5: 3 | D5: 4 | E5: 5 | F5: 6 | G5: 7 | H5: 8 | I5: 9 | J5: 10 | K5: 11 | L5: 12 | M5: 13 | N5: 14 | O5: 15 | P5: 16 | Q5: 17 | R5: 18 | S5: 19 | T5: 20 | U5: 21 | V5: 22 | W5: 23 | X5: 24 | Y5: 25 | Z5: 26 | AA5: 27 | AB5: 28 | AC5: 29 | AD5: 30
A6: Jahr | B6: geleistete_Arbeitsstunden | C6: Anzahl_Personal | D6: Umsatz* | E6: davon_Umsatz_aus_Konzessionsabgaben | F6: Bestandsveränderung | G6: Aktivierte_Eigenleistungen | H6: Aufwendungen_RHB* | I6: davon_Aufwendungen_für_vorgelagerte_Netze_C1 | J6: Personalaufwand | K6: Aufwendungen_bezogene_Leistungen* | L6: davon_Aufwendungen_für_überlassene_NJetzinfrastruktur | M6: davon_Aufwendungen_für_vorgelagerte_Netze_D2 | N6: Sonstige_betriebliche_Aufwendungen | O6: davon_Aufw_Konzessionsabgaben | P6: Abschreibungen | Q6: Sonstige_Zinsen_und_ähnliche_Erträge | R6: Zinsen_und_ähnliche_Aufwendungen | S6: Sonstige_betriebliche_Erträge | T6: Eigenkapital | U6: davon_gezeichnetes_Kapital | V6: davon_Kapitalrücklage | W6: davon_Gewinnrücklagen | X6: davon_Gewinnvortrag_Verlustvortrag | Y6: davon_Jahresüberschuss_Jahresfehlbetrag | Z6: Rückstellungen | AA6: Verbindlichkeiten | AB6: Rechnungsabgrenzungsposten | AC6: Passive_latente_Steuern | AD6: Verzinsliches_Fremdkapital
A7: 2006 | B7: 26548039.45 | C7: 16781.68782 | D7: 9811733528 | E7: 294512759.5 | F7: 13935709.21 | G7: 67409211.61 | H7: 326237621.1 | I7: 10607366.53 | J7: 1086930192 | K7: 2947073723 | L7: 1594354504 | M7: 57395356.83 | N7: 1301271239 | O7: 312954749 | P7: 1019491487 | Q7: 70108733.12 | R7: 141540343.9 | S7: 427873166.5 | T7: 6163221886 | U7: 2177993090 | V7: 2412421214 | W7: 533470217.9 | X7: 49625302.46 | Y7: 463309056.2 | Z7: 2001855689 | AA7: 3833896564 | AB7: 208660394.9 | AC7: 51627358.83 | AD7: 1749995234
A8: 2007 | B8: 19947231.34 | C8: 12722.07904 | D8: 8933908039 | E8: 290833965.6 | F8: 3728985.47 | G8: 44213578.52 | H8: 370091147 | I8: 34577039.78 | J8: 730796332 | K8: 2293364176 | L8: 3234286864 | M8: 188661729.8 | N8: 1193339081 | O8: 284684175.2 | P8: 773057681.9 | Q8: 64704240.61 | R8: 137190306.7 | S8: 353026248.2 | T8: 3971413625 | U8: 1391277065 | V8: 1527574944 | W8: 447282149.7 | X8: 49394721.34 | Y8: 286140648.3 | Z8: 1637347176 | AA8: 4805741643 | AB8: 76320733.37 | AC8: 312667388.4 | AD8: 2864404584
A9: 2008 | B9: 19424606.8 | C9: 12212.09042 | D9: 9003339017 | E9: 300473658.2 | F9: 2446053.66 | G9: 41796231.11 | H9: 787644780.3 | I9: 122641760.3 | J9: 798968681.2 | K9: 2474934237 | L9: 2411723843 | M9: 710003315.8 | N9: 1765090539 | O9: 300937431.9 | P9: 867846056.5 | Q9: 60577671.77 | R9: 197673896.9 | S9: 405442385.8 | T9: 4340047683 | U9: 1593082426 | V9: 1925016379 | W9: 422573225.1 | X9: 67745915.21 | Y9: 140428410.2 | Z9: 2352630652 | AA9: 4825120694 | AB9: 149502209.2 | AC9: 300584519 | AD9: 2831687168
A10: 2009 | B10: 20607222.34 | C10: 12944.7695 | D10: 8773318733 | E10: 297037267.1 | F10: 4244475.63 | G10: 44859007.2 | H10: 752062685.9 | I10: 133363441.1 | J10: 844905326.8 | K10: 2592882621 | L10: 2074181117 | M10: 721919849.6 | N10: 1584860433 | O10: 287211244.6 | P10: 1669731501 | Q10: 89947389.35 | R10: 139808916.8 | S10: 717370077 | T10: 5320763322 | U10: 1550508143 | V10: 2573109826 | W10: 531933847.7 | X10: 88895847.43 | Y10: 358949048.3 | Z10: 3043474465 | AA10: 3132525218 | AB10: 182664360.8 | AC10: 5595730.51 | AD10: 1546690645
A11: 2010 | B11: 21748326.79 | C11: 13580.41629 | D11: 9427507480 | E11: 333220514.6 | F11: 11996759.67 | G11: 49609259.5 | H11: 888207220.8 | I11: 129475011.9 | J11: 890954812.4 | K11: 2869336812 | L11: 2022877781 | M11: 767022621.7 | N11: 1537701502 | O11: 319223748.9 | P11: 869617805.8 | Q11: 41809836.65 | R11: 197626731.6 | S11: 577811169.1 | T11: 5940247497 | U11: 1535873861 | V11: 3189080756 | W11: 613462145.4 | X11: 86630450.32 | Y11: 309399967.4 | Z11: 3079961353 | AA11: 3229313300 | AB11: 213890633.8 | AC11: 6742369.366 | AD11: 2035598157
A12: 2011 | B12: 23314287.72 | C12: 14511.55948 | D12: 9071388462 | E12: 295800272.9 | F12: 15193352.41 | G12: 60448815.62 | H12: 918811930.4 | I12: 138132164.7 | J12: 964521464 | K12: 2374915023 | L12: 2018614965 | M12: 769221807.4 | N12: 1450379079 | O12: 280062370.9 | P12: 923065000.9 | Q12: 41946343.69 | R12: 200964337.7 | S12: 550499720.2 | T12: 6198762975 | U12: 1503842971 | V12: 3468719150 | W12: 627398113.9 | X12: 139244895.3 | Y12: 296569599.2 | Z12: 2937282424 | AA12: 3675104525 | AB12: 232654207.7 | AC12: 8754568.787 | AD12: 1896647099
A13: 2012 | B13: 25130451.18 | C13: 15607.73979 | D13: 9161036750 | E13: 304270221.6 | F13: 17051292.09 | G13: 76321724.01 | H13: 864079297.4 | I13: 173169390 | J13: 1102098437 | K13: 2077559983 | L13: 1794096577 | M13: 1020108732 | N13: 1385640333 | O13: 289434757.4 | P13: 901389549.4 | Q13: 58830912.16 | R13: 193534537.8 | S13: 568573117.3 | T13: 6797270193 | U13: 1561676105 | V13: 3940461442 | W13: 684692830.9 | X13: 150177538.3 | Y13: 326518834.1 | Z13: 2801492475 | AA13: 4056537311 | AB13: 279279202.2 | AC13: 10098900.8 | AD13: 2277506801
A14: 2013 | B14: 27828597.61 | C14: 17456.84003 | D14: 9433753555 | E14: 298353420.5 | F14: -3135715.81 | G14: 87368972.1 | H14: 933413288 | I14: 186094474.3 | J14: 1186647438 | K14: 1916848498 | L14: 1769724318 | M14: 1217438729 | N14: 1413208635 | O14: 281032990.9 | P14: 922470205.8 | Q14: 24486362.09 | R14: 238147992.3 | S14: 568126723.9 | T14: 7323661478 | U14: 1589423473 | V14: 4329006054 | W14: 675050280.4 | X14: 143464319.5 | Y14: 352366262 | Z14: 3036515982 | AA14: 4517928191 | AB14: 336305502.6 | AC14: 7804791.66 | AD14: 2618858334
A15: 2014 | B15: 29940388.1 | C15: 18809.06058 | D15: 8848438816 | E15: 243266687.4 | F15: 24153034.76 | G15: 109782177.9 | H15: 778234917.1 | I15: 200685494 | J15: 1248449914 | K15: 1978277026 | L15: 1746923166 | M15: 1374142228 | N15: 1327882416 | O15: 231066229.9 | P15: 962230153.2 | Q15: 26433473.26 | R15: 242082106.9 | S15: 642229459.9 | T15: 7983706368 | U15: 1577306793 | V15: 4846859504 | W15: 873823510.2 | X15: 163756905.9 | Y15: 216563007.9 | Z15: 2254083837 | AA15: 3403021436 | AB15: 392328237.5 | AC15: 11637515.46 | AD15: 2501189893
A16: 2015 | B16: 32381114.78 | C16: 20169.18807 | D16: 9209880466 | E16: 325788298 | F16: 28690660.81 | G16: 109961998.1 | H16: 804718878.7 | I16: 212346456 | J16: 1435707933 | K16: 2238063080 | L16: 1596875500 | M16: 1474656948 | N16: 1487036931 | O16: 307018986.5 | P16: 1028951204 | Q16: 15498184.29 | R16: 319137328.5 | S16: 397978785.1 | T16: 8819414340 | U16: 1620351101 | V16: 5450931277 | W16: 1026257060 | X16: 168470695.6 | Y16: 188854624.6 | Z16: 2277811402 | AA16: 3136040283 | AB16: 439716212.2 | AC16: 13898640.48 | AD16: 2489490308
A17: 2016 | B17: 32524835.01 | C17: 20284.06557 | D17: 9964066806 | E17: 273073219.6 | F17: -19123705.14 | G17: 123802159 | H17: 821144718.8 | I17: 230231893.1 | J17: 1470723055 | K17: 2067586364 | L17: 1494165431 | M17: 1454225277 | N17: 1290624136 | O17: 215359115.5 | P17: 1060192046 | Q17: 46338479.93 | R17: 167426696.3 | S17: 294432436.3 | T17: 9214849556 | U17: 1594193482 | V17: 5529302037 | W17: 1208121522 | X17: 148042350.7 | Y17: 320589170.5 | Z17: 2322918007 | AA17: 3604941712 | AB17: 416446945.3 | AC17: 22691574.98 | AD17: 2393441782
A18: 2017 | B18: 32421955.59 | C18: 20725.06639 | D18: 9627304728 | E18: 266245016.6 | F18: 71812.76 | G18: 137332449.7 | H18: 771424639.3 | I18: 301806954.7 | J18: 1471885281 | K18: 2146520779 | L18: 1480334077 | M18: 1498910120 | N18: 1238435294 | O18: 187294131.2 | P18: 1028368477 | Q18: 8942942.216 | R18: 210052480.5 | S18: 423108338.3 | T18: 9828019373 | U18: 1514765505 | V18: 6167117222 | W18: 1366555665 | X18: 130001549.3 | Y18: 256575644.3 | Z18: 2518584546 | AA18: 3814402672 | AB18: 417614306.5 | AC18: 53727103.31 | AD18: 2489085796
A19: 2018 | B19: 34419752.59 | C19: 21695.39949 | D19: 9617457471 | E19: 256247000 | F19: -7292958.22 | G19: 164331821.7 | H19: 851432311.3 | I19: 316675188.6 | J19: 1648558984 | K19: 2500213710 | L19: 1386393087 | M19: 1575264042 | N19: 1262088409 | O19: 183269948.9 | P19: 1039965148 | Q19: 5038048.344 | R19: 359374679.8 | S19: 690819037.9 | T19: 1.055830258e+10 | U19: 1531987044 | V19: 6732675522 | W19: 1432039529 | X19: 142521888.4 | Y19: 242999273.1 | Z19: 2905318659 | AA19: 4222105040 | AB19: 428332032.9 | AC19: 43163237.03 | AD19: 2886882014
A20: 2019 | B20: 36336007.86 | C20: 23060.73926 | D20: 9868941086 | E20: 253731104.5 | F20: 11540108.99 | G20: 200848923.2 | H20: 895124378 | I20: 327255103.4 | J20: 1784751828 | K20: 2575669722 | L20: 1321682265 | M20: 1673041626 | N20: 1354096106 | O20: 178954812.8 | P20: 1094607420 | Q20: 9432714.561 | R20: 237261415.4 | S20: 908553558 | T20: 1.170230596e+10 | U20: 1633212061 | V20: 7789263755 | W20: 1469290703 | X20: 179361184.8 | Y20: 218213217 | Z20: 2989000327 | AA20: 4602865578 | AB20: 428434830.1 | AC20: 38343328.84 | AD20: 3688774658
A21: 2020 | B21: 39001244.36 | C21: 24359.6274 | D21: 9694761790 | E21: 247785154.7 | F21: -2145154.17 | G21: 226485542.6 | H21: 680480757 | I21: 318360321.3 | J21: 1939245779 | K21: 2633729376 | L21: 1138424167 | M21: 1732675179 | N21: 1423469824 | O21: 178142123.7 | P21: 1292887577 | Q21: 6560943.511 | R21: 342708122 | S21: 397136678.8 | T21: 1.274647057e+10 | U21: 1984413356 | V21: 8443999213 | W21: 1463510835 | X21: 202384952.9 | Y21: 174348737.2 | Z21: 3393735079 | AA21: 5210003550 | AB21: 473379475.7 | AC21: 40067018.17 | AD21: 4448036118
A22: 2021 | B22: 39438247.43 | C22: 24428.4984 | D22: 1.042161124e+10 | E22: 273869241.3 | F22: 6771900.75 | G22: 252489525.9 | H22: 804603353.2 | I22: 382425828.8 | J22: 1989863338 | K22: 2389195261 | L22: 1171876694 | M22: 1810511042 | N22: 1434245411 | O22: 194262661.2 | P22: 1401697522 | Q22: 9954409.518 | R22: 285657719.2 | S22: 397041015.9 | T22: 1.294748577e+10 | U22: 1982513229 | V22: 8689539008 | W22: 1480249852 | X22: 180397944.6 | Y22: 234934618.4 | Z22: 4094077619 | AA22: 5817219950 | AB22: 479650440.2 | AC22: 35810342.1 | AD22: 4517751597
A24: *Bereinigt um Aufwendungen für vorgelagerte Netze

Sheet 00_SAV
A1: Sachanlagevermögen
E3: 2006 | F3: 2007 | G3: 2008 | H3: 2009 | I3: 2010 | J3: 2011 | K3: 2012 | L3: 2013 | M3: 2014 | N3: 2015 | O3: 2016 | P3: 2017 | Q3: 2018 | R3: 2019 | S3: 2020 | T3: 2021
A4: Nr. | B4: Anlagengruppe | C4: Jahr | D4: NB/VP | E4: AK/HK Stand 2006 | F4: AK/HK Stand 2007 | G4: AK/HK Stand 2008 | H4: AK/HK Stand 2009 | I4: AK/HK Stand 2010 | J4: AK/HK Stand 2011 | K4: AK/HK Stand 2012 | L4: AK/HK Stand 2013 | M4: AK/HK Stand 2014 | N4: AK/HK Stand 2015 | O4: AK/HK Stand 2016 | P4: AK/HK Stand 2017 | Q4: AK/HK Stand 2018 | R4: AK/HK Stand 2019 | S4: AK/HK Stand 2020 | T4: AK/HK Stand 2021
A5: 1 | B5: Grundstücke | C5: 1930 | D5: NB | E5: 331088.3 | F5: 331088.42 | G5: 331088.42 | H5: 323548.42 | I5: 305003.54 | J5: 297671.54 | K5: 296577.83 | L5: 296577.83 | M5: 292691.54 | N5: 303485.51 | O5: 290705.16 | P5: 260016.5 | Q5: 282593.9 | R5: 283006.22 | S5: 291391.88 | T5: 290651.98
A6: 1 | B6: Grundstücke | C6: 1931 | D6: NB | E6: 34490.29 | F6: 34490.74 | G6: 34490.74 | H6: 34490.74 | I6: 34490.74 | J6: 34490.74 | K6: 34490.74 | L6: 34490.74 | M6: 34490.74 | N6: 34490.74 | O6: 34490.74 | P6: 34490.74 | Q6: 34490.74 | R6: 34490.74 | S6: 34490.74 | T6: 34490.74
A7: 1 | B7: Grundstücke | C7: 1932 | D7: NB | E7: 159.52 | F7: 159.52 | G7: 159.52 | H7: 159.52 | I7: 159.52 | J7: 159.52 | K7: 159.52 | L7: 159.52 | M7: 159.52 | N7: 159.52 | O7: 159.52 | P7: 159.52 | Q7: 159.52 | R7: 159.52 | S7: 159.52 | T7: 159.52
A8: 1 | B8: Grundstücke | C8: 1933 | D8: NB | E8: 0 | F8: 0 | G8: 0 | H8: 0 | I8: 0 | J8: 0 | K8: 0 | L8: 0 | M8: 0 | N8: 0 | O8: 0 | P8: 0 | Q8: 0 | R8: 0 | S8: 0 | T8: 0
A9: 1 | B9: Grundstücke | C9: 1934 | D9: NB | E9: 1627.36 | F9: 1627.48 | G9: 1627.48 | H9: 1627.48 | I9: 1627.48 | J9: 1627.48 | K9: 1627.48 | L9: 1627.48 | M9: 1627.48 | N9: 1627.48 | O9: 1627.48 | P9: 1627.48 | Q9: 1627.48 | R9: 1627.48 | S9: 1627.48 | T9: 1627.48
A10: 1 | B10: Grundstücke | C10: 1935 | D10: NB | E10: 3295.7 | F10: 2151.94 | G10: 2151.94 | H10: 2151.94 | I10: 2151.94 | J10: 2151.94 | K10: 2151.94 | L10: 2151.94 | M10: 2151.94 | N10: 2151.94 | O10: 2151.94 | P10: 2151.94 | Q10: 2151.94 | R10: 2151.94 | S10: 2151.94 | T10: 2151.94
A11: 1 | B11: Grundstücke | C11: 1936 | D11: NB | E11: 0 | F11: 0 | G11: 0 | H11: 0 | I11: 0 | J11: 0 | K11: 0 | L11: 0 | M11: 0 | N11: 0 | O11: 0 | P11: 0 | Q11: 0 | R11: 0 | S11: 0 | T11: 0
A12: 1 | B12: Grundstücke | C12: 1937 | D12: NB | E12: 103152.25 | F12: 103152.12 | G12: 102427.36 | H12: 104601.64 | I12: 103876.88 | J12: 125534.24 | K12: 116439.56 | L12: 115729.58 | M12: 115729.58 | N12: 115729.58 | O12: 113118.95 | P12: 113118.95 | Q12: 113118.95 | R12: 113118.95 | S12: 113118.95 | T12: 113118.95
A13: 1 | B13: Grundstücke | C13: 1938 | D13: NB | E13: 54734.73 | F13: 54734.95 | G13: 54734.95 | H13: 54734.95 | I13: 54734.95 | J13: 54734.95 | K13: 54734.95 | L13: 54734.95 | M13: 54734.95 | N13: 54734.95 | O13: 54734.95 | P13: 54734.95 | Q13: 54734.95 | R13: 54734.95 | S13: 54734.95 | T13: 54734.95
A14: 1 | B14: Grundstücke | C14: 1939 | D14: NB | E14: 19710.57 | F14: 19710.81 | G14: 19710.81 | H14: 19710.81 | I14: 19710.81 | J14: 19710.81 | K14: 19710.81 | L14: 19710.81 | M14: 19710.81 | N14: 19710.81 | O14: 19710.81 | P14: 19710.81 | Q14: 19710.81 | R14: 19710.81 | S14: 19710.81 | T14: 7713.9
A15: 1 | B15: Grundstücke | C15: 1940 | D15: NB | E15: 2217.39 | F15: 2006.25 | G15: 2006.25 | H15: 2006.25 | I15: 1523.51 | J15: 1527.52 | K15: 1736.78 | L15: 1734.56 | M15: 1731.63 | N15: 1724.75 | O15: 1772.64 | P15: 1801.79 | Q15: 1820.53 | R15: 1714.34 | S15: 1714.34 | T15: 1714.34
A16: 1 | B16: Grundstücke | C16: 1941 | D16: NB | E16: 1747.62 | F16: 1747.62 | G16: 1747.62 | H16: 1747.62 | I16: 1747.62 | J16: 1747.62 | K16: 1747.62 | L16: 1747.62 | M16: 1747.62 | N16: 427494.75 | O16: 427494.75 | P16: 427494.75 | Q16: 427494.75 | R16: 427494.75 | S16: 603948.11 | T16: 603948.11
A17: 1 | B17: Grundstücke | C17: 1942 | D17: NB | E17: 3892.55 | F17: 3892.46 | G17: 3892.46 | H17: 3892.46 | I17: 3892.46 | J17: 3892.46 | K17: 3892.46 | L17: 3892.46 | M17: 3892.46 | N17: 4321 | O17: 4323.49 | P17: 4315.9 | Q17: 4305.95 | R17: 4293.44 | S17: 4313.86 | T17: 4301.67
A18: 1 | B18: Grundstücke | C18: 1943 | D18: NB | E18: 473.88 | F18: 84.88 | G18: 84.88 | H18: 84.88 | I18: 84.88 | J18: 84.88 | K18: 473.46 | L18: 473.46 | M18: 473.46 | N18: 15349.46 | O18: 15349.46 | P18: 5908.49 | Q18: 5908.49 | R18: 5908.49 | S18: 5908.49 | T18: 5908.49
A19: 1 | B19: Grundstücke | C19: 1944 | D19: NB | E19: 3650 | F19: 0 | G19: 0 | H19: 0 | I19: 0 | J19: 0 | K19: 3649.6 | L19: 3649.6 | M19: 3649.6 | N19: 3649.6 | O19: 3649.6 | P19: 3649.6 | Q19: 3649.6 | R19: 3799.31 | S19: 3799.31 | T19: 3799.31
A20: 1 | B20: Grundstücke | C20: 1945 | D20: NB | E20: 55951.49 | F20: 13163.95 | G20: 55951.15 | H20: 55951.15 | I20: 55951.15 | J20: 55951.15 | K20: 55951.15 | L20: 55951.15 | M20: 55951.15 | N20: 55951.15 | O20: 55951.15 | P20: 55358.31 | Q20: 42841.14 | R20: 48621.02 | S20: 54573.59 | T20: 49422.34
A21: 1 | B21: Grundstücke | C21: 1946 | D21: NB | E21: 397 | F21: 0 | G21: 0 | H21: 0 | I21: 0 | J21: 0 | K21: 396.76 | L21: 396.76 | M21: 396.76 | N21: 396.76 | O21: 396.76 | P21: 396.76 | Q21: 396.76 | R21: 396.76 | S21: 396.76 | T21: 396.76
A22: 1 | B22: Grundstücke | C22: 1947 | D22: NB | E22: 74120.72 | F22: 24462.76 | G22: 24462.76 | H22: 24462.76 | I22: 24741.72 | J22: 25304.65 | K22: 74683.37 | L22: 74683.37 | M22: 103043.2 | N22: 101193.51 | O22: 102590.47 | P22: 103869.72 | Q22: 103784.57 | R22: 103499.35 | S22: 103831.28 | T22: 103575.85
A23: 1 | B23: Grundstücke | C23: 1948 | D23: NB | E23: 575395.12 | F23: 580714.67 | G23: 576595.71 | H23: 583575.25 | I23: 593601.83 | J23: 590435.45 | K23: 590558.45 | L23: 590311.75 | M23: 666038.29 | N23: 989217.69 | O23: 987875.87 | P23: 840743.61 | Q23: 839125.77 | R23: 831096.19 | S23: 843448.49 | T23: 837265.31
A24: 1 | B24: Grundstücke | C24: 1949 | D24: NB | E24: 25270.16 | F24: 24542.64 | G24: 25172.89 | H24: 26738.55 | I24: 22767.98 | J24: 21289.72 | K24: 22470.23 | L24: 24340.22 | M24: 25127.41 | N24: 25143.54 | O24: 25206.07 | P24: 25376.07 | Q24: 25214.9 | R24: 25388.79 | S24: 25638.43 | T24: 25337.51
A25: 1 | B25: Grundstücke | C25: 1950 | D25: NB | E25: 22054.25 | F25: 13535.61 | G25: 21257.52 | H25: 21257.52 | I25: 21257.52 | J25: 21257.52 | K25: 22054.11 | L25: 22054.11 | M25: 21905.94 | N25: 23739.28 | O25: 23409.9 | P25: 22028.34 | Q25: 20523.27 | R25: 22300.6 | S25: 23683.14 | T25: 22514.72
A26: 1 | B26: Grundstücke | C26: 1951 | D26: NB | E26: 26760.87 | F26: 24158.11 | G26: 24848.13 | H26: 24848.96 | I26: 24870.08 | J26: 25023.25 | K26: 25023.25 | L26: 25023.25 | M26: 25089.72 | N26: 25089.63 | O26: 25089.63 | P26: 25013.83 | Q26: 24817.12 | R26: 25018 | S26: 25189.34 | T26: 25102.04
A27: 1 | B27: Grundstücke | C27: 1952 | D27: NB | E27: 29158.86 | F27: 20581.28 | G27: 26082.42 | H27: 26089.34 | I27: 25551.4 | J27: 25169.6 | K27: 28362.08 | L27: 28992.14 | M27: 29066.67 | N27: 29349.46 | O27: 29737.8 | P27: 27683.28 | Q27: 25935.53 | R27: 27446.68 | S27: 28395.62 | T27: 27524.47
A28: 1 | B28: Grundstücke | C28: 1953 | D28: NB | E28: 105075.45 | F28: 44623.32 | G28: 86922.09 | H28: 86925.1 | I28: 87476.43 | J28: 87202.52 | K28: 85905.28 | L28: 85976.62 | M28: 104160.86 | N28: 109263.05 | O28: 109404.29 | P28: 105704.21 | Q28: 93383.35 | R28: 105806.33 | S28: 71639.94 | T28: 70596.81
A29: 1 | B29: Grundstücke | C29: 1954 | D29: NB | E29: 105393.62 | F29: 82554.12 | G29: 93090.3 | H29: 93208.46 | I29: 91729.86 | J29: 91728.53 | K29: 92559.61 | L29: 92673.87 | M29: 98251.73 | N29: 98939.75 | O29: 90653.11 | P29: 93687.83 | Q29: 89970.2 | R29: 90480.43 | S29: 89048.66 | T29: 87393.8
A30: 1 | B30: Grundstücke | C30: 1955 | D30: NB | E30: 162641.83 | F30: 145117.83 | G30: 155532.15 | H30: 157711.81 | I30: 158349.88 | J30: 158881.88 | K30: 159657.29 | L30: 160708.29 | M30: 210100.95 | N30: 201491.72 | O30: 198005.46 | P30: 205115.64 | Q30: 201056.29 | R30: 203132.56 | S30: 206725.14 | T30: 203864.37
A31: 1 | B31: Grundstücke | C31: 1956 | D31: NB | E31: 50771.31 | F31: 39533.26 | G31: 50770.73 | H31: 52382.65 | I31: 51802.94 | J31: 51802.94 | K31: 51802.94 | L31: 51710.91 | M31: 59097.48 | N31: 59097.48 | O31: 56793.78 | P31: 56790.28 | Q31: 53435.65 | R31: 56593.39 | S31: 58678.45 | T31: 57003.79
A32: 1 | B32: Grundstücke | C32: 1957 | D32: NB | E32: 76749.28 | F32: 69322.18 | G32: 72527.22 | H32: 72527.22 | I32: 72527.22 | J32: 72527.22 | K32: 76085.86 | L32: 76085.86 | M32: 101810.79 | N32: 96915.18 | O32: 94614.8 | P32: 96386.53 | Q32: 95166.02 | R32: 95132.69 | S32: 96280.8 | T32: 94952.74
A33: 1 | B33: Grundstücke | C33: 1958 | D33: NB | E33: 87625.21 | F33: 84557.24 | G33: 87111.51 | H33: 88171.72 | I33: 88485.47 | J33: 88460.82 | K33: 88443.86 | L33: 88112.11 | M33: 97519.13 | N33: 97817.78 | O33: 97747.16 | P33: 97901.45 | Q33: 97222.43 | R33: 98282.63 | S33: 98539.45 | T33: 98293.39
A34: 1 | B34: Grundstücke | C34: 1959 | D34: NB | E34: 49656.67 | F34: 41452.15 | G34: 49513.98 | H34: 69063.33 | I34: 62686.38 | J34: 62683.59 | K34: 62714.08 | L34: 62953.47 | M34: 69306.34 | N34: 69324.17 | O34: 69393.24 | P34: 67973.64 | Q34: 65257.12 | R34: 68150.89 | S34: 68933.3 | T34: 67790.76
A35: 1 | B35: Grundstücke | C35: 1960 | D35: NB | E35: 358214.77 | F35: 339583.9 | G35: 358752.1 | H35: 356398.76 | I35: 358463.56 | J35: 359248.87 | K35: 358407.4 | L35: 357398.71 | M35: 357995 | N35: 358169.66 | O35: 357826.27 | P35: 358206.06 | Q35: 353902.67 | R35: 358461.17 | S35: 445286.58 | T35: 442093.33
A36: 1 | B36: Grundstücke | C36: 1961 | D36: NB | E36: 429936.66 | F36: 407879.57 | G36: 414648.55 | H36: 414648.64 | I36: 418574.1 | J36: 418638.39 | K36: 421185.92 | L36: 421204.14 | M36: 423289.12 | N36: 667495.59 | O36: 667772.49 | P36: 425382.88 | Q36: 421208.7 | R36: 431232.26 | S36: 432368.69 | T36: 431370.94
A37: 1 | B37: Grundstücke | C37: 1962 | D37: NB | E37: 342775.66 | F37: 323528.49 | G37: 340884.21 | H37: 340885.03 | I37: 337929.42 | J37: 337855.09 | K37: 337855.56 | L37: 337859.3 | M37: 339896.9 | N37: 339897.18 | O37: 339898.26 | P37: 339830.91 | Q37: 334636.48 | R37: 338457.1 | S37: 342371.38 | T37: 339894.23
A38: 1 | B38: Grundstücke | C38: 1963 | D38: NB | E38: 452911.02 | F38: 334514.63 | G38: 373803.26 | H38: 374322.37 | I38: 436153.38 | J38: 442202.84 | K38: 446607.11 | L38: 447954.7 | M38: 448311.26 | N38: 449932.97 | O38: 449938.84 | P38: 449550.15 | Q38: 447572.03 | R38: 452019.89 | S38: 458389.71 | T38: 446706.69
A39: 1 | B39: Grundstücke | C39: 1964 | D39: NB | E39: 243567.29 | F39: 225861.15 | G39: 230650.4 | H39: 243613.15 | I39: 242759.47 | J39: 237588.08 | K39: 243769.74 | L39: 244297.85 | M39: 245195.68 | N39: 252606.53 | O39: 263180.83 | P39: 262938.43 | Q39: 259757.48 | R39: 260203.83 | S39: 262481.05 | T39: 261284.25
A40: 1 | B40: Grundstücke | C40: 1965 | D40: NB | E40: 613607.03 | F40: 527559.91 | G40: 535618.66 | H40: 539000.21 | I40: 584081.29 | J40: 580398.94 | K40: 628924.57 | L40: 629138.09 | M40: 629730.54 | N40: 633137.5 | O40: 633142.89 | P40: 868152.3 | Q40: 865691.81 | R40: 822674.37 | S40: 828357.28 | T40: 827964.32
A41: 1 | B41: Grundstücke | C41: 1966 | D41: NB | E41: 705968.63 | F41: 699045.62 | G41: 702514.62 | H41: 711957.62 | I41: 697597.15 | J41: 694187.13 | K41: 701642.26 | L41: 701640.72 | M41: 713281.9 | N41: 731591.87 | O41: 733102.79 | P41: 726477.92 | Q41: 719795.22 | R41: 719057.35 | S41: 720732.21 | T41: 720448.03
A42: 1 | B42: Grundstücke | C42: 1967 | D42: NB | E42: 590457.61 | F42: 521163.91 | G42: 534163.58 | H42: 544556.25 | I42: 558909.17 | J42: 562204.39 | K42: 572768.47 | L42: 572409.51 | M42: 571492.6 | N42: 573034.24 | O42: 575681.31 | P42: 577368.13 | Q42: 573902.61 | R42: 579714.92 | S42: 571368.19 | T42: 570490.48
A43: 1 | B43: Grundstücke | C43: 1968 | D43: NB | E43: 404070.8 | F43: 378937.51 | G43: 388132.23 | H43: 423545.6 | I43: 417773.67 | J43: 413416.16 | K43: 427325.88 | L43: 427926 | M43: 434553.74 | N43: 438216.35 | O43: 438706.69 | P43: 447805.51 | Q43: 444915.87 | R43: 445035.25 | S43: 448201.2 | T43: 446366.38
A44: 1 | B44: Grundstücke | C44: 1969 | D44: NB | E44: 473773.52 | F44: 434861.36 | G44: 438981.44 | H44: 591610.56 | I44: 591669.65 | J44: 596154.01 | K44: 619855.87 | L44: 543436.9 | M44: 538880.38 | N44: 773778.48 | O44: 767778.99 | P44: 771984.82 | Q44: 768932.95 | R44: 738517.42 | S44: 734309.29 | T44: 724673.89
A45: 1 | B45: Grundstücke | C45: 1970 | D45: NB | E45: 604960.39 | F45: 563527.85 | G45: 576614.72 | H45: 644879.77 | I45: 617255 | J45: 606477.64 | K45: 635185.7 | L45: 631860.55 | M45: 631276.66 | N45: 636022 | O45: 640688.54 | P45: 634224.43 | Q45: 629122.32 | R45: 636480.99 | S45: 642780.23 | T45: 637676.88
A46: 1 | B46: Grundstücke | C46: 1971 | D46: NB | E46: 1076273.12 | F46: 1059317.76 | G46: 1073500.41 | H46: 1094397.43 | I46: 1084377.33 | J46: 1092571.51 | K46: 1092751.85 | L46: 1092521.42 | M46: 1092338.9 | N46: 1124915.39 | O46: 1123424.67 | P46: 1121690.83 | Q46: 1117179.94 | R46: 1101477.87 | S46: 1178346.13 | T46: 1175906.88
A47: 1 | B47: Grundstücke | C47: 1972 | D47: NB | E47: 1209380.38 | F47: 1148400.63 | G47: 1165974.02 | H47: 1164527.03 | I47: 1159356.63 | J47: 1181671.03 | K47: 1257799.79 | L47: 1257557.59 | M47: 1400617.77 | N47: 1407532.14 | O47: 1396578.89 | P47: 1388943.14 | Q47: 1422346.18 | R47: 1410789.44 | S47: 1429855.84 | T47: 1416691.87
A48: 1 | B48: Grundstücke | C48: 1973 | D48: NB | E48: 700026.63 | F48: 645745.88 | G48: 659314.65 | H48: 775584.34 | I48: 797054.84 | J48: 795537.75 | K48: 847430.57 | L48: 846735.93 | M48: 878614.54 | N48: 875650.26 | O48: 897682.44 | P48: 854557.92 | Q48: 851821.54 | R48: 847171.4 | S48: 1134461.87 | T48: 1134604.13
A49: 1 | B49: Grundstücke | C49: 1974 | D49: NB | E49: 815077.28 | F49: 786126.34 | G49: 802419.16 | H49: 842867.69 | I49: 842298.8 | J49: 832246.86 | K49: 881453.23 | L49: 879376.8 | M49: 884332.31 | N49: 904564.63 | O49: 906134.1 | P49: 897741.12 | Q49: 895610.34 | R49: 894481.19 | S49: 913590.58 | T49: 909178.27
A50: 1 | B50: Grundstücke | C50: 1975 | D50: NB | E50: 1025131.16 | F50: 918449.97 | G50: 929136.56 | H50: 976778.27 | I50: 1022422.42 | J50: 1012018.97 | K50: 1013377.66 | L50: 1007950.23 | M50: 1002847.36 | N50: 1337680.95 | O50: 1334509.21 | P50: 1339698.66 | Q50: 1330261.3 | R50: 1378524.06 | S50: 1409100.62 | T50: 1396378.07
A51: 1 | B51: Grundstücke | C51: 1976 | D51: NB | E51: 1693247.57 | F51: 1596861.81 | G51: 1598017.89 | H51: 1659710.63 | I51: 1620492.12 | J51: 1657275.49 | K51: 1711597.49 | L51: 1704971.11 | M51: 1627420.34 | N51: 1671414.68 | O51: 1693143.84 | P51: 1798428.48 | Q51: 1812775.69 | R51: 1837075.38 | S51: 1884060.26 | T51: 1862165.49
A52: 1 | B52: Grundstücke | C52: 1977 | D52: NB | E52: 897847.88 | F52: 846897.7 | G52: 812865.79 | H52: 890867.22 | I52: 943598.46 | J52: 935861.78 | K52: 937263.89 | L52: 933475.46 | M52: 942686.49 | N52: 1192463.94 | O52: 1189904.7 | P52: 1270294.69 | Q52: 1268412.79 | R52: 1271834.27 | S52: 1314588.28 | T52: 1308902.06
A53: 1 | B53: Grundstücke | C53: 1978 | D53: NB | E53: 992500.98 | F53: 916754.72 | G53: 928487.17 | H53: 961290.34 | I53: 975336.31 | J53: 975404.38 | K53: 998736.42 | L53: 998939.07 | M53: 1133401.19 | N53: 1108571.32 | O53: 1251360.76 | P53: 1420099.02 | Q53: 1418008.6 | R53: 1448991.51 | S53: 1442249.76 | T53: 1437101.6
A54: 1 | B54: Grundstücke | C54: 1979 | D54: NB | E54: 1632124.12 | F54: 1569522.65 | G54: 1577809.68 | H54: 1664938.07 | I54: 1704641.54 | J54: 1708695.84 | K54: 1716504.38 | L54: 1719883.33 | M54: 1772525.48 | N54: 2005046.51 | O54: 1982432.03 | P54: 2153625.25 | Q54: 2144695.01 | R54: 2141390.68 | S54: 2007059.84 | T54: 1978625.07
A55: 1 | B55: Grundstücke | C55: 1980 | D55: NB | E55: 1969653.29 | F55: 1872825.05 | G55: 1905903.5 | H55: 1982594.75 | I55: 1990663.23 | J55: 1990987.97 | K55: 2085043.32 | L55: 2080990.29 | M55: 2080289.57 | N55: 2350759.94 | O55: 2331072.35 | P55: 1450350.01 | Q55: 1447377.59 | R55: 1431807.6 | S55: 1457963.65 | T55: 1452450.62
A56: 1 | B56: Grundstücke | C56: 1981 | D56: NB | E56: 957761.92 | F56: 807175.95 | G56: 793732.05 | H56: 963867.9 | I56: 977634.17 | J56: 975356.44 | K56: 1066946.42 | L56: 1062207 | M56: 1063656.12 | N56: 1081498.45 | O56: 1167992.84 | P56: 1428214.58 | Q56: 1425306.91 | R56: 1425231.48 | S56: 1421185.36 | T56: 1419883.94
A57: 1 | B57: Grundstücke | C57: 1982 | D57: NB | E57: 1570380.7 | F57: 1438207.07 | G57: 1451245.21 | H57: 1487466.16 | I57: 1573225.49 | J57: 1551229.97 | K57: 1620453.89 | L57: 1597357.93 | M57: 1576703.84 | N57: 1703478.26 | O57: 1653586.06 | P57: 1790108.85 | Q57: 1892840.08 | R57: 1875797.8 | S57: 1891765.67 | T57: 1886753.04
A58: 1 | B58: Grundstücke | C58: 1983 | D58: NB | E58: 1842910.98 | F58: 1720769.5 | G58: 1668180.13 | H58: 1716186.35 | I58: 1742101.16 | J58: 1737744.8 | K58: 1932098.16 | L58: 1929173.53 | M58: 1938042.93 | N58: 1959698.26 | O58: 1957040.64 | P58: 2024618.53 | Q58: 2023166.62 | R58: 2013771.14 | S58: 2071590.19 | T58: 2063951.09
A59: 1 | B59: Grundstücke | C59: 1984 | D59: NB | E59: 1826377.38 | F59: 1784655.37 | G59: 1730499.35 | H59: 1728889.96 | I59: 1758956.33 | J59: 1759432.15 | K59: 1800774.57 | L59: 1799858.55 | M59: 1799788 | N59: 1810074.05 | O59: 1807441.17 | P59: 1371203.37 | Q59: 1370590.07 | R59: 1364984.84 | S59: 1387116.02 | T59: 1391871.97
A60: 1 | B60: Grundstücke | C60: 1985 | D60: NB | E60: 964012.49 | F60: 880049.8 | G60: 883207.89 | H60: 1003175.56 | I60: 1033658.05 | J60: 1057595.88 | K60: 1076652.52 | L60: 1066749.26 | M60: 1069543.87 | N60: 1130735.62 | O60: 1130990.29 | P60: 1666558.38 | Q60: 1633343.32 | R60: 1634763.68 | S60: 1662763.95 | T60: 1656906.97
A61: 1 | B61: Grundstücke | C61: 1986 | D61: NB | E61: 1122242.62 | F61: 1064994.42 | G61: 1098642.98 | H61: 1150082.84 | I61: 1158390.04 | J61: 1162229.81 | K61: 1165350.16 | L61: 1164359.44 | M61: 1188609.32 | N61: 1282058.11 | O61: 1306113.93 | P61: 1256191.92 | Q61: 1249480.83 | R61: 1359178.79 | S61: 1442692.33 | T61: 1427631.73
A62: 1 | B62: Grundstücke | C62: 1987 | D62: NB | E62: 1001605.7 | F62: 972051.89 | G62: 973318.52 | H62: 975847.53 | I62: 1239783.05 | J62: 1270329.02 | K62: 1315839.62 | L62: 1298372.35 | M62: 1302584.16 | N62: 1478121.88 | O62: 1478857.29 | P62: 1462025.38 | Q62: 1481455.03 | R62: 1473477.48 | S62: 1570286.66 | T62: 1630861.16
A63: 1 | B63: Grundstücke | C63: 1988 | D63: NB | E63: 2224758.16 | F63: 2139861.74 | G63: 2133427.65 | H63: 3046395.33 | I63: 3105604.79 | J63: 3133203.12 | K63: 2877487.98 | L63: 2883982.33 | M63: 2862518 | N63: 3023379.48 | O63: 3207914.32 | P63: 3268445.6 | Q63: 3225676.07 | R63: 3247291.32 | S63: 3309093.48 | T63: 3309271.23
A64: 1 | B64: Grundstücke | C64: 1989 | D64: NB | E64: 774918.55 | F64: 717274.17 | G64: 713205.13 | H64: 1152944.03 | I64: 1201537.27 | J64: 1201383.45 | K64: 1207444.2 | L64: 1208484.01 | M64: 1208614.1 | N64: 1596288.3 | O64: 1595949.89 | P64: 1648105.07 | Q64: 1644749.06 | R64: 1653024.38 | S64: 1661129.35 | T64: 1660936.34
A65: 1 | B65: Grundstücke | C65: 1990 | D65: NB | E65: 2551702.16 | F65: 2642439.43 | G65: 2852978.43 | H65: 2930727.77 | I65: 3091304.78 | J65: 3133945.06 | K65: 3972130.71 | L65: 3834444.59 | M65: 3823174.51 | N65: 4268696.16 | O65: 4220365.21 | P65: 4180738.45 | Q65: 4175821.84 | R65: 3991454.59 | S65: 3984724.35 | T65: 3984150.66
A66: 1 | B66: Grundstücke | C66: 1991 | D66: NB | E66: 3401266.28 | F66: 3182128.67 | G66: 3224799.13 | H66: 3474927.66 | I66: 4065144.8 | J66: 4051200.86 | K66: 4126301.94 | L66: 4120297.33 | M66: 4123559.36 | N66: 4446079.68 | O66: 4413029.32 | P66: 4416329.44 | Q66: 4380240.06 | R66: 4352281.81 | S66: 4442676.59 | T66: 4422116.65
A67: 1 | B67: Grundstücke | C67: 1992 | D67: NB | E67: 1729459.55 | F67: 1587020.97 | G67: 1597871.28 | H67: 1497973.95 | I67: 6218819.39 | J67: 6136141.52 | K67: 8989835.56 | L67: 8972910.84 | M67: 8974337.12 | N67: 9162006.23 | O67: 9093146.98 | P67: 9066494.24 | Q67: 9060815.51 | R67: 9178080.71 | S67: 9187304.85 | T67: 9185608.43
A68: 1 | B68: Grundstücke | C68: 1993 | D68: NB | E68: 2323475.07 | F68: 2147880.38 | G68: 2282094.58 | H68: 2282379.93 | I68: 4504235.66 | J68: 4461461.01 | K68: 4600296.06 | L68: 4603155.76 | M68: 4653762.87 | N68: 4633697.38 | O68: 5429828.94 | P68: 5588790.63 | Q68: 5627019.58 | R68: 5599385.44 | S68: 5754026.36 | T68: 5731320.93
A69: 1 | B69: Grundstücke | C69: 1994 | D69: NB | E69: 3221323.2 | F69: 3098436.71 | G69: 3038775.86 | H69: 3147752.66 | I69: 4135610.08 | J69: 4113161.77 | K69: 4225594.44 | L69: 4174430.97 | M69: 4172036.57 | N69: 4277235.94 | O69: 4419955.37 | P69: 4478803.02 | Q69: 4523690.93 | R69: 4509371.95 | S69: 4498711.25 | T69: 4495396.91
A70: 1 | B70: Grundstücke | C70: 1995 | D70: NB | E70: 3767697.32 | F70: 3649726.66 | G70: 3652646.77 | H70: 3752954.76 | I70: 4327655.85 | J70: 4194112.11 | K70: 4455140.24 | L70: 4250473.78 | M70: 4394640.33 | N70: 4398385.07 | O70: 4379932.5 | P70: 4602625.89 | Q70: 4555512.78 | R70: 4507574.66 | S70: 4585011.22 | T70: 4832088.09
A71: 1 | B71: Grundstücke | C71: 1996 | D71: NB | E71: 2581063.71 | F71: 2469024.51 | G71: 2536514.78 | H71: 2536197.87 | I71: 3765766.76 | J71: 3807988.75 | K71: 4261810.95 | L71: 4990593.86 | M71: 5052676.54 | N71: 5099589.22 | O71: 5098559.94 | P71: 4994321.21 | Q71: 5040347.39 | R71: 5052773.73 | S71: 4985964.13 | T71: 5165346.63
A72: 1 | B72: Grundstücke | C72: 1997 | D72: NB | E72: 3052719.09 | F72: 2742261.03 | G72: 2942317.13 | H72: 3007126.13 | I72: 4632501.64 | J72: 4687739.34 | K72: 5237199.7 | L72: 5269880.26 | M72: 5404028.36 | N72: 5541570.87 | O72: 5426670.55 | P72: 5388257.33 | Q72: 5385951.34 | R72: 5367757.89 | S72: 5458981 | T72: 5399084.49
A73: 1 | B73: Grundstücke | C73: 1998 | D73: NB | E73: 2381321.45 | F73: 2256787.8 | G73: 2300350.44 | H73: 2408597 | I73: 4917982.33 | J73: 4937858.58 | K73: 5274910.76 | L73: 5275058.33 | M73: 5216059.31 | N73: 5230180.25 | O73: 5239282.3 | P73: 5247888.66 | Q73: 5234573.7 | R73: 5295422.03 | S73: 5278921.65 | T73: 5268705.26
A74: 1 | B74: Grundstücke | C74: 1999 | D74: NB | E74: 2149619.14 | F74: 2326858.46 | G74: 2275613.63 | H74: 2266132.3 | I74: 3545290.63 | J74: 3566829.82 | K74: 3715522.38 | L74: 3695100.69 | M74: 3701525.82 | N74: 3783360.83 | O74: 3803363.41 | P74: 4271024.43 | Q74: 4258843.9 | R74: 4204852.29 | S74: 4241978.87 | T74: 4229824.01
A75: 1 | B75: Grundstücke | C75: 2000 | D75: NB | E75: 2578452.46 | F75: 2504392.18 | G75: 2563559.86 | H75: 2579281.99 | I75: 2729272.09 | J75: 2730362.19 | K75: 4698994.9 | L75: 4696850.26 | M75: 4760917.25 | N75: 4988130.12 | O75: 4977070.06 | P75: 5233860.2 | Q75: 5349535.95 | R75: 5315495.59 | S75: 5323089.06 | T75: 5305015.22
A76: 1 | B76: Grundstücke | C76: 2001 | D76: NB | E76: 2812333.27 | F76: 2795809.31 | G76: 2804850.75 | H76: 2807585.03 | I76: 3354590.87 | J76: 3364392.44 | K76: 3445834.14 | L76: 3424085.24 | M76: 3430397.38 | N76: 3744811.72 | O76: 3723731.3 | P76: 2763019.16 | Q76: 2778688.62 | R76: 2775056.75 | S76: 2781085.14 | T76: 2786713.48
A77: 1 | B77: Grundstücke | C77: 2002 | D77: NB | E77: 1559380.32 | F77: 1508910.11 | G77: 1496817.78 | H77: 1515948.25 | I77: 1908292.85 | J77: 1949196.99 | K77: 1963173.98 | L77: 1890095.71 | M77: 2642316.17 | N77: 2586283.38 | O77: 2384058.63 | P77: 2498364.52 | Q77: 2456431.76 | R77: 2496925.05 | S77: 2532760.94 | T77: 2509654.71
A78: 1 | B78: Grundstücke | C78: 2003 | D78: NB | E78: 3863589.44 | F78: 3430013.45 | G78: 3436668.77 | H78: 3437996.36 | I78: 3603569.4 | J78: 3623913.31 | K78: 3590077.64 | L78: 3555037.17 | M78: 3542058.61 | N78: 4323875.81 | O78: 4223402.84 | P78: 3257265.66 | Q78: 3305493.74 | R78: 3291001.97 | S78: 3308685.9 | T78: 3340221.6
A79: 1 | B79: Grundstücke | C79: 2004 | D79: NB | E79: 1802632.14 | F79: 1631087.43 | G79: 1678361.25 | H79: 1684136.79 | I79: 2143301.34 | J79: 2107447.63 | K79: 2133662.91 | L79: 2111697.35 | M79: 2117300.94 | N79: 2247387.03 | O79: 2237261.66 | P79: 2418669.59 | Q79: 2409655.9 | R79: 2360450.65 | S79: 2403480.71 | T79: 2369275.37
A80: 1 | B80: Grundstücke | C80: 2005 | D80: NB | E80: 1931517.62 | F80: 1782434.81 | G80: 1790497.74 | H80: 1792882.12 | I80: 2918443.56 | J80: 2932906.79 | K80: 3289617.68 | L80: 3314868.38 | M80: 3341327.49 | N80: 3190555.06 | O80: 3189930.74 | P80: 3338259.04 | Q80: 3316567.38 | R80: 3340533.91 | S80: 3549354.31 | T80: 3535021.13
A81: 1 | B81: Grundstücke | C81: 2006 | D81: NB | E81: 1649193.66 | F81: 1522795.21 | G81: 1589622.57 | H81: 1650714.42 | I81: 1719599.95 | J81: 1828826.49 | K81: 1998243.31 | L81: 2552356.71 | M81: 2527013.49 | N81: 2590826.12 | O81: 2524261.97 | P81: 2373863.89 | Q81: 2457052.15 | R81: 2437934.19 | S81: 2449007.95 | T81: 2320295.42
A82: 1 | B82: Grundstücke | C82: 2007 | D82: NB | E82: 0 | F82: 1341048.99 | G82: 1251454.32 | H82: 1286557.88 | I82: 1403854.97 | J82: 1431869.41 | K82: 1573457.76 | L82: 1576006.41 | M82: 1564802.55 | N82: 1568816.89 | O82: 1600577.5 | P82: 1601230.78 | Q82: 1616557.07 | R82: 1621851.9 | S82: 1597259.74 | T82: 1596824.63
A83: 1 | B83: Grundstücke | C83: 2008 | D83: NB | E83: 0 | F83: 0 | G83: 2136669.07 | H83: 2526209.23 | I83: 2385783.99 | J83: 2391131.51 | K83: 2368192.23 | L83: 2368102.24 | M83: 2507863.72 | N83: 2921612.3 | O83: 2906908.48 | P83: 3074777.88 | Q83: 3070873.56 | R83: 3065717.96 | S83: 3009360.63 | T83: 2962666.68
A84: 1 | B84: Grundstücke | C84: 2009 | D84: NB | E84: 0 | F84: 0 | G84: 0 | H84: 3078875.47 | I84: 2996892.83 | J84: 3007171.79 | K84: 3020174.33 | L84: 3030710.04 | M84: 3029159.87 | N84: 3122371.14 | O84: 3069157.06 | P84: 3258621.83 | Q84: 3248446.95 | R84: 3243183.14 | S84: 3242014.39 | T84: 3133923.66
A85: 1 | B85: Grundstücke | C85: 2010 | D85: NB | E85: 0 | F85: 0 | G85: 0 | H85: 0 | I85: 14765147.88 | J85: 14481130.36 | K85: 14538993.54 | L85: 14526538.96 | M85: 14523493.35 | N85: 14537878.24 | O85: 14448266.19 | P85: 14759848.47 | Q85: 14662858.43 | R85: 14603420.49 | S85: 14592083.04 | T85: 14590495.69
A86: 1 | B86: Grundstücke | C86: 2011 | D86: NB | E86: 0 | F86: 0 | G86: 0 | H86: 0 | I86: 0 | J86: 4671581 | K86: 4279693.01 | L86: 4249750.07 | M86: 4180499.27 | N86: 4693952.07 | O86: 4633247.09 | P86: 4458479.96 | Q86: 4449436.08 | R86: 4498726.25 | S86: 4594512.46 | T86: 4557928.85
A87: 1 | B87: Grundstücke | C87: 2012 | D87: NB | E87: 0 | F87: 0 | G87: 0 | H87: 0 | I87: 0 | J87: 0 | K87: 3990876.62 | L87: 3704819.95 | M87: 2722885.05 | N87: 2723861.61 | O87: 2383999.2 | P87: 2328722.25 | Q87: 2326835.8 | R87: 2302504.79 | S87: 2300117.34 | T87: 2303552.43
A88: 1 | B88: Grundstücke | C88: 2013 | D88: NB | E88: 0 | F88: 0 | G88: 0 | H88: 0 | I88: 0 | J88: 0 | K88: 0 | L88: 2617706.16 | M88: 2684077.4 | N88: 2675540.46 | O88: 2630522.88 | P88: 2529354.32 | Q88: 2532689.12 | R88: 2562130.97 | S88: 2221211.03 | T88: 2158886.83
A89: 1 | B89: Grundstücke | C89: 2014 | D89: NB | E89: 0 | F89: 0 | G89: 0 | H89: 0 | I89: 0 | J89: 0 | K89: 0 | L89: 0 | M89: 5863323.32 | N89: 5921153.93 | O89: 6092621.39 | P89: 6784401.88 | Q89: 6459650.04 | R89: 6402447.14 | S89: 6465705.48 | T89: 6486332.05
A90: 1 | B90: Grundstücke | C90: 2015 | D90: NB | E90: 0 | F90: 0 | G90: 0 | H90: 0 | I90: 0 | J90: 0 | K90: 0 | L90: 0 | M90: 0 | N90: 4417175.65 | O90: 4351721.15 | P90: 4456257.64 | Q90: 4453718.33 | R90: 4793983.6 | S90: 6422817.34 | T90: 6419108.43
A91: 1 | B91: Grundstücke | C91: 2016 | D91: NB | E91: 0 | F91: 0 | G91: 0 | H91: 0 | I91: 0 | J91: 0 | K91: 0 | L91: 0 | M91: 0 | N91: 0 | O91: 5004121.6 | P91: 6064623.07 | Q91: 5978343.91 | R91: 5988269.16 | S91: 6517486.8 | T91: 6516539.53
A92: 1 | B92: Grundstücke | C92: 2017 | D92: NB | E92: 0 | F92: 0 | G92: 0 | H92: 0 | I92: 0 | J92: 0 | K92: 0 | L92: 0 | M92: 0 | N92: 0 | O92: 0 | P92: 2662296.79 | Q92: 2621396.07 | R92: 2692033.89 | S92: 3029037.28 | T92: 3031330.03
A93: 1 | B93: Grundstücke | C93: 2018 | D93: NB | E93: 0 | F93: 0 | G93: 0 | H93: 0 | I93: 0 | J93: 0 | K93: 0 | L93: 0 | M93: 0 | N93: 0 | O93: 0 | P93: 0 | Q93: 10309050.86 | R93: 10399173.72 | S93: 10851399.82 | T93: 10826297.65
A94: 1 | B94: Grundstücke | C94: 2019 | D94: NB | E94: 0 | F94: 0 | G94: 0 | H94: 0 | I94: 0 | J94: 0 | K94: 0 | L94: 0 | M94: 0 | N94: 0 | O94: 0 | P94: 0 | Q94: 0 | R94: 11872989.71 | S94: 11987036.32 | T94: 11647642.84
A95: 1 | B95: Grundstücke | C95: 2020 | D95: NB | E95: 0 | F95: 0 | G95: 0 | H95: 0 | I95: 0 | J95: 0 | K95: 0 | L95: 0 | M95: 0 | N95: 0 | O95: 0 | P95: 0 | Q95: 0 | R95: 0 | S95: 5358556.09 | T95: 5025925.51
A96: 1 | B96: Grundstücke | C96: 2021 | D96: NB | E96: 0 | F96: 0 | G96: 0 | H96: 0 | I96: 0 | J96: 0 | K96: 0 | L96: 0 | M96: 0 | N96: 0 | O96: 0 | P96: 0 | Q96: 0 | R96: 0 | S96: 0 | T96: 6447686.28
A97: 2 | B97: Grundstücksanlagen, Bauten für Transportwesen (ohne Grundstücke) | C97: 1930 | D97: NB | E97: 9397.92 | F97: 9397.92 | G97: 9397.92 | H97: 9397.92 | I97: 9397.92 | J97: 9397.92 | K97: 9397.92 | L97: 9397.92 | M97: 9397.92 | N97: 9397.92 | O97: 9397.92 | P97: 9703.36 | Q97: 9703.36 | R97: 38795.87 | S97: 38795.87 | T97: 29486.79
A98: 2 | B98: Grundstücksanlagen, Bauten für Transportwesen (ohne Grundstücke) | C98: 1931 | D98: NB | E98: 0 | F98: 0 | G98: 0 | H98: 0 | I98: 0 | J98: 0 | K98: 0 | L98: 0 | M98: 0 | N98: 0 | O98: 0 | P98: 0 | Q98: 0 | R98: 0 | S98: 0 | T98: 0
A99: 2 | B99: Grundstücksanlagen, Bauten für Transportwesen (ohne Grundstücke) | C99: 1932 | D99: NB | E99: 0 | F99: 0 | G99: 0 | H99: 0 | I99: 0 | J99: 0 | K99: 0 | L99: 0 | M99: 0 | N99: 0 | O99: 0 | P99: 0 | Q99: 0 | R99: 0 | S99: 0 | T99: 0
A100: 2 | B100: Grundstücksanlagen, Bauten für Transportwesen (ohne Grundstücke) | C100: 1933 | D100: NB | E100: 1533.88 | F100: 1533.88 | G100: 1533.88 | H100: 1533.88 | I100: 1533.88 | J100: 1533.88 | K100: 1533.88 | L100: 1533.88 | M100: 1533.88 | N100: 1533.88 | O100: 1533.88 | P100: 1533.88 | Q100: 1533.88 | R100: 1533.88 | S100: 1533.88 | T100: 1533.88
A101: 2 | B101: Grundstücksanlagen, Bauten für Transportwesen (ohne Grundstücke) | C101: 1934 | D101: NB | E101: 0 | F101: 0 | G101: 0 | H101: 0 | I101: 0 | J101: 0 | K101: 0 | L101: 0 | M101: 0 | N101: 0 | O101: 0 | P101: 62.51 | Q101: 62.51 | R101: 62.51 | S101: 62.51 | T101: 80.69
A102: 2 | B102: Grundstücksanlagen, Bauten für Transportwesen (ohne Grundstücke) | C102: 1935 | D102: NB | E102: 54.23 | F102: 54.23 | G102: 54.23 | H102: 54.23 | I102: 54.23 | J102: 54.23 | K102: 54.23 | L102: 54.23 | M102: 54.23 | N102: 54.23 | O102: 54.23 | P102: 0 | Q102: 0 | R102: 0 | S102: 0 | T102: 0
A103: 2 | B103: Grundstücksanlagen, Bauten für Transportwesen (ohne Grundstücke) | C103: 1936 | D103: NB | E103: 17.06 | F103: 17.06 | G103: 17.06 | H103: 17.06 | I103: 17.06 | J103: 17.06 | K103: 17.06 | L103: 17.06 | M103: 17.06 | N103: 17.06 | O103: 17.06 | P103: 0 | Q103: 0 | R103: 0 | S103: 0 | T103: 0
A104: 2 | B104: Grundstücksanlagen, Bauten für Transportwesen (ohne Grundstücke) | C104: 1937 | D104: NB | E104: 0 | F104: 0 | G104: 0 | H104: 0 | I104: 0 | J104: 0 | K104: 0 | L104: 0 | M104: 0 | N104: 0 | O104: 0 | P104: 0 | Q104: 0 | R104: 5964.73 | S104: 5964.73 | T104: 5964.73
A105: 2 | B105: Grundstücksanlagen, Bauten für Transportwesen (ohne Grundstücke) | C105: 1938 | D105: NB | E105: 0 | F105: 0 | G105: 0 | H105: 0 | I105: 0 | J105: 0 | K105: 0 | L105: 0 | M105: 0 | N105: 0 | O105: 0 | P105: 0 | Q105: 0 | R105: 0 | S105: 27008.99 | T105: 27008.99
A106: 2 | B106: Grundstücksanlagen, Bauten für Transportwesen (ohne Grundstücke) | C106: 1939 | D106: NB | E106: 2950.25 | F106: 2950.24 | G106: 2950.24 | H106: 2950.24 | I106: 2924.17 | J106: 2924.17 | K106: 2915.47 | L106: 2915.47 | M106: 2915.47 | N106: 2915.47 | O106: 2898.09 | P106: 2889.4 | Q106: 2898.09 | R106: 2889.4 | S106: 2446.99 | T106: 2446.99
A107: 2 | B107: Grundstücksanlagen, Bauten für Transportwesen (ohne Grundstücke) | C107: 1940 | D107: NB | E107: 1781.3 | F107: 1781.35 | G107: 1781.35 | H107: 1781.35 | I107: 1781.3 | J107: 1811.94 | K107: 1813.03 | L107: 1796.07 | M107: 1773.64 | N107: 1721.12 | O107: 1721.12 | P107: 1721.12 | Q107: 1721.12 | R107: 1721.12 | S107: 1721.12 | T107: 1721.12
A108: 2 | B108: Grundstücksanlagen, Bauten für Transportwesen (ohne Grundstücke) | C108: 1941 | D108: NB | E108: 21.57 | F108: 21.57 | G108: 21.57 | H108: 21.57 | I108: 21.57 | J108: 21.57 | K108: 21.57 | L108: 21.57 | M108: 21.57 | N108: 21.57 | O108: 21.57 | P108: 0 | Q108: 0 | R108: 0 | S108: 0 | T108: 0
A109: 2 | B109: Grundstücksanlagen, Bauten für Transportwesen (ohne Grundstücke) | C109: 1942 | D109: NB | E109: 0 | F109: 0 | G109: 0 | H109: 0 | I109: 0 | J109: 0 | K109: 0 | L109: 0 | M109: 0 | N109: 0 | O109: 0 | P109: 0 | Q109: 0 | R109: 0 | S109: 0 | T109: 0
A110: 2 | B110: Grundstücksanlagen, Bauten für Transportwesen (ohne Grundstücke) | C110: 1943 | D110: NB | E110: 0 | F110: 0 | G110: 0 | H110: 0 | I110: 0 | J110: 0 | K110: 0 | L110: 0 | M110: 0 | N110: 0 | O110: 0 | P110: 0 | Q110: 0 | R110: 0 | S110: 0 | T110: 0
A111: 2 | B111: Grundstücksanlagen, Bauten für Transportwesen (ohne Grundstücke) | C111: 1944 | D111: NB | E111: 0 | F111: 0 | G111: 0 | H111: 0 | I111: 0 | J111: 0 | K111: 0 | L111: 0 | M111: 0 | N111: 0 | O111: 0 | P111: 0 | Q111: 0 | R111: 0 | S111: 0 | T111: 0
A112: 2 | B112: Grundstücksanlagen, Bauten für Transportwesen (ohne Grundstücke) | C112: 1945 | D112: NB | E112: 0 | F112: 0.05 | G112: 0.05 | H112: 0.05 | I112: 0.05 | J112: 0.05 | K112: 0.05 | L112: 0.05 | M112: 0.05 | N112: 0.06 | O112: 0.06 | P112: 0.06 | Q112: 0.06 | R112: 0.06 | S112: 0.06 | T112: 0.06
A113: 2 | B113: Grundstücksanlagen, Bauten für Transportwesen (ohne Grundstücke) | C113: 1946 | D113: NB | E113: 0 | F113: 0 | G113: 0 | H113: 0 | I113: 0 | J113: 0 | K113: 0 | L113: 0 | M113: 0 | N113: 0 | O113: 0 | P113: 211.74 | Q113: 211.74 | R113: 211.74 | S113: 211.74 | T113: 273.32
A114: 2 | B114: Grundstücksanlagen, Bauten für Transportwesen (ohne Grundstücke) | C114: 1947 | D114: NB | E114: 6284.88 | F114: 6200.62 | G114: 5763.25 | H114: 5191.05 | I114: 5191.05 | J114: 5191.05 | K114: 5191.05 | L114: 5191.05 | M114: 19859.94 | N114: 17479.22 | O114: 16147.59 | P114: 18587.57 | Q114: 18425.17 | R114: 17672.55 | S114: 18155.67 | T114: 17564.19
A115: 2 | B115: Grundstücksanlagen, Bauten für Transportwesen (ohne Grundstücke) | C115: 1948 | D115: NB | E115: 105315.38 | F115: 105292.44 | G115: 105279.05 | H115: 33518.71 | I115: 33487.52 | J115: 35416.4 | K115: 35819.54 | L115: 35674.41 | M115: 35596.13 | N115: 36934.44 | O115: 33111.47 | P115: 32862.04 | Q115: 32862.04 | R115: 32862.04 | S115: 32862.04 | T115: 32862.04
A116: 2 | B116: Grundstücksanlagen, Bauten für Transportwesen (ohne Grundstücke) | C116: 1949 | D116: NB | E116: 24620.92 | F116: 24621.3 | G116: 24621.3 | H116: 1397.87 | I116: 1397.87 | J116: 5897.97 | K116: 6939.68 | L116: 7321.54 | M116: 6995.35 | N116: 3214.81 | O116: 1752.81 | P116: 1929.88 | Q116: 1952.12 | R116: 1938.63 | S116: 1889.76 | T116: 1586.97
A117: 2 | B117: Grundstücksanlagen, Bauten für Transportwesen (ohne Grundstücke) | C117: 1950 | D117: NB | E117: 41287.93 | F117: 41287.71 | G117: 41287.71 | H117: 41287.71 | I117: 41287.71 | J117: 41287.71 | K117: 41287.71 | L117: 39956.87 | M117: 39956.87 | N117: 39956.87 | O117: 39956.87 | P117: 36304.32 | Q117: 36304.32 | R117: 36304.32 | S117: 36304.32 | T117: 36313.16
A118: 2 | B118: Grundstücksanlagen, Bauten für Transportwesen (ohne Grundstücke) | C118: 1951 | D118: NB | E118: 34375.61 | F118: 34375.34 | G118: 34375.34 | H118: 24258.11 | I118: 24258.11 | J118: 24258.11 | K118: 24258.11 | L118: 24258.11 | M118: 24258.11 | N118: 24258.11 | O118: 24128.81 | P118: 23485.87 | Q118: 23411.98 | R118: 23270.36 | S118: 42061.79 | T118: 42123.53
A119: 2 | B119: Grundstücksanlagen, Bauten für Transportwesen (ohne Grundstücke) | C119: 1952 | D119: NB | E119: 9429.13 | F119: 9371.14 | G119: 9245.79 | H119: 9263.83 | I119: 9266.2 | J119: 9252.13 | K119: 9153.05 | L119: 8630.12 | M119: 8614.29 | N119: 9852.54 | O119: 9701.88 | P119: 6993.42 | Q119: 7039.58 | R119: 7026.98 | S119: 7001.15 | T119: 7040.97
A120: 2 | B120: Grundstücksanlagen, Bauten für Transportwesen (ohne Grundstücke) | C120: 1953 | D120: NB | E120: 36772.22 | F120: 34986.24 | G120: 35047.54 | H120: 34587.75 | I120: 34525.97 | J120: 34397.6 | K120: 34399.31 | L120: 34226.79 | M120: 34076.72 | N120: 34056.94 | O120: 36613.4 | P120: 31814.6 | Q120: 31816.38 | R120: 33232.38 | S120: 47878.83 | T120: 49540.8
A121: 2 | B121: Grundstücksanlagen, Bauten für Transportwesen (ohne Grundstücke) | C121: 1954 | D121: NB | E121: 111970.55 | F121: 111280.49 | G121: 111273.25 | H121: 111344.31 | I121: 111367.53 | J121: 111367.64 | K121: 111386.62 | L121: 110621.1 | M121: 111721.82 | N121: 111713.3 | O121: 111856.46 | P121: 111742.03 | Q121: 111748.04 | R121: 112320.53 | S121: 134711.67 | T121: 134445.79
A122: 2 | B122: Grundstücksanlagen, Bauten für Transportwesen (ohne Grundstücke) | C122: 1955 | D122: NB | E122: 43186.62 | F122: 31376.31 | G122: 31472.35 | H122: 21984.81 | I122: 32025.88 | J122: 31436.97 | K122: 31424.95 | L122: 31043.61 | M122: 30919.73 | N122: 31101.35 | O122: 31067.63 | P122: 30382.75 | Q122: 30379.43 | R122: 38082.01 | S122: 39180.03 | T122: 39051.8
A123: 2 | B123: Grundstücksanlagen, Bauten für Transportwesen (ohne Grundstücke) | C123: 1956 | D123: NB | E123: 35240.24 | F123: 32749.65 | G123: 32726.57 | H123: 20249.69 | I123: 23110.56 | J123: 22987.21 | K123: 22982.5 | L123: 20744.23 | M123: 20676.26 | N123: 20758.25 | O123: 20908.7 | P123: 18048.95 | Q123: 12886.94 | R123: 69899.08 | S123: 67402.42 | T123: 67595.25
A124: 2 | B124: Grundstücksanlagen, Bauten für Transportwesen (ohne Grundstücke) | C124: 1957 | D124: NB | E124: 51688.54 | F124: 45949.18 | G124: 46018.6 | H124: 40061.47 | I124: 65039.13 | J124: 64486.13 | K124: 64463.7 | L124: 63734.27 | M124: 63655.94 | N124: 63824.87 | O124: 66243.56 | P124: 63802.94 | Q124: 54538.58 | R124: 55530.2 | S124: 55527.43 | T124: 55505.41
A125: 2 | B125: Grundstücksanlagen, Bauten für Transportwesen (ohne Grundstücke) | C125: 1958 | D125: NB | E125: 37111.91 | F125: 37106.66 | G125: 37087.99 | H125: 37110.97 | I125: 37028.85 | J125: 37070.23 | K125: 37120.61 | L125: 37529.01 | M125: 36138.72 | N125: 38165.82 | O125: 38130.61 | P125: 28922.39 | Q125: 21152.46 | R125: 21150.72 | S125: 20732.53 | T125: 20716.79
A126: 2 | B126: Grundstücksanlagen, Bauten für Transportwesen (ohne Grundstücke) | C126: 1959 | D126: NB | E126: 52653.93 | F126: 51719.7 | G126: 51851.69 | H126: 213130.14 | I126: 214327.23 | J126: 213657.39 | K126: 213657.39 | L126: 213657.39 | M126: 212470.17 | N126: 212832.16 | O126: 212805.13 | P126: 213628.01 | Q126: 213612.57 | R126: 213582.97 | S126: 218513.77 | T126: 218592.47
A127: 2 | B127: Grundstücksanlagen, Bauten für Transportwesen (ohne Grundstücke) | C127: 1960 | D127: NB | E127: 47628.51 | F127: 44101.31 | G127: 44106.6 | H127: 28861.91 | I127: 32399.43 | J127: 32400.29 | K127: 32443.79 | L127: 31531.76 | M127: 26600.33 | N127: 27866.38 | O127: 27866.38 | P127: 24133.16 | Q127: 24176.15 | R127: 24150.08 | S127: 63250.36 | T127: 65143.54
A128: 2 | B128: Grundstücksanlagen, Bauten für Transportwesen (ohne Grundstücke) | C128: 1961 | D128: NB | E128: 99150.58 | F128: 93152.1 | G128: 93183.07 | H128: 97580.76 | I128: 101898.29 | J128: 101721.89 | K128: 101591.62 | L128: 96553.86 | M128: 93503.26 | N128: 138608.34 | O128: 138603.88 | P128: 92438.63 | Q128: 92443.26 | R128: 92440.45 | S128: 92430.27 | T128: 92423.54
A129: 2 | B129: Grundstücksanlagen, Bauten für Transportwesen (ohne Grundstücke) | C129: 1962 | D129: NB | E129: 50874.47 | F129: 51234.39 | G129: 51263.7 | H129: 51370.26 | I129: 51289.56 | J129: 50448.77 | K129: 50401.29 | L129: 48157.84 | M129: 47948.49 | N129: 48243.86 | O129: 48135.16 | P129: 37319.41 | Q129: 37357.53 | R129: 41411.31 | S129: 41382.08 | T129: 41830.85
A130: 2 | B130: Grundstücksanlagen, Bauten für Transportwesen (ohne Grundstücke) | C130: 1963 | D130: NB | E130: 41112.96 | F130: 40421.01 | G130: 40357.38 | H130: 67158.16 | I130: 67533.58 | J130: 67381.04 | K130: 261969.26 | L130: 260855.01 | M130: 260656.98 | N130: 260683.37 | O130: 260882.94 | P130: 247530.7 | Q130: 247530.7 | R130: 247530.7 | S130: 247341.35 | T130: 127446.58
A131: 2 | B131: Grundstücksanlagen, Bauten für Transportwesen (ohne Grundstücke) | C131: 1964 | D131: NB | E131: 158100.68 | F131: 131233.41 | G131: 126080.29 | H131: 126334.35 | I131: 134326.99 | J131: 134241.05 | K131: 134353.2 | L131: 131998.39 | M131: 132680.82 | N131: 137704.64 | O131: 137680.65 | P131: 115136.74 | Q131: 115176.75 | R131: 115163.88 | S131: 115079.71 | T131: 114485.1
A132: 2 | B132: Grundstücksanlagen, Bauten für Transportwesen (ohne Grundstücke) | C132: 1965 | D132: NB | E132: 441672.88 | F132: 436113.16 | G132: 436021.68 | H132: 439984.29 | I132: 433153.29 | J132: 433326.38 | K132: 432998.21 | L132: 422730.44 | M132: 421803.03 | N132: 434157.94 | O132: 431171.24 | P132: 425785.87 | Q132: 425006.43 | R132: 440302.91 | S132: 440846.83 | T132: 440721.54
A133: 2 | B133: Grundstücksanlagen, Bauten für Transportwesen (ohne Grundstücke) | C133: 1966 | D133: NB | E133: 182763.16 | F133: 182802.83 | G133: 182242.76 | H133: 169799.55 | I133: 170616.08 | J133: 178665.53 | K133: 178377.75 | L133: 176918.59 | M133: 161321.36 | N133: 161506.21 | O133: 161190.42 | P133: 147736.45 | Q133: 147691.46 | R133: 148897.92 | S133: 148690.39 | T133: 147421.81
A134: 2 | B134: Grundstücksanlagen, Bauten für Transportwesen (ohne Grundstücke) | C134: 1967 | D134: NB | E134: 265707.26 | F134: 261491.42 | G134: 185745.6 | H134: 195913.43 | I134: 202575.48 | J134: 199786.53 | K134: 197568.12 | L134: 192949.1 | M134: 231226.18 | N134: 261976.07 | O134: 259064.37 | P134: 838202.58 | Q134: 838517.92 | R134: 860303.34 | S134: 870947.74 | T134: 871063.47
A135: 2 | B135: Grundstücksanlagen, Bauten für Transportwesen (ohne Grundstücke) | C135: 1968 | D135: NB | E135: 227959.11 | F135: 225483.77 | G135: 225780.66 | H135: 235204.63 | I135: 126529.84 | J135: 124368.45 | K135: 126559.61 | L135: 130588.01 | M135: 130358.58 | N135: 137340.93 | O135: 135264.57 | P135: 229624.73 | Q135: 229974.53 | R135: 233304.82 | S135: 268662.87 | T135: 273011.06
A136: 2 | B136: Grundstücksanlagen, Bauten für Transportwesen (ohne Grundstücke) | C136: 1969 | D136: NB | E136: 373873.81 | F136: 366311.7 | G136: 155225.37 | H136: 195243.62 | I136: 199254.14 | J136: 199032.2 | K136: 199032.64 | L136: 192946.15 | M136: 202536.47 | N136: 196556.75 | O136: 190469.96 | P136: 134820.33 | Q136: 134672.87 | R136: 146308.15 | S136: 204900.97 | T136: 204822.83
A137: 2 | B137: Grundstücksanlagen, Bauten für Transportwesen (ohne Grundstücke) | C137: 1970 | D137: NB | E137: 147661 | F137: 122741.14 | G137: 114781.99 | H137: 125912.91 | I137: 130353.31 | J137: 130982.07 | K137: 126869.24 | L137: 111923.69 | M137: 125010.43 | N137: 127184.18 | O137: 125393.84 | P137: 114322.11 | Q137: 114174.21 | R137: 121455.36 | S137: 121889.67 | T137: 121885.65
A138: 2 | B138: Grundstücksanlagen, Bauten für Transportwesen (ohne Grundstücke) | C138: 1971 | D138: NB | E138: 295770.79 | F138: 224020.04 | G138: 222144.83 | H138: 226147.7 | I138: 242184.61 | J138: 242022.14 | K138: 242049.6 | L138: 228345.46 | M138: 220343.67 | N138: 250084.75 | O138: 250104.12 | P138: 213661.69 | Q138: 213648.32 | R138: 216243.21 | S138: 217067.86 | T138: 218291.6
A139: 2 | B139: Grundstücksanlagen, Bauten für Transportwesen (ohne Grundstücke) | C139: 1972 | D139: NB | E139: 392887.5851 | F139: 338289.2451 | G139: 348998.34 | H139: 369744.94 | I139: 361213.26 | J139: 358326.34 | K139: 464865.94 | L139: 418217.07 | M139: 420518.03 | N139: 447939.31 | O139: 334518.81 | P139: 326527.68 | Q139: 321569.99 | R139: 350898.87 | S139: 379911.74 | T139: 352678.61
A140: 2 | B140: Grundstücksanlagen, Bauten für Transportwesen (ohne Grundstücke) | C140: 1973 | D140: NB | E140: 1972047.818 | F140: 488005.9575 | G140: 494734.44 | H140: 515178.68 | I140: 4345668.03 | J140: 4347231.87 | K140: 4365876.9 | L140: 4354784.27 | M140: 4358327.28 | N140: 4458412.34 | O140: 4442861.58 | P140: 4357271.24 | Q140: 4353071.44 | R140: 4355484.55 | S140: 4369690.2 | T140: 4369526.89
A141: 2 | B141: Grundstücksanlagen, Bauten für Transportwesen (ohne Grundstücke) | C141: 1974 | D141: NB | E141: 565787.55 | F141: 485263.98 | G141: 504856.61 | H141: 614369.03 | I141: 574017.67 | J141: 573209.16 | K141: 623165.78 | L141: 545536.71 | M141: 566103.65 | N141: 608345.08 | O141: 606343.41 | P141: 600704.74 | Q141: 595899.52 | R141: 612963.46 | S141: 618938.02 | T141: 607320.29
A142: 2 | B142: Grundstücksanlagen, Bauten für Transportwesen (ohne Grundstücke) | C142: 1975 | D142: NB | E142: 756598.55 | F142: 549163.31 | G142: 561138.4 | H142: 649001.61 | I142: 631459.23 | J142: 638404.26 | K142: 642554.13 | L142: 612981.27 | M142: 597419.29 | N142: 623871.39 | O142: 624906.89 | P142: 665578.1 | Q142: 663243 | R142: 697584.92 | S142: 730936.94 | T142: 740740.37
A143: 2 | B143: Grundstücksanlagen, Bauten für Transportwesen (ohne Grundstücke) | C143: 1976 | D143: NB | E143: 1205370.07 | F143: 1060914.93 | G143: 1059330.21 | H143: 1103847.21 | I143: 951321.02 | J143: 942011.32 | K143: 941101.8 | L143: 896441.73 | M143: 914459.54 | N143: 853729.38 | O143: 851737.53 | P143: 812292.05 | Q143: 809889.03 | R143: 845567.91 | S143: 848596.08 | T143: 865353.22
A144: 2 | B144: Grundstücksanlagen, Bauten für Transportwesen (ohne Grundstücke) | C144: 1977 | D144: NB | E144: 1243300.334 | F144: 1048153.064 | G144: 1098947.14 | H144: 1134480.27 | I144: 1034726.58 | J144: 1058481.17 | K144: 1068409.83 | L144: 932760.34 | M144: 945709.74 | N144: 976680.57 | O144: 967616.63 | P144: 880159.94 | Q144: 870691.67 | R144: 884379.76 | S144: 915069.49 | T144: 916950.99
A145: 2 | B145: Grundstücksanlagen, Bauten für Transportwesen (ohne Grundstücke) | C145: 1978 | D145: NB | E145: 1316020.938 | F145: 1220953.248 | G145: 1234789.35 | H145: 1354380.87 | I145: 1333602.36 | J145: 1331084.98 | K145: 1310626.1 | L145: 1257227.57 | M145: 1409512.17 | N145: 1424591.01 | O145: 1405507.11 | P145: 1448114.88 | Q145: 1444486.23 | R145: 1452702.51 | S145: 1447391.62 | T145: 1437261.21
A146: 2 | B146: Grundstücksanlagen, Bauten für Transportwesen (ohne Grundstücke) | C146: 1979 | D146: NB | E146: 1430176.415 | F146: 1308655.645 | G146: 1304652.64 | H146: 1530976.1 | I146: 1573971.48 | J146: 1559519.24 | K146: 1532603.15 | L146: 1473209.26 | M146: 1602030.35 | N146: 1549719.25 | O146: 1534655.02 | P146: 1358809.41 | Q146: 1351733.97 | R146: 1344302.97 | S146: 1416191.13 | T146: 1403256.97
A147: 2 | B147: Grundstücksanlagen, Bauten für Transportwesen (ohne Grundstücke) | C147: 1980 | D147: NB | E147: 1048279.92 | F147: 920359.32 | G147: 946950.06 | H147: 996137.45 | I147: 917730.84 | J147: 939584.32 | K147: 937228.58 | L147: 864830.22 | M147: 995325.75 | N147: 1001628.87 | O147: 964131.84 | P147: 1009698.88 | Q147: 1090660.99 | R147: 1161330.18 | S147: 1186405.88 | T147: 1166446.11
A148: 2 | B148: Grundstücksanlagen, Bauten für Transportwesen (ohne Grundstücke) | C148: 1981 | D148: NB | E148: 1857549.938 | F148: 1555195.738 | G148: 1572185.27 | H148: 1737548.58 | I148: 1475931.61 | J148: 1544743.29 | K148: 1517946.49 | L148: 1457251.17 | M148: 1457743.84 | N148: 1676052.8 | O148: 1669667.44 | P148: 1480526.47 | Q148: 1450365.58 | R148: 1579407.57 | S148: 1601912.7 | T148: 1595558.89
A149: 2 | B149: Grundstücksanlagen, Bauten für Transportwesen (ohne Grundstücke) | C149: 1982 | D149: NB | E149: 1357062.078 | F149: 1218361.708 | G149: 1149617.96 | H149: 1608387.92 | I149: 1564274.62 | J149: 1471011.98 | K149: 1520133.24 | L149: 1496237.26 | M149: 1579172.4 | N149: 2052337 | O149: 1976973.85 | P149: 1909008 | Q149: 2119211.42 | R149: 2308568.29 | S149: 2304111.14 | T149: 2291795.03
A150: 2 | B150: Grundstücksanlagen, Bauten für Transportwesen (ohne Grundstücke) | C150: 1983 | D150: NB | E150: 1770094.259 | F150: 1596046.069 | G150: 1631656.62 | H150: 1712803.23 | I150: 1644709.68 | J150: 1635748.73 | K150: 1667136.86 | L150: 1591595.15 | M150: 1657395.48 | N150: 1709648.74 | O150: 1691314.07 | P150: 1771034.12 | Q150: 1604518.14 | R150: 1745162.31 | S150: 1759020.56 | T150: 1742999.94
A151: 2 | B151: Grundstücksanlagen, Bauten für Transportwesen (ohne Grundstücke) | C151: 1984 | D151: NB | E151: 1448519.61 | F151: 1391738.05 | G151: 1362346.64 | H151: 1745961.92 | I151: 1527978.85 | J151: 1442141.74 | K151: 1443547.55 | L151: 1397738.28 | M151: 1354972.18 | N151: 1446100.02 | O151: 1420862.08 | P151: 1860371.38 | Q151: 1862660.14 | R151: 2051264.57 | S151: 2037877.93 | T151: 2034187.66
A152: 2 | B152: Grundstücksanlagen, Bauten für Transportwesen (ohne Grundstücke) | C152: 1985 | D152: NB | E152: 1241363.37 | F152: 1154512.02 | G152: 1160371.79 | H152: 1540298.01 | I152: 1445207.86 | J152: 1438484.31 | K152: 1434335.89 | L152: 1421059.15 | M152: 1500468.95 | N152: 1522680.02 | O152: 1536027.91 | P152: 1497263.94 | Q152: 1504500.3 | R152: 1544378.11 | S152: 1591405.04 | T152: 1568966.99
A153: 2 | B153: Grundstücksanlagen, Bauten für Transportwesen (ohne Grundstücke) | C153: 1986 | D153: NB | E153: 2937740.11 | F153: 2816551.25 | G153: 2813418.33 | H153: 3225456.65 | I153: 3571148.4 | J153: 3639248.06 | K153: 3677246.48 | L153: 3626685.75 | M153: 3656939.91 | N153: 3708281.52 | O153: 3661754.32 | P153: 3618330.2 | Q153: 3619625.54 | R153: 3639021.39 | S153: 3677200.69 | T153: 3651487.48
A154: 2 | B154: Grundstücksanlagen, Bauten für Transportwesen (ohne Grundstücke) | C154: 1987 | D154: NB | E154: 2218414.71 | F154: 1826233.87 | G154: 1772434.21 | H154: 3269545.09 | I154: 3711766.2 | J154: 3414400.99 | K154: 3354508.62 | L154: 3212621.63 | M154: 3246536.77 | N154: 3376703.69 | O154: 3357631.23 | P154: 3151466.27 | Q154: 3151683.41 | R154: 3174839.05 | S154: 3255843.35 | T154: 3280064.66
A155: 2 | B155: Grundstücksanlagen, Bauten für Transportwesen (ohne Grundstücke) | C155: 1988 | D155: NB | E155: 2853708.01 | F155: 2658995.56 | G155: 2725276.13 | H155: 2930708.87 | I155: 2758851.28 | J155: 2750061.24 | K155: 2765154.62 | L155: 2682666.25 | M155: 2870942.6 | N155: 3000435.72 | O155: 2994314.2 | P155: 2951330.11 | Q155: 2927462.41 | R155: 3046767.67 | S155: 3065064.5 | T155: 3068613.98
A156: 2 | B156: Grundstücksanlagen, Bauten für Transportwesen (ohne Grundstücke) | C156: 1989 | D156: NB | E156: 1935840.75 | F156: 1790827.94 | G156: 1811485.97 | H156: 2699966.03 | I156: 2384439.96 | J156: 2091952.8 | K156: 2067051.04 | L156: 1963800.12 | M156: 1944398.32 | N156: 1972287.83 | O156: 2068861.96 | P156: 2030144.28 | Q156: 1978983.21 | R156: 2028890.55 | S156: 2018113.12 | T156: 1997596.23
A157: 2 | B157: Grundstücksanlagen, Bauten für Transportwesen (ohne Grundstücke) | C157: 1990 | D157: NB | E157: 2421328.87 | F157: 2355378.57 | G157: 2324507.35 | H157: 2439204.26 | I157: 2203440.81 | J157: 2321528.82 | K157: 2805157.47 | L157: 2336417.74 | M157: 2435392.58 | N157: 2553454.01 | O157: 2620418.92 | P157: 2435206.03 | Q157: 2418595.8 | R157: 2477981 | S157: 2532588.6 | T157: 2498410.36
A158: 2 | B158: Grundstücksanlagen, Bauten für Transportwesen (ohne Grundstücke) | C158: 1991 | D158: NB | E158: 6534612.24 | F158: 6532036.18 | G158: 6467495.22 | H158: 8134791.1 | I158: 8091421.02 | J158: 8093919.94 | K158: 8526799.46 | L158: 8419248.28 | M158: 8380152.77 | N158: 8740354.21 | O158: 8724106.37 | P158: 8702265.35 | Q158: 8685757.52 | R158: 8776489.65 | S158: 8775690.34 | T158: 8786553.41
A159: 2 | B159: Grundstücksanlagen, Bauten für Transportwesen (ohne Grundstücke) | C159: 1992 | D159: NB | E159: 2321788.735 | F159: 2201182.485 | G159: 1702687.78 | H159: 2132704.02 | I159: 2104114.5 | J159: 2147875.7 | K159: 2690536.36 | L159: 2514688.33 | M159: 2533352.61 | N159: 2514834.67 | O159: 2733545 | P159: 2588720.4 | Q159: 2479596.76 | R159: 2598819.31 | S159: 3465782.22 | T159: 3419773.17
A160: 2 | B160: Grundstücksanlagen, Bauten für Transportwesen (ohne Grundstücke) | C160: 1993 | D160: NB | E160: 2363138.54 | F160: 2070530.66 | G160: 2073680.24 | H160: 2151059.85 | I160: 8593166.85 | J160: 8644359.48 | K160: 10143779.66 | L160: 9909619.06 | M160: 9918081.79 | N160: 10098302.08 | O160: 10013252.7 | P160: 9985157.9 | Q160: 9739456.47 | R160: 9828211.78 | S160: 9807979.99 | T160: 9779777.17
A161: 2 | B161: Grundstücksanlagen, Bauten für Transportwesen (ohne Grundstücke) | C161: 1994 | D161: NB | E161: 4833638.254 | F161: 3927194.744 | G161: 3538520.98 | H161: 3543449.28 | I161: 6696675.3 | J161: 6655748.65 | K161: 7264116.69 | L161: 6889817.47 | M161: 6927284.1 | N161: 7079719.6 | O161: 6911437.14 | P161: 7084523.55 | Q161: 7076580.41 | R161: 7254714.74 | S161: 7203652.4 | T161: 7158249.82
A162: 2 | B162: Grundstücksanlagen, Bauten für Transportwesen (ohne Grundstücke) | C162: 1995 | D162: NB | E162: 4118265.88 | F162: 3948370.28 | G162: 4049880.22 | H162: 4087405.11 | I162: 3925863.08 | J162: 3841306.1 | K162: 4270315.6 | L162: 3961925.79 | M162: 4074194.02 | N162: 4402017.76 | O162: 4384015.63 | P162: 4409242.19 | Q162: 4399876.21 | R162: 4535692.56 | S162: 4568665.52 | T162: 4505980.67
A163: 2 | B163: Grundstücksanlagen, Bauten für Transportwesen (ohne Grundstücke) | C163: 1996 | D163: NB | E163: 3639027.17 | F163: 3623535.2 | G163: 3602607.81 | H163: 3749285.66 | I163: 6619037.32 | J163: 6647489.61 | K163: 6908439.74 | L163: 6695219.32 | M163: 6731211.46 | N163: 6836271.55 | O163: 6820261.45 | P163: 6253595.32 | Q163: 6270939.6 | R163: 6348391.64 | S163: 6855979.15 | T163: 6794265.93
A164: 2 | B164: Grundstücksanlagen, Bauten für Transportwesen (ohne Grundstücke) | C164: 1997 | D164: NB | E164: 4843666.93 | F164: 4586079.11 | G164: 4515965.12 | H164: 4723514.8 | I164: 4642473.38 | J164: 4431014.52 | K164: 6069549.57 | L164: 5977213.35 | M164: 5997761 | N164: 6529049.45 | O164: 6427296.28 | P164: 5625588.38 | Q164: 5605531.5 | R164: 5609254.66 | S164: 5591571.6 | T164: 4966218.42
A165: 2 | B165: Grundstücksanlagen, Bauten für Transportwesen (ohne Grundstücke) | C165: 1998 | D165: NB | E165: 3661304.5 | F165: 3588820.31 | G165: 3733173.38 | H165: 3827189.53 | I165: 4379431.07 | J165: 4321869.06 | K165: 4990208.92 | L165: 4928690.08 | M165: 5121030.05 | N165: 5468794.44 | O165: 5341035.71 | P165: 5615566.73 | Q165: 5545624.98 | R165: 5633389.56 | S165: 6479065.62 | T165: 6166384.53
A166: 2 | B166: Grundstücksanlagen, Bauten für Transportwesen (ohne Grundstücke) | C166: 1999 | D166: NB | E166: 3279092.88 | F166: 3137748.54 | G166: 3093628.62 | H166: 3195997.85 | I166: 6962222.99 | J166: 6821386.12 | K166: 7424251.01 | L166: 7425120.37 | M166: 7338894.2 | N166: 7420899.11 | O166: 8226267.85 | P166: 8227081.34 | Q166: 8077609.51 | R166: 8278014.93 | S166: 8416511.71 | T166: 8390586.73
A167: 2 | B167: Grundstücksanlagen, Bauten für Transportwesen (ohne Grundstücke) | C167: 2000 | D167: NB | E167: 3072966.57 | F167: 3041093.55 | G167: 3146016.3 | H167: 3366875.02 | I167: 3369893.96 | J167: 3261252.88 | K167: 4668803.52 | L167: 4693663.76 | M167: 4916522.06 | N167: 4933310.11 | O167: 4902130.76 | P167: 4877604.85 | Q167: 4891399.77 | R167: 4913859.77 | S167: 4914319.8 | T167: 4881149.3
A168: 2 | B168: Grundstücksanlagen, Bauten für Transportwesen (ohne Grundstücke) | C168: 2001 | D168: NB | E168: 1838685.89 | F168: 1751384.15 | G168: 1806976.05 | H168: 1947595.72 | I168: 1857351.48 | J168: 1732810.26 | K168: 1781893.22 | L168: 1728789.1 | M168: 1780643.35 | N168: 1907397.56 | O168: 1996610.9 | P168: 2855011.36 | Q168: 2857504.43 | R168: 2858501.62 | S168: 2886898.96 | T168: 2875571.22
A169: 2 | B169: Grundstücksanlagen, Bauten für Transportwesen (ohne Grundstücke) | C169: 2002 | D169: NB | E169: 2494131.58 | F169: 2349581.45 | G169: 2356864.7 | H169: 2379885.45 | I169: 2294186.6 | J169: 2528707.66 | K169: 3453803.74 | L169: 3349125.2 | M169: 3582297.93 | N169: 3844893.88 | O169: 3819437.84 | P169: 3740943.15 | Q169: 3740281.37 | R169: 3459398.79 | S169: 3435425.76 | T169: 3346199.25
A170: 2 | B170: Grundstücksanlagen, Bauten für Transportwesen (ohne Grundstücke) | C170: 2003 | D170: NB | E170: 3280695.68 | F170: 3047018.22 | G170: 2935070.81 | H170: 3057843.5 | I170: 2681691.73 | J170: 2644802.33 | K170: 2889235.96 | L170: 2835869.31 | M170: 3117659.37 | N170: 3063704.13 | O170: 3087585.64 | P170: 2922546.97 | Q170: 2923852.39 | R170: 2946181.2 | S170: 2903100.27 | T170: 2902406.84
A171: 2 | B171: Grundstücksanlagen, Bauten für Transportwesen (ohne Grundstücke) | C171: 2004 | D171: NB | E171: 5426582.17 | F171: 2966941.94 | G171: 2883236.28 | H171: 2928628.5 | I171: 4970223.06 | J171: 4892945.5 | K171: 5037704.31 | L171: 5176740.07 | M171: 4985314.48 | N171: 5064564.12 | O171: 5071499.43 | P171: 4930474.3 | Q171: 4988288.92 | R171: 5018652.83 | S171: 5068840.11 | T171: 4981609.84
A172: 2 | B172: Grundstücksanlagen, Bauten für Transportwesen (ohne Grundstücke) | C172: 2005 | D172: NB | E172: 2354482.33 | F172: 2079082.31 | G172: 1973122.01 | H172: 2675489.25 | I172: 5308563.95 | J172: 5275739.99 | K172: 5384392.48 | L172: 5292282.33 | M172: 6171317.12 | N172: 6222763.88 | O172: 6321788.42 | P172: 6450590.06 | Q172: 6457971.9 | R172: 6483068.95 | S172: 6416097.13 | T172: 6403877.04
A173: 2 | B173: Grundstücksanlagen, Bauten für Transportwesen (ohne Grundstücke) | C173: 2006 | D173: NB | E173: 2068545.996 | F173: 1536189.506 | G173: 1578035.88 | H173: 1647435.8 | I173: 3070716.78 | J173: 2956275.4 | K173: 3061661.33 | L173: 3023209.22 | M173: 3002938.52 | N173: 3053553.28 | O173: 3010590.84 | P173: 3039454.17 | Q173: 3075680.92 | R173: 3221483.05 | S173: 3063228.74 | T173: 2944296.54
A174: 2 | B174: Grundstücksanlagen, Bauten für Transportwesen (ohne Grundstücke) | C174: 2007 | D174: NB | E174: 0 | F174: 3695947.9 | G174: 3374388.88 | H174: 3501019.16 | I174: 2795869.7 | J174: 2389257.15 | K174: 2454831.51 | L174: 3043774.46 | M174: 3041792.85 | N174: 3066540.91 | O174: 3064944.48 | P174: 2745060.74 | Q174: 2751320.98 | R174: 2713671.49 | S174: 2729935.7 | T174: 2723963.16
A175: 2 | B175: Grundstücksanlagen, Bauten für Transportwesen (ohne Grundstücke) | C175: 2008 | D175: NB | E175: 0 | F175: 0 | G175: 2027454.4 | H175: 1834267.29 | I175: 2443017.45 | J175: 2354564.38 | K175: 2987496.77 | L175: 3434492 | M175: 3433175.46 | N175: 3509576.37 | O175: 3435038.18 | P175: 3725481.19 | Q175: 3878553.23 | R175: 3876947.99 | S175: 4019022.34 | T175: 3984949.97
A176: 2 | B176: Grundstücksanlagen, Bauten für Transportwesen (ohne Grundstücke) | C176: 2009 | D176: NB | E176: 0 | F176: 0 | G176: 0 | H176: 2275475.13 | I176: 2051327.53 | J176: 2045313.88 | K176: 2096383.95 | L176: 1984397.92 | M176: 1995251.1 | N176: 2091742.05 | O176: 1889507.47 | P176: 1938811.06 | Q176: 1910913.54 | R176: 1912463.25 | S176: 2220244.11 | T176: 2221742.31
A177: 2 | B177: Grundstücksanlagen, Bauten für Transportwesen (ohne Grundstücke) | C177: 2010 | D177: NB | E177: 0 | F177: 0 | G177: 0 | H177: 0 | I177: 1714556.7 | J177: 1336991.19 | K177: 1876703.74 | L177: 1761692.35 | M177: 2288012.53 | N177: 2289444.14 | O177: 2281047.84 | P177: 2200047.99 | Q177: 2197239.53 | R177: 2192431.76 | S177: 2194333.29 | T177: 2166639.83
A178: 2 | B178: Grundstücksanlagen, Bauten für Transportwesen (ohne Grundstücke) | C178: 2011 | D178: NB | E178: 0 | F178: 0 | G178: 0 | H178: 0 | I178: 0 | J178: 3280489.88 | K178: 5029941.26 | L178: 4906290.5 | M178: 5051612.33 | N178: 5139636.48 | O178: 5115153.84 | P178: 5259421.53 | Q178: 5322714.62 | R178: 5771334.66 | S178: 5835795.83 | T178: 5818723.25
A179: 2 | B179: Grundstücksanlagen, Bauten für Transportwesen (ohne Grundstücke) | C179: 2012 | D179: NB | E179: 0 | F179: 0 | G179: 0 | H179: 0 | I179: 0 | J179: 0 | K179: 6184406.05 | L179: 5385219.42 | M179: 5366198.68 | N179: 5444275.25 | O179: 5495957.14 | P179: 5189603.45 | Q179: 5229264.55 | R179: 5336458.34 | S179: 5314554.63 | T179: 5333010.63
A180: 2 | B180: Grundstücksanlagen, Bauten für Transportwesen (ohne Grundstücke) | C180: 2013 | D180: NB | E180: 0 | F180: 0 | G180: 0 | H180: 0 | I180: 0 | J180: 0 | K180: 0 | L180: 6552282.62 | M180: 6184602.02 | N180: 6259225.4 | O180: 6140740.94 | P180: 5852505.68 | Q180: 5872109.85 | R180: 5875597.86 | S180: 5967005.18 | T180: 5962034.59
A181: 2 | B181: Grundstücksanlagen, Bauten für Transportwesen (ohne Grundstücke) | C181: 2014 | D181: NB | E181: 0 | F181: 0 | G181: 0 | H181: 0 | I181: 0 | J181: 0 | K181: 0 | L181: 0 | M181: 4302426.78 | N181: 4518969.97 | O181: 4661958.61 | P181: 4436000.21 | Q181: 4356580.09 | R181: 4348692.75 | S181: 4381531.82 | T181: 4290514.73
A182: 2 | B182: Grundstücksanlagen, Bauten für Transportwesen (ohne Grundstücke) | C182: 2015 | D182: NB | E182: 0 | F182: 0 | G182: 0 | H182: 0 | I182: 0 | J182: 0 | K182: 0 | L182: 0 | M182: 0 | N182: 6883688.77 | O182: 6661860.82 | P182: 5664862.08 | Q182: 5535632.03 | R182: 5504904.13 | S182: 5638158.76 | T182: 5308099.3
A183: 2 | B183: Grundstücksanlagen, Bauten für Transportwesen (ohne Grundstücke) | C183: 2016 | D183: NB | E183: 0 | F183: 0 | G183: 0 | H183: 0 | I183: 0 | J183: 0 | K183: 0 | L183: 0 | M183: 0 | N183: 0 | O183: 5621579.64 | P183: 4872322.38 | Q183: 4872501.16 | R183: 4946218.2 | S183: 5677994.01 | T183: 5702975.65
A184: 2 | B184: Grundstücksanlagen, Bauten für Transportwesen (ohne Grundstücke) | C184: 2017 | D184: NB | E184: 0 | F184: 0 | G184: 0 | H184: 0 | I184: 0 | J184: 0 | K184: 0 | L184: 0 | M184: 0 | N184: 0 | O184: 0 | P184: 7086462.27 | Q184: 6447375.84 | R184: 6691144.73 | S184: 6756831.29 | T184: 7018350.03
A185: 2 | B185: Grundstücksanlagen, Bauten für Transportwesen (ohne Grundstücke) | C185: 2018 | D185: NB | E185: 0 | F185: 0 | G185: 0 | H185: 0 | I185: 0 | J185: 0 | K185: 0 | L185: 0 | M185: 0 | N185: 0 | O185: 0 | P185: 0 | Q185: 30795075.92 | R185: 30386375.41 | S185: 30246037.07 | T185: 30774715.35
A186: 2 | B186: Grundstücksanlagen, Bauten für Transportwesen (ohne Grundstücke) | C186: 2019 | D186: NB | E186: 0 | F186: 0 | G186: 0 | H186: 0 | I186: 0 | J186: 0 | K186: 0 | L186: 0 | M186: 0 | N186: 0 | O186: 0 | P186: 0 | Q186: 0 | R186: 15067065.75 | S186: 14646890.03 | T186: 14656784.27
A187: 2 | B187: Grundstücksanlagen, Bauten für Transportwesen (ohne Grundstücke) | C187: 2020 | D187: NB | E187: 0 | F187: 0 | G187: 0 | H187: 0 | I187: 0 | J187: 0 | K187: 0 | L187: 0 | M187: 0 | N187: 0 | O187: 0 | P187: 0 | Q187: 0 | R187: 0 | S187: 11450646.16 | T187: 10969195.95
A188: 2 | B188: Grundstücksanlagen, Bauten für Transportwesen (ohne Grundstücke) | C188: 2021 | D188: NB | E188: 0 | F188: 0 | G188: 0 | H188: 0 | I188: 0 | J188: 0 | K188: 0 | L188: 0 | M188: 0 | N188: 0 | O188: 0 | P188: 0 | Q188: 0 | R188: 0 | S188: 0 | T188: 8128467.35
A189: 3 | B189: Betriebsgebäude | C189: 1930 | D189: NB | E189: 595682.12 | F189: 555668.76 | G189: 574411.64 | H189: 588596.77 | I189: 550803.74 | J189: 543652.43 | K189: 584908.06 | L189: 584097.39 | M189: 544653.23 | N189: 551960.87 | O189: 519257.71 | P189: 533930.53 | Q189: 426156.22 | R189: 405320.37 | S189: 368326.63 | T189: 367498.06
A190: 3 | B190: Betriebsgebäude | C190: 1931 | D190: NB | E190: 0 | F190: 0 | G190: 0 | H190: 0 | I190: 0 | J190: 0 | K190: 0 | L190: 0 | M190: 0 | N190: 0 | O190: 0 | P190: 0 | Q190: 0 | R190: 0 | S190: 0 | T190: 0
A191: 3 | B191: Betriebsgebäude | C191: 1932 | D191: NB | E191: 0 | F191: 0.05 | G191: 0.05 | H191: 0.05 | I191: 0.05 | J191: 0.05 | K191: 0.05 | L191: 0.05 | M191: 0.05 | N191: 0.06 | O191: 0.06 | P191: 0.06 | Q191: 0.06 | R191: 0.06 | S191: 0.06 | T191: 0.06
A192: 3 | B192: Betriebsgebäude | C192: 1933 | D192: NB | E192: 28558.73 | F192: 14176.9 | G192: 14070.51 | H192: 0 | I192: 0 | J192: 0 | K192: 0 | L192: 0 | M192: 0 | N192: 0 | O192: 0 | P192: 0 | Q192: 0 | R192: 0 | S192: 0 | T192: 0
A193: 3 | B193: Betriebsgebäude | C193: 1934 | D193: NB | E193: 112.4 | F193: 111.91 | G193: 111.91 | H193: 111.91 | I193: 111.91 | J193: 111.91 | K193: 111.91 | L193: 73.13 | M193: 73.13 | N193: 72.62 | O193: 72.62 | P193: 0 | Q193: 0 | R193: 0 | S193: 0 | T193: 0
A194: 3 | B194: Betriebsgebäude | C194: 1935 | D194: NB | E194: 193885.03 | F194: 193885.03 | G194: 193885.03 | H194: 193885.03 | I194: 193885.03 | J194: 193885.03 | K194: 193885.03 | L194: 193885.03 | M194: 193885.03 | N194: 193885.03 | O194: 189354.15 | P194: 193075.68 | Q194: 192715.53 | R194: 192025.25 | S194: 191725.12 | T194: 191244.93
A195: 3 | B195: Betriebsgebäude | C195: 1936 | D195: NB | E195: 28656.8 | F195: 24642.25 | G195: 24642.25 | H195: 24642.25 | I195: 8.21 | J195: 8.21 | K195: 3409.32 | L195: 3409.32 | M195: 8.21 | N195: 621.76 | O195: 621.76 | P195: 623.5 | Q195: 623.5 | R195: 623.5 | S195: 623.5 | T195: 623.5
A196: 3 | B196: Betriebsgebäude | C196: 1937 | D196: NB | E196: 54270.71 | F196: 3216.76 | G196: 3216.76 | H196: 3216.76 | I196: 3216.76 | J196: 3216.76 | K196: 3216.76 | L196: 3216.76 | M196: 3216.76 | N196: 3216.77 | O196: 3216.77 | P196: 3216.77 | Q196: 3216.77 | R196: 3216.77 | S196: 3163.85 | T196: 3163.85
A197: 3 | B197: Betriebsgebäude | C197: 1938 | D197: NB | E197: 18722.33 | F197: 18624.8 | G197: 18620.5 | H197: 18052.51 | I197: 18052.51 | J197: 18052.51 | K197: 18052.51 | L197: 18052.51 | M197: 18052.51 | N197: 18052.51 | O197: 17947.9 | P197: 18569.66 | Q197: 18509.88 | R197: 18395.32 | S197: 18075.23 | T197: 17995.54
A198: 3 | B198: Betriebsgebäude | C198: 1939 | D198: NB | E198: 562137.55 | F198: 519098.55 | G198: 519098.55 | H198: 519098.55 | I198: 563859.55 | J198: 563859.55 | K198: 567837.55 | L198: 567837.55 | M198: 567837.55 | N198: 567837.55 | O198: 567837.55 | P198: 567837.55 | Q198: 567837.55 | R198: 567837.55 | S198: 567837.55 | T198: 567837.55
A199: 3 | B199: Betriebsgebäude | C199: 1940 | D199: NB | E199: 169553.63 | F199: 169553.63 | G199: 169553.63 | H199: 169553.63 | I199: 169553.63 | J199: 169553.63 | K199: 169093.63 | L199: 161090.68 | M199: 161260.66 | N199: 161403.21 | O199: 149912.11 | P199: 134882.64 | Q199: 131919.47 | R199: 133205.57 | S199: 133205.57 | T199: 132489.26
A200: 3 | B200: Betriebsgebäude | C200: 1941 | D200: NB | E200: 1316398.17 | F200: 982600.15 | G200: 986722.56 | H200: 989842.51 | I200: 985687.51 | J200: 981160.4 | K200: 1315231.38 | L200: 1028297.84 | M200: 1023953.78 | N200: 873569.89 | O200: 873564.79 | P200: 1010362.47 | Q200: 1010362.47 | R200: 1010362.47 | S200: 1009516.25 | T200: 1009516.25
A201: 3 | B201: Betriebsgebäude | C201: 1942 | D201: NB | E201: 17.22 | F201: 17.22 | G201: 17.22 | H201: 17.22 | I201: 17.22 | J201: 17.22 | K201: 17.22 | L201: 17.22 | M201: 17.22 | N201: 72695.32 | O201: 72695.32 | P201: 72698.98 | Q201: 72698.98 | R201: 72698.98 | S201: 72698.98 | T201: 72698.98
... 924 more rows

Sheet 01_Inputpreisentwicklung_Netz
A1: Startjahr: | B1: 2007 | D1: Xgen= | E1: ='01_Xgen'!D5 -> 0.8726885795 | G1: EK-Wagniszuschlag: | L1: % | T1: Gewichte = Mittelwert aus Jahr t und t+1
A2: Endjahr: | B2: 2021 | T2: Gewichtete (Mittelwert t/t-1) Veränderungrate zu…
A3: Kostenart | B3: Deflator | C3: 2006 | D3: 2007 | E3: 2008 | F3: 2009 | G3: 2010 | H3: 2011 | I3: 2012 | J3: 2013 | K3: 2014 | L3: 2015 | M3: 2016 | N3: 2017 | O3: 2018 | P3: 2019 | Q3: 2020 | R3: 2021 | T3: 2007 | U3: 2008 | V3: 2009 | W3: 2010 | X3: 2011 | Y3: 2012 | Z3: 2013 | AA3: 2014 | AB3: 2015 | AC3: 2016 | AD3: 2017 | AE3: 2018 | AF3: 2019 | AG3: 2020 | AH3: 2021
A5: Aufwendungen für Roh-, Hilfs- und Betriebsstoffe [in Euro] | B5: =CONCATENATE('02_Deflatoren'!A25," sowie ",'02_Deflatoren'!A26) -> Index der Erzeugerpreise gewerblicher Produkte (Vorleistungsgüterproduzenten und Investitionsgüterproduzenten) sowie Index der Erzeugerpreise Erdgas, bei Abgabe an Wiederverkäufer | C5: ='02_Deflatoren'!C27 -> 108.6517289 | D5: ='02_Deflatoren'!D27 -> 106.1559372 | E5: ='02_Deflatoren'!E27 -> 122.3578706 | F5: ='02_Deflatoren'!F27 -> 111.2573506 | G5: ='02_Deflatoren'!G27 -> 105.7889762 | H5: ='02_Deflatoren'!H27 -> 119.6762852 | I5: ='02_Deflatoren'!I27 -> 128.5449179 | J5: ='02_Deflatoren'!J27 -> 129.0007929 | K5: ='02_Deflatoren'!K27 -> 124.1662055 | L5: ='02_Deflatoren'!L27 -> 119.6836622 | M5: ='02_Deflatoren'!M27 -> 109.1193958 | N5: ='02_Deflatoren'!N27 -> 103.7424297 | O5: ='02_Deflatoren'!O27 -> 107.2153695 | P5: ='02_Deflatoren'!P27 -> 107.6095573 | Q5: ='02_Deflatoren'!Q27 -> 100 | R5: ='02_Deflatoren'!R27 -> 120.6669666 | T5: =(D5/C5)^(AVERAGE('02_GuV_Anteile'!B27:C27)) -> 0.9991788058 | U5: =(E5/D5)^(AVERAGE('02_GuV_Anteile'!C27:D27)) -> 1.008799182 | V5: =(F5/E5)^(AVERAGE('02_GuV_Anteile'!D27:E27)) -> 0.9920527732 | W5: =(G5/F5)^(AVERAGE('02_GuV_Anteile'!E27:F27)) -> 0.9956204491 | X5: =(H5/G5)^(AVERAGE('02_GuV_Anteile'!F27:G27)) -> 1.011640218 | Y5: =(I5/H5)^(AVERAGE('02_GuV_Anteile'!G27:H27)) -> 1.006694754 | Z5: =(J5/I5)^(AVERAGE('02_GuV_Anteile'!H27:I27)) -> 1.000325244 | AA5: =(K5/J5)^(AVERAGE('02_GuV_Anteile'!I27:J27)) -> 0.9966154746 | AB5: =(L5/K5)^(AVERAGE('02_GuV_Anteile'!J27:K27)) -> 0.9969350338 | AC5: =(M5/L5)^(AVERAGE('02_GuV_Anteile'!K27:L27)) -> 0.9925628479 | AD5: =(N5/M5)^(AVERAGE('02_GuV_Anteile'!L27:M27)) -> 0.9961200059 | AE5: =(O5/N5)^(AVERAGE('02_GuV_Anteile'!M27:N27)) -> 1.002643619 | AF5: =(P5/O5)^(AVERAGE('02_GuV_Anteile'!N27:O27)) -> 1.000313324 | AG5: =(Q5/P5)^(AVERAGE('02_GuV_Anteile'!O27:P27)) -> 0.9943952582 | AH5: =(R5/Q5)^(AVERAGE('02_GuV_Anteile'!P27:Q27)) -> 1.01324747
A7: Personalkosten | B7: Personalaufwand / tatsächlich geleistete Arbeits-stunden | C7: ='00_GuV'!J7/'00_GuV'!B7 -> 40.94201361 | D7: ='00_GuV'!J8/'00_GuV'!B8 -> 36.6364795 | E7: ='00_GuV'!J9/'00_GuV'!B9 -> 41.13178143 | F7: ='00_GuV'!J10/'00_GuV'!B10 -> 41.00044698 | G7: ='00_GuV'!J11/'00_GuV'!B11 -> 40.96659119 | H7: ='00_GuV'!J12/'00_GuV'!B12 -> 41.37040238 | I7: ='00_GuV'!J13/'00_GuV'!B13 -> 43.85509949 | J7: ='00_GuV'!J14/'00_GuV'!B14 -> 42.64129491 | K7: ='00_GuV'!J15/'00_GuV'!B15 -> 41.6978534 | L7: ='00_GuV'!J16/'00_GuV'!B16 -> 44.33781675 | M7: ='00_GuV'!J17/'00_GuV'!B17 -> 45.21846321 | N7: ='00_GuV'!J18/'00_GuV'!B18 -> 45.39779462 | O7: ='00_GuV'!J19/'00_GuV'!B19 -> 47.89572439 | P7: ='00_GuV'!J20/'00_GuV'!B20 -> 49.11799434 | Q7: ='00_GuV'!J21/'00_GuV'!B21 -> 49.72266427 | R7: ='00_GuV'!J22/'00_GuV'!B22 -> 50.45516644 | T7: =(D7/C7)^(AVERAGE('02_GuV_Anteile'!B29:C29)) -> 0.9899120257 | U7: =(E7/D7)^(AVERAGE('02_GuV_Anteile'!C29:D29)) -> 1.009458183 | V7: =(F7/E7)^(AVERAGE('02_GuV_Anteile'!D29:E29)) -> 0.9997132988 | W7: =(G7/F7)^(AVERAGE('02_GuV_Anteile'!E29:F29)) -> 0.999923686 | X7: =(H7/G7)^(AVERAGE('02_GuV_Anteile'!F29:G29)) -> 1.000945824 | Y7: =(I7/H7)^(AVERAGE('02_GuV_Anteile'!G29:H29)) -> 1.006324758 | Z7: =(J7/I7)^(AVERAGE('02_GuV_Anteile'!H29:I29)) -> 0.9967224134 | AA7: =(K7/J7)^(AVERAGE('02_GuV_Anteile'!I29:J29)) -> 0.997168708 | AB7: =(L7/K7)^(AVERAGE('02_GuV_Anteile'!J29:K29)) -> 1.00872063 | AC7: =(M7/L7)^(AVERAGE('02_GuV_Anteile'!K29:L29)) -> 1.002843906 | AD7: =(N7/M7)^(AVERAGE('02_GuV_Anteile'!L29:M29)) -> 1.000563095 | AE7: =(O7/N7)^(AVERAGE('02_GuV_Anteile'!M29:N29)) -> 1.008292082 | AF7: =(P7/O7)^(AVERAGE('02_GuV_Anteile'!N29:O29)) -> 1.00423658 | AG7: =(Q7/P7)^(AVERAGE('02_GuV_Anteile'!O29:P29)) -> 1.002223322 | AH7: =(R7/Q7)^(AVERAGE('02_GuV_Anteile'!P29:Q29)) -> 1.002722104
A9: Aufwendungen für bezogene Leistungen | B9: =CONCATENATE('02_Deflatoren'!A32," sowie ",'02_Deflatoren'!A33) -> Arbeitskostenindex Produzierendes Gewerbe und Dienstleistungsbereich sowie Index der Erzeugerpreise Erdgas, bei Abgabe an Wiederverkäufer | C9: ='02_Deflatoren'!C34 -> 76.29481874 | D9: ='02_Deflatoren'!D34 -> 76.23207905 | E9: ='02_Deflatoren'!E34 -> 80.2708835 | F9: ='02_Deflatoren'!F34 -> 80.62386744 | G9: ='02_Deflatoren'!G34 -> 80.53040502 | H9: ='02_Deflatoren'!H34 -> 84.29089027 | I9: ='02_Deflatoren'!I34 -> 87.86894191 | J9: ='02_Deflatoren'!J34 -> 88.59159607 | K9: ='02_Deflatoren'!K34 -> 89.84009212 | L9: ='02_Deflatoren'!L34 -> 91.34090811 | M9: ='02_Deflatoren'!M34 -> 91.64734799 | N9: ='02_Deflatoren'!N34 -> 92.98772994 | O9: ='02_Deflatoren'!O34 -> 95.95129867 | P9: ='02_Deflatoren'!P34 -> 98.6347979 | Q9: ='02_Deflatoren'!Q34 -> 100 | R9: ='02_Deflatoren'!R34 -> 103.8370873 | T9: =(D9/C9)^(AVERAGE('02_GuV_Anteile'!B31:C31)) -> 0.9997829254 | U9: =(E9/D9)^(AVERAGE('02_GuV_Anteile'!C31:D31)) -> 1.013173893 | V9: =(F9/E9)^(AVERAGE('02_GuV_Anteile'!D31:E31)) -> 1.001213438 | W9: =(G9/F9)^(AVERAGE('02_GuV_Anteile'!E31:F31)) -> 0.9996632102 | X9: =(H9/G9)^(AVERAGE('02_GuV_Anteile'!F31:G31)) -> 1.012481109 | Y9: =(I9/H9)^(AVERAGE('02_GuV_Anteile'!G31:H31)) -> 1.009740477 | Z9: =(J9/I9)^(AVERAGE('02_GuV_Anteile'!H31:I31)) -> 1.001675252 | AA9: =(K9/J9)^(AVERAGE('02_GuV_Anteile'!I31:J31)) -> 1.002839947 | AB9: =(L9/K9)^(AVERAGE('02_GuV_Anteile'!J31:K31)) -> 1.003688205 | AC9: =(M9/L9)^(AVERAGE('02_GuV_Anteile'!K31:L31)) -> 1.000718327 | AD9: =(N9/M9)^(AVERAGE('02_GuV_Anteile'!L31:M31)) -> 1.002962647 | AE9: =(O9/N9)^(AVERAGE('02_GuV_Anteile'!M31:N31)) -> 1.007229437 | AF9: =(P9/O9)^(AVERAGE('02_GuV_Anteile'!N31:O31)) -> 1.006867635 | AG9: =(Q9/P9)^(AVERAGE('02_GuV_Anteile'!O31:P31)) -> 1.003495125 | AH9: =(R9/Q9)^(AVERAGE('02_GuV_Anteile'!P31:Q31)) -> 1.009010572
A11: Sonstige betriebliche Aufwendungen | B11: Mischindex | C11: ='02_Index_Betr_Aufwendungen'!E3 -> 83.42091459 | D11: ='02_Index_Betr_Aufwendungen'!F3 -> 84.07693194 | E11: ='02_Index_Betr_Aufwendungen'!G3 -> 85.17349001 | F11: ='02_Index_Betr_Aufwendungen'!H3 -> 86.29050018 | G11: ='02_Index_Betr_Aufwendungen'!I3 -> 86.95381007 | H11: ='02_Index_Betr_Aufwendungen'!J3 -> 87.94386331 | I11: ='02_Index_Betr_Aufwendungen'!K3 -> 89.05918247 | J11: ='02_Index_Betr_Aufwendungen'!L3 -> 90.49347057 | K11: ='02_Index_Betr_Aufwendungen'!M3 -> 91.83829094 | L11: ='02_Index_Betr_Aufwendungen'!N3 -> 92.96102302 | M11: ='02_Index_Betr_Aufwendungen'!O3 -> 94.31540103 | N11: ='02_Index_Betr_Aufwendungen'!P3 -> 95.69078805 | O11: ='02_Index_Betr_Aufwendungen'!Q3 -> 97.17523217 | P11: ='02_Index_Betr_Aufwendungen'!R3 -> 98.75797731 | Q11: ='02_Index_Betr_Aufwendungen'!S3 -> 100 | R11: ='02_Index_Betr_Aufwendungen'!T3 -> 101.5685035 | T11: =(D11/C11)^(AVERAGE('02_GuV_Anteile'!B33:C33)) -> 1.000988002 | U11: =(E11/D11)^(AVERAGE('02_GuV_Anteile'!C33:D33)) -> 1.002042247 | V11: =(F11/E11)^(AVERAGE('02_GuV_Anteile'!D33:E33)) -> 1.002379759 | W11: =(G11/F11)^(AVERAGE('02_GuV_Anteile'!E33:F33)) -> 1.001275637 | X11: =(H11/G11)^(AVERAGE('02_GuV_Anteile'!F33:G33)) -> 1.001756726 | Y11: =(I11/H11)^(AVERAGE('02_GuV_Anteile'!G33:H33)) -> 1.001872695 | Z11: =(J11/I11)^(AVERAGE('02_GuV_Anteile'!H33:I33)) -> 1.002288714 | AA11: =(K11/J11)^(AVERAGE('02_GuV_Anteile'!I33:J33)) -> 1.002102847 | AB11: =(L11/K11)^(AVERAGE('02_GuV_Anteile'!J33:K33)) -> 1.001804387 | AC11: =(M11/L11)^(AVERAGE('02_GuV_Anteile'!K33:L33)) -> 1.002005291 | AD11: =(N11/M11)^(AVERAGE('02_GuV_Anteile'!L33:M33)) -> 1.001770639 | AE11: =(O11/N11)^(AVERAGE('02_GuV_Anteile'!M33:N33)) -> 1.001903174 | AF11: =(P11/O11)^(AVERAGE('02_GuV_Anteile'!N33:O33)) -> 1.002067693 | AG11: =(Q11/P11)^(AVERAGE('02_GuV_Anteile'!O33:P33)) -> 1.001693095 | AH11: =(R11/Q11)^(AVERAGE('02_GuV_Anteile'!P33:Q33)) -> 1.002107104
A13: Zinsen und ähnliche Aufwendungen | B13: §7 (7) GasNEV (3 Reihen / Jahreswerte) [Bundesbank] | C13: =AVERAGE('02_Zinsreihen'!B2:D2) -> 3.9 | D13: =AVERAGE('02_Zinsreihen'!B3:D3) -> 4.566666667 | E13: =AVERAGE('02_Zinsreihen'!B4:D4) -> 4.933333333 | F13: =AVERAGE('02_Zinsreihen'!B5:D5) -> 3.966666667 | G13: =AVERAGE('02_Zinsreihen'!B6:D6) -> 2.966666667 | H13: =AVERAGE('02_Zinsreihen'!B7:D7) -> 3.133333333 | I13: =AVERAGE('02_Zinsreihen'!B8:D8) -> 2.133333333 | J13: =AVERAGE('02_Zinsreihen'!B9:D9) -> 2 | K13: =AVERAGE('02_Zinsreihen'!B10:D10) -> 1.633333333 | L13: =AVERAGE('02_Zinsreihen'!B11:D11) -> 1.066666667 | M13: =AVERAGE('02_Zinsreihen'!B12:D12) -> 0.7666666667 | N13: =AVERAGE('02_Zinsreihen'!B13:D13) -> 0.7333333333 | O13: =AVERAGE('02_Zinsreihen'!B14:D14) -> 1.066666667 | P13: =AVERAGE('02_Zinsreihen'!B15:D15) -> 0.7666666667 | Q13: =AVERAGE('02_Zinsreihen'!B16:D16) -> 0.3666666667 | R13: =AVERAGE('02_Zinsreihen'!B17:D17) -> 0.1333333333 | T13: =(D13/C13)^(AVERAGE('02_GuV_Anteile'!B35:C35)) -> 1.001150922 | U13: =(E13/D13)^(AVERAGE('02_GuV_Anteile'!C35:D35)) -> 1.000862403 | V13: =(F13/E13)^(AVERAGE('02_GuV_Anteile'!D35:E35)) -> 0.997799317 | W13: =(G13/F13)^(AVERAGE('02_GuV_Anteile'!E35:F35)) -> 0.9968910467 | X13: =(H13/G13)^(AVERAGE('02_GuV_Anteile'!F35:G35)) -> 1.000893816 | Y13: =(I13/H13)^(AVERAGE('02_GuV_Anteile'!G35:H35)) -> 0.994103765 | Z13: =(J13/I13)^(AVERAGE('02_GuV_Anteile'!H35:I35)) -> 0.9988548531 | AA13: =(K13/J13)^(AVERAGE('02_GuV_Anteile'!I35:J35)) -> 0.9954883316 | AB13: =(L13/K13)^(AVERAGE('02_GuV_Anteile'!J35:K35)) -> 0.9884271916 | AC13: =(M13/L13)^(AVERAGE('02_GuV_Anteile'!K35:L35)) -> 0.9929212261 | AD13: =(N13/M13)^(AVERAGE('02_GuV_Anteile'!L35:M35)) -> 0.9993051121 | AE13: =(O13/N13)^(AVERAGE('02_GuV_Anteile'!M35:N35)) -> 1.010347161 | AF13: =(P13/O13)^(AVERAGE('02_GuV_Anteile'!N35:O35)) -> 0.9906129616 | AG13: =(Q13/P13)^(AVERAGE('02_GuV_Anteile'!O35:P35)) -> 0.9798936937 | AH13: =(R13/Q13)^(AVERAGE('02_GuV_Anteile'!P35:Q35)) -> 0.9710116582
A15: Abschreibungen | B15: konstant | C15: 1 | D15: 1 | E15: 1 | F15: 1 | G15: 1 | H15: 1 | I15: 1 | J15: 1 | K15: 1 | L15: 1 | M15: 1 | N15: 1 | O15: 1 | P15: 1 | Q15: 1 | R15: 1 | T15: =(D15/C15)^(AVERAGE('02_GuV_Anteile'!B37:C37)) -> 1 | U15: =(E15/D15)^(AVERAGE('02_GuV_Anteile'!C37:D37)) -> 1 | V15: =(F15/E15)^(AVERAGE('02_GuV_Anteile'!D37:E37)) -> 1 | W15: =(G15/F15)^(AVERAGE('02_GuV_Anteile'!E37:F37)) -> 1 | X15: =(H15/G15)^(AVERAGE('02_GuV_Anteile'!F37:G37)) -> 1 | Y15: =(I15/H15)^(AVERAGE('02_GuV_Anteile'!G37:H37)) -> 1 | Z15: =(J15/I15)^(AVERAGE('02_GuV_Anteile'!H37:I37)) -> 1 | AA15: =(K15/J15)^(AVERAGE('02_GuV_Anteile'!I37:J37)) -> 1 | AB15: =(L15/K15)^(AVERAGE('02_GuV_Anteile'!J37:K37)) -> 1 | AC15: =(M15/L15)^(AVERAGE('02_GuV_Anteile'!K37:L37)) -> 1 | AD15: =(N15/M15)^(AVERAGE('02_GuV_Anteile'!L37:M37)) -> 1 | AE15: =(O15/N15)^(AVERAGE('02_GuV_Anteile'!M37:N37)) -> 1 | AF15: =(P15/O15)^(AVERAGE('02_GuV_Anteile'!N37:O37)) -> 1 | AG15: =(Q15/P15)^(AVERAGE('02_GuV_Anteile'!O37:P37)) -> 1 | AH15: =(R15/Q15)^(AVERAGE('02_GuV_Anteile'!P37:Q37)) -> 1
A17: Eigenkapitalzinsen | B17: Umlaufsrenditen inländischer Inhaberschuldverschreibungen [Bundesbank] + Wagniszuschlag | C17: 9.21 | D17: 9.21 | E17: 9.21 | F17: 9.29 | G17: 9.29 | H17: 9.29 | I17: 9.29 | J17: 9.05 | K17: 9.05 | L17: 9.05 | M17: 9.05 | N17: 9.05 | O17: 6.91 | P17: 6.91 | Q17: 6.91 | R17: 6.91 | T17: =(D17/C17)^(AVERAGE('02_GuV_Anteile'!B39:C39)) -> 1 | U17: =(E17/D17)^(AVERAGE('02_GuV_Anteile'!C39:D39)) -> 1 | V17: =(F17/E17)^(AVERAGE('02_GuV_Anteile'!D39:E39)) -> 1.001664416 | W17: =(G17/F17)^(AVERAGE('02_GuV_Anteile'!E39:F39)) -> 1 | X17: =(H17/G17)^(AVERAGE('02_GuV_Anteile'!F39:G39)) -> 1 | Y17: =(I17/H17)^(AVERAGE('02_GuV_Anteile'!G39:H39)) -> 1 | Z17: =(J17/I17)^(AVERAGE('02_GuV_Anteile'!H39:I39)) -> 0.9923758908 | AA17: =(K17/J17)^(AVERAGE('02_GuV_Anteile'!I39:J39)) -> 1 | AB17: =(L17/K17)^(AVERAGE('02_GuV_Anteile'!J39:K39)) -> 1 | AC17: =(M17/L17)^(AVERAGE('02_GuV_Anteile'!K39:L39)) -> 1 | AD17: =(N17/M17)^(AVERAGE('02_GuV_Anteile'!L39:M39)) -> 1 | AE17: =(O17/N17)^(AVERAGE('02_GuV_Anteile'!M39:N39)) -> 0.9352802846 | AF17: =(P17/O17)^(AVERAGE('02_GuV_Anteile'!N39:O39)) -> 1 | AG17: =(Q17/P17)^(AVERAGE('02_GuV_Anteile'!O39:P39)) -> 1 | AH17: =(R17/Q17)^(AVERAGE('02_GuV_Anteile'!P39:Q39)) -> 1
A19: Gewerbesteuer | B19: Durchschnitt Gewerbesteuerhebesatz [Destatis] | C19: ='02_Gewerbesteuerhebesätze'!B8 -> 391 | D19: ='02_Gewerbesteuerhebesätze'!B9 -> 389 | E19: ='02_Gewerbesteuerhebesätze'!B10 -> 388 | F19: ='02_Gewerbesteuerhebesätze'!B11 -> 387 | G19: ='02_Gewerbesteuerhebesätze'!B12 -> 390 | H19: ='02_Gewerbesteuerhebesätze'!B13 -> 392 | I19: ='02_Gewerbesteuerhebesätze'!B14 -> 393 | J19: ='02_Gewerbesteuerhebesätze'!B15 -> 395 | K19: ='02_Gewerbesteuerhebesätze'!B16 -> 397 | L19: ='02_Gewerbesteuerhebesätze'!B17 -> 399 | M19: ='02_Gewerbesteuerhebesätze'!B18 -> 400 | N19: ='02_Gewerbesteuerhebesätze'!B19 -> 402 | O19: ='02_Gewerbesteuerhebesätze'!B20 -> 402 | P19: ='02_Gewerbesteuerhebesätze'!B21 -> 403 | Q19: ='02_Gewerbesteuerhebesätze'!B22 -> 400 | R19: ='02_Gewerbesteuerhebesätze'!B23 -> 403 | T19: =(D19/C19)^(AVERAGE('02_GuV_Anteile'!B41:C41)) -> 0.9997623813 | U19: =(E19/D19)^(AVERAGE('02_GuV_Anteile'!C41:D41)) -> 0.9998928793 | V19: =(F19/E19)^(AVERAGE('02_GuV_Anteile'!D41:E41)) -> 0.9999326816 | W19: =(G19/F19)^(AVERAGE('02_GuV_Anteile'!E41:F41)) -> 1.000199654 | X19: =(H19/G19)^(AVERAGE('02_GuV_Anteile'!F41:G41)) -> 1.000168452 | Y19: =(I19/H19)^(AVERAGE('02_GuV_Anteile'!G41:H41)) -> 1.000094195 | Z19: =(J19/I19)^(AVERAGE('02_GuV_Anteile'!H41:I41)) -> 1.00020471 | AA19: =(K19/J19)^(AVERAGE('02_GuV_Anteile'!I41:J41)) -> 1.000196158 | AB19: =(L19/K19)^(AVERAGE('02_GuV_Anteile'!J41:K41)) -> 1.000167214 | AC19: =(M19/L19)^(AVERAGE('02_GuV_Anteile'!K41:L41)) -> 1.000091111 | AD19: =(N19/M19)^(AVERAGE('02_GuV_Anteile'!L41:M41)) -> 1.000207697 | AE19: =(O19/N19)^(AVERAGE('02_GuV_Anteile'!M41:N41)) -> 1 | AF19: =(P19/O19)^(AVERAGE('02_GuV_Anteile'!N41:O41)) -> 1.000073018 | AG19: =(Q19/P19)^(AVERAGE('02_GuV_Anteile'!O41:P41)) -> 0.9998077855 | AH19: =(R19/Q19)^(AVERAGE('02_GuV_Anteile'!P41:Q41)) -> 1.00019729
T21: IP Energie
T22: =IF('01_Produktivitätsentw._Netz'!$A$26="Bruttowertschöpfung (preisbereinigt)",T19*T17*T15*T13*T7,T19*T17*T15*T13*T11*T9*T7*T5) -> 0.9907651997 | U22: =IF('01_Produktivitätsentw._Netz'!$A$26="Bruttowertschöpfung (preisbereinigt)",U19*U17*U15*U13*U7,U19*U17*U15*U13*U11*U9*U7*U5) -> 1.034643964 | V22: =IF('01_Produktivitätsentw._Netz'!$A$26="Bruttowertschöpfung (preisbereinigt)",V19*V17*V15*V13*V7,V19*V17*V15*V13*V11*V9*V7*V5) -> 0.9947304536 | W22: =IF('01_Produktivitätsentw._Netz'!$A$26="Bruttowertschöpfung (preisbereinigt)",W19*W17*W15*W13*W7,W19*W17*W15*W13*W11*W9*W7*W5) -> 0.9935790324 | X22: =IF('01_Produktivitätsentw._Netz'!$A$26="Bruttowertschöpfung (preisbereinigt)",X19*X17*X15*X13*X7,X19*X17*X15*X13*X11*X9*X7*X5) -> 1.028127585 | Y22: =IF('01_Produktivitätsentw._Netz'!$A$26="Bruttowertschöpfung (preisbereinigt)",Y19*Y17*Y15*Y13*Y7,Y19*Y17*Y15*Y13*Y11*Y9*Y7*Y5) -> 1.018898433 | Z22: =IF('01_Produktivitätsentw._Netz'!$A$26="Bruttowertschöpfung (preisbereinigt)",Z19*Z17*Z15*Z13*Z7,Z19*Z17*Z15*Z13*Z11*Z9*Z7*Z5) -> 0.9924364828 | AA22: =IF('01_Produktivitätsentw._Netz'!$A$26="Bruttowertschöpfung (preisbereinigt)",AA19*AA17*AA15*AA13*AA7,AA19*AA17*AA15*AA13*AA11*AA9*AA7*AA5) -> 0.9944009831 | AB22: =IF('01_Produktivitätsentw._Netz'!$A$26="Bruttowertschöpfung (preisbereinigt)",AB19*AB17*AB15*AB13*AB7,AB19*AB17*AB15*AB13*AB11*AB9*AB7*AB5) -> 0.9996243087 | AC22: =IF('01_Produktivitätsentw._Netz'!$A$26="Bruttowertschöpfung (preisbereinigt)",AC19*AC17*AC15*AC13*AC7,AC19*AC17*AC15*AC13*AC11*AC9*AC7*AC5) -> 0.9911230713 | AD22: =IF('01_Produktivitätsentw._Netz'!$A$26="Bruttowertschöpfung (preisbereinigt)",AD19*AD17*AD15*AD13*AD7,AD19*AD17*AD15*AD13*AD11*AD9*AD7*AD5) -> 1.0009157 | AE22: =IF('01_Produktivitätsentw._Netz'!$A$26="Bruttowertschöpfung (preisbereinigt)",AE19*AE17*AE15*AE13*AE7,AE19*AE17*AE15*AE13*AE11*AE9*AE7*AE5) -> 0.9640499087 | AF22: =IF('01_Produktivitätsentw._Netz'!$A$26="Bruttowertschöpfung (preisbereinigt)",AF19*AF17*AF15*AF13*AF7,AF19*AF17*AF15*AF13*AF11*AF9*AF7*AF5) -> 1.00410065 | AG22: =IF('01_Produktivitätsentw._Netz'!$A$26="Bruttowertschöpfung (preisbereinigt)",AG19*AG17*AG15*AG13*AG7,AG19*AG17*AG15*AG13*AG11*AG9*AG7*AG5) -> 0.9814517951 | AH22: =IF('01_Produktivitätsentw._Netz'!$A$26="Bruttowertschöpfung (preisbereinigt)",AH19*AH17*AH15*AH13*AH7,AH19*AH17*AH15*AH13*AH11*AH9*AH7*AH5) -> 0.9977370326
A23: VPI | C23: ='02_VPI'!B8 -> 82.8 | D23: ='02_VPI'!B9 -> 84.7 | E23: ='02_VPI'!B10 -> 86.9 | F23: ='02_VPI'!B11 -> 87.2 | G23: ='02_VPI'!B12 -> 88.1 | H23: ='02_VPI'!B13 -> 90 | I23: ='02_VPI'!B14 -> 91.7 | J23: ='02_VPI'!B15 -> 93.1 | K23: ='02_VPI'!B16 -> 94 | L23: ='02_VPI'!B17 -> 94.5 | M23: ='02_VPI'!B18 -> 95 | N23: ='02_VPI'!B19 -> 96.4 | O23: ='02_VPI'!B20 -> 98.1 | P23: ='02_VPI'!B21 -> 99.5 | Q23: ='02_VPI'!B22 -> 100 | R23: ='02_VPI'!B23 -> 103.1 | T23: =((GEOMEAN(INDIRECT((VLOOKUP(B1,Hilfstabelle!$A$2:$D$16,4,0))):INDIRECT((VLOOKUP(B2,Hilfstabelle!$A$2:$D$16,4,0)))))-1)*100 -> -0.1037864933
A25: VPIT | D25: =D23/C23 -> 1.02294686 | E25: =E23/D23 -> 1.025974026 | F25: 1.003452244 | G25: 1.010321101 | H25: =H23/G23 -> 1.021566402 | I25: 1.018888889 | J25: 1.015267176 | K25: 1.009667025 | L25: 1.005319149 | M25: =M23/L23 -> 1.005291005 | N25: =N23/M23 -> 1.014736842 | O25: =O23/N23 -> 1.017634855 | P25: =P23/O23 -> 1.014271152 | Q25: =Q23/P23 -> 1.005025126 | R25: 1.031
A27: VPIT Durchschnitt | B27: =((GEOMEAN(INDIRECT((VLOOKUP(B1,Hilfstabelle!$A$2:$E$16,5,0))):INDIRECT((VLOOKUP(B2,Hilfstabelle!$A$2:$E$16,5,0)))))-1)*100 -> 1.472545543

Sheet 01_Xgen
A1: Produktivitätsfaktor für Gasnetzbetreiber (4. Regulierungsperiode)
A2: - Residualbetrachtung -
G4: TFNetz | H4: ='01_Produktivitätsentw._Netz'!D48 -> -0.7036434565
C5: Xgen = (TFNetz - PNetz Input) + VPIT = | D5: =(H4-H5)+H6 -> 0.8726885795 | G5: PNetz Input | H5: ='01_Inputpreisentwicklung_Netz'!T23 -> -0.1037864933
G6: VPIT | H6: ='01_Inputpreisentwicklung_Netz'!B27 -> 1.472545543
C8: Gemäß § 9 Abs. 3 ARegV hat die Bundesnetzagentur (BNetzA) ab der dritten Regulierungsperiode den generellen sektoralen Produktivitätsfaktor jeweils vor Beginn der Regulierungsperiode nach Maßgabe von Methoden, die dem Stand der Wissenschaft entsprechen, zu ermitteln. Der Xgen ist im deutschen Regulierungskontext über eine Differenzialbetrachtung zwischen Netz und Gesamtwirtschaft zu bestimmen ist, wobei sowohl die Produktivitäts- als auch die Einstandspreisentwicklungen zu berücksichtigen sind:
C12: Die Änderungsraten des Verbraucherpreisindexes bilden als allgemeine Inflationsraten die Entwicklung der Outputpreise der Gesamtwirtschaft ab. Die deutsche Volkswirtschaft ist als Marktwirtschaft zudem grundsätzlich wettbewerblich organisiert, so dass gilt. Die allgemeine Inflationsrate drückt bei einer wettbewerblich organisierten Volkswirtschaft die Differenz zwischen der Wachstumsrate der Inputpreise der Gesamtwirtschaft und der Rate des gesamtwirtschaftlichen technologischen Fortschritts aus. Diese Zusammenhänge können genutzt werden, um die Änderung der gesamtwirtschaftlichen Inputpreise residual aus der Inflationsrate und dem allgemeinen Produktivitätsfortschritt (gemessen als Änderung der totalen Faktorproduktivität der Gesamtwirtschaft) abzuleiten. Aus einer Umstellung der Formel und unter Nutzung der Äquivalenzbeziehungen folgt*:
C16: Üblicherweise wird die Änderung der totalen Faktorproduktivität als Residuum aufgefasst. Für die Ermittlung des generellen X-Faktors ist es durchaus sachgerecht, den grundsätzlichen Zusammenhang zu nutzen und die Änderungsrate der gesamtwirtschaftlichen Inputpreise als Residuum aufzufassen (Residualbetrachtung). Die Berechnung von ist in der Wissenschaft weit verbreitet und etabliert. Ferner ist der VPI ein seit langem installierter und weltweit anerkannter Index, der vom Statistischen Bundesamt regelmäßig veröffentlicht wird. Ein entsprechender deutschlandweiter Inputpreisindex existiert hingegen nicht, der alle relevanten Inputfaktoren umfasst. So umfasst der Erzeugerpreisindex für gewerbliche Produkte zwar die Preisentwicklungen von Rohstoffen und Industrieerzeugnissen, die in Deutschland hergestellt und im Inland verkauft werden. Nicht enthalten sind aber z.B. die Löhne, die in nachgelagerten Wertschöpfungsstufen gezahlt werden. Etwas vereinfachend gesprochen: Während der Endkunde am Ende der gesamtwirtschaftlichen Wertschöpfungskette steht und somit alle Outputpreise von Zwischenprodukten (zumindest teilweise) eingehen, gibt es kein entsprechendes Pendant für den Anfang. Daher ist die Verwendung des Erzeugerpreisindexes in verwandten Studien auch sehr uneinheitlich. Teilweise wird er als gesamtwirtschaftlicher Inputpreisindex angesehen, teilweise als Preis für Vorleistungen, um nur zwei Beispiele zu nennen. Die Residualbetrachtung umgeht diese Schwierigkeit, wodurch mögliche Fehlerquellen bei der Ermittlung des generellen X-Faktors vermieden werden können. Die Residualbetrachtung vereinfacht die Formel für den generellen sektoralen Produktivitätsfortschritt zu*:
C20: *Siehe hierzu "Gutachten zur Bestimmung des generellen sektoralen Produktivitätsfaktors"; WIK Wissenschaftliches Institut für Infrastruktur und Kommunikationsdienste GmbH, Bad Honnef, 2017. S. 42 ff.

Sheet 01_Produktivitätsentw._Netz
A1: Startjahr: | B1: ='01_Inputpreisentwicklung_Netz'!B1 -> 2007 | D1: Xgen= | E1: ='01_Xgen'!D5 -> 0.8726885795
A2: Endjahr: | B2: ='01_Inputpreisentwicklung_Netz'!B2 -> 2021
B5: Quelle | C5: 2006 | D5: 2007 | E5: 2008 | F5: 2009 | G5: 2010 | H5: 2011 | I5: 2012 | J5: 2013 | K5: 2014 | L5: 2015 | M5: 2016 | N5: 2017 | O5: 2018 | P5: 2019 | Q5: 2020 | R5: 2021
A6: Gasnetzbetreiber
A9: Bruttoproduktionswert (Preisbereinigt) | B9: Deflator | C9: =C11+C13+C15 -> 1.177131424e+10 | D9: =D11+D13+D15 -> 1.305064117e+10 | E9: 1.211357018e+10 | F9: 1.016274711e+10 | G9: 1.132090153e+10 | H9: 9936766786 | I9: 1.201491504e+10 | J9: 1.031457262e+10 | K9: 9978780369 | L9: 1.029240556e+10 | M9: 1.089275298e+10 | N9: 1.063531114e+10 | O9: 1.024874332e+10 | P9: 1.042735432e+10 | Q9: 9919102179 | R9: 1.088643939e+10
A10: Umsatzerlöse | C10: =VLOOKUP(C5,'00_GuV'!$A$7:$AD$22,4,0) -> 9811733528 | D10: =VLOOKUP(D5,'00_GuV'!$A$7:$AD$22,4,0) -> 8933908039 | E10: =VLOOKUP(E5,'00_GuV'!$A$7:$AD$22,4,0) -> 9003339017 | F10: =VLOOKUP(F5,'00_GuV'!$A$7:$AD$22,4,0) -> 8773318733 | G10: =VLOOKUP(G5,'00_GuV'!$A$7:$AD$22,4,0) -> 9427507480 | H10: =VLOOKUP(H5,'00_GuV'!$A$7:$AD$22,4,0) -> 9071388462 | I10: =VLOOKUP(I5,'00_GuV'!$A$7:$AD$22,4,0) -> 9161036750 | J10: =VLOOKUP(J5,'00_GuV'!$A$7:$AD$22,4,0) -> 9433753555 | K10: =VLOOKUP(K5,'00_GuV'!$A$7:$AD$22,4,0) -> 8848438816 | L10: =VLOOKUP(L5,'00_GuV'!$A$7:$AD$22,4,0) -> 9209880466 | M10: =VLOOKUP(M5,'00_GuV'!$A$7:$AD$22,4,0) -> 9964066806 | N10: =VLOOKUP(N5,'00_GuV'!$A$7:$AD$22,4,0) -> 9627304728 | O10: =VLOOKUP(O5,'00_GuV'!$A$7:$AD$22,4,0) -> 9617457471 | P10: =VLOOKUP(P5,'00_GuV'!$A$7:$AD$22,4,0) -> 9868941086 | Q10: =VLOOKUP(Q5,'00_GuV'!$A$7:$AD$22,4,0) -> 9694761790 | R10: =VLOOKUP(R5,'00_GuV'!$A$7:$AD$22,4,0) -> 1.042161124e+10
A11: Umsatzerlöse (Preisbereinigt) | B11: Netzentgelte | C11: ='02_Deflatoren'!C6 -> 1.167386377e+10 | D11: ='02_Deflatoren'!D6 -> 1.298655772e+10 | E11: ='02_Deflatoren'!E6 -> 1.206041683e+10 | F11: ='02_Deflatoren'!F6 -> 1.010367501e+10 | G11: ='02_Deflatoren'!G6 -> 1.124776671e+10 | H11: ='02_Deflatoren'!H6 -> 9848283192 | I11: ='02_Deflatoren'!I6 -> 1.191072953e+10 | J11: ='02_Deflatoren'!J6 -> 1.02159492e+10 | K11: ='02_Deflatoren'!K6 -> 9822735685 | L11: ='02_Deflatoren'!L6 -> 1.013910212e+10 | M11: ='02_Deflatoren'!M6 -> 1.077669459e+10 | N11: ='02_Deflatoren'!N6 -> 1.048482208e+10 | O11: ='02_Deflatoren'!O6 -> 1.008546027e+10 | P11: ='02_Deflatoren'!P6 -> 1.021251767e+10 | Q11: ='02_Deflatoren'!Q6 -> 9694761790 | R11: ='02_Deflatoren'!R6 -> 1.063127679e+10
A12: Bestandsveränderungen | C12: =VLOOKUP(C5,'00_GuV'!$A$7:$AD$22,6,0) -> 13935709.21 | D12: =VLOOKUP(D5,'00_GuV'!$A$7:$AD$22,6,0) -> 3728985.47 | E12: =VLOOKUP(E5,'00_GuV'!$A$7:$AD$22,6,0) -> 2446053.66 | F12: =VLOOKUP(F5,'00_GuV'!$A$7:$AD$22,6,0) -> 4244475.63 | G12: =VLOOKUP(G5,'00_GuV'!$A$7:$AD$22,6,0) -> 11996759.67 | H12: =VLOOKUP(H5,'00_GuV'!$A$7:$AD$22,6,0) -> 15193352.41 | I12: =VLOOKUP(I5,'00_GuV'!$A$7:$AD$22,6,0) -> 17051292.09 | J12: =VLOOKUP(J5,'00_GuV'!$A$7:$AD$22,6,0) -> -3135715.81 | K12: =VLOOKUP(K5,'00_GuV'!$A$7:$AD$22,6,0) -> 24153034.76 | L12: =VLOOKUP(L5,'00_GuV'!$A$7:$AD$22,6,0) -> 28690660.81 | M12: =VLOOKUP(M5,'00_GuV'!$A$7:$AD$22,6,0) -> -19123705.14 | N12: =VLOOKUP(N5,'00_GuV'!$A$7:$AD$22,6,0) -> 71812.76 | O12: =VLOOKUP(O5,'00_GuV'!$A$7:$AD$22,6,0) -> -7292958.22 | P12: =VLOOKUP(P5,'00_GuV'!$A$7:$AD$22,6,0) -> 11540108.99 | Q12: =VLOOKUP(Q5,'00_GuV'!$A$7:$AD$22,6,0) -> -2145154.17 | R12: =VLOOKUP(R5,'00_GuV'!$A$7:$AD$22,6,0) -> 6771900.75
A13: Bestandsveränderungen (Preisbereinigt) | B13: ='02_Deflatoren'!A16 -> Index der Erzeugerpreise gewerblicher Produkte (Vorleistungsgüterproduzenten und Investitionsgüterproduzenten) | C13: ='02_Deflatoren'!C15 -> 15584309.58 | D13: ='02_Deflatoren'!D15 -> 4077218.1 | E13: ='02_Deflatoren'!E15 -> 2627456.955 | F13: ='02_Deflatoren'!F15 -> 4670021.825 | G13: ='02_Deflatoren'!G15 -> 12922235.43 | H13: ='02_Deflatoren'!H15 -> 15830779.3 | I13: ='02_Deflatoren'!I15 -> 17652370.8 | J13: ='02_Deflatoren'!J15 -> -3254773.354 | K13: ='02_Deflatoren'!K15 -> 25134770.71 | L13: ='02_Deflatoren'!L15 -> 29986508.87 | M13: ='02_Deflatoren'!M15 -> -20075670.02 | N13: ='02_Deflatoren'!N15 -> 73489.63906 | O13: ='02_Deflatoren'!O15 -> -7317059.652 | P13: ='02_Deflatoren'!P15 -> 11515170.24 | Q13: ='02_Deflatoren'!Q15 -> -2145154.17 | R13: ='02_Deflatoren'!R15 -> 6338694.029
A14: Aktivierte Eigenleistungen | C14: =VLOOKUP(C5,'00_GuV'!$A$7:$AD$22,7,0) -> 67409211.61 | D14: =VLOOKUP(D5,'00_GuV'!$A$7:$AD$22,7,0) -> 44213578.52 | E14: =VLOOKUP(E5,'00_GuV'!$A$7:$AD$22,7,0) -> 41796231.11 | F14: =VLOOKUP(F5,'00_GuV'!$A$7:$AD$22,7,0) -> 44859007.2 | G14: =VLOOKUP(G5,'00_GuV'!$A$7:$AD$22,7,0) -> 49609259.5 | H14: =VLOOKUP(H5,'00_GuV'!$A$7:$AD$22,7,0) -> 60448815.62 | I14: =VLOOKUP(I5,'00_GuV'!$A$7:$AD$22,7,0) -> 76321724.01 | J14: =VLOOKUP(J5,'00_GuV'!$A$7:$AD$22,7,0) -> 87368972.1 | K14: =VLOOKUP(K5,'00_GuV'!$A$7:$AD$22,7,0) -> 109782177.9 | L14: =VLOOKUP(L5,'00_GuV'!$A$7:$AD$22,7,0) -> 109961998.1 | M14: =VLOOKUP(M5,'00_GuV'!$A$7:$AD$22,7,0) -> 123802159 | N14: =VLOOKUP(N5,'00_GuV'!$A$7:$AD$22,7,0) -> 137332449.7 | O14: =VLOOKUP(O5,'00_GuV'!$A$7:$AD$22,7,0) -> 164331821.7 | P14: =VLOOKUP(P5,'00_GuV'!$A$7:$AD$22,7,0) -> 200848923.2 | Q14: =VLOOKUP(Q5,'00_GuV'!$A$7:$AD$22,7,0) -> 226485542.6 | R14: =VLOOKUP(R5,'00_GuV'!$A$7:$AD$22,7,0) -> 252489525.9
A15: Aktivierte Eigenleistungen (Preisbereinigt) | B15: ='02_Deflatoren'!A20 -> Personalaufwand / tatsächlich geleistete Arbeitsstunden | C15: ='02_Deflatoren'!C19 -> 81866163.92 | D15: ='02_Deflatoren'!D19 -> 60006227.42 | E15: ='02_Deflatoren'!E19 -> 50525892.51 | F15: ='02_Deflatoren'!F19 -> 54402074.1 | G15: ='02_Deflatoren'!G19 -> 60212589.9 | H15: ='02_Deflatoren'!H19 -> 72652814.37 | I15: ='02_Deflatoren'!I19 -> 86533139.89 | J15: ='02_Deflatoren'!J19 -> 101878192.9 | K15: ='02_Deflatoren'!K19 -> 130909913.3 | L15: ='02_Deflatoren'!L19 -> 123316931.5 | M15: ='02_Deflatoren'!M19 -> 136134064.5 | N15: ='02_Deflatoren'!N19 -> 150415573 | O15: ='02_Deflatoren'!O19 -> 170600113.2 | P15: ='02_Deflatoren'!P19 -> 203321485.6 | Q15: ='02_Deflatoren'!Q19 -> 226485542.6 | R15: ='02_Deflatoren'!R19 -> 248823912.6
A17: Aufwendungen für RHB | C17: =VLOOKUP(C5,'00_GuV'!$A$7:$AD$22,8,0) -> 326237621.1 | D17: =VLOOKUP(D5,'00_GuV'!$A$7:$AD$22,8,0) -> 370091147 | E17: =VLOOKUP(E5,'00_GuV'!$A$7:$AD$22,8,0) -> 787644780.3 | F17: =VLOOKUP(F5,'00_GuV'!$A$7:$AD$22,8,0) -> 752062685.9 | G17: =VLOOKUP(G5,'00_GuV'!$A$7:$AD$22,8,0) -> 888207220.8 | H17: =VLOOKUP(H5,'00_GuV'!$A$7:$AD$22,8,0) -> 918811930.4 | I17: =VLOOKUP(I5,'00_GuV'!$A$7:$AD$22,8,0) -> 864079297.4 | J17: =VLOOKUP(J5,'00_GuV'!$A$7:$AD$22,8,0) -> 933413288 | K17: =VLOOKUP(K5,'00_GuV'!$A$7:$AD$22,8,0) -> 778234917.1 | L17: =VLOOKUP(L5,'00_GuV'!$A$7:$AD$22,8,0) -> 804718878.7 | M17: =VLOOKUP(M5,'00_GuV'!$A$7:$AD$22,8,0) -> 821144718.8 | N17: =VLOOKUP(N5,'00_GuV'!$A$7:$AD$22,8,0) -> 771424639.3 | O17: =VLOOKUP(O5,'00_GuV'!$A$7:$AD$22,8,0) -> 851432311.3 | P17: =VLOOKUP(P5,'00_GuV'!$A$7:$AD$22,8,0) -> 895124378 | Q17: =VLOOKUP(Q5,'00_GuV'!$A$7:$AD$22,8,0) -> 680480757 | R17: =VLOOKUP(R5,'00_GuV'!$A$7:$AD$22,8,0) -> 804603353.2
A18: Aufwendungen für RHB (Preisbereinigt) | B18: ='02_Deflatoren'!A25 -> Index der Erzeugerpreise gewerblicher Produkte (Vorleistungsgüterproduzenten und Investitionsgüterproduzenten) | C18: ='02_Deflatoren'!C23 -> 300259944.6 | D18: ='02_Deflatoren'!D23 -> 348629720.4 | E18: ='02_Deflatoren'!E23 -> 643722202.9 | F18: ='02_Deflatoren'!F23 -> 675966739.8 | G18: ='02_Deflatoren'!G23 -> 839602813.7 | H18: ='02_Deflatoren'!H23 -> 767747702.9 | I18: ='02_Deflatoren'!I23 -> 672200279.4 | J18: ='02_Deflatoren'!J23 -> 723571744.9 | K18: ='02_Deflatoren'!K23 -> 626768704.1 | L18: ='02_Deflatoren'!L23 -> 672371536.7 | M18: ='02_Deflatoren'!M23 -> 752519487.9 | N18: ='02_Deflatoren'!N23 -> 743596078.9 | O18: ='02_Deflatoren'!O23 -> 794132702.7 | P18: ='02_Deflatoren'!P23 -> 831826094.3 | Q18: ='02_Deflatoren'!Q23 -> 680480757 | R18: ='02_Deflatoren'!R23 -> 666796701.3
A19: Aufwendungen für bezogene Leistungen | C19: =VLOOKUP(C5,'00_GuV'!$A$7:$AD$22,11,0) -> 2947073723 | D19: =VLOOKUP(D5,'00_GuV'!$A$7:$AD$22,11,0) -> 2293364176 | E19: =VLOOKUP(E5,'00_GuV'!$A$7:$AD$22,11,0) -> 2474934237 | F19: =VLOOKUP(F5,'00_GuV'!$A$7:$AD$22,11,0) -> 2592882621 | G19: =VLOOKUP(G5,'00_GuV'!$A$7:$AD$22,11,0) -> 2869336812 | H19: =VLOOKUP(H5,'00_GuV'!$A$7:$AD$22,11,0) -> 2374915023 | I19: =VLOOKUP(I5,'00_GuV'!$A$7:$AD$22,11,0) -> 2077559983 | J19: =VLOOKUP(J5,'00_GuV'!$A$7:$AD$22,11,0) -> 1916848498 | K19: =VLOOKUP(K5,'00_GuV'!$A$7:$AD$22,11,0) -> 1978277026 | L19: =VLOOKUP(L5,'00_GuV'!$A$7:$AD$22,11,0) -> 2238063080 | M19: =VLOOKUP(M5,'00_GuV'!$A$7:$AD$22,11,0) -> 2067586364 | N19: =VLOOKUP(N5,'00_GuV'!$A$7:$AD$22,11,0) -> 2146520779 | O19: =VLOOKUP(O5,'00_GuV'!$A$7:$AD$22,11,0) -> 2500213710 | P19: =VLOOKUP(P5,'00_GuV'!$A$7:$AD$22,11,0) -> 2575669722 | Q19: =VLOOKUP(Q5,'00_GuV'!$A$7:$AD$22,11,0) -> 2633729376 | R19: =VLOOKUP(R5,'00_GuV'!$A$7:$AD$22,11,0) -> 2389195261
A20: Aufwendungen für bezogene Leistungen (Preisbereinigt) | B20: =CONCATENATE('02_Deflatoren'!A32," sowie ",'02_Deflatoren'!A33) -> Arbeitskostenindex Produzierendes Gewerbe und Dienstleistungsbereich sowie Index der Erzeugerpreise Erdgas, bei Abgabe an Wiederverkäufer | C20: ='02_Deflatoren'!C30 -> 3862744250 | D20: ='02_Deflatoren'!D30 -> 3008397783 | E20: ='02_Deflatoren'!E30 -> 3083227852 | F20: ='02_Deflatoren'!F30 -> 3216023621 | G20: ='02_Deflatoren'!G30 -> 3563047785 | H20: ='02_Deflatoren'!H30 -> 2817522766 | I20: ='02_Deflatoren'!I30 -> 2364384887 | J20: ='02_Deflatoren'!J30 -> 2163691120 | K20: ='02_Deflatoren'!K30 -> 2201997994 | L20: ='02_Deflatoren'!L30 -> 2450230818 | M20: ='02_Deflatoren'!M30 -> 2256024217 | N20: ='02_Deflatoren'!N30 -> 2308391419 | O20: ='02_Deflatoren'!O30 -> 2605711173 | P20: ='02_Deflatoren'!P30 -> 2611319511 | Q20: ='02_Deflatoren'!Q30 -> 2633729376 | R20: ='02_Deflatoren'!R30 -> 2300907434
A21: Sonstige betriebliche Aufwendungen (Preisbereinigt) | B21: Mischindex | C21: ='02_Deflatoren'!C37 -> 1559886085 | D21: ='02_Deflatoren'!D37 -> 1419341850 | E21: ='02_Deflatoren'!E37 -> 2072347322 | F21: ='02_Deflatoren'!F37 -> 1836656909 | G21: ='02_Deflatoren'!G37 -> 1768411874 | H21: ='02_Deflatoren'!H37 -> 1649210104 | I21: ='02_Deflatoren'!I37 -> 1555864645 | J21: ='02_Deflatoren'!J37 -> 1561669175 | K21: ='02_Deflatoren'!K37 -> 1445891907 | L21: ='02_Deflatoren'!L37 -> 1599634861 | M21: ='02_Deflatoren'!M37 -> 1368412923 | N21: ='02_Deflatoren'!N37 -> 1294205345 | O21: ='02_Deflatoren'!O37 -> 1298775811 | P21: ='02_Deflatoren'!P37 -> 1371125800 | Q21: ='02_Deflatoren'!Q37 -> 1423469824 | R21: ='02_Deflatoren'!R37 -> 1412096626
A24: Bruttowertschöpfung (Preisbereinigt) | C24: =C9-C18-C20-C21 -> 6048423964 | D24: 8274271815 | E24: 6314272807 | F24: 4434099841 | G24: 5149839062 | H24: 4702286213 | I24: 7422465229 | J24: 5865640581 | K24: 5704121765 | L24: 5570168346 | M24: 6515796355 | N24: 6289118298 | O24: 5550123635 | P24: 5613082918 | Q24: 5181422221 | R24: 6506638633
A26: Bruttoproduktionswert (Preisbereinigt) | C26: =VLOOKUP($A$26,$A$7:$R$24,3,0) -> 1.177131424e+10 | D26: =VLOOKUP($A$26,$A$7:$R$24,4,0) -> 1.305064117e+10 | E26: =VLOOKUP($A$26,$A$7:$R$24,5,0) -> 1.211357018e+10 | F26: =VLOOKUP($A$26,$A$7:$R$24,6,0) -> 1.016274711e+10 | G26: =VLOOKUP($A$26,$A$7:$R$24,7,0) -> 1.132090153e+10 | H26: =VLOOKUP($A$26,$A$7:$R$24,8,0) -> 9936766786 | I26: =VLOOKUP($A$26,$A$7:$R$24,9,0) -> 1.201491504e+10 | J26: =VLOOKUP($A$26,$A$7:$R$24,10,0) -> 1.031457262e+10 | K26: =VLOOKUP($A$26,$A$7:$R$24,11,0) -> 9978780369 | L26: =VLOOKUP($A$26,$A$7:$R$24,12,0) -> 1.029240556e+10 | M26: =VLOOKUP($A$26,$A$7:$R$24,13,0) -> 1.089275298e+10 | N26: =VLOOKUP($A$26,$A$7:$R$24,14,0) -> 1.063531114e+10 | O26: =VLOOKUP($A$26,$A$7:$R$24,15,0) -> 1.024874332e+10 | P26: =VLOOKUP($A$26,$A$7:$R$24,16,0) -> 1.042735432e+10 | Q26: =VLOOKUP($A$26,$A$7:$R$24,17,0) -> 9919102179 | R26: =VLOOKUP($A$26,$A$7:$R$24,18,0) -> 1.088643939e+10
B28: Outputindex | D28: =D26/C26 -> 1.108681741 | E28: =E26/D26 -> 0.928197322 | F28: =F26/E26 -> 0.8389555644 | G28: =G26/F26 -> 1.113960764 | H28: =H26/G26 -> 0.8777363495 | I28: 1.209137268 | J28: 0.8584806955 | K28: 0.96744487 | L28: 1.031429211 | M28: =M26/L26 -> 1.058329165 | N28: =N26/M26 -> 0.9763657689 | O28: =O26/N26 -> 0.9636524203 | P28: =P26/O26 -> 1.0174276 | Q28: =Q26/P26 -> 0.9512578044 | R28: =R26/Q26 -> 1.097522659
A30: Bruttoanlagevermögen (TNW 2015) | B30: TNW aus Datenabfrage BK4 | C30: ='02_Anlagevermögen'!D5 -> 1.083655267e+11 | D30: ='02_Anlagevermögen'!E5 -> 1.053369713e+11 | E30: ='02_Anlagevermögen'!F5 -> 1.059015069e+11 | F30: ='02_Anlagevermögen'!G5 -> 1.072895416e+11 | G30: ='02_Anlagevermögen'!H5 -> 1.127737338e+11 | H30: ='02_Anlagevermögen'!I5 -> 1.150545869e+11 | I30: ='02_Anlagevermögen'!J5 -> 1.166140251e+11 | J30: ='02_Anlagevermögen'!K5 -> 1.183090197e+11 | K30: ='02_Anlagevermögen'!L5 -> 1.203143947e+11 | L30: ='02_Anlagevermögen'!M5 -> 1.23254075e+11 | M30: ='02_Anlagevermögen'!N5 -> 1.247850367e+11 | N30: ='02_Anlagevermögen'!O5 -> 1.266829801e+11 | O30: ='02_Anlagevermögen'!P5 -> 1.289580245e+11 | P30: ='02_Anlagevermögen'!Q5 -> 1.318993856e+11 | Q30: ='02_Anlagevermögen'!R5 -> 1.344056663e+11 | R30: ='02_Anlagevermögen'!S5 -> 1.375127278e+11
A32: Geleistete Arbeitsstunden | B32: Datenabfrage BK4 | C32: =VLOOKUP(C5,'00_GuV'!$A$7:$AD$22,2,0) -> 26548039.45 | D32: =VLOOKUP(D5,'00_GuV'!$A$7:$AD$22,2,0) -> 19947231.34 | E32: =VLOOKUP(E5,'00_GuV'!$A$7:$AD$22,2,0) -> 19424606.8 | F32: =VLOOKUP(F5,'00_GuV'!$A$7:$AD$22,2,0) -> 20607222.34 | G32: =VLOOKUP(G5,'00_GuV'!$A$7:$AD$22,2,0) -> 21748326.79 | H32: =VLOOKUP(H5,'00_GuV'!$A$7:$AD$22,2,0) -> 23314287.72 | I32: =VLOOKUP(I5,'00_GuV'!$A$7:$AD$22,2,0) -> 25130451.18 | J32: =VLOOKUP(J5,'00_GuV'!$A$7:$AD$22,2,0) -> 27828597.61 | K32: =VLOOKUP(K5,'00_GuV'!$A$7:$AD$22,2,0) -> 29940388.1 | L32: =VLOOKUP(L5,'00_GuV'!$A$7:$AD$22,2,0) -> 32381114.78 | M32: =VLOOKUP(M5,'00_GuV'!$A$7:$AD$22,2,0) -> 32524835.01 | N32: =VLOOKUP(N5,'00_GuV'!$A$7:$AD$22,2,0) -> 32421955.59 | O32: =VLOOKUP(O5,'00_GuV'!$A$7:$AD$22,2,0) -> 34419752.59 | P32: =VLOOKUP(P5,'00_GuV'!$A$7:$AD$22,2,0) -> 36336007.86 | Q32: =VLOOKUP(Q5,'00_GuV'!$A$7:$AD$22,2,0) -> 39001244.36 | R32: =VLOOKUP(R5,'00_GuV'!$A$7:$AD$22,2,0) -> 39438247.43
A34: Vorleistungen (Preisbereinigt) | B34: Datenabfrage BK4 | C34: =C18+C20+C21 -> 5722890279 | D34: 4776369353 | E34: 5799297376 | F34: 5728647270 | G34: 6171062473 | H34: 5234480572 | I34: 4592449812 | J34: 4448932040 | K34: 4274658604 | L34: 4722237216 | M34: 4376956627 | N34: 4346192843 | O34: 4698619686 | P34: 4814271405 | Q34: 4737679957 | R34: 4379800761
A36: Lohnquote (Personalaufwand/BWS bzw. PW) | B36: Datenabfrage BK4 | C36: =IF($A$26<>"Bruttowertschöpfung (preisbereinigt)",'02_Personalaufwand'!B5/(C10+C12+C14),'02_Personalaufwand'!B5/(C10+C12+C14-C17-C19-'02_Deflatoren'!C36)) -> 0.1098677422 | D36: =IF($A$26<>"Bruttowertschöpfung (preisbereinigt)",'02_Personalaufwand'!C5/(D10+D12+D14),'02_Personalaufwand'!C5/(D10+D12+D14-D17-D19-'02_Deflatoren'!D36)) -> 0.08136367039 | E36: =IF($A$26<>"Bruttowertschöpfung (preisbereinigt)",'02_Personalaufwand'!D5/(E10+E12+E14),'02_Personalaufwand'!D5/(E10+E12+E14-E17-E19-'02_Deflatoren'!E36)) -> 0.08830743318 | F36: =IF($A$26<>"Bruttowertschöpfung (preisbereinigt)",'02_Personalaufwand'!E5/(F10+F12+F14),'02_Personalaufwand'!E5/(F10+F12+F14-F17-F19-'02_Deflatoren'!F36)) -> 0.09576795421 | G36: =IF($A$26<>"Bruttowertschöpfung (preisbereinigt)",'02_Personalaufwand'!F5/(G10+G12+G14),'02_Personalaufwand'!F5/(G10+G12+G14-G17-G19-'02_Deflatoren'!G36)) -> 0.09389231276 | H36: =IF($A$26<>"Bruttowertschöpfung (preisbereinigt)",'02_Personalaufwand'!G5/(H10+H12+H14),'02_Personalaufwand'!G5/(H10+H12+H14-H17-H19-'02_Deflatoren'!H36)) -> 0.1054464015 | I36: =IF($A$26<>"Bruttowertschöpfung (preisbereinigt)",'02_Personalaufwand'!H5/(I10+I12+I14),'02_Personalaufwand'!H5/(I10+I12+I14-I17-I19-'02_Deflatoren'!I36)) -> 0.1190890035 | J36: =IF($A$26<>"Bruttowertschöpfung (preisbereinigt)",'02_Personalaufwand'!I5/(J10+J12+J14),'02_Personalaufwand'!I5/(J10+J12+J14-J17-J19-'02_Deflatoren'!J36)) -> 0.1246742049 | K36: =IF($A$26<>"Bruttowertschöpfung (preisbereinigt)",'02_Personalaufwand'!J5/(K10+K12+K14),'02_Personalaufwand'!J5/(K10+K12+K14-K17-K19-'02_Deflatoren'!K36)) -> 0.1389888586 | L36: =IF($A$26<>"Bruttowertschöpfung (preisbereinigt)",'02_Personalaufwand'!K5/(L10+L12+L14),'02_Personalaufwand'!K5/(L10+L12+L14-L17-L19-'02_Deflatoren'!L36)) -> 0.1535757443 | M36: =IF($A$26<>"Bruttowertschöpfung (preisbereinigt)",'02_Personalaufwand'!L5/(M10+M12+M14),'02_Personalaufwand'!L5/(M10+M12+M14-M17-M19-'02_Deflatoren'!M36)) -> 0.1460681562 | N36: =IF($A$26<>"Bruttowertschöpfung (preisbereinigt)",'02_Personalaufwand'!M5/(N10+N12+N14),'02_Personalaufwand'!M5/(N10+N12+N14-N17-N19-'02_Deflatoren'!N36)) -> 0.1507351917 | O36: =IF($A$26<>"Bruttowertschöpfung (preisbereinigt)",'02_Personalaufwand'!N5/(O10+O12+O14),'02_Personalaufwand'!N5/(O10+O12+O14-O17-O19-'02_Deflatoren'!O36)) -> 0.1686592257 | P36: =IF($A$26<>"Bruttowertschöpfung (preisbereinigt)",'02_Personalaufwand'!O5/(P10+P12+P14),'02_Personalaufwand'!O5/(P10+P12+P14-P17-P19-'02_Deflatoren'!P36)) -> 0.1770353522 | Q36: =IF($A$26<>"Bruttowertschöpfung (preisbereinigt)",'02_Personalaufwand'!P5/(Q10+Q12+Q14),'02_Personalaufwand'!P5/(Q10+Q12+Q14-Q17-Q19-'02_Deflatoren'!Q36)) -> 0.1955061804 | R36: =IF($A$26<>"Bruttowertschöpfung (preisbereinigt)",'02_Personalaufwand'!Q5/(R10+R12+R14),'02_Personalaufwand'!Q5/(R10+R12+R14-R17-R19-'02_Deflatoren'!R36)) -> 0.1863015693
A38: Vorleistungsquote (Vorleistungen/Bruttoproduktionswert) | B38: Datenabfrage BK4 | C38: =IF($A$26<>"Bruttowertschöpfung (preisbereinigt)",(C17+C19+'02_Deflatoren'!C36)/(C10+C12+C14),0) -> 0.4624023359 | D38: =IF($A$26<>"Bruttowertschöpfung (preisbereinigt)",(D17+D19+'02_Deflatoren'!D36)/(D10+D12+D14),0) -> 0.4293986367 | E38: =IF($A$26<>"Bruttowertschöpfung (preisbereinigt)",(E17+E19+'02_Deflatoren'!E36)/(E10+E12+E14),0) -> 0.5556921114 | F38: =IF($A$26<>"Bruttowertschöpfung (preisbereinigt)",(F17+F19+'02_Deflatoren'!F36)/(F10+F12+F14),0) -> 0.5587814343 | G38: =IF($A$26<>"Bruttowertschöpfung (preisbereinigt)",(G17+G19+'02_Deflatoren'!G36)/(G10+G12+G14),0) -> 0.5580337442 | H38: =IF($A$26<>"Bruttowertschöpfung (preisbereinigt)",(H17+H19+'02_Deflatoren'!H36)/(H10+H12+H14),0) -> 0.5186498465 | I38: =IF($A$26<>"Bruttowertschöpfung (preisbereinigt)",(I17+I19+'02_Deflatoren'!I36)/(I10+I12+I14),0) -> 0.4675910969 | J38: =IF($A$26<>"Bruttowertschöpfung (preisbereinigt)",(J17+J19+'02_Deflatoren'!J36)/(J10+J12+J14),0) -> 0.4479382568 | K38: =IF($A$26<>"Bruttowertschöpfung (preisbereinigt)",(K17+K19+'02_Deflatoren'!K36)/(K10+K12+K14),0) -> 0.4547121224 | L38: =IF($A$26<>"Bruttowertschöpfung (preisbereinigt)",(L17+L19+'02_Deflatoren'!L36)/(L10+L12+L14),0) -> 0.484548627 | M38: =IF($A$26<>"Bruttowertschöpfung (preisbereinigt)",(M17+M19+'02_Deflatoren'!M36)/(M10+M12+M14),0) -> 0.4150820297 | N38: =IF($A$26<>"Bruttowertschöpfung (preisbereinigt)",(N17+N19+'02_Deflatoren'!N36)/(N10+N12+N14),0) -> 0.4256533109 | O38: =IF($A$26<>"Bruttowertschöpfung (preisbereinigt)",(O17+O19+'02_Deflatoren'!O36)/(O10+O12+O14),0) -> 0.4720176132 | P38: =IF($A$26<>"Bruttowertschöpfung (preisbereinigt)",(P17+P19+'02_Deflatoren'!P36)/(P10+P12+P14),0) -> 0.4785965889 | Q38: =IF($A$26<>"Bruttowertschöpfung (preisbereinigt)",(Q17+Q19+'02_Deflatoren'!Q36)/(Q10+Q12+Q14),0) -> 0.477631934 | R38: =IF($A$26<>"Bruttowertschöpfung (preisbereinigt)",(R17+R19+'02_Deflatoren'!R36)/(R10+R12+R14),0) -> 0.4333020505
A40: =IF(A26="Bruttoproduktionswert (Preisbereinigt)","Kapitalquote (1-Lohnquote-Vorleistungsquote)","Kapitalquote (1-Lohnquote)") -> Kapitalquote (1-Lohnquote-Vorleistungsquote) | C40: =IF($A$26<>"Bruttowertschöpfung (preisbereinigt)",1-C36-C38,1-C36) -> 0.427729922 | D40: =IF($A$26<>"Bruttowertschöpfung (preisbereinigt)",1-D36-D38,1-D36) -> 0.4892376929 | E40: 0.3560004554 | F40: 0.3454506115 | G40: 0.348073943 | H40: 0.375903752 | I40: 0.4133198996 | J40: 0.4273875383 | K40: 0.406299019 | L40: 0.3618756286 | M40: 0.4388498141 | N40: 0.4236114974 | O40: 0.3593231611 | P40: 0.3443680589 | Q40: 0.3268618856 | R40: 0.3803963803
B42: Inputindex | D42: =IF($A$26="Bruttowertschöpfung (preisbereinigt)",((D30/C30)^((C40+D40)/2))*((D32/C32)^((C36+D36)/2)),((D30/C30)^((C40+D40)/2))*((D32/C32)^((C36+D36)/2))*((D34/C34)^((C38+D38)/2))) -> 0.8860826757 | E42: =IF($A$26="Bruttowertschöpfung (preisbereinigt)",((E30/D30)^((D40+E40)/2))*((E32/D32)^((D36+E36)/2)),((E30/D30)^((D40+E40)/2))*((E32/D32)^((D36+E36)/2))*((E34/D34)^((D38+E38)/2))) -> 1.100305605 | F42: 1.003181364 | G42: 1.066026957 | H42: 0.9282680496 | I42: 0.9504758334 | J42: 1.003969901 | K42: 0.9986151958 | L42: 1.069830776 | M42: =IF($A$26="Bruttowertschöpfung (preisbereinigt)",((M30/L30)^((L40+M40)/2))*((M32/L32)^((L36+M36)/2)),((M30/L30)^((L40+M40)/2))*((M32/L32)^((L36+M36)/2))*((M34/L34)^((L38+M38)/2))) -> 0.9718554559 | N42: =IF($A$26="Bruttowertschöpfung (preisbereinigt)",((N30/M30)^((M40+N40)/2))*((N32/M32)^((M36+N36)/2)),((N30/M30)^((M40+N40)/2))*((N32/M32)^((M36+N36)/2))*((N34/M34)^((M38+N38)/2))) -> 1.003079068 | O42: =IF($A$26="Bruttowertschöpfung (preisbereinigt)",((O30/N30)^((N40+O40)/2))*((O32/N32)^((N36+O36)/2)),((O30/N30)^((N40+O40)/2))*((O32/N32)^((N36+O36)/2))*((O34/N34)^((N38+O38)/2))) -> 1.052861724 | P42: =IF($A$26="Bruttowertschöpfung (preisbereinigt)",((P30/O30)^((O40+P40)/2))*((P32/O32)^((O36+P36)/2)),((P30/O30)^((O40+P40)/2))*((P32/O32)^((O36+P36)/2))*((P34/O34)^((O38+P38)/2))) -> 1.029277539 | Q42: =IF($A$26="Bruttowertschöpfung (preisbereinigt)",((Q30/P30)^((P40+Q40)/2))*((Q32/P32)^((P36+Q36)/2)),((Q30/P30)^((P40+Q40)/2))*((Q32/P32)^((P36+Q36)/2))*((Q34/P34)^((P38+Q38)/2))) -> 1.011905111 | R42: =IF($A$26="Bruttowertschöpfung (preisbereinigt)",((R30/Q30)^((Q40+R40)/2))*((R32/Q32)^((Q36+R36)/2)),((R30/Q30)^((Q40+R40)/2))*((R32/Q32)^((Q36+R36)/2))*((R34/Q34)^((Q38+R38)/2))) -> 0.9747586378
B44: TFPNetz | D44: =D28/D42 -> 1.251217038 | E44: =E28/E42 -> 0.8435813814 | F44: 0.836295006 | G44: 1.044964911 | H44: 0.9455634607 | I44: 1.272138886 | J44: 0.8550860882 | K44: 0.9687864496 | L44: 0.9641050102 | M44: 1.088977953 | N44: 0.9733687001 | O44: 0.9152696864 | P44: 0.9884871295 | Q44: 0.9400662115 | R44: 1.125942994
B47: TFP Netz | D47: =D44 -> 1.251217038 | E47: =E44 -> 0.8435813814 | F47: 0.836295006 | G47: 1.044964911 | H47: 0.9455634607 | I47: 1.272138886 | J47: 0.8550860882 | K47: 0.9687864496 | L47: 0.9641050102 | M47: 1.088977953 | N47: 0.9733687001 | O47: 0.9152696864 | P47: 0.9884871295 | Q47: 0.9400662115 | R47: 1.125942994
B48: TFP Netz (geometrischer Mittelwert) | D48: =((GEOMEAN(INDIRECT((VLOOKUP(B1,Hilfstabelle!$A$2:$C$16,2,0))):INDIRECT((VLOOKUP(B2,Hilfstabelle!$A$2:$C$16,2,0)))))-1)*100 -> -0.7036434565

Sheet 02_VPI
A1: Verbraucherpreisindex (inkl. Veränderungsraten):
A2: Deutschland, Jahre
A3: Verbraucherpreisindex für Deutschland
A4: Deutschland
A5: Verbraucherpreisindex insgesamt
A6: Jahr | B6: Verbraucherpreisindex | C6: Veränderung zum Vorjahr
B7: 2020=100 | C7: in (%)
A8: 2006 | B8: 82.8 | C8: 1.6
A9: 2007 | B9: 84.7 | C9: 2.3
A10: 2008 | B10: 86.9 | C10: 2.6
A11: 2009 | B11: 87.2 | C11: 0.3
A12: 2010 | B12: 88.1 | C12: 1
A13: 2011 | B13: 90 | C13: 2.2
A14: 2012 | B14: 91.7 | C14: 1.9
A15: 2013 | B15: 93.1 | C15: 1.5
A16: 2014 | B16: 94 | C16: 1
A17: 2015 | B17: 94.5 | C17: 0.5
A18: 2016 | B18: 95 | C18: 0.5
A19: 2017 | B19: 96.4 | C19: 1.5
A20: 2018 | B20: 98.1 | C20: 1.8
A21: 2019 | B21: 99.5 | C21: 1.4
A22: 2020 | B22: 100 | C22: 0.5
A23: 2021 | B23: 103.1 | C23: 3.1
A25: © Statistisches Bundesamt (Destatis), 2025 | Stand: 06.02.2025 / 10:11:48

Sheet 02_GuV_Anteile
A1: GuV-Anteile aus Datenabfrage BK4
A4: Netz-Kostenart (Oberposition) | B4: 2006 | C4: 2007 | D4: 2008 | E4: 2009 | F4: 2010 | G4: 2011 | H4: 2012 | I4: 2013 | J4: 2014 | K4: 2015 | L4: 2016 | M4: 2017 | N4: 2018 | O4: 2019 | P4: 2020 | Q4: 2021
A6: Aufwendungen für Roh-, Hilfs- und Betriebsstoffe [in Euro] | B6: ='00_GuV'!$H$7 -> 326237621.1 | C6: ='00_GuV'!$H$8 -> 370091147 | D6: ='00_GuV'!$H$9 -> 787644780.3 | E6: ='00_GuV'!$H$10 -> 752062685.9 | F6: ='00_GuV'!$H$11 -> 888207220.8 | G6: ='00_GuV'!$H$12 -> 918811930.4 | H6: ='00_GuV'!$H$13 -> 864079297.4 | I6: ='00_GuV'!$H$14 -> 933413288 | J6: ='00_GuV'!$H$15 -> 778234917.1 | K6: ='00_GuV'!$H$16 -> 804718878.7 | L6: ='00_GuV'!$H$17 -> 821144718.8 | M6: ='00_GuV'!$H$18 -> 771424639.3 | N6: ='00_GuV'!$H$19 -> 851432311.3 | O6: ='00_GuV'!$H$20 -> 895124378 | P6: ='00_GuV'!$H$21 -> 680480757 | Q6: ='00_GuV'!$H$22 -> 804603353.2
A8: Personalkosten | B8: ='00_GuV'!$J$7 -> 1086930192 | C8: ='00_GuV'!$J$8 -> 730796332 | D8: ='00_GuV'!$J$9 -> 798968681.2 | E8: ='00_GuV'!$J$10 -> 844905326.8 | F8: ='00_GuV'!$J$11 -> 890954812.4 | G8: ='00_GuV'!$J$12 -> 964521464 | H8: ='00_GuV'!$J$13 -> 1102098437 | I8: ='00_GuV'!$J$14 -> 1186647438 | J8: ='00_GuV'!$J$15 -> 1248449914 | K8: ='00_GuV'!$J$16 -> 1435707933 | L8: ='00_GuV'!$J$17 -> 1470723055 | M8: ='00_GuV'!$J$18 -> 1471885281 | N8: ='00_GuV'!$J$19 -> 1648558984 | O8: ='00_GuV'!$J$20 -> 1784751828 | P8: ='00_GuV'!$J$21 -> 1939245779 | Q8: ='00_GuV'!$J$22 -> 1989863338
A10: Aufwendungen für bezogene Leistungen | B10: ='00_GuV'!$K$7 -> 2947073723 | C10: ='00_GuV'!$K$8 -> 2293364176 | D10: ='00_GuV'!$K$9 -> 2474934237 | E10: ='00_GuV'!$K$10 -> 2592882621 | F10: ='00_GuV'!$K$11 -> 2869336812 | G10: ='00_GuV'!$K$12 -> 2374915023 | H10: ='00_GuV'!$K$13 -> 2077559983 | I10: ='00_GuV'!$K$14 -> 1916848498 | J10: ='00_GuV'!$K$15 -> 1978277026 | K10: ='00_GuV'!$K$16 -> 2238063080 | L10: ='00_GuV'!$K$17 -> 2067586364 | M10: ='00_GuV'!$K$18 -> 2146520779 | N10: ='00_GuV'!$K$19 -> 2500213710 | O10: ='00_GuV'!$K$20 -> 2575669722 | P10: ='00_GuV'!$K$21 -> 2633729376 | Q10: ='00_GuV'!$K$22 -> 2389195261
A12: Sonstige betriebliche Aufwendungen | B12: ='00_GuV'!$N$7 -> 1301271239 | C12: ='00_GuV'!$N$8 -> 1193339081 | D12: ='00_GuV'!$N$9 -> 1765090539 | E12: ='00_GuV'!$N$10 -> 1584860433 | F12: ='00_GuV'!$N$11 -> 1537701502 | G12: ='00_GuV'!$N$12 -> 1450379079 | H12: ='00_GuV'!$N$13 -> 1385640333 | I12: ='00_GuV'!$N$14 -> 1413208635 | J12: ='00_GuV'!$N$15 -> 1327882416 | K12: ='00_GuV'!$N$16 -> 1487036931 | L12: ='00_GuV'!$N$17 -> 1290624136 | M12: ='00_GuV'!$N$18 -> 1238435294 | N12: ='00_GuV'!$N$19 -> 1262088409 | O12: ='00_GuV'!$N$20 -> 1354096106 | P12: ='00_GuV'!$N$21 -> 1423469824 | Q12: ='00_GuV'!$N$22 -> 1434245411
A14: Zinsen und ähnliche Aufwendungen abzgl. Zinserträge | B14: ='00_GuV'!$R$7-'00_GuV'!$Q$7 -> 71431610.76 | C14: ='00_GuV'!$R$8-'00_GuV'!$Q$8 -> 72486066.14 | D14: ='00_GuV'!$R$9-'00_GuV'!$Q$9 -> 137096225.1 | E14: ='00_GuV'!$R$10-'00_GuV'!$Q$10 -> 49861527.44 | F14: ='00_GuV'!$R$11-'00_GuV'!$Q$11 -> 155816895 | G14: ='00_GuV'!$R$12-'00_GuV'!$Q$12 -> 159017994 | H14: ='00_GuV'!$R$13-'00_GuV'!$Q$13 -> 134703625.6 | I14: ='00_GuV'!$R$14-'00_GuV'!$Q$14 -> 213661630.2 | J14: ='00_GuV'!$R$15-'00_GuV'!$Q$15 -> 215648633.7 | K14: ='00_GuV'!$R$16-'00_GuV'!$Q$16 -> 303639144.2 | L14: ='00_GuV'!$R$17-'00_GuV'!$Q$17 -> 121088216.4 | M14: ='00_GuV'!$R$18-'00_GuV'!$Q$18 -> 201109538.3 | N14: ='00_GuV'!$R$19-'00_GuV'!$Q$19 -> 354336631.5 | O14: ='00_GuV'!$R$20-'00_GuV'!$Q$20 -> 227828700.8 | P14: ='00_GuV'!$R$21-'00_GuV'!$Q$21 -> 336147178.5 | Q14: ='00_GuV'!$R$22-'00_GuV'!$Q$22 -> 275703309.7
A16: Abschreibungen | B16: ='00_GuV'!$P$7 -> 1019491487 | C16: ='00_GuV'!$P$8 -> 773057681.9 | D16: ='00_GuV'!$P$9 -> 867846056.5 | E16: ='00_GuV'!$P$10 -> 1669731501 | F16: ='00_GuV'!$P$11 -> 869617805.8 | G16: ='00_GuV'!$P$12 -> 923065000.9 | H16: ='00_GuV'!$P$13 -> 901389549.4 | I16: ='00_GuV'!$P$14 -> 922470205.8 | J16: ='00_GuV'!$P$15 -> 962230153.2 | K16: ='00_GuV'!$P$16 -> 1028951204 | L16: ='00_GuV'!$P$17 -> 1060192046 | M16: ='00_GuV'!$P$18 -> 1028368477 | N16: ='00_GuV'!$P$19 -> 1039965148 | O16: ='00_GuV'!$P$20 -> 1094607420 | P16: ='00_GuV'!$P$21 -> 1292887577 | Q16: ='00_GuV'!$P$22 -> 1401697522
A18: Eigenkapitalzinsen | B18: ='01_Produktivitätsentw._Netz'!C10+'01_Produktivitätsentw._Netz'!C12+'01_Produktivitätsentw._Netz'!C14-B6-B8-B10-B12-B14-B16 -> 3140642575 | C18: ='01_Produktivitätsentw._Netz'!D10+'01_Produktivitätsentw._Netz'!D12+'01_Produktivitätsentw._Netz'!D14-C6-C8-C10-C12-C14-C16 -> 3548716119 | D18: ='01_Produktivitätsentw._Netz'!E10+'01_Produktivitätsentw._Netz'!E12+'01_Produktivitätsentw._Netz'!E14-D6-D8-D10-D12-D14-D16 -> 2216000782 | E18: ='01_Produktivitätsentw._Netz'!F10+'01_Produktivitätsentw._Netz'!F12+'01_Produktivitätsentw._Netz'!F14-E6-E8-E10-E12-E14-E16 -> 1328118120 | F18: ='01_Produktivitätsentw._Netz'!G10+'01_Produktivitätsentw._Netz'!G12+'01_Produktivitätsentw._Netz'!G14-F6-F8-F10-F12-F14-F16 -> 2277478450 | G18: ='01_Produktivitätsentw._Netz'!H10+'01_Produktivitätsentw._Netz'!H12+'01_Produktivitätsentw._Netz'!H14-G6-G8-G10-G12-G14-G16 -> 2356320139 | H18: ='01_Produktivitätsentw._Netz'!I10+'01_Produktivitätsentw._Netz'!I12+'01_Produktivitätsentw._Netz'!I14-H6-H8-H10-H12-H14-H16 -> 2788938540 | I18: ='01_Produktivitätsentw._Netz'!J10+'01_Produktivitätsentw._Netz'!J12+'01_Produktivitätsentw._Netz'!J14-I6-I8-I10-I12-I14-I16 -> 2931737117 | J18: ='01_Produktivitätsentw._Netz'!K10+'01_Produktivitätsentw._Netz'!K12+'01_Produktivitätsentw._Netz'!K14-J6-J8-J10-J12-J14-J16 -> 2471650969 | K18: ='01_Produktivitätsentw._Netz'!L10+'01_Produktivitätsentw._Netz'!L12+'01_Produktivitätsentw._Netz'!L14-K6-K8-K10-K12-K14-K16 -> 2050415953 | L18: ='01_Produktivitätsentw._Netz'!M10+'01_Produktivitätsentw._Netz'!M12+'01_Produktivitätsentw._Netz'!M14-L6-L8-L10-L12-L14-L16 -> 3237386723 | M18: ='01_Produktivitätsentw._Netz'!N10+'01_Produktivitätsentw._Netz'!N12+'01_Produktivitätsentw._Netz'!N14-M6-M8-M10-M12-M14-M16 -> 2906964982 | N18: ='01_Produktivitätsentw._Netz'!O10+'01_Produktivitätsentw._Netz'!O12+'01_Produktivitätsentw._Netz'!O14-N6-N8-N10-N12-N14-N16 -> 2117901141 | O18: ='01_Produktivitätsentw._Netz'!P10+'01_Produktivitätsentw._Netz'!P12+'01_Produktivitätsentw._Netz'!P14-O6-O8-O10-O12-O14-O16 -> 2149251963 | P18: ='01_Produktivitätsentw._Netz'!Q10+'01_Produktivitätsentw._Netz'!Q12+'01_Produktivitätsentw._Netz'!Q14-P6-P8-P10-P12-P14-P16 -> 1613141687 | Q18: ='01_Produktivitätsentw._Netz'!R10+'01_Produktivitätsentw._Netz'!R12+'01_Produktivitätsentw._Netz'!R14-Q6-Q8-Q10-Q12-Q14-Q16 -> 2385564468
A20: Gewerbesteuer | B20: =(B18)*('01_Inputpreisentwicklung_Netz'!C19/100)*0.035 -> 429796936.3 | C20: =(C18)*('01_Inputpreisentwicklung_Netz'!D19/100)*0.035 -> 483157699.6 | D20: =(D18)*('01_Inputpreisentwicklung_Netz'!E19/100)*0.035 -> 300932906.2 | E20: =(E18)*('01_Inputpreisentwicklung_Netz'!F19/100)*0.035 -> 179893599.4 | F20: =(F18)*('01_Inputpreisentwicklung_Netz'!G19/100)*0.035 -> 310875808.5 | G20: =(G18)*('01_Inputpreisentwicklung_Netz'!H19/100)*0.035 -> 323287123 | H20: =(H18)*('01_Inputpreisentwicklung_Netz'!I19/100)*0.035 -> 383618496.2 | I20: =(I18)*('01_Inputpreisentwicklung_Netz'!J19/100)*0.035 -> 405312656.4 | J20: =(J18)*('01_Inputpreisentwicklung_Netz'!K19/100)*0.035 -> 343435902.2 | K20: =(K18)*('01_Inputpreisentwicklung_Netz'!L19/100)*0.035 -> 286340587.8 | L20: =(L18)*('01_Inputpreisentwicklung_Netz'!M19/100)*0.035 -> 453234141.2 | M20: =(M18)*('01_Inputpreisentwicklung_Netz'!N19/100)*0.035 -> 409009972.9 | N20: =(N18)*('01_Inputpreisentwicklung_Netz'!O19/100)*0.035 -> 297988690.5 | O20: =(O18)*('01_Inputpreisentwicklung_Netz'!P19/100)*0.035 -> 303151989.4 | P20: =(P18)*('01_Inputpreisentwicklung_Netz'!Q19/100)*0.035 -> 225839836.1 | Q20: =(Q18)*('01_Inputpreisentwicklung_Netz'!R19/100)*0.035 -> 336483868.2
A22: Summe | B22: =SUM(B6:B20) -> 1.032287538e+10 | C22: =SUM(C6:C20) -> 9465008302 | D22: 9348514208 | E22: 9002315816 | F22: 9799989307 | G22: 9470317753 | H22: 9638028263 | I22: 9923299468 | J22: 9325809931 | K22: 9634873712 | L22: 1.05219794e+10 | M22: 1.017371896e+10 | N22: 1.007248503e+10 | O22: 1.038448211e+10 | P22: 1.014494201e+10 | Q22: 1.101735653e+10
A25: Netz-Kostenart (Oberposition) | B25: 2006 | C25: 2007 | D25: 2008 | E25: 2009 | F25: 2010 | G25: 2011 | H25: 2012 | I25: 2013 | J25: 2014 | K25: 2015 | L25: 2016 | M25: 2017 | N25: 2018 | O25: 2019 | P25: 2020 | Q25: 2021 | R25: Mittelwert
A27: Aufwendungen für Roh-, Hilfs- und Betriebsstoffe [in Euro] | B27: =B6/$B$22 -> 0.03160336718 | C27: =C6/$C$22 -> 0.03910098493 | D27: =D6/$D$22 -> 0.08425347203 | E27: =E6/$E$22 -> 0.08354102448 | F27: =F6/$F$22 -> 0.09063348876 | G27: =G6/$G$22 -> 0.09702017971 | H27: =H6/$H$22 -> 0.08965311927 | I27: =I6/$I$22 -> 0.09406279545 | J27: =J6/$J$22 -> 0.08344957949 | K27: =K6/K$22 -> 0.08352147654 | L27: =L6/L$22 -> 0.07804089777 | M27: 0.0758252358 | N27: 0.08453051151 | O27: 0.08619826859 | P27: 0.06707586461 | Q27: 0.07303052696 | R27: =AVERAGE(B27:Q27) -> 0.07759629957
A29: Personalkosten | B29: =B8/$B$22 -> 0.105293356 | C29: =C8/$C$22 -> 0.07721032128 | D29: =D8/$D$22 -> 0.08546477691 | E29: =E8/$E$22 -> 0.09385421975 | F29: =F8/$F$22 -> 0.09091385556 | G29: =G8/$G$22 -> 0.1018467901 | H29: =H8/$H$22 -> 0.1143489526 | I29: =I8/$I$22 -> 0.1195819436 | J29: =J8/$J$22 -> 0.1338704009 | K29: =K8/$K$22 -> 0.1490115985 | L29: 0.139776272 | M29: 0.1446752448 | N29: 0.1636695393 | O29: 0.1718671966 | P29: 0.191153954 | Q29: =Q8/$Q$22 -> 0.180611686 | R29: =AVERAGE(B29:Q29) -> 0.1289468817
A31: Aufwendungen für bezogene Leistungen | B31: 0.2854896154 | C31: 0.242299225 | D31: 0.2647409184 | E31: 0.2880239567 | F31: 0.2927897901 | G31: 0.2507745869 | H31: 0.2155586108 | I31: 0.1931664467 | J31: 0.2121292457 | K31: 0.2322877442 | L31: 0.1965016548 | M31: 0.2109868364 | N31: 0.2482221322 | O31: 0.248030638 | P31: 0.2596100966 | Q31: 0.2168573972 | R31: =AVERAGE(B31:Q31) -> 0.2410918059
A33: Sonstige betriebliche Aufwendungen | B33: 0.126057052 | C33: 0.1260790316 | D33: 0.1888097402 | E33: 0.1760503037 | F33: 0.1569084877 | G33: 0.1531499911 | H33: 0.1437680297 | I33: 0.1424131802 | J33: 0.1423878918 | K33: 0.1543390164 | L33: 0.1226598235 | M33: 0.1217288681 | N33: 0.1253005992 | O33: 0.1303961134 | P33: 0.1403132538 | Q33: 0.1301805389 | R33: =AVERAGE(B33:Q33) -> 0.1425338701
A35: Zinsen und ähnliche Aufwendungen abzgl. Zinserträge | B35: 0.006919739713 | C35: 0.007658320397 | D35: 0.01466502827 | E35: 0.005538744526 | F35: 0.01589970051 | G35: 0.01679119942 | H35: 0.01397626381 | I35: 0.02153130931 | J35: 0.0231238504 | K35: 0.03151459514 | L35: 0.01150812141 | M35: 0.01976755393 | N35: 0.03517867047 | O35: 0.02193934165 | P35: 0.0331344603 | Q35: 0.025024452 | R35: =AVERAGE(B35:Q35) -> 0.01901070945
A37: Abschreibungen | B37: 0.09876041794 | C37: 0.08167533056 | D37: 0.0928325119 | E37: 0.1854779965 | F37: 0.08873660761 | G37: 0.09746927452 | H37: 0.09352426916 | I37: 0.09296002894 | J37: 0.1031792585 | K37: 0.1067944672 | L37: 0.100759753 | M37: 0.1010808811 | N37: 0.1032481206 | O37: 0.1054079933 | P37: 0.1274415936 | Q37: 0.1272263013 | R37: =AVERAGE(B37:Q37) -> 0.1066609254
A39: Kalk. Eigenkapitalzinsen | B39: 0.3042410624 | C39: 0.3749300587 | D39: 0.2370430994 | E39: 0.1475307185 | F39: 0.2323960138 | G39: 0.2488110959 | H39: 0.2893681637 | I39: 0.2954397503 | J39: 0.2650333845 | K39: 0.2128119178 | L39: 0.307678489 | M39: 0.285732778 | N39: 0.2102660005 | O39: 0.2069676601 | P39: 0.1590094536 | Q39: 0.2165278451 | R39: =AVERAGE(B39:Q39) -> 0.2496117182
A41: Kalk. Gewerbesteuer | B41: 0.0416353894 | C41: 0.0510467275 | D41: 0.0321904529 | E41: 0.01998303582 | F41: 0.03172205589 | G41: 0.03413688236 | H41: 0.03980259092 | I41: 0.04084454548 | J41: 0.03682638878 | K41: 0.02971918432 | L41: 0.04307498845 | M41: 0.04020260186 | N41: 0.02958442626 | O41: 0.02919278846 | P41: 0.0222613235 | Q41: 0.03054125255 | R41: =AVERAGE(B41:Q41) -> 0.03454778965

Sheet 02_Deflatoren
A1: Deflatoren
C4: 2006 | D4: 2007 | E4: 2008 | F4: 2009 | G4: 2010 | H4: 2011 | I4: 2012 | J4: 2013 | K4: 2014 | L4: 2015 | M4: 2016 | N4: 2017 | O4: 2018 | P4: 2019 | Q4: 2020 | R4: 2021
A5: Umsatzerlöse | C5: =VLOOKUP(C4,'00_GuV'!$A$7:$AD$22,4,0) -> 9811733528 | D5: =VLOOKUP(D4,'00_GuV'!$A$7:$AD$22,4,0) -> 8933908039 | E5: =VLOOKUP(E4,'00_GuV'!$A$7:$AD$22,4,0) -> 9003339017 | F5: =VLOOKUP(F4,'00_GuV'!$A$7:$AD$22,4,0) -> 8773318733 | G5: =VLOOKUP(G4,'00_GuV'!$A$7:$AD$22,4,0) -> 9427507480 | H5: =VLOOKUP(H4,'00_GuV'!$A$7:$AD$22,4,0) -> 9071388462 | I5: =VLOOKUP(I4,'00_GuV'!$A$7:$AD$22,4,0) -> 9161036750 | J5: =VLOOKUP(J4,'00_GuV'!$A$7:$AD$22,4,0) -> 9433753555 | K5: =VLOOKUP(K4,'00_GuV'!$A$7:$AD$22,4,0) -> 8848438816 | L5: =VLOOKUP(L4,'00_GuV'!$A$7:$AD$22,4,0) -> 9209880466 | M5: =VLOOKUP(M4,'00_GuV'!$A$7:$AD$22,4,0) -> 9964066806 | N5: =VLOOKUP(N4,'00_GuV'!$A$7:$AD$22,4,0) -> 9627304728 | O5: =VLOOKUP(O4,'00_GuV'!$A$7:$AD$22,4,0) -> 9617457471 | P5: =VLOOKUP(P4,'00_GuV'!$A$7:$AD$22,4,0) -> 9868941086 | Q5: =VLOOKUP(Q4,'00_GuV'!$A$7:$AD$22,4,0) -> 9694761790 | R5: =VLOOKUP(R4,'00_GuV'!$A$7:$AD$22,4,0) -> 1.042161124e+10
A6: Umsatzerlöse (Preisbereinigt) | C6: =C5/C7*$Q$7 -> 1.167386377e+10 | D6: =D5/D7*$Q$7 -> 1.298655772e+10 | E6: 1.206041683e+10 | F6: 1.010367501e+10 | G6: 1.124776671e+10 | H6: 9848283192 | I6: 1.191072953e+10 | J6: 1.02159492e+10 | K6: 9822735685 | L6: 1.013910212e+10 | M6: 1.077669459e+10 | N6: 1.048482208e+10 | O6: 1.008546027e+10 | P6: 1.021251767e+10 | Q6: 9694761790 | R6: 1.063127679e+10
A7: Gewichtete Netzentgelte Gas inkl. Messung, Abrechnung, MSB in ct/kWh | C7: =(($B$9*C9)+($B$10*C10)+($B$11*C11)) -> 0.7245 | D7: =(($B$9*D9)+($B$10*D10)+($B$11*D11)) -> 0.593 | E7: 0.6435 | F7: 0.7485 | G7: 0.7225 | H7: 0.794 | I7: 0.663 | J7: 0.796 | K7: 0.7765 | L7: 0.783 | M7: 0.797 | N7: 0.7915 | O7: 0.822 | P7: 0.833 | Q7: 0.862 | R7: 0.845
B8: Gewichtung
A9: Netzentgelte Gas inkl. Messung, Abrechnung, MSB in ct/kWh [Haushaltskunde Band II; Monitoringbericht 2021] | B9: 0.3 | C9: 1.35 | D9: 1.2 | E9: 1.26 | F9: 1.41 | G9: 1.39 | H9: 1.42 | I9: 1.28 | J9: 1.39 | K9: 1.41 | L9: 1.4 | M9: 1.5 | N9: 1.5 | O9: 1.51 | P9: 1.56 | Q9: 1.56 | R9: 1.59
A10: Netzentgelte Gas inkl. Messung, Abrechnung, MSB in ct/kWh [Gewerbekunde; Monitoringbericht 2021] | B10: 0.15 | C10: 1.03 | D10: 0.93 | E10: 1 | F10: 1.18 | G10: 1.12 | H10: 1.06 | I10: 1.09 | J10: 1.17 | K10: 1.22 | L10: 1.21 | M10: 1.25 | N10: 1.25 | O10: 1.25 | P10: 1.26 | Q10: 1.27 | R10: 1.28
A11: Netzentgelte Gas inkl. Messung, Abrechnung, MSB in ct/kWh [Industriekunde; Monitoringbericht 2021] | B11: 0.55 | C11: 0.3 | D11: 0.17 | E11: 0.21 | F11: 0.27 | G11: 0.25 | H11: 0.38 | I11: 0.21 | J11: 0.37 | K11: 0.31 | L11: 0.33 | M11: 0.29 | N11: 0.28 | O11: 0.33 | P11: 0.32 | Q11: 0.37 | R11: 0.32
A12: Summe: | B12: =SUM(B9:B11) -> 1
A14: Bestandsveränderungen | C14: =VLOOKUP(C4,'00_GuV'!$A$7:$AD$22,6,0) -> 13935709.21 | D14: =VLOOKUP(D4,'00_GuV'!$A$7:$AD$22,6,0) -> 3728985.47 | E14: =VLOOKUP(E4,'00_GuV'!$A$7:$AD$22,6,0) -> 2446053.66 | F14: =VLOOKUP(F4,'00_GuV'!$A$7:$AD$22,6,0) -> 4244475.63 | G14: =VLOOKUP(G4,'00_GuV'!$A$7:$AD$22,6,0) -> 11996759.67 | H14: =VLOOKUP(H4,'00_GuV'!$A$7:$AD$22,6,0) -> 15193352.41 | I14: =VLOOKUP(I4,'00_GuV'!$A$7:$AD$22,6,0) -> 17051292.09 | J14: =VLOOKUP(J4,'00_GuV'!$A$7:$AD$22,6,0) -> -3135715.81 | K14: =VLOOKUP(K4,'00_GuV'!$A$7:$AD$22,6,0) -> 24153034.76 | L14: =VLOOKUP(L4,'00_GuV'!$A$7:$AD$22,6,0) -> 28690660.81 | M14: =VLOOKUP(M4,'00_GuV'!$A$7:$AD$22,6,0) -> -19123705.14 | N14: =VLOOKUP(N4,'00_GuV'!$A$7:$AD$22,6,0) -> 71812.76 | O14: =VLOOKUP(O4,'00_GuV'!$A$7:$AD$22,6,0) -> -7292958.22 | P14: =VLOOKUP(P4,'00_GuV'!$A$7:$AD$22,6,0) -> 11540108.99 | Q14: =VLOOKUP(Q4,'00_GuV'!$A$7:$AD$22,6,0) -> -2145154.17 | R14: =VLOOKUP(R4,'00_GuV'!$A$7:$AD$22,6,0) -> 6771900.75
A15: Bestandsveränderungen (Preisbereinigt) | C15: =C14/C16*$Q$16 -> 15584309.58 | D15: =D14/D16*$Q$16 -> 4077218.1 | E15: 2627456.955 | F15: 4670021.825 | G15: 12922235.43 | H15: 15830779.3 | I15: 17652370.8 | J15: -3254773.354 | K15: 25134770.71 | L15: 29986508.87 | M15: -20075670.02 | N15: 73489.63906 | O15: -7317059.652 | P15: 11515170.24 | Q15: -2145154.17 | R15: 6338694.029
A16: Index der Erzeugerpreise gewerblicher Produkte (Vorleistungsgüterproduzenten und Investitionsgüterproduzenten) | C16: =C25 -> 89.42140901 | D16: =D25 -> 91.45906298 | E16: 93.09586045 | F16: 90.88770437 | G16: 92.83811411 | H16: 95.97349643 | I16: 96.59491227 | J16: 96.34206345 | K16: 96.09411215 | L16: 95.67856309 | M16: =M25 -> 95.2581165 | N16: 97.71821024 | O16: 99.67061316 | P16: 100.216573 | Q16: 100 | R16: 106.8343214
A18: Aktivierte Eigenleistungen | C18: =VLOOKUP(C4,'00_GuV'!$A$7:$AD$22,7,0) -> 67409211.61 | D18: =VLOOKUP(D4,'00_GuV'!$A$7:$AD$22,7,0) -> 44213578.52 | E18: =VLOOKUP(E4,'00_GuV'!$A$7:$AD$22,7,0) -> 41796231.11 | F18: =VLOOKUP(F4,'00_GuV'!$A$7:$AD$22,7,0) -> 44859007.2 | G18: =VLOOKUP(G4,'00_GuV'!$A$7:$AD$22,7,0) -> 49609259.5 | H18: =VLOOKUP(H4,'00_GuV'!$A$7:$AD$22,7,0) -> 60448815.62 | I18: =VLOOKUP(I4,'00_GuV'!$A$7:$AD$22,7,0) -> 76321724.01 | J18: =VLOOKUP(J4,'00_GuV'!$A$7:$AD$22,7,0) -> 87368972.1 | K18: =VLOOKUP(K4,'00_GuV'!$A$7:$AD$22,7,0) -> 109782177.9 | L18: =VLOOKUP(L4,'00_GuV'!$A$7:$AD$22,7,0) -> 109961998.1 | M18: =VLOOKUP(M4,'00_GuV'!$A$7:$AD$22,7,0) -> 123802159 | N18: =VLOOKUP(N4,'00_GuV'!$A$7:$AD$22,7,0) -> 137332449.7 | O18: =VLOOKUP(O4,'00_GuV'!$A$7:$AD$22,7,0) -> 164331821.7 | P18: =VLOOKUP(P4,'00_GuV'!$A$7:$AD$22,7,0) -> 200848923.2 | Q18: =VLOOKUP(Q4,'00_GuV'!$A$7:$AD$22,7,0) -> 226485542.6 | R18: =VLOOKUP(R4,'00_GuV'!$A$7:$AD$22,7,0) -> 252489525.9
A19: Aktivierte Eigenleistungen (Preisbereinigt) | C19: =C18/C20*$Q$20 -> 81866163.92 | D19: =D18/D20*$Q$20 -> 60006227.42 | E19: 50525892.51 | F19: 54402074.1 | G19: 60212589.9 | H19: 72652814.37 | I19: 86533139.89 | J19: 101878192.9 | K19: 130909913.3 | L19: 123316931.5 | M19: 136134064.5 | N19: 150415573 | O19: 170600113.2 | P19: 203321485.6 | Q19: 226485542.6 | R19: 248823912.6
A20: Personalaufwand / tatsächlich geleistete Arbeitsstunden | C20: ='01_Inputpreisentwicklung_Netz'!C7 -> 40.94201361 | D20: ='01_Inputpreisentwicklung_Netz'!D7 -> 36.6364795 | E20: ='01_Inputpreisentwicklung_Netz'!E7 -> 41.13178143 | F20: ='01_Inputpreisentwicklung_Netz'!F7 -> 41.00044698 | G20: ='01_Inputpreisentwicklung_Netz'!G7 -> 40.96659119 | H20: ='01_Inputpreisentwicklung_Netz'!H7 -> 41.37040238 | I20: ='01_Inputpreisentwicklung_Netz'!I7 -> 43.85509949 | J20: ='01_Inputpreisentwicklung_Netz'!J7 -> 42.64129491 | K20: ='01_Inputpreisentwicklung_Netz'!K7 -> 41.6978534 | L20: ='01_Inputpreisentwicklung_Netz'!L7 -> 44.33781675 | M20: ='01_Inputpreisentwicklung_Netz'!M7 -> 45.21846321 | N20: ='01_Inputpreisentwicklung_Netz'!N7 -> 45.39779462 | O20: ='01_Inputpreisentwicklung_Netz'!O7 -> 47.89572439 | P20: ='01_Inputpreisentwicklung_Netz'!P7 -> 49.11799434 | Q20: ='01_Inputpreisentwicklung_Netz'!Q7 -> 49.72266427 | R20: ='01_Inputpreisentwicklung_Netz'!R7 -> 50.45516644
A22: Aufwendungen für RHB | C22: =VLOOKUP(C4,'00_GuV'!$A$7:$AD$22,8,0) -> 326237621.1 | D22: =VLOOKUP(D4,'00_GuV'!$A$7:$AD$22,8,0) -> 370091147 | E22: =VLOOKUP(E4,'00_GuV'!$A$7:$AD$22,8,0) -> 787644780.3 | F22: =VLOOKUP(F4,'00_GuV'!$A$7:$AD$22,8,0) -> 752062685.9 | G22: =VLOOKUP(G4,'00_GuV'!$A$7:$AD$22,8,0) -> 888207220.8 | H22: =VLOOKUP(H4,'00_GuV'!$A$7:$AD$22,8,0) -> 918811930.4 | I22: =VLOOKUP(I4,'00_GuV'!$A$7:$AD$22,8,0) -> 864079297.4 | J22: =VLOOKUP(J4,'00_GuV'!$A$7:$AD$22,8,0) -> 933413288 | K22: =VLOOKUP(K4,'00_GuV'!$A$7:$AD$22,8,0) -> 778234917.1 | L22: =VLOOKUP(L4,'00_GuV'!$A$7:$AD$22,8,0) -> 804718878.7 | M22: =VLOOKUP(M4,'00_GuV'!$A$7:$AD$22,8,0) -> 821144718.8 | N22: =VLOOKUP(N4,'00_GuV'!$A$7:$AD$22,8,0) -> 771424639.3 | O22: =VLOOKUP(O4,'00_GuV'!$A$7:$AD$22,8,0) -> 851432311.3 | P22: =VLOOKUP(P4,'00_GuV'!$A$7:$AD$22,8,0) -> 895124378 | Q22: =VLOOKUP(Q4,'00_GuV'!$A$7:$AD$22,8,0) -> 680480757 | R22: =VLOOKUP(R4,'00_GuV'!$A$7:$AD$22,8,0) -> 804603353.2
A23: Aufwendungen für RHB (Preisbereinigt) | C23: =C22/C27*$Q$27 -> 300259944.6 | D23: =D22/D27*$Q$27 -> 348629720.4 | E23: 643722202.9 | F23: 675966739.8 | G23: 839602813.7 | H23: 767747702.9 | I23: 672200279.4 | J23: 723571744.9 | K23: 626768704.1 | L23: 672371536.7 | M23: 752519487.9 | N23: 743596078.9 | O23: 794132702.7 | P23: 831826094.3 | Q23: 680480757 | R23: 666796701.3
B24: Gewichtung
A25: Index der Erzeugerpreise gewerblicher Produkte (Vorleistungsgüterproduzenten und Investitionsgüterproduzenten) | B25: 0.46 | C25: =TRANSPOSE('02_Erzeugerpreise'!H10:H25) -> 89.42140901 | D25: 91.45906298 | E25: 93.09586045 | F25: 90.88770437 | G25: 92.83811411 | H25: 95.97349643 | I25: 96.59491227 | J25: 96.34206345 | K25: 96.09411215 | L25: 95.67856309 | M25: 95.2581165 | N25: 97.71821024 | O25: 99.67061316 | P25: 100.216573 | Q25: 100 | R25: 106.8343214
A26: Index der Erzeugerpreise Erdgas, bei Abgabe an Wiederverkäufer | B26: 0.54 | C26: ='02_Erzeugerpreise_2'!C7 -> 125.0331126 | D26: ='02_Erzeugerpreise_2'!D7 -> 118.6754967 | E26: ='02_Erzeugerpreise_2'!E7 -> 147.2847682 | F26: ='02_Erzeugerpreise_2'!F7 -> 128.6092715 | G26: ='02_Erzeugerpreise_2'!G7 -> 116.8211921 | H26: ='02_Erzeugerpreise_2'!H7 -> 139.8675497 | I26: ='02_Erzeugerpreise_2'!I7 -> 155.7615894 | J26: ='02_Erzeugerpreise_2'!J7 -> 156.8211921 | K26: ='02_Erzeugerpreise_2'!K7 -> 148.0794702 | L26: ='02_Erzeugerpreise_2'!L7 -> 140.1324503 | M26: ='02_Erzeugerpreise_2'!M7 -> 120.9271523 | N26: ='02_Erzeugerpreise_2'!N7 -> 108.8741722 | O26: ='02_Erzeugerpreise_2'!O7 -> 113.6423841 | P26: ='02_Erzeugerpreise_2'!P7 -> 113.9072848 | Q26: ='02_Erzeugerpreise_2'!Q7 -> 100 | R26: ='02_Erzeugerpreise_2'!R7 -> 132.4503311
A27: Gesamtindex | C27: =$B$25*C25+$B$26*C26 -> 108.6517289 | D27: =$B$25*D25+$B$26*D26 -> 106.1559372 | E27: 122.3578706 | F27: 111.2573506 | G27: 105.7889762 | H27: 119.6762852 | I27: 128.5449179 | J27: 129.0007929 | K27: 124.1662055 | L27: 119.6836622 | M27: 109.1193958 | N27: 103.7424297 | O27: 107.2153695 | P27: 107.6095573 | Q27: 100 | R27: =$B$25*R25+$B$26*R26 -> 120.6669666
A29: Aufwendungen für bezogene Leistungen | C29: =VLOOKUP(C4,'00_GuV'!$A$7:$AD$22,11,0) -> 2947073723 | D29: =VLOOKUP(D4,'00_GuV'!$A$7:$AD$22,11,0) -> 2293364176 | E29: =VLOOKUP(E4,'00_GuV'!$A$7:$AD$22,11,0) -> 2474934237 | F29: =VLOOKUP(F4,'00_GuV'!$A$7:$AD$22,11,0) -> 2592882621 | G29: =VLOOKUP(G4,'00_GuV'!$A$7:$AD$22,11,0) -> 2869336812 | H29: =VLOOKUP(H4,'00_GuV'!$A$7:$AD$22,11,0) -> 2374915023 | I29: =VLOOKUP(I4,'00_GuV'!$A$7:$AD$22,11,0) -> 2077559983 | J29: =VLOOKUP(J4,'00_GuV'!$A$7:$AD$22,11,0) -> 1916848498 | K29: =VLOOKUP(K4,'00_GuV'!$A$7:$AD$22,11,0) -> 1978277026 | L29: =VLOOKUP(L4,'00_GuV'!$A$7:$AD$22,11,0) -> 2238063080 | M29: =VLOOKUP(M4,'00_GuV'!$A$7:$AD$22,11,0) -> 2067586364 | N29: =VLOOKUP(N4,'00_GuV'!$A$7:$AD$22,11,0) -> 2146520779 | O29: =VLOOKUP(O4,'00_GuV'!$A$7:$AD$22,11,0) -> 2500213710 | P29: =VLOOKUP(P4,'00_GuV'!$A$7:$AD$22,11,0) -> 2575669722 | Q29: =VLOOKUP(Q4,'00_GuV'!$A$7:$AD$22,11,0) -> 2633729376 | R29: =VLOOKUP(R4,'00_GuV'!$A$7:$AD$22,11,0) -> 2389195261
A30: Aufwendungen für bezogene Leistungen (Preisbereinigt) | C30: =C29/C34*$Q$34 -> 3862744250 | D30: =D29/D34*$Q$34 -> 3008397783 | E30: 3083227852 | F30: 3216023621 | G30: 3563047785 | H30: 2817522766 | I30: 2364384887 | J30: 2163691120 | K30: 2201997994 | L30: 2450230818 | M30: 2256024217 | N30: 2308391419 | O30: 2605711173 | P30: 2611319511 | Q30: 2633729376 | R30: 2300907434
B31: Gewichtung
A32: Arbeitskostenindex Produzierendes Gewerbe und Dienstleistungsbereich | B32: 0.92 | C32: =GEOMEAN('02_Arbeitskostenindizes'!D7:D10)/GEOMEAN('02_Arbeitskostenindizes'!$D$63:$D$66)*100 -> 72.05670623 | D32: =GEOMEAN('02_Arbeitskostenindizes'!D11:D14)/GEOMEAN('02_Arbeitskostenindizes'!$D$63:$D$66)*100 -> 72.54134708 | E32: =GEOMEAN('02_Arbeitskostenindizes'!D15:D18)/GEOMEAN('02_Arbeitskostenindizes'!$D$63:$D$66)*100 -> 74.44358918 | F32: =GEOMEAN('02_Arbeitskostenindizes'!D19:D22)/GEOMEAN('02_Arbeitskostenindizes'!$D$63:$D$66)*100 -> 76.45122361 | G32: =GEOMEAN('02_Arbeitskostenindizes'!D23:D26)/GEOMEAN('02_Arbeitskostenindizes'!$D$63:$D$66)*100 -> 77.37468441 | H32: =GEOMEAN('02_Arbeitskostenindizes'!D27:D30)/GEOMEAN('02_Arbeitskostenindizes'!$D$63:$D$66)*100 -> 79.45813728 | I32: =GEOMEAN('02_Arbeitskostenindizes'!D31:D34)/GEOMEAN('02_Arbeitskostenindizes'!$D$63:$D$66)*100 -> 81.96523343 | J32: =GEOMEAN('02_Arbeitskostenindizes'!D35:D38)/GEOMEAN('02_Arbeitskostenindizes'!$D$63:$D$66)*100 -> 82.65858773 | K32: =GEOMEAN('02_Arbeitskostenindizes'!D39:D42)/GEOMEAN('02_Arbeitskostenindizes'!$D$63:$D$66)*100 -> 84.77579837 | L32: =GEOMEAN('02_Arbeitskostenindizes'!D43:D46)/GEOMEAN('02_Arbeitskostenindizes'!$D$63:$D$66)*100 -> 87.09816531 | M32: =GEOMEAN('02_Arbeitskostenindizes'!D47:D50)/GEOMEAN('02_Arbeitskostenindizes'!$D$63:$D$66)*100 -> 89.10127805 | N32: =GEOMEAN('02_Arbeitskostenindizes'!D51:D54)/GEOMEAN('02_Arbeitskostenindizes'!$D$63:$D$66)*100 -> 91.60630017 | O32: =GEOMEAN('02_Arbeitskostenindizes'!D55:D58)/GEOMEAN('02_Arbeitskostenindizes'!$D$63:$D$66)*100 -> 94.41294341 | P32: =GEOMEAN('02_Arbeitskostenindizes'!D59:D62)/GEOMEAN('02_Arbeitskostenindizes'!$D$63:$D$66)*100 -> 97.30675556 | Q32: =GEOMEAN('02_Arbeitskostenindizes'!D63:D66)/GEOMEAN('02_Arbeitskostenindizes'!$D$63:$D$66)*100 -> 100 | R32: =GEOMEAN('02_Arbeitskostenindizes'!D67:D70)/GEOMEAN('02_Arbeitskostenindizes'!$D$63:$D$66)*100 -> 101.3489792
A33: Index der Erzeugerpreise Erdgas, bei Abgabe an Wiederverkäufer | B33: 0.08 | C33: =C26 -> 125.0331126 | D33: 118.6754967 | E33: 147.2847682 | F33: 128.6092715 | G33: 116.8211921 | H33: 139.8675497 | I33: 155.7615894 | J33: 156.8211921 | K33: 148.0794702 | L33: 140.1324503 | M33: 120.9271523 | N33: 108.8741722 | O33: 113.6423841 | P33: 113.9072848 | Q33: 100 | R33: 132.4503311
A34: Gesamtindex | C34: =C32*$B$32+C33*$B$33 -> 76.29481874 | D34: =D32*$B$32+D33*$B$33 -> 76.23207905 | E34: 80.2708835 | F34: 80.62386744 | G34: 80.53040502 | H34: 84.29089027 | I34: 87.86894191 | J34: 88.59159607 | K34: 89.84009212 | L34: 91.34090811 | M34: 91.64734799 | N34: 92.98772994 | O34: 95.95129867 | P34: 98.6347979 | Q34: 100 | R34: 103.8370873
A36: Sonstige betriebliche Aufwendungen | C36: =VLOOKUP(C4,'00_GuV'!$A$7:$AD$22,14,0) -> 1301271239 | D36: =VLOOKUP(D4,'00_GuV'!$A$7:$AD$22,14,0) -> 1193339081 | E36: =VLOOKUP(E4,'00_GuV'!$A$7:$AD$22,14,0) -> 1765090539 | F36: =VLOOKUP(F4,'00_GuV'!$A$7:$AD$22,14,0) -> 1584860433 | G36: =VLOOKUP(G4,'00_GuV'!$A$7:$AD$22,14,0) -> 1537701502 | H36: =VLOOKUP(H4,'00_GuV'!$A$7:$AD$22,14,0) -> 1450379079 | I36: =VLOOKUP(I4,'00_GuV'!$A$7:$AD$22,14,0) -> 1385640333 | J36: =VLOOKUP(J4,'00_GuV'!$A$7:$AD$22,14,0) -> 1413208635 | K36: =VLOOKUP(K4,'00_GuV'!$A$7:$AD$22,14,0) -> 1327882416 | L36: =VLOOKUP(L4,'00_GuV'!$A$7:$AD$22,14,0) -> 1487036931 | M36: =VLOOKUP(M4,'00_GuV'!$A$7:$AD$22,14,0) -> 1290624136 | N36: =VLOOKUP(N4,'00_GuV'!$A$7:$AD$22,14,0) -> 1238435294 | O36: =VLOOKUP(O4,'00_GuV'!$A$7:$AD$22,14,0) -> 1262088409 | P36: =VLOOKUP(P4,'00_GuV'!$A$7:$AD$22,14,0) -> 1354096106 | Q36: =VLOOKUP(Q4,'00_GuV'!$A$7:$AD$22,14,0) -> 1423469824 | R36: =VLOOKUP(R4,'00_GuV'!$A$7:$AD$22,14,0) -> 1434245411
A37: Sonstige betriebliche Aufwendungen (Preisbereinigt) | C37: =C36/C38*$Q$38 -> 1559886085 | D37: =D36/D38*$Q$38 -> 1419341850 | E37: 2072347322 | F37: 1836656909 | G37: 1768411874 | H37: 1649210104 | I37: 1555864645 | J37: 1561669175 | K37: 1445891907 | L37: 1599634861 | M37: 1368412923 | N37: 1294205345 | O37: 1298775811 | P37: 1371125800 | Q37: 1423469824 | R37: 1412096626
A38: Mischindex | C38: ='02_Index_Betr_Aufwendungen'!E3 -> 83.42091459 | D38: ='02_Index_Betr_Aufwendungen'!F3 -> 84.07693194 | E38: ='02_Index_Betr_Aufwendungen'!G3 -> 85.17349001 | F38: ='02_Index_Betr_Aufwendungen'!H3 -> 86.29050018 | G38: ='02_Index_Betr_Aufwendungen'!I3 -> 86.95381007 | H38: ='02_Index_Betr_Aufwendungen'!J3 -> 87.94386331 | I38: ='02_Index_Betr_Aufwendungen'!K3 -> 89.05918247 | J38: ='02_Index_Betr_Aufwendungen'!L3 -> 90.49347057 | K38: ='02_Index_Betr_Aufwendungen'!M3 -> 91.83829094 | L38: ='02_Index_Betr_Aufwendungen'!N3 -> 92.96102302 | M38: ='02_Index_Betr_Aufwendungen'!O3 -> 94.31540103 | N38: ='02_Index_Betr_Aufwendungen'!P3 -> 95.69078805 | O38: ='02_Index_Betr_Aufwendungen'!Q3 -> 97.17523217 | P38: ='02_Index_Betr_Aufwendungen'!R3 -> 98.75797731 | Q38: ='02_Index_Betr_Aufwendungen'!S3 -> 100 | R38: ='02_Index_Betr_Aufwendungen'!T3 -> 101.5685035

Sheet 02_Arbeitskostenindizes
A1: Arbeitskostenindizes: Deutschland, Quartale, Wirtschaftsbereiche, Original- und bereinigte Daten
A2: Arbeitskostenindex
A3: Deutschland
A4: Index der Arbeitskosten je geleistete Stunde (2020=100)
A5: Original- und bereinigte Daten Jahr Quartale | D5: WZ2008 (Wirtschaftsbereiche)
D6: WZ08-B-08 Produzierendes Gewerbe und Dienstleistungsbereich
A7: BV4.1 kalender- und saisonbereinigt | B7: 2006 | C7: 1. Quartal | D7: 72.099 | E7: e
C8: 2. Quartal | D8: 71.834 | E8: e
C9: 3. Quartal | D9: 72.132 | E9: e
C10: 4. Quartal | D10: 72.161 | E10: e
B11: 2007 | C11: 1. Quartal | D11: 71.982 | E11: e
C12: 2. Quartal | D12: 72.479 | E12: e
C13: 3. Quartal | D13: 72.686 | E13: e
C14: 4. Quartal | D14: 73.021 | E14: e
B15: 2008 | C15: 1. Quartal | D15: 73.622 | E15: e
C16: 2. Quartal | D16: 73.846 | E16: e
C17: 3. Quartal | D17: 74.602 | E17: e
C18: 4. Quartal | D18: 75.721 | E18: e
B19: 2009 | C19: 1. Quartal | D19: 76.07 | E19: e
C20: 2. Quartal | D20: 76.514 | E20: e
C21: 3. Quartal | D21: 76.725 | E21: e
C22: 4. Quartal | D22: 76.496 | E22: e
B23: 2010 | C23: 1. Quartal | D23: 77.01 | E23: e
C24: 2. Quartal | D24: 77 | E24: e
C25: 3. Quartal | D25: 77.452 | E25: e
C26: 4. Quartal | D26: 78.04 | E26: e
B27: 2011 | C27: 1. Quartal | D27: 78.846 | E27: e
C28: 2. Quartal | D28: 79.239 | E28: e
C29: 3. Quartal | D29: 79.832 | E29: e
C30: 4. Quartal | D30: 79.919 | E30: e
B31: 2012 | C31: 1. Quartal | D31: 80.672 | E31: e
C32: 2. Quartal | D32: 81.902 | E32: e
C33: 3. Quartal | D33: 82.197 | E33: e
C34: 4. Quartal | D34: 83.107 | E34: e
B35: 2013 | C35: 1. Quartal | D35: 82.487 | E35: e
C36: 2. Quartal | D36: 82.442 | E36: e
C37: 3. Quartal | D37: 82.535 | E37: e
C38: 4. Quartal | D38: 83.171 | E38: e
B39: 2014 | C39: 1. Quartal | D39: 83.84 | E39: e
C40: 2. Quartal | D40: 84.434 | E40: e
C41: 3. Quartal | D41: 85.197 | E41: e
C42: 4. Quartal | D42: 85.642 | E42: e
B43: 2015 | C43: 1. Quartal | D43: 86.118 | E43: e
C44: 2. Quartal | D44: 87.142 | E44: e
C45: 3. Quartal | D45: 87.306 | E45: e
C46: 4. Quartal | D46: 87.834 | E46: e
B47: 2016 | C47: 1. Quartal | D47: 88.527 | E47: e
C48: 2. Quartal | D48: 88.293 | E48: e
C49: 3. Quartal | D49: 89.578 | E49: e
C50: 4. Quartal | D50: 90.017 | E50: e
B51: 2017 | C51: 1. Quartal | D51: 90.606 | E51: e
C52: 2. Quartal | D52: 91.527 | E52: e
C53: 3. Quartal | D53: 91.652 | E53: e
C54: 4. Quartal | D54: 92.65 | E54: e
B55: 2018 | C55: 1. Quartal | D55: 93.605 | E55: e
C56: 2. Quartal | D56: 93.777 | E56: e
C57: 3. Quartal | D57: 94.876 | E57: e
C58: 4. Quartal | D58: 95.404 | E58: e
B59: 2019 | C59: 1. Quartal | D59: 95.916 | E59: e
C60: 2. Quartal | D60: 97.568 | E60: e
C61: 3. Quartal | D61: 97.253 | E61: e
C62: 4. Quartal | D62: 98.506 | E62: e
B63: 2020 | C63: 1. Quartal | D63: 99.73 | E63: e
C64: 2. Quartal | D64: 100.038 | E64: e
C65: 3. Quartal | D65: 100.476 | E65: e
C66: 4. Quartal | D66: 99.756 | E66: e
B67: 2021 | C67: 1. Quartal | D67: 99.605 | E67: e
C68: 2. Quartal | D68: 100.148 | E68: e
C69: 3. Quartal | D69: 102.564 | E69: e
C70: 4. Quartal | D70: 103.122 | E70: e
A71: ______________
A72: 1. Quartal 2022:
A73: Bei dem Methodenwechsel (bedingt durch die Umstellung der
A74: Datenbasis für die Verdienstentwicklung) zum 1. Quartal
A75: 2022 ist ein Einfluss auf den Ergebnisausweis nicht
A76: auszuschließen und kann zu einem gewissen methodenbedingten
A77: Bruch in der Zeitreihe führen.
A78: © Statistisches Bundesamt (Destatis), 2025 | Stand: 12.02.2025 / 11:18:15

Sheet 02_Zinsreihen
A1: Jahr | B1: Umlaufsrenditen inländischer Inhaberschuldverschreibungen / Anleihen der öffentlichen Hand | C1: Umlaufsrenditen inländischer Inhaberschuldverschreibungen / Anleihen von Unternehmen (Nicht-MFIs) | D1: Umlaufsrenditen inländischer Inhaberschuldverschreibungen / Hypothekenpfandbriefe / Monatsdurchschnitte
A2: 2006 | B2: 3.7 | C2: 4.2 | D2: 3.8
A3: 2007 | B3: 4.3 | C3: 5 | D3: 4.4
A4: 2008 | B4: 4 | C4: 6.3 | D4: 4.5
A5: 2009 | B5: 3.1 | C5: 5.5 | D5: 3.3
A6: 2010 | B6: 2.4 | C6: 4 | D6: 2.5
A7: 2011 | B7: 2.4 | C7: 4.3 | D7: 2.7
A8: 2012 | B8: 1.3 | C8: 3.7 | D8: 1.4
A9: 2013 | B9: 1.3 | C9: 3.4 | D9: 1.3
A10: 2014 | B10: 1 | C10: 3 | D10: 0.9
A11: 2015 | B11: 0.4 | C11: 2.4 | D11: 0.4
A12: 2016 | B12: 0 | C12: 2.1 | D12: 0.2
A13: 2017 | B13: 0.2 | C13: 1.7 | D13: 0.3
A14: 2018 | B14: 0.3 | C14: 2.5 | D14: 0.4
A15: 2019 | B15: -0.2 | C15: 2.5 | D15: 0
A16: 2020 | B16: -0.4 | C16: 1.7 | D16: -0.2
A17: 2021 | B17: -0.3 | C17: 0.9 | D17: -0.2
B19: Für alle Reihen: Am 08.02.2025 von der Bundesbank geladen
B20: BBSIS.A.I.UMR.RD.EUR.S13.B.A.A.R.A.A._Z._Z.A | C20: BBSIS.A.I.UMR.RD.EUR.X2000.B.A.A.R.A.A._Z._Z.A | D20: BBSIS.A.I.UMR.RD.EUR.MFISX.B.X100.A.R.A.A._Z._Z.A

Sheet 02_Anlagevermögen
A1: Sachanlagevermögen | U1: Alternative Berechnung des Sachanlagevermögens (informatorisch)
D2: Tagesneuwerte (100 % der AK/HK) zum Jahr 2020 Abschreibungen werden nicht berücksichtigt.
C5: Menge | D5: =SUM(D9:D996950) -> 1.083655267e+11 | E5: 1.053369713e+11 | F5: 1.059015069e+11 | G5: 1.072895416e+11 | H5: 1.127737338e+11 | I5: 1.150545869e+11 | J5: 1.166140251e+11 | K5: 1.183090197e+11 | L5: 1.203143947e+11 | M5: 1.23254075e+11 | N5: 1.247850367e+11 | O5: 1.266829801e+11 | P5: 1.289580245e+11 | Q5: 1.318993856e+11 | R5: 1.344056663e+11 | S5: 1.375127278e+11 | U5: =SUM(U9:U996950) -> 7.928010008e+10 | V5: 8.003114019e+10 | W5: 8.358222468e+10 | X5: 8.440288801e+10 | Y5: 8.887557911e+10 | Z5: 9.355347147e+10 | AA5: 9.692629429e+10 | AB5: 9.917141361e+10 | AC5: 1.018809544e+11 | AD5: 1.054559792e+11 | AE5: 1.075114831e+11 | AF5: 1.13397389e+11 | AG5: 1.217207025e+11 | AH5: 1.300064734e+11 | AI5: 1.344070574e+11 | AJ5: 1.456247016e+11
C6: Geschäftsjahr | D6: Ende 2006 | E6: Ende 2007 | F6: Ende 2008 | G6: Ende 2009 | H6: Ende 2010 | I6: Ende 2011 | J6: Ende 2012 | K6: Ende 2013 | L6: Ende 2014 | M6: Ende 2015 | N6: Ende 2016 | O6: Ende 2017 | P6: Ende 2018 | Q6: Ende 2019 | R6: Ende 2020 | S6: Ende 2021 | U6: Ende 2006 | V6: Ende 2007 | W6: Ende 2008 | X6: Ende 2009 | Y6: Ende 2010 | Z6: Ende 2011 | AA6: Ende 2012 | AB6: Ende 2013 | AC6: Ende 2014 | AD6: Ende 2015 | AE6: Ende 2016 | AF6: Ende 2017 | AG6: Ende 2018 | AH6: Ende 2019 | AI6: Ende 2020 | AJ6: Ende 2021
D7: Tagensneuwert zum Jahr… | U7: Tagensneuwert zum Jahr…
A8: Nr. | B8: Jahr | C8: NB/VP | D8: 2020 | E8: 2020 | F8: 2020 | G8: 2020 | H8: 2020 | I8: 2020 | J8: 2020 | K8: 2020 | L8: 2020 | M8: 2020 | N8: 2020 | O8: 2020 | P8: 2020 | Q8: 2020 | R8: 2020 | S8: 2020 | U8: 2006 | V8: 2007 | W8: 2008 | X8: 2009 | Y8: 2010 | Z8: 2011 | AA8: 2012 | AB8: 2013 | AC8: 2014 | AD8: 2015 | AE8: 2016 | AF8: 2017 | AG8: 2018 | AH8: 2019 | AI8: 2020 | AJ8: 2021
A9: 1 | B9: 1930 | C9: NB | D9: ='00_SAV'!E5 -> 331088.3 | E9: ='00_SAV'!F5 -> 331088.42 | F9: ='00_SAV'!G5 -> 331088.42 | G9: ='00_SAV'!H5 -> 323548.42 | H9: ='00_SAV'!I5 -> 305003.54 | I9: ='00_SAV'!J5 -> 297671.54 | J9: ='00_SAV'!K5 -> 296577.83 | K9: ='00_SAV'!L5 -> 296577.83 | L9: ='00_SAV'!M5 -> 292691.54 | M9: ='00_SAV'!N5 -> 303485.51 | N9: ='00_SAV'!O5 -> 290705.16 | O9: ='00_SAV'!P5 -> 260016.5 | P9: ='00_SAV'!Q5 -> 282593.9 | Q9: ='00_SAV'!R5 -> 283006.22 | R9: ='00_SAV'!S5 -> 291391.88 | S9: ='00_SAV'!T5 -> 290651.98 | U9: =D9 -> 331088.3 | V9: =E9 -> 331088.42 | W9: 331088.42 | X9: 323548.42 | Y9: 305003.54 | Z9: 297671.54 | AA9: 296577.83 | AB9: 296577.83 | AC9: 292691.54 | AD9: 303485.51 | AE9: 290705.16 | AF9: 260016.5 | AG9: 282593.9 | AH9: 283006.22 | AI9: 291391.88 | AJ9: 290651.98
A10: 1 | B10: 1931 | C10: NB | D10: ='00_SAV'!E6 -> 34490.29 | E10: ='00_SAV'!F6 -> 34490.74 | F10: ='00_SAV'!G6 -> 34490.74 | G10: ='00_SAV'!H6 -> 34490.74 | H10: ='00_SAV'!I6 -> 34490.74 | I10: ='00_SAV'!J6 -> 34490.74 | J10: ='00_SAV'!K6 -> 34490.74 | K10: ='00_SAV'!L6 -> 34490.74 | L10: ='00_SAV'!M6 -> 34490.74 | M10: ='00_SAV'!N6 -> 34490.74 | N10: ='00_SAV'!O6 -> 34490.74 | O10: ='00_SAV'!P6 -> 34490.74 | P10: ='00_SAV'!Q6 -> 34490.74 | Q10: ='00_SAV'!R6 -> 34490.74 | R10: ='00_SAV'!S6 -> 34490.74 | S10: ='00_SAV'!T6 -> 34490.74 | U10: =D10 -> 34490.29 | V10: 34490.74 | W10: 34490.74 | X10: 34490.74 | Y10: 34490.74 | Z10: 34490.74 | AA10: 34490.74 | AB10: 34490.74 | AC10: 34490.74 | AD10: 34490.74 | AE10: 34490.74 | AF10: 34490.74 | AG10: 34490.74 | AH10: 34490.74 | AI10: 34490.74 | AJ10: 34490.74
A11: 1 | B11: 1932 | C11: NB | D11: ='00_SAV'!E7 -> 159.52 | E11: ='00_SAV'!F7 -> 159.52 | F11: ='00_SAV'!G7 -> 159.52 | G11: ='00_SAV'!H7 -> 159.52 | H11: ='00_SAV'!I7 -> 159.52 | I11: ='00_SAV'!J7 -> 159.52 | J11: ='00_SAV'!K7 -> 159.52 | K11: ='00_SAV'!L7 -> 159.52 | L11: ='00_SAV'!M7 -> 159.52 | M11: ='00_SAV'!N7 -> 159.52 | N11: ='00_SAV'!O7 -> 159.52 | O11: ='00_SAV'!P7 -> 159.52 | P11: ='00_SAV'!Q7 -> 159.52 | Q11: ='00_SAV'!R7 -> 159.52 | R11: ='00_SAV'!S7 -> 159.52 | S11: ='00_SAV'!T7 -> 159.52 | U11: 159.52 | V11: 159.52 | W11: 159.52 | X11: 159.52 | Y11: 159.52 | Z11: 159.52 | AA11: 159.52 | AB11: 159.52 | AC11: 159.52 | AD11: 159.52 | AE11: 159.52 | AF11: 159.52 | AG11: 159.52 | AH11: 159.52 | AI11: 159.52 | AJ11: 159.52
A12: 1 | B12: 1933 | C12: NB | D12: ='00_SAV'!E8 -> 0 | E12: ='00_SAV'!F8 -> 0 | F12: ='00_SAV'!G8 -> 0 | G12: ='00_SAV'!H8 -> 0 | H12: ='00_SAV'!I8 -> 0 | I12: ='00_SAV'!J8 -> 0 | J12: ='00_SAV'!K8 -> 0 | K12: ='00_SAV'!L8 -> 0 | L12: ='00_SAV'!M8 -> 0 | M12: ='00_SAV'!N8 -> 0 | N12: ='00_SAV'!O8 -> 0 | O12: ='00_SAV'!P8 -> 0 | P12: ='00_SAV'!Q8 -> 0 | Q12: ='00_SAV'!R8 -> 0 | R12: ='00_SAV'!S8 -> 0 | S12: ='00_SAV'!T8 -> 0 | U12: 0 | V12: 0 | W12: 0 | X12: 0 | Y12: 0 | Z12: 0 | AA12: 0 | AB12: 0 | AC12: 0 | AD12: 0 | AE12: 0 | AF12: 0 | AG12: 0 | AH12: 0 | AI12: 0 | AJ12: 0
A13: 1 | B13: 1934 | C13: NB | D13: ='00_SAV'!E9 -> 1627.36 | E13: ='00_SAV'!F9 -> 1627.48 | F13: ='00_SAV'!G9 -> 1627.48 | G13: ='00_SAV'!H9 -> 1627.48 | H13: ='00_SAV'!I9 -> 1627.48 | I13: ='00_SAV'!J9 -> 1627.48 | J13: ='00_SAV'!K9 -> 1627.48 | K13: ='00_SAV'!L9 -> 1627.48 | L13: ='00_SAV'!M9 -> 1627.48 | M13: ='00_SAV'!N9 -> 1627.48 | N13: ='00_SAV'!O9 -> 1627.48 | O13: ='00_SAV'!P9 -> 1627.48 | P13: ='00_SAV'!Q9 -> 1627.48 | Q13: ='00_SAV'!R9 -> 1627.48 | R13: ='00_SAV'!S9 -> 1627.48 | S13: ='00_SAV'!T9 -> 1627.48 | U13: 1627.36 | V13: 1627.48 | W13: 1627.48 | X13: 1627.48 | Y13: 1627.48 | Z13: 1627.48 | AA13: 1627.48 | AB13: 1627.48 | AC13: 1627.48 | AD13: 1627.48 | AE13: 1627.48 | AF13: 1627.48 | AG13: 1627.48 | AH13: 1627.48 | AI13: 1627.48 | AJ13: 1627.48
A14: 1 | B14: 1935 | C14: NB | D14: ='00_SAV'!E10 -> 3295.7 | E14: ='00_SAV'!F10 -> 2151.94 | F14: ='00_SAV'!G10 -> 2151.94 | G14: ='00_SAV'!H10 -> 2151.94 | H14: ='00_SAV'!I10 -> 2151.94 | I14: ='00_SAV'!J10 -> 2151.94 | J14: ='00_SAV'!K10 -> 2151.94 | K14: ='00_SAV'!L10 -> 2151.94 | L14: ='00_SAV'!M10 -> 2151.94 | M14: ='00_SAV'!N10 -> 2151.94 | N14: ='00_SAV'!O10 -> 2151.94 | O14: ='00_SAV'!P10 -> 2151.94 | P14: ='00_SAV'!Q10 -> 2151.94 | Q14: ='00_SAV'!R10 -> 2151.94 | R14: ='00_SAV'!S10 -> 2151.94 | S14: ='00_SAV'!T10 -> 2151.94 | U14: 3295.7 | V14: 2151.94 | W14: 2151.94 | X14: 2151.94 | Y14: 2151.94 | Z14: 2151.94 | AA14: 2151.94 | AB14: 2151.94 | AC14: 2151.94 | AD14: 2151.94 | AE14: 2151.94 | AF14: 2151.94 | AG14: 2151.94 | AH14: 2151.94 | AI14: 2151.94 | AJ14: 2151.94
A15: 1 | B15: 1936 | C15: NB | D15: ='00_SAV'!E11 -> 0 | E15: ='00_SAV'!F11 -> 0 | F15: ='00_SAV'!G11 -> 0 | G15: ='00_SAV'!H11 -> 0 | H15: ='00_SAV'!I11 -> 0 | I15: ='00_SAV'!J11 -> 0 | J15: ='00_SAV'!K11 -> 0 | K15: ='00_SAV'!L11 -> 0 | L15: ='00_SAV'!M11 -> 0 | M15: ='00_SAV'!N11 -> 0 | N15: ='00_SAV'!O11 -> 0 | O15: ='00_SAV'!P11 -> 0 | P15: ='00_SAV'!Q11 -> 0 | Q15: ='00_SAV'!R11 -> 0 | R15: ='00_SAV'!S11 -> 0 | S15: ='00_SAV'!T11 -> 0 | U15: 0 | V15: 0 | W15: 0 | X15: 0 | Y15: 0 | Z15: 0 | AA15: 0 | AB15: 0 | AC15: 0 | AD15: 0 | AE15: 0 | AF15: 0 | AG15: 0 | AH15: 0 | AI15: 0 | AJ15: 0
A16: 1 | B16: 1937 | C16: NB | D16: ='00_SAV'!E12 -> 103152.25 | E16: ='00_SAV'!F12 -> 103152.12 | F16: ='00_SAV'!G12 -> 102427.36 | G16: ='00_SAV'!H12 -> 104601.64 | H16: ='00_SAV'!I12 -> 103876.88 | I16: ='00_SAV'!J12 -> 125534.24 | J16: ='00_SAV'!K12 -> 116439.56 | K16: ='00_SAV'!L12 -> 115729.58 | L16: ='00_SAV'!M12 -> 115729.58 | M16: ='00_SAV'!N12 -> 115729.58 | N16: ='00_SAV'!O12 -> 113118.95 | O16: ='00_SAV'!P12 -> 113118.95 | P16: ='00_SAV'!Q12 -> 113118.95 | Q16: ='00_SAV'!R12 -> 113118.95 | R16: ='00_SAV'!S12 -> 113118.95 | S16: ='00_SAV'!T12 -> 113118.95 | U16: 103152.25 | V16: 103152.12 | W16: 102427.36 | X16: 104601.64 | Y16: 103876.88 | Z16: 125534.24 | AA16: 116439.56 | AB16: 115729.58 | AC16: 115729.58 | AD16: 115729.58 | AE16: 113118.95 | AF16: 113118.95 | AG16: 113118.95 | AH16: 113118.95 | AI16: 113118.95 | AJ16: 113118.95
A17: 1 | B17: 1938 | C17: NB | D17: ='00_SAV'!E13 -> 54734.73 | E17: ='00_SAV'!F13 -> 54734.95 | F17: ='00_SAV'!G13 -> 54734.95 | G17: ='00_SAV'!H13 -> 54734.95 | H17: ='00_SAV'!I13 -> 54734.95 | I17: ='00_SAV'!J13 -> 54734.95 | J17: ='00_SAV'!K13 -> 54734.95 | K17: ='00_SAV'!L13 -> 54734.95 | L17: ='00_SAV'!M13 -> 54734.95 | M17: ='00_SAV'!N13 -> 54734.95 | N17: ='00_SAV'!O13 -> 54734.95 | O17: ='00_SAV'!P13 -> 54734.95 | P17: ='00_SAV'!Q13 -> 54734.95 | Q17: ='00_SAV'!R13 -> 54734.95 | R17: ='00_SAV'!S13 -> 54734.95 | S17: ='00_SAV'!T13 -> 54734.95 | U17: 54734.73 | V17: 54734.95 | W17: 54734.95 | X17: 54734.95 | Y17: 54734.95 | Z17: 54734.95 | AA17: 54734.95 | AB17: 54734.95 | AC17: 54734.95 | AD17: 54734.95 | AE17: 54734.95 | AF17: 54734.95 | AG17: 54734.95 | AH17: 54734.95 | AI17: 54734.95 | AJ17: 54734.95
A18: 1 | B18: 1939 | C18: NB | D18: ='00_SAV'!E14 -> 19710.57 | E18: ='00_SAV'!F14 -> 19710.81 | F18: ='00_SAV'!G14 -> 19710.81 | G18: ='00_SAV'!H14 -> 19710.81 | H18: ='00_SAV'!I14 -> 19710.81 | I18: ='00_SAV'!J14 -> 19710.81 | J18: ='00_SAV'!K14 -> 19710.81 | K18: ='00_SAV'!L14 -> 19710.81 | L18: ='00_SAV'!M14 -> 19710.81 | M18: ='00_SAV'!N14 -> 19710.81 | N18: ='00_SAV'!O14 -> 19710.81 | O18: ='00_SAV'!P14 -> 19710.81 | P18: ='00_SAV'!Q14 -> 19710.81 | Q18: ='00_SAV'!R14 -> 19710.81 | R18: ='00_SAV'!S14 -> 19710.81 | S18: ='00_SAV'!T14 -> 7713.9 | U18: 19710.57 | V18: 19710.81 | W18: 19710.81 | X18: 19710.81 | Y18: 19710.81 | Z18: 19710.81 | AA18: 19710.81 | AB18: 19710.81 | AC18: 19710.81 | AD18: 19710.81 | AE18: 19710.81 | AF18: 19710.81 | AG18: 19710.81 | AH18: 19710.81 | AI18: 19710.81 | AJ18: 7713.9
A19: 1 | B19: 1940 | C19: NB | D19: ='00_SAV'!E15 -> 2217.39 | E19: ='00_SAV'!F15 -> 2006.25 | F19: ='00_SAV'!G15 -> 2006.25 | G19: ='00_SAV'!H15 -> 2006.25 | H19: ='00_SAV'!I15 -> 1523.51 | I19: ='00_SAV'!J15 -> 1527.52 | J19: ='00_SAV'!K15 -> 1736.78 | K19: ='00_SAV'!L15 -> 1734.56 | L19: ='00_SAV'!M15 -> 1731.63 | M19: ='00_SAV'!N15 -> 1724.75 | N19: ='00_SAV'!O15 -> 1772.64 | O19: ='00_SAV'!P15 -> 1801.79 | P19: ='00_SAV'!Q15 -> 1820.53 | Q19: ='00_SAV'!R15 -> 1714.34 | R19: ='00_SAV'!S15 -> 1714.34 | S19: ='00_SAV'!T15 -> 1714.34 | U19: 2217.39 | V19: 2006.25 | W19: 2006.25 | X19: 2006.25 | Y19: 1523.51 | Z19: 1527.52 | AA19: 1736.78 | AB19: 1734.56 | AC19: 1731.63 | AD19: 1724.75 | AE19: 1772.64 | AF19: 1801.79 | AG19: 1820.53 | AH19: 1714.34 | AI19: 1714.34 | AJ19: 1714.34
A20: 1 | B20: 1941 | C20: NB | D20: ='00_SAV'!E16 -> 1747.62 | E20: ='00_SAV'!F16 -> 1747.62 | F20: ='00_SAV'!G16 -> 1747.62 | G20: ='00_SAV'!H16 -> 1747.62 | H20: ='00_SAV'!I16 -> 1747.62 | I20: ='00_SAV'!J16 -> 1747.62 | J20: ='00_SAV'!K16 -> 1747.62 | K20: ='00_SAV'!L16 -> 1747.62 | L20: ='00_SAV'!M16 -> 1747.62 | M20: ='00_SAV'!N16 -> 427494.75 | N20: ='00_SAV'!O16 -> 427494.75 | O20: ='00_SAV'!P16 -> 427494.75 | P20: ='00_SAV'!Q16 -> 427494.75 | Q20: ='00_SAV'!R16 -> 427494.75 | R20: ='00_SAV'!S16 -> 603948.11 | S20: ='00_SAV'!T16 -> 603948.11 | U20: 1747.62 | V20: 1747.62 | W20: 1747.62 | X20: 1747.62 | Y20: 1747.62 | Z20: 1747.62 | AA20: 1747.62 | AB20: 1747.62 | AC20: 1747.62 | AD20: 427494.75 | AE20: 427494.75 | AF20: 427494.75 | AG20: 427494.75 | AH20: 427494.75 | AI20: 603948.11 | AJ20: 603948.11
A21: 1 | B21: 1942 | C21: NB | D21: ='00_SAV'!E17 -> 3892.55 | E21: ='00_SAV'!F17 -> 3892.46 | F21: ='00_SAV'!G17 -> 3892.46 | G21: ='00_SAV'!H17 -> 3892.46 | H21: ='00_SAV'!I17 -> 3892.46 | I21: ='00_SAV'!J17 -> 3892.46 | J21: ='00_SAV'!K17 -> 3892.46 | K21: ='00_SAV'!L17 -> 3892.46 | L21: ='00_SAV'!M17 -> 3892.46 | M21: ='00_SAV'!N17 -> 4321 | N21: ='00_SAV'!O17 -> 4323.49 | O21: ='00_SAV'!P17 -> 4315.9 | P21: ='00_SAV'!Q17 -> 4305.95 | Q21: ='00_SAV'!R17 -> 4293.44 | R21: ='00_SAV'!S17 -> 4313.86 | S21: ='00_SAV'!T17 -> 4301.67 | U21: 3892.55 | V21: 3892.46 | W21: 3892.46 | X21: 3892.46 | Y21: 3892.46 | Z21: 3892.46 | AA21: 3892.46 | AB21: 3892.46 | AC21: 3892.46 | AD21: 4321 | AE21: 4323.49 | AF21: 4315.9 | AG21: 4305.95 | AH21: 4293.44 | AI21: 4313.86 | AJ21: 4301.67
A22: 1 | B22: 1943 | C22: NB | D22: ='00_SAV'!E18 -> 473.88 | E22: ='00_SAV'!F18 -> 84.88 | F22: ='00_SAV'!G18 -> 84.88 | G22: ='00_SAV'!H18 -> 84.88 | H22: ='00_SAV'!I18 -> 84.88 | I22: ='00_SAV'!J18 -> 84.88 | J22: ='00_SAV'!K18 -> 473.46 | K22: ='00_SAV'!L18 -> 473.46 | L22: ='00_SAV'!M18 -> 473.46 | M22: ='00_SAV'!N18 -> 15349.46 | N22: ='00_SAV'!O18 -> 15349.46 | O22: ='00_SAV'!P18 -> 5908.49 | P22: ='00_SAV'!Q18 -> 5908.49 | Q22: ='00_SAV'!R18 -> 5908.49 | R22: ='00_SAV'!S18 -> 5908.49 | S22: ='00_SAV'!T18 -> 5908.49 | U22: 473.88 | V22: 84.88 | W22: 84.88 | X22: 84.88 | Y22: 84.88 | Z22: 84.88 | AA22: 473.46 | AB22: 473.46 | AC22: 473.46 | AD22: 15349.46 | AE22: 15349.46 | AF22: 5908.49 | AG22: 5908.49 | AH22: 5908.49 | AI22: 5908.49 | AJ22: 5908.49
A23: 1 | B23: 1944 | C23: NB | D23: ='00_SAV'!E19 -> 3650 | E23: ='00_SAV'!F19 -> 0 | F23: ='00_SAV'!G19 -> 0 | G23: ='00_SAV'!H19 -> 0 | H23: ='00_SAV'!I19 -> 0 | I23: ='00_SAV'!J19 -> 0 | J23: ='00_SAV'!K19 -> 3649.6 | K23: ='00_SAV'!L19 -> 3649.6 | L23: ='00_SAV'!M19 -> 3649.6 | M23: ='00_SAV'!N19 -> 3649.6 | N23: ='00_SAV'!O19 -> 3649.6 | O23: ='00_SAV'!P19 -> 3649.6 | P23: ='00_SAV'!Q19 -> 3649.6 | Q23: ='00_SAV'!R19 -> 3799.31 | R23: ='00_SAV'!S19 -> 3799.31 | S23: ='00_SAV'!T19 -> 3799.31 | U23: 3650 | V23: 0 | W23: 0 | X23: 0 | Y23: 0 | Z23: 0 | AA23: 3649.6 | AB23: 3649.6 | AC23: 3649.6 | AD23: 3649.6 | AE23: 3649.6 | AF23: 3649.6 | AG23: 3649.6 | AH23: 3799.31 | AI23: 3799.31 | AJ23: 3799.31
A24: 1 | B24: 1945 | C24: NB | D24: ='00_SAV'!E20 -> 55951.49 | E24: ='00_SAV'!F20 -> 13163.95 | F24: ='00_SAV'!G20 -> 55951.15 | G24: ='00_SAV'!H20 -> 55951.15 | H24: ='00_SAV'!I20 -> 55951.15 | I24: ='00_SAV'!J20 -> 55951.15 | J24: ='00_SAV'!K20 -> 55951.15 | K24: ='00_SAV'!L20 -> 55951.15 | L24: ='00_SAV'!M20 -> 55951.15 | M24: ='00_SAV'!N20 -> 55951.15 | N24: ='00_SAV'!O20 -> 55951.15 | O24: ='00_SAV'!P20 -> 55358.31 | P24: ='00_SAV'!Q20 -> 42841.14 | Q24: ='00_SAV'!R20 -> 48621.02 | R24: ='00_SAV'!S20 -> 54573.59 | S24: ='00_SAV'!T20 -> 49422.34 | U24: 55951.49 | V24: 13163.95 | W24: 55951.15 | X24: 55951.15 | Y24: 55951.15 | Z24: 55951.15 | AA24: 55951.15 | AB24: 55951.15 | AC24: 55951.15 | AD24: 55951.15 | AE24: 55951.15 | AF24: 55358.31 | AG24: 42841.14 | AH24: 48621.02 | AI24: 54573.59 | AJ24: 49422.34
A25: 1 | B25: 1946 | C25: NB | D25: ='00_SAV'!E21 -> 397 | E25: ='00_SAV'!F21 -> 0 | F25: ='00_SAV'!G21 -> 0 | G25: ='00_SAV'!H21 -> 0 | H25: ='00_SAV'!I21 -> 0 | I25: ='00_SAV'!J21 -> 0 | J25: ='00_SAV'!K21 -> 396.76 | K25: ='00_SAV'!L21 -> 396.76 | L25: ='00_SAV'!M21 -> 396.76 | M25: ='00_SAV'!N21 -> 396.76 | N25: ='00_SAV'!O21 -> 396.76 | O25: ='00_SAV'!P21 -> 396.76 | P25: ='00_SAV'!Q21 -> 396.76 | Q25: ='00_SAV'!R21 -> 396.76 | R25: ='00_SAV'!S21 -> 396.76 | S25: ='00_SAV'!T21 -> 396.76 | U25: 397 | V25: 0 | W25: 0 | X25: 0 | Y25: 0 | Z25: 0 | AA25: 396.76 | AB25: 396.76 | AC25: 396.76 | AD25: 396.76 | AE25: 396.76 | AF25: 396.76 | AG25: 396.76 | AH25: 396.76 | AI25: 396.76 | AJ25: 396.76
A26: 1 | B26: 1947 | C26: NB | D26: ='00_SAV'!E22 -> 74120.72 | E26: ='00_SAV'!F22 -> 24462.76 | F26: ='00_SAV'!G22 -> 24462.76 | G26: ='00_SAV'!H22 -> 24462.76 | H26: ='00_SAV'!I22 -> 24741.72 | I26: ='00_SAV'!J22 -> 25304.65 | J26: ='00_SAV'!K22 -> 74683.37 | K26: ='00_SAV'!L22 -> 74683.37 | L26: ='00_SAV'!M22 -> 103043.2 | M26: ='00_SAV'!N22 -> 101193.51 | N26: ='00_SAV'!O22 -> 102590.47 | O26: ='00_SAV'!P22 -> 103869.72 | P26: ='00_SAV'!Q22 -> 103784.57 | Q26: ='00_SAV'!R22 -> 103499.35 | R26: ='00_SAV'!S22 -> 103831.28 | S26: ='00_SAV'!T22 -> 103575.85 | U26: 74120.72 | V26: 24462.76 | W26: 24462.76 | X26: 24462.76 | Y26: 24741.72 | Z26: 25304.65 | AA26: 74683.37 | AB26: 74683.37 | AC26: 103043.2 | AD26: 101193.51 | AE26: 102590.47 | AF26: 103869.72 | AG26: 103784.57 | AH26: 103499.35 | AI26: 103831.28 | AJ26: 103575.85
A27: 1 | B27: 1948 | C27: NB | D27: ='00_SAV'!E23 -> 575395.12 | E27: ='00_SAV'!F23 -> 580714.67 | F27: ='00_SAV'!G23 -> 576595.71 | G27: ='00_SAV'!H23 -> 583575.25 | H27: ='00_SAV'!I23 -> 593601.83 | I27: ='00_SAV'!J23 -> 590435.45 | J27: ='00_SAV'!K23 -> 590558.45 | K27: ='00_SAV'!L23 -> 590311.75 | L27: ='00_SAV'!M23 -> 666038.29 | M27: ='00_SAV'!N23 -> 989217.69 | N27: ='00_SAV'!O23 -> 987875.87 | O27: ='00_SAV'!P23 -> 840743.61 | P27: ='00_SAV'!Q23 -> 839125.77 | Q27: ='00_SAV'!R23 -> 831096.19 | R27: ='00_SAV'!S23 -> 843448.49 | S27: ='00_SAV'!T23 -> 837265.31 | U27: 575395.12 | V27: 580714.67 | W27: 576595.71 | X27: 583575.25 | Y27: 593601.83 | Z27: 590435.45 | AA27: 590558.45 | AB27: 590311.75 | AC27: 666038.29 | AD27: 989217.69 | AE27: 987875.87 | AF27: 840743.61 | AG27: 839125.77 | AH27: 831096.19 | AI27: 843448.49 | AJ27: 837265.31
A28: 1 | B28: 1949 | C28: NB | D28: ='00_SAV'!E24 -> 25270.16 | E28: ='00_SAV'!F24 -> 24542.64 | F28: ='00_SAV'!G24 -> 25172.89 | G28: ='00_SAV'!H24 -> 26738.55 | H28: ='00_SAV'!I24 -> 22767.98 | I28: ='00_SAV'!J24 -> 21289.72 | J28: ='00_SAV'!K24 -> 22470.23 | K28: ='00_SAV'!L24 -> 24340.22 | L28: ='00_SAV'!M24 -> 25127.41 | M28: ='00_SAV'!N24 -> 25143.54 | N28: ='00_SAV'!O24 -> 25206.07 | O28: ='00_SAV'!P24 -> 25376.07 | P28: ='00_SAV'!Q24 -> 25214.9 | Q28: ='00_SAV'!R24 -> 25388.79 | R28: ='00_SAV'!S24 -> 25638.43 | S28: ='00_SAV'!T24 -> 25337.51 | U28: 25270.16 | V28: 24542.64 | W28: 25172.89 | X28: 26738.55 | Y28: 22767.98 | Z28: 21289.72 | AA28: 22470.23 | AB28: 24340.22 | AC28: 25127.41 | AD28: 25143.54 | AE28: 25206.07 | AF28: 25376.07 | AG28: 25214.9 | AH28: 25388.79 | AI28: 25638.43 | AJ28: 25337.51
A29: 1 | B29: 1950 | C29: NB | D29: ='00_SAV'!E25 -> 22054.25 | E29: ='00_SAV'!F25 -> 13535.61 | F29: ='00_SAV'!G25 -> 21257.52 | G29: ='00_SAV'!H25 -> 21257.52 | H29: ='00_SAV'!I25 -> 21257.52 | I29: ='00_SAV'!J25 -> 21257.52 | J29: ='00_SAV'!K25 -> 22054.11 | K29: ='00_SAV'!L25 -> 22054.11 | L29: ='00_SAV'!M25 -> 21905.94 | M29: ='00_SAV'!N25 -> 23739.28 | N29: ='00_SAV'!O25 -> 23409.9 | O29: ='00_SAV'!P25 -> 22028.34 | P29: ='00_SAV'!Q25 -> 20523.27 | Q29: ='00_SAV'!R25 -> 22300.6 | R29: ='00_SAV'!S25 -> 23683.14 | S29: ='00_SAV'!T25 -> 22514.72 | U29: 22054.25 | V29: 13535.61 | W29: 21257.52 | X29: 21257.52 | Y29: 21257.52 | Z29: 21257.52 | AA29: 22054.11 | AB29: 22054.11 | AC29: 21905.94 | AD29: 23739.28 | AE29: 23409.9 | AF29: 22028.34 | AG29: 20523.27 | AH29: 22300.6 | AI29: 23683.14 | AJ29: 22514.72
A30: 1 | B30: 1951 | C30: NB | D30: ='00_SAV'!E26 -> 26760.87 | E30: ='00_SAV'!F26 -> 24158.11 | F30: ='00_SAV'!G26 -> 24848.13 | G30: ='00_SAV'!H26 -> 24848.96 | H30: ='00_SAV'!I26 -> 24870.08 | I30: ='00_SAV'!J26 -> 25023.25 | J30: ='00_SAV'!K26 -> 25023.25 | K30: ='00_SAV'!L26 -> 25023.25 | L30: ='00_SAV'!M26 -> 25089.72 | M30: ='00_SAV'!N26 -> 25089.63 | N30: ='00_SAV'!O26 -> 25089.63 | O30: ='00_SAV'!P26 -> 25013.83 | P30: ='00_SAV'!Q26 -> 24817.12 | Q30: ='00_SAV'!R26 -> 25018 | R30: ='00_SAV'!S26 -> 25189.34 | S30: ='00_SAV'!T26 -> 25102.04 | U30: 26760.87 | V30: 24158.11 | W30: 24848.13 | X30: 24848.96 | Y30: 24870.08 | Z30: 25023.25 | AA30: 25023.25 | AB30: 25023.25 | AC30: 25089.72 | AD30: 25089.63 | AE30: 25089.63 | AF30: 25013.83 | AG30: 24817.12 | AH30: 25018 | AI30: 25189.34 | AJ30: 25102.04
A31: 1 | B31: 1952 | C31: NB | D31: ='00_SAV'!E27 -> 29158.86 | E31: ='00_SAV'!F27 -> 20581.28 | F31: ='00_SAV'!G27 -> 26082.42 | G31: ='00_SAV'!H27 -> 26089.34 | H31: ='00_SAV'!I27 -> 25551.4 | I31: ='00_SAV'!J27 -> 25169.6 | J31: ='00_SAV'!K27 -> 28362.08 | K31: ='00_SAV'!L27 -> 28992.14 | L31: ='00_SAV'!M27 -> 29066.67 | M31: ='00_SAV'!N27 -> 29349.46 | N31: ='00_SAV'!O27 -> 29737.8 | O31: ='00_SAV'!P27 -> 27683.28 | P31: ='00_SAV'!Q27 -> 25935.53 | Q31: ='00_SAV'!R27 -> 27446.68 | R31: ='00_SAV'!S27 -> 28395.62 | S31: ='00_SAV'!T27 -> 27524.47 | U31: 29158.86 | V31: 20581.28 | W31: 26082.42 | X31: 26089.34 | Y31: 25551.4 | Z31: 25169.6 | AA31: 28362.08 | AB31: 28992.14 | AC31: 29066.67 | AD31: 29349.46 | AE31: 29737.8 | AF31: 27683.28 | AG31: 25935.53 | AH31: 27446.68 | AI31: 28395.62 | AJ31: 27524.47
A32: 1 | B32: 1953 | C32: NB | D32: ='00_SAV'!E28 -> 105075.45 | E32: ='00_SAV'!F28 -> 44623.32 | F32: ='00_SAV'!G28 -> 86922.09 | G32: ='00_SAV'!H28 -> 86925.1 | H32: ='00_SAV'!I28 -> 87476.43 | I32: ='00_SAV'!J28 -> 87202.52 | J32: ='00_SAV'!K28 -> 85905.28 | K32: ='00_SAV'!L28 -> 85976.62 | L32: ='00_SAV'!M28 -> 104160.86 | M32: ='00_SAV'!N28 -> 109263.05 | N32: ='00_SAV'!O28 -> 109404.29 | O32: ='00_SAV'!P28 -> 105704.21 | P32: ='00_SAV'!Q28 -> 93383.35 | Q32: ='00_SAV'!R28 -> 105806.33 | R32: ='00_SAV'!S28 -> 71639.94 | S32: ='00_SAV'!T28 -> 70596.81 | U32: 105075.45 | V32: 44623.32 | W32: 86922.09 | X32: 86925.1 | Y32: 87476.43 | Z32: 87202.52 | AA32: 85905.28 | AB32: 85976.62 | AC32: 104160.86 | AD32: 109263.05 | AE32: 109404.29 | AF32: 105704.21 | AG32: 93383.35 | AH32: 105806.33 | AI32: 71639.94 | AJ32: 70596.81
A33: 1 | B33: 1954 | C33: NB | D33: ='00_SAV'!E29 -> 105393.62 | E33: ='00_SAV'!F29 -> 82554.12 | F33: ='00_SAV'!G29 -> 93090.3 | G33: ='00_SAV'!H29 -> 93208.46 | H33: ='00_SAV'!I29 -> 91729.86 | I33: ='00_SAV'!J29 -> 91728.53 | J33: ='00_SAV'!K29 -> 92559.61 | K33: ='00_SAV'!L29 -> 92673.87 | L33: ='00_SAV'!M29 -> 98251.73 | M33: ='00_SAV'!N29 -> 98939.75 | N33: ='00_SAV'!O29 -> 90653.11 | O33: ='00_SAV'!P29 -> 93687.83 | P33: ='00_SAV'!Q29 -> 89970.2 | Q33: ='00_SAV'!R29 -> 90480.43 | R33: ='00_SAV'!S29 -> 89048.66 | S33: ='00_SAV'!T29 -> 87393.8 | U33: 105393.62 | V33: 82554.12 | W33: 93090.3 | X33: 93208.46 | Y33: 91729.86 | Z33: 91728.53 | AA33: 92559.61 | AB33: 92673.87 | AC33: 98251.73 | AD33: 98939.75 | AE33: 90653.11 | AF33: 93687.83 | AG33: 89970.2 | AH33: 90480.43 | AI33: 89048.66 | AJ33: 87393.8
A34: 1 | B34: 1955 | C34: NB | D34: ='00_SAV'!E30 -> 162641.83 | E34: ='00_SAV'!F30 -> 145117.83 | F34: ='00_SAV'!G30 -> 155532.15 | G34: ='00_SAV'!H30 -> 157711.81 | H34: ='00_SAV'!I30 -> 158349.88 | I34: ='00_SAV'!J30 -> 158881.88 | J34: ='00_SAV'!K30 -> 159657.29 | K34: ='00_SAV'!L30 -> 160708.29 | L34: ='00_SAV'!M30 -> 210100.95 | M34: ='00_SAV'!N30 -> 201491.72 | N34: ='00_SAV'!O30 -> 198005.46 | O34: ='00_SAV'!P30 -> 205115.64 | P34: ='00_SAV'!Q30 -> 201056.29 | Q34: ='00_SAV'!R30 -> 203132.56 | R34: ='00_SAV'!S30 -> 206725.14 | S34: ='00_SAV'!T30 -> 203864.37 | U34: 162641.83 | V34: 145117.83 | W34: 155532.15 | X34: 157711.81 | Y34: 158349.88 | Z34: 158881.88 | AA34: 159657.29 | AB34: 160708.29 | AC34: 210100.95 | AD34: 201491.72 | AE34: 198005.46 | AF34: 205115.64 | AG34: 201056.29 | AH34: 203132.56 | AI34: 206725.14 | AJ34: 203864.37
A35: 1 | B35: 1956 | C35: NB | D35: ='00_SAV'!E31 -> 50771.31 | E35: ='00_SAV'!F31 -> 39533.26 | F35: ='00_SAV'!G31 -> 50770.73 | G35: ='00_SAV'!H31 -> 52382.65 | H35: ='00_SAV'!I31 -> 51802.94 | I35: ='00_SAV'!J31 -> 51802.94 | J35: ='00_SAV'!K31 -> 51802.94 | K35: ='00_SAV'!L31 -> 51710.91 | L35: ='00_SAV'!M31 -> 59097.48 | M35: ='00_SAV'!N31 -> 59097.48 | N35: ='00_SAV'!O31 -> 56793.78 | O35: ='00_SAV'!P31 -> 56790.28 | P35: ='00_SAV'!Q31 -> 53435.65 | Q35: ='00_SAV'!R31 -> 56593.39 | R35: ='00_SAV'!S31 -> 58678.45 | S35: ='00_SAV'!T31 -> 57003.79 | U35: 50771.31 | V35: 39533.26 | W35: 50770.73 | X35: 52382.65 | Y35: 51802.94 | Z35: 51802.94 | AA35: 51802.94 | AB35: 51710.91 | AC35: 59097.48 | AD35: 59097.48 | AE35: 56793.78 | AF35: 56790.28 | AG35: 53435.65 | AH35: 56593.39 | AI35: 58678.45 | AJ35: 57003.79
A36: 1 | B36: 1957 | C36: NB | D36: ='00_SAV'!E32 -> 76749.28 | E36: ='00_SAV'!F32 -> 69322.18 | F36: ='00_SAV'!G32 -> 72527.22 | G36: ='00_SAV'!H32 -> 72527.22 | H36: ='00_SAV'!I32 -> 72527.22 | I36: ='00_SAV'!J32 -> 72527.22 | J36: ='00_SAV'!K32 -> 76085.86 | K36: ='00_SAV'!L32 -> 76085.86 | L36: ='00_SAV'!M32 -> 101810.79 | M36: ='00_SAV'!N32 -> 96915.18 | N36: ='00_SAV'!O32 -> 94614.8 | O36: ='00_SAV'!P32 -> 96386.53 | P36: ='00_SAV'!Q32 -> 95166.02 | Q36: ='00_SAV'!R32 -> 95132.69 | R36: ='00_SAV'!S32 -> 96280.8 | S36: ='00_SAV'!T32 -> 94952.74 | U36: 76749.28 | V36: 69322.18 | W36: 72527.22 | X36: 72527.22 | Y36: 72527.22 | Z36: 72527.22 | AA36: 76085.86 | AB36: 76085.86 | AC36: 101810.79 | AD36: 96915.18 | AE36: 94614.8 | AF36: 96386.53 | AG36: 95166.02 | AH36: 95132.69 | AI36: 96280.8 | AJ36: 94952.74
A37: 1 | B37: 1958 | C37: NB | D37: ='00_SAV'!E33 -> 87625.21 | E37: ='00_SAV'!F33 -> 84557.24 | F37: ='00_SAV'!G33 -> 87111.51 | G37: ='00_SAV'!H33 -> 88171.72 | H37: ='00_SAV'!I33 -> 88485.47 | I37: ='00_SAV'!J33 -> 88460.82 | J37: ='00_SAV'!K33 -> 88443.86 | K37: ='00_SAV'!L33 -> 88112.11 | L37: ='00_SAV'!M33 -> 97519.13 | M37: ='00_SAV'!N33 -> 97817.78 | N37: ='00_SAV'!O33 -> 97747.16 | O37: ='00_SAV'!P33 -> 97901.45 | P37: ='00_SAV'!Q33 -> 97222.43 | Q37: ='00_SAV'!R33 -> 98282.63 | R37: ='00_SAV'!S33 -> 98539.45 | S37: ='00_SAV'!T33 -> 98293.39 | U37: 87625.21 | V37: 84557.24 | W37: 87111.51 | X37: 88171.72 | Y37: 88485.47 | Z37: 88460.82 | AA37: 88443.86 | AB37: 88112.11 | AC37: 97519.13 | AD37: 97817.78 | AE37: 97747.16 | AF37: 97901.45 | AG37: 97222.43 | AH37: 98282.63 | AI37: 98539.45 | AJ37: 98293.39
A38: 1 | B38: 1959 | C38: NB | D38: ='00_SAV'!E34 -> 49656.67 | E38: ='00_SAV'!F34 -> 41452.15 | F38: ='00_SAV'!G34 -> 49513.98 | G38: ='00_SAV'!H34 -> 69063.33 | H38: ='00_SAV'!I34 -> 62686.38 | I38: ='00_SAV'!J34 -> 62683.59 | J38: ='00_SAV'!K34 -> 62714.08 | K38: ='00_SAV'!L34 -> 62953.47 | L38: ='00_SAV'!M34 -> 69306.34 | M38: ='00_SAV'!N34 -> 69324.17 | N38: ='00_SAV'!O34 -> 69393.24 | O38: ='00_SAV'!P34 -> 67973.64 | P38: ='00_SAV'!Q34 -> 65257.12 | Q38: ='00_SAV'!R34 -> 68150.89 | R38: ='00_SAV'!S34 -> 68933.3 | S38: ='00_SAV'!T34 -> 67790.76 | U38: 49656.67 | V38: 41452.15 | W38: 49513.98 | X38: 69063.33 | Y38: 62686.38 | Z38: 62683.59 | AA38: 62714.08 | AB38: 62953.47 | AC38: 69306.34 | AD38: 69324.17 | AE38: 69393.24 | AF38: 67973.64 | AG38: 65257.12 | AH38: 68150.89 | AI38: 68933.3 | AJ38: 67790.76
A39: 1 | B39: 1960 | C39: NB | D39: ='00_SAV'!E35 -> 358214.77 | E39: ='00_SAV'!F35 -> 339583.9 | F39: ='00_SAV'!G35 -> 358752.1 | G39: ='00_SAV'!H35 -> 356398.76 | H39: ='00_SAV'!I35 -> 358463.56 | I39: ='00_SAV'!J35 -> 359248.87 | J39: ='00_SAV'!K35 -> 358407.4 | K39: ='00_SAV'!L35 -> 357398.71 | L39: ='00_SAV'!M35 -> 357995 | M39: ='00_SAV'!N35 -> 358169.66 | N39: ='00_SAV'!O35 -> 357826.27 | O39: ='00_SAV'!P35 -> 358206.06 | P39: ='00_SAV'!Q35 -> 353902.67 | Q39: ='00_SAV'!R35 -> 358461.17 | R39: ='00_SAV'!S35 -> 445286.58 | S39: ='00_SAV'!T35 -> 442093.33 | U39: 358214.77 | V39: 339583.9 | W39: 358752.1 | X39: 356398.76 | Y39: 358463.56 | Z39: 359248.87 | AA39: 358407.4 | AB39: 357398.71 | AC39: 357995 | AD39: 358169.66 | AE39: 357826.27 | AF39: 358206.06 | AG39: 353902.67 | AH39: 358461.17 | AI39: 445286.58 | AJ39: 442093.33
A40: 1 | B40: 1961 | C40: NB | D40: ='00_SAV'!E36 -> 429936.66 | E40: ='00_SAV'!F36 -> 407879.57 | F40: ='00_SAV'!G36 -> 414648.55 | G40: ='00_SAV'!H36 -> 414648.64 | H40: ='00_SAV'!I36 -> 418574.1 | I40: ='00_SAV'!J36 -> 418638.39 | J40: ='00_SAV'!K36 -> 421185.92 | K40: ='00_SAV'!L36 -> 421204.14 | L40: ='00_SAV'!M36 -> 423289.12 | M40: ='00_SAV'!N36 -> 667495.59 | N40: ='00_SAV'!O36 -> 667772.49 | O40: ='00_SAV'!P36 -> 425382.88 | P40: ='00_SAV'!Q36 -> 421208.7 | Q40: ='00_SAV'!R36 -> 431232.26 | R40: ='00_SAV'!S36 -> 432368.69 | S40: ='00_SAV'!T36 -> 431370.94 | U40: =D40 -> 429936.66 | V40: 407879.57 | W40: 414648.55 | X40: 414648.64 | Y40: 418574.1 | Z40: 418638.39 | AA40: 421185.92 | AB40: 421204.14 | AC40: 423289.12 | AD40: 667495.59 | AE40: 667772.49 | AF40: 425382.88 | AG40: 421208.7 | AH40: 431232.26 | AI40: 432368.69 | AJ40: 431370.94
A41: 1 | B41: 1962 | C41: NB | D41: ='00_SAV'!E37 -> 342775.66 | E41: ='00_SAV'!F37 -> 323528.49 | F41: ='00_SAV'!G37 -> 340884.21 | G41: ='00_SAV'!H37 -> 340885.03 | H41: ='00_SAV'!I37 -> 337929.42 | I41: ='00_SAV'!J37 -> 337855.09 | J41: ='00_SAV'!K37 -> 337855.56 | K41: ='00_SAV'!L37 -> 337859.3 | L41: ='00_SAV'!M37 -> 339896.9 | M41: ='00_SAV'!N37 -> 339897.18 | N41: ='00_SAV'!O37 -> 339898.26 | O41: ='00_SAV'!P37 -> 339830.91 | P41: ='00_SAV'!Q37 -> 334636.48 | Q41: ='00_SAV'!R37 -> 338457.1 | R41: ='00_SAV'!S37 -> 342371.38 | S41: ='00_SAV'!T37 -> 339894.23 | U41: 342775.66 | V41: 323528.49 | W41: 340884.21 | X41: 340885.03 | Y41: 337929.42 | Z41: 337855.09 | AA41: 337855.56 | AB41: 337859.3 | AC41: 339896.9 | AD41: 339897.18 | AE41: 339898.26 | AF41: 339830.91 | AG41: 334636.48 | AH41: 338457.1 | AI41: 342371.38 | AJ41: 339894.23
A42: 1 | B42: 1963 | C42: NB | D42: ='00_SAV'!E38 -> 452911.02 | E42: ='00_SAV'!F38 -> 334514.63 | F42: ='00_SAV'!G38 -> 373803.26 | G42: ='00_SAV'!H38 -> 374322.37 | H42: ='00_SAV'!I38 -> 436153.38 | I42: ='00_SAV'!J38 -> 442202.84 | J42: ='00_SAV'!K38 -> 446607.11 | K42: ='00_SAV'!L38 -> 447954.7 | L42: ='00_SAV'!M38 -> 448311.26 | M42: ='00_SAV'!N38 -> 449932.97 | N42: ='00_SAV'!O38 -> 449938.84 | O42: ='00_SAV'!P38 -> 449550.15 | P42: ='00_SAV'!Q38 -> 447572.03 | Q42: ='00_SAV'!R38 -> 452019.89 | R42: ='00_SAV'!S38 -> 458389.71 | S42: ='00_SAV'!T38 -> 446706.69 | U42: 452911.02 | V42: 334514.63 | W42: 373803.26 | X42: 374322.37 | Y42: 436153.38 | Z42: 442202.84 | AA42: 446607.11 | AB42: 447954.7 | AC42: 448311.26 | AD42: 449932.97 | AE42: 449938.84 | AF42: 449550.15 | AG42: 447572.03 | AH42: 452019.89 | AI42: 458389.71 | AJ42: 446706.69
A43: 1 | B43: 1964 | C43: NB | D43: ='00_SAV'!E39 -> 243567.29 | E43: ='00_SAV'!F39 -> 225861.15 | F43: ='00_SAV'!G39 -> 230650.4 | G43: ='00_SAV'!H39 -> 243613.15 | H43: ='00_SAV'!I39 -> 242759.47 | I43: ='00_SAV'!J39 -> 237588.08 | J43: ='00_SAV'!K39 -> 243769.74 | K43: ='00_SAV'!L39 -> 244297.85 | L43: ='00_SAV'!M39 -> 245195.68 | M43: ='00_SAV'!N39 -> 252606.53 | N43: ='00_SAV'!O39 -> 263180.83 | O43: ='00_SAV'!P39 -> 262938.43 | P43: ='00_SAV'!Q39 -> 259757.48 | Q43: ='00_SAV'!R39 -> 260203.83 | R43: ='00_SAV'!S39 -> 262481.05 | S43: ='00_SAV'!T39 -> 261284.25 | U43: 243567.29 | V43: 225861.15 | W43: 230650.4 | X43: 243613.15 | Y43: 242759.47 | Z43: 237588.08 | AA43: 243769.74 | AB43: 244297.85 | AC43: 245195.68 | AD43: 252606.53 | AE43: 263180.83 | AF43: 262938.43 | AG43: 259757.48 | AH43: 260203.83 | AI43: 262481.05 | AJ43: 261284.25
A44: 1 | B44: 1965 | C44: NB | D44: ='00_SAV'!E40 -> 613607.03 | E44: ='00_SAV'!F40 -> 527559.91 | F44: ='00_SAV'!G40 -> 535618.66 | G44: ='00_SAV'!H40 -> 539000.21 | H44: ='00_SAV'!I40 -> 584081.29 | I44: ='00_SAV'!J40 -> 580398.94 | J44: ='00_SAV'!K40 -> 628924.57 | K44: ='00_SAV'!L40 -> 629138.09 | L44: ='00_SAV'!M40 -> 629730.54 | M44: ='00_SAV'!N40 -> 633137.5 | N44: ='00_SAV'!O40 -> 633142.89 | O44: ='00_SAV'!P40 -> 868152.3 | P44: ='00_SAV'!Q40 -> 865691.81 | Q44: ='00_SAV'!R40 -> 822674.37 | R44: ='00_SAV'!S40 -> 828357.28 | S44: ='00_SAV'!T40 -> 827964.32 | U44: 613607.03 | V44: 527559.91 | W44: 535618.66 | X44: 539000.21 | Y44: 584081.29 | Z44: 580398.94 | AA44: 628924.57 | AB44: 629138.09 | AC44: 629730.54 | AD44: 633137.5 | AE44: 633142.89 | AF44: 868152.3 | AG44: 865691.81 | AH44: 822674.37 | AI44: 828357.28 | AJ44: 827964.32
A45: 1 | B45: 1966 | C45: NB | D45: ='00_SAV'!E41 -> 705968.63 | E45: ='00_SAV'!F41 -> 699045.62 | F45: ='00_SAV'!G41 -> 702514.62 | G45: ='00_SAV'!H41 -> 711957.62 | H45: ='00_SAV'!I41 -> 697597.15 | I45: ='00_SAV'!J41 -> 694187.13 | J45: ='00_SAV'!K41 -> 701642.26 | K45: ='00_SAV'!L41 -> 701640.72 | L45: ='00_SAV'!M41 -> 713281.9 | M45: ='00_SAV'!N41 -> 731591.87 | N45: ='00_SAV'!O41 -> 733102.79 | O45: ='00_SAV'!P41 -> 726477.92 | P45: ='00_SAV'!Q41 -> 719795.22 | Q45: ='00_SAV'!R41 -> 719057.35 | R45: ='00_SAV'!S41 -> 720732.21 | S45: ='00_SAV'!T41 -> 720448.03 | U45: 705968.63 | V45: 699045.62 | W45: 702514.62 | X45: 711957.62 | Y45: 697597.15 | Z45: 694187.13 | AA45: 701642.26 | AB45: 701640.72 | AC45: 713281.9 | AD45: 731591.87 | AE45: 733102.79 | AF45: 726477.92 | AG45: 719795.22 | AH45: 719057.35 | AI45: 720732.21 | AJ45: 720448.03
A46: 1 | B46: 1967 | C46: NB | D46: ='00_SAV'!E42 -> 590457.61 | E46: ='00_SAV'!F42 -> 521163.91 | F46: ='00_SAV'!G42 -> 534163.58 | G46: ='00_SAV'!H42 -> 544556.25 | H46: ='00_SAV'!I42 -> 558909.17 | I46: ='00_SAV'!J42 -> 562204.39 | J46: ='00_SAV'!K42 -> 572768.47 | K46: ='00_SAV'!L42 -> 572409.51 | L46: ='00_SAV'!M42 -> 571492.6 | M46: ='00_SAV'!N42 -> 573034.24 | N46: ='00_SAV'!O42 -> 575681.31 | O46: ='00_SAV'!P42 -> 577368.13 | P46: ='00_SAV'!Q42 -> 573902.61 | Q46: ='00_SAV'!R42 -> 579714.92 | R46: ='00_SAV'!S42 -> 571368.19 | S46: ='00_SAV'!T42 -> 570490.48 | U46: 590457.61 | V46: 521163.91 | W46: 534163.58 | X46: 544556.25 | Y46: 558909.17 | Z46: 562204.39 | AA46: 572768.47 | AB46: 572409.51 | AC46: 571492.6 | AD46: 573034.24 | AE46: 575681.31 | AF46: 577368.13 | AG46: 573902.61 | AH46: 579714.92 | AI46: 571368.19 | AJ46: 570490.48
A47: 1 | B47: 1968 | C47: NB | D47: ='00_SAV'!E43 -> 404070.8 | E47: ='00_SAV'!F43 -> 378937.51 | F47: ='00_SAV'!G43 -> 388132.23 | G47: ='00_SAV'!H43 -> 423545.6 | H47: ='00_SAV'!I43 -> 417773.67 | I47: ='00_SAV'!J43 -> 413416.16 | J47: ='00_SAV'!K43 -> 427325.88 | K47: ='00_SAV'!L43 -> 427926 | L47: ='00_SAV'!M43 -> 434553.74 | M47: ='00_SAV'!N43 -> 438216.35 | N47: ='00_SAV'!O43 -> 438706.69 | O47: ='00_SAV'!P43 -> 447805.51 | P47: ='00_SAV'!Q43 -> 444915.87 | Q47: ='00_SAV'!R43 -> 445035.25 | R47: ='00_SAV'!S43 -> 448201.2 | S47: ='00_SAV'!T43 -> 446366.38 | U47: 404070.8 | V47: 378937.51 | W47: 388132.23 | X47: 423545.6 | Y47: 417773.67 | Z47: 413416.16 | AA47: 427325.88 | AB47: 427926 | AC47: 434553.74 | AD47: 438216.35 | AE47: 438706.69 | AF47: 447805.51 | AG47: 444915.87 | AH47: 445035.25 | AI47: 448201.2 | AJ47: 446366.38
A48: 1 | B48: 1969 | C48: NB | D48: ='00_SAV'!E44 -> 473773.52 | E48: ='00_SAV'!F44 -> 434861.36 | F48: ='00_SAV'!G44 -> 438981.44 | G48: ='00_SAV'!H44 -> 591610.56 | H48: ='00_SAV'!I44 -> 591669.65 | I48: ='00_SAV'!J44 -> 596154.01 | J48: ='00_SAV'!K44 -> 619855.87 | K48: ='00_SAV'!L44 -> 543436.9 | L48: ='00_SAV'!M44 -> 538880.38 | M48: ='00_SAV'!N44 -> 773778.48 | N48: ='00_SAV'!O44 -> 767778.99 | O48: ='00_SAV'!P44 -> 771984.82 | P48: ='00_SAV'!Q44 -> 768932.95 | Q48: ='00_SAV'!R44 -> 738517.42 | R48: ='00_SAV'!S44 -> 734309.29 | S48: ='00_SAV'!T44 -> 724673.89 | U48: 473773.52 | V48: 434861.36 | W48: 438981.44 | X48: 591610.56 | Y48: 591669.65 | Z48: 596154.01 | AA48: 619855.87 | AB48: 543436.9 | AC48: 538880.38 | AD48: 773778.48 | AE48: 767778.99 | AF48: 771984.82 | AG48: 768932.95 | AH48: 738517.42 | AI48: 734309.29 | AJ48: 724673.89
A49: 1 | B49: 1970 | C49: NB | D49: ='00_SAV'!E45 -> 604960.39 | E49: ='00_SAV'!F45 -> 563527.85 | F49: ='00_SAV'!G45 -> 576614.72 | G49: ='00_SAV'!H45 -> 644879.77 | H49: ='00_SAV'!I45 -> 617255 | I49: ='00_SAV'!J45 -> 606477.64 | J49: ='00_SAV'!K45 -> 635185.7 | K49: ='00_SAV'!L45 -> 631860.55 | L49: ='00_SAV'!M45 -> 631276.66 | M49: ='00_SAV'!N45 -> 636022 | N49: ='00_SAV'!O45 -> 640688.54 | O49: ='00_SAV'!P45 -> 634224.43 | P49: ='00_SAV'!Q45 -> 629122.32 | Q49: ='00_SAV'!R45 -> 636480.99 | R49: ='00_SAV'!S45 -> 642780.23 | S49: ='00_SAV'!T45 -> 637676.88 | U49: 604960.39 | V49: 563527.85 | W49: 576614.72 | X49: 644879.77 | Y49: 617255 | Z49: 606477.64 | AA49: 635185.7 | AB49: 631860.55 | AC49: 631276.66 | AD49: 636022 | AE49: 640688.54 | AF49: 634224.43 | AG49: 629122.32 | AH49: 636480.99 | AI49: 642780.23 | AJ49: 637676.88
A50: 1 | B50: 1971 | C50: NB | D50: ='00_SAV'!E46 -> 1076273.12 | E50: ='00_SAV'!F46 -> 1059317.76 | F50: ='00_SAV'!G46 -> 1073500.41 | G50: ='00_SAV'!H46 -> 1094397.43 | H50: ='00_SAV'!I46 -> 1084377.33 | I50: ='00_SAV'!J46 -> 1092571.51 | J50: ='00_SAV'!K46 -> 1092751.85 | K50: ='00_SAV'!L46 -> 1092521.42 | L50: ='00_SAV'!M46 -> 1092338.9 | M50: ='00_SAV'!N46 -> 1124915.39 | N50: ='00_SAV'!O46 -> 1123424.67 | O50: ='00_SAV'!P46 -> 1121690.83 | P50: ='00_SAV'!Q46 -> 1117179.94 | Q50: ='00_SAV'!R46 -> 1101477.87 | R50: ='00_SAV'!S46 -> 1178346.13 | S50: ='00_SAV'!T46 -> 1175906.88 | U50: 1076273.12 | V50: 1059317.76 | W50: 1073500.41 | X50: 1094397.43 | Y50: 1084377.33 | Z50: 1092571.51 | AA50: 1092751.85 | AB50: 1092521.42 | AC50: 1092338.9 | AD50: 1124915.39 | AE50: 1123424.67 | AF50: 1121690.83 | AG50: 1117179.94 | AH50: 1101477.87 | AI50: 1178346.13 | AJ50: 1175906.88
A51: 1 | B51: 1972 | C51: NB | D51: ='00_SAV'!E47 -> 1209380.38 | E51: ='00_SAV'!F47 -> 1148400.63 | F51: ='00_SAV'!G47 -> 1165974.02 | G51: ='00_SAV'!H47 -> 1164527.03 | H51: ='00_SAV'!I47 -> 1159356.63 | I51: ='00_SAV'!J47 -> 1181671.03 | J51: ='00_SAV'!K47 -> 1257799.79 | K51: ='00_SAV'!L47 -> 1257557.59 | L51: ='00_SAV'!M47 -> 1400617.77 | M51: ='00_SAV'!N47 -> 1407532.14 | N51: ='00_SAV'!O47 -> 1396578.89 | O51: ='00_SAV'!P47 -> 1388943.14 | P51: ='00_SAV'!Q47 -> 1422346.18 | Q51: ='00_SAV'!R47 -> 1410789.44 | R51: ='00_SAV'!S47 -> 1429855.84 | S51: ='00_SAV'!T47 -> 1416691.87 | U51: 1209380.38 | V51: 1148400.63 | W51: 1165974.02 | X51: 1164527.03 | Y51: 1159356.63 | Z51: 1181671.03 | AA51: 1257799.79 | AB51: 1257557.59 | AC51: 1400617.77 | AD51: 1407532.14 | AE51: 1396578.89 | AF51: 1388943.14 | AG51: 1422346.18 | AH51: 1410789.44 | AI51: 1429855.84 | AJ51: 1416691.87
A52: 1 | B52: 1973 | C52: NB | D52: ='00_SAV'!E48 -> 700026.63 | E52: ='00_SAV'!F48 -> 645745.88 | F52: ='00_SAV'!G48 -> 659314.65 | G52: ='00_SAV'!H48 -> 775584.34 | H52: ='00_SAV'!I48 -> 797054.84 | I52: ='00_SAV'!J48 -> 795537.75 | J52: ='00_SAV'!K48 -> 847430.57 | K52: ='00_SAV'!L48 -> 846735.93 | L52: ='00_SAV'!M48 -> 878614.54 | M52: ='00_SAV'!N48 -> 875650.26 | N52: ='00_SAV'!O48 -> 897682.44 | O52: ='00_SAV'!P48 -> 854557.92 | P52: ='00_SAV'!Q48 -> 851821.54 | Q52: ='00_SAV'!R48 -> 847171.4 | R52: ='00_SAV'!S48 -> 1134461.87 | S52: ='00_SAV'!T48 -> 1134604.13 | U52: 700026.63 | V52: 645745.88 | W52: 659314.65 | X52: 775584.34 | Y52: 797054.84 | Z52: 795537.75 | AA52: 847430.57 | AB52: 846735.93 | AC52: 878614.54 | AD52: 875650.26 | AE52: 897682.44 | AF52: 854557.92 | AG52: 851821.54 | AH52: 847171.4 | AI52: 1134461.87 | AJ52: 1134604.13
A53: 1 | B53: 1974 | C53: NB | D53: ='00_SAV'!E49 -> 815077.28 | E53: ='00_SAV'!F49 -> 786126.34 | F53: ='00_SAV'!G49 -> 802419.16 | G53: ='00_SAV'!H49 -> 842867.69 | H53: ='00_SAV'!I49 -> 842298.8 | I53: ='00_SAV'!J49 -> 832246.86 | J53: ='00_SAV'!K49 -> 881453.23 | K53: ='00_SAV'!L49 -> 879376.8 | L53: ='00_SAV'!M49 -> 884332.31 | M53: ='00_SAV'!N49 -> 904564.63 | N53: ='00_SAV'!O49 -> 906134.1 | O53: ='00_SAV'!P49 -> 897741.12 | P53: ='00_SAV'!Q49 -> 895610.34 | Q53: ='00_SAV'!R49 -> 894481.19 | R53: ='00_SAV'!S49 -> 913590.58 | S53: ='00_SAV'!T49 -> 909178.27 | U53: 815077.28 | V53: 786126.34 | W53: 802419.16 | X53: 842867.69 | Y53: 842298.8 | Z53: 832246.86 | AA53: 881453.23 | AB53: 879376.8 | AC53: 884332.31 | AD53: 904564.63 | AE53: 906134.1 | AF53: 897741.12 | AG53: 895610.34 | AH53: 894481.19 | AI53: 913590.58 | AJ53: 909178.27
A54: 1 | B54: 1975 | C54: NB | D54: ='00_SAV'!E50 -> 1025131.16 | E54: ='00_SAV'!F50 -> 918449.97 | F54: ='00_SAV'!G50 -> 929136.56 | G54: ='00_SAV'!H50 -> 976778.27 | H54: ='00_SAV'!I50 -> 1022422.42 | I54: ='00_SAV'!J50 -> 1012018.97 | J54: ='00_SAV'!K50 -> 1013377.66 | K54: ='00_SAV'!L50 -> 1007950.23 | L54: ='00_SAV'!M50 -> 1002847.36 | M54: ='00_SAV'!N50 -> 1337680.95 | N54: ='00_SAV'!O50 -> 1334509.21 | O54: ='00_SAV'!P50 -> 1339698.66 | P54: ='00_SAV'!Q50 -> 1330261.3 | Q54: ='00_SAV'!R50 -> 1378524.06 | R54: ='00_SAV'!S50 -> 1409100.62 | S54: ='00_SAV'!T50 -> 1396378.07 | U54: 1025131.16 | V54: 918449.97 | W54: 929136.56 | X54: 976778.27 | Y54: 1022422.42 | Z54: 1012018.97 | AA54: 1013377.66 | AB54: 1007950.23 | AC54: 1002847.36 | AD54: 1337680.95 | AE54: 1334509.21 | AF54: 1339698.66 | AG54: 1330261.3 | AH54: 1378524.06 | AI54: 1409100.62 | AJ54: 1396378.07
A55: 1 | B55: 1976 | C55: NB | D55: ='00_SAV'!E51 -> 1693247.57 | E55: ='00_SAV'!F51 -> 1596861.81 | F55: ='00_SAV'!G51 -> 1598017.89 | G55: ='00_SAV'!H51 -> 1659710.63 | H55: ='00_SAV'!I51 -> 1620492.12 | I55: ='00_SAV'!J51 -> 1657275.49 | J55: ='00_SAV'!K51 -> 1711597.49 | K55: ='00_SAV'!L51 -> 1704971.11 | L55: ='00_SAV'!M51 -> 1627420.34 | M55: ='00_SAV'!N51 -> 1671414.68 | N55: ='00_SAV'!O51 -> 1693143.84 | O55: ='00_SAV'!P51 -> 1798428.48 | P55: ='00_SAV'!Q51 -> 1812775.69 | Q55: ='00_SAV'!R51 -> 1837075.38 | R55: ='00_SAV'!S51 -> 1884060.26 | S55: ='00_SAV'!T51 -> 1862165.49 | U55: 1693247.57 | V55: 1596861.81 | W55: 1598017.89 | X55: 1659710.63 | Y55: 1620492.12 | Z55: 1657275.49 | AA55: 1711597.49 | AB55: 1704971.11 | AC55: 1627420.34 | AD55: 1671414.68 | AE55: 1693143.84 | AF55: 1798428.48 | AG55: 1812775.69 | AH55: 1837075.38 | AI55: 1884060.26 | AJ55: =S55 -> 1862165.49
A56: 1 | B56: 1977 | C56: NB | D56: ='00_SAV'!E52 -> 897847.88 | E56: ='00_SAV'!F52 -> 846897.7 | F56: ='00_SAV'!G52 -> 812865.79 | G56: ='00_SAV'!H52 -> 890867.22 | H56: ='00_SAV'!I52 -> 943598.46 | I56: ='00_SAV'!J52 -> 935861.78 | J56: ='00_SAV'!K52 -> 937263.89 | K56: ='00_SAV'!L52 -> 933475.46 | L56: ='00_SAV'!M52 -> 942686.49 | M56: ='00_SAV'!N52 -> 1192463.94 | N56: ='00_SAV'!O52 -> 1189904.7 | O56: ='00_SAV'!P52 -> 1270294.69 | P56: ='00_SAV'!Q52 -> 1268412.79 | Q56: ='00_SAV'!R52 -> 1271834.27 | R56: ='00_SAV'!S52 -> 1314588.28 | S56: ='00_SAV'!T52 -> 1308902.06 | U56: =D56 -> 897847.88 | V56: 846897.7 | W56: 812865.79 | X56: 890867.22 | Y56: 943598.46 | Z56: 935861.78 | AA56: 937263.89 | AB56: 933475.46 | AC56: 942686.49 | AD56: 1192463.94 | AE56: 1189904.7 | AF56: 1270294.69 | AG56: 1268412.79 | AH56: 1271834.27 | AI56: 1314588.28 | AJ56: 1308902.06
A57: 1 | B57: 1978 | C57: NB | D57: ='00_SAV'!E53 -> 992500.98 | E57: ='00_SAV'!F53 -> 916754.72 | F57: ='00_SAV'!G53 -> 928487.17 | G57: ='00_SAV'!H53 -> 961290.34 | H57: ='00_SAV'!I53 -> 975336.31 | I57: ='00_SAV'!J53 -> 975404.38 | J57: ='00_SAV'!K53 -> 998736.42 | K57: ='00_SAV'!L53 -> 998939.07 | L57: ='00_SAV'!M53 -> 1133401.19 | M57: ='00_SAV'!N53 -> 1108571.32 | N57: ='00_SAV'!O53 -> 1251360.76 | O57: ='00_SAV'!P53 -> 1420099.02 | P57: ='00_SAV'!Q53 -> 1418008.6 | Q57: ='00_SAV'!R53 -> 1448991.51 | R57: ='00_SAV'!S53 -> 1442249.76 | S57: ='00_SAV'!T53 -> 1437101.6 | U57: 992500.98 | V57: 916754.72 | W57: 928487.17 | X57: 961290.34 | Y57: 975336.31 | Z57: 975404.38 | AA57: 998736.42 | AB57: 998939.07 | AC57: 1133401.19 | AD57: 1108571.32 | AE57: 1251360.76 | AF57: 1420099.02 | AG57: 1418008.6 | AH57: 1448991.51 | AI57: 1442249.76 | AJ57: 1437101.6
A58: 1 | B58: 1979 | C58: NB | D58: ='00_SAV'!E54 -> 1632124.12 | E58: ='00_SAV'!F54 -> 1569522.65 | F58: ='00_SAV'!G54 -> 1577809.68 | G58: ='00_SAV'!H54 -> 1664938.07 | H58: ='00_SAV'!I54 -> 1704641.54 | I58: ='00_SAV'!J54 -> 1708695.84 | J58: ='00_SAV'!K54 -> 1716504.38 | K58: ='00_SAV'!L54 -> 1719883.33 | L58: ='00_SAV'!M54 -> 1772525.48 | M58: ='00_SAV'!N54 -> 2005046.51 | N58: ='00_SAV'!O54 -> 1982432.03 | O58: ='00_SAV'!P54 -> 2153625.25 | P58: ='00_SAV'!Q54 -> 2144695.01 | Q58: ='00_SAV'!R54 -> 2141390.68 | R58: ='00_SAV'!S54 -> 2007059.84 | S58: ='00_SAV'!T54 -> 1978625.07 | U58: 1632124.12 | V58: 1569522.65 | W58: 1577809.68 | X58: 1664938.07 | Y58: 1704641.54 | Z58: 1708695.84 | AA58: 1716504.38 | AB58: 1719883.33 | AC58: 1772525.48 | AD58: 2005046.51 | AE58: 1982432.03 | AF58: 2153625.25 | AG58: 2144695.01 | AH58: 2141390.68 | AI58: 2007059.84 | AJ58: 1978625.07
A59: 1 | B59: 1980 | C59: NB | D59: ='00_SAV'!E55 -> 1969653.29 | E59: ='00_SAV'!F55 -> 1872825.05 | F59: ='00_SAV'!G55 -> 1905903.5 | G59: ='00_SAV'!H55 -> 1982594.75 | H59: ='00_SAV'!I55 -> 1990663.23 | I59: ='00_SAV'!J55 -> 1990987.97 | J59: ='00_SAV'!K55 -> 2085043.32 | K59: ='00_SAV'!L55 -> 2080990.29 | L59: ='00_SAV'!M55 -> 2080289.57 | M59: ='00_SAV'!N55 -> 2350759.94 | N59: ='00_SAV'!O55 -> 2331072.35 | O59: ='00_SAV'!P55 -> 1450350.01 | P59: ='00_SAV'!Q55 -> 1447377.59 | Q59: ='00_SAV'!R55 -> 1431807.6 | R59: ='00_SAV'!S55 -> 1457963.65 | S59: ='00_SAV'!T55 -> 1452450.62 | U59: 1969653.29 | V59: 1872825.05 | W59: 1905903.5 | X59: 1982594.75 | Y59: 1990663.23 | Z59: 1990987.97 | AA59: 2085043.32 | AB59: 2080990.29 | AC59: 2080289.57 | AD59: 2350759.94 | AE59: 2331072.35 | AF59: 1450350.01 | AG59: 1447377.59 | AH59: 1431807.6 | AI59: 1457963.65 | AJ59: 1452450.62
A60: 1 | B60: 1981 | C60: NB | D60: ='00_SAV'!E56 -> 957761.92 | E60: ='00_SAV'!F56 -> 807175.95 | F60: ='00_SAV'!G56 -> 793732.05 | G60: ='00_SAV'!H56 -> 963867.9 | H60: ='00_SAV'!I56 -> 977634.17 | I60: ='00_SAV'!J56 -> 975356.44 | J60: ='00_SAV'!K56 -> 1066946.42 | K60: ='00_SAV'!L56 -> 1062207 | L60: ='00_SAV'!M56 -> 1063656.12 | M60: ='00_SAV'!N56 -> 1081498.45 | N60: ='00_SAV'!O56 -> 1167992.84 | O60: ='00_SAV'!P56 -> 1428214.58 | P60: ='00_SAV'!Q56 -> 1425306.91 | Q60: ='00_SAV'!R56 -> 1425231.48 | R60: ='00_SAV'!S56 -> 1421185.36 | S60: ='00_SAV'!T56 -> 1419883.94 | U60: 957761.92 | V60: 807175.95 | W60: 793732.05 | X60: 963867.9 | Y60: 977634.17 | Z60: 975356.44 | AA60: 1066946.42 | AB60: 1062207 | AC60: 1063656.12 | AD60: 1081498.45 | AE60: 1167992.84 | AF60: 1428214.58 | AG60: 1425306.91 | AH60: 1425231.48 | AI60: 1421185.36 | AJ60: 1419883.94
A61: 1 | B61: 1982 | C61: NB | D61: ='00_SAV'!E57 -> 1570380.7 | E61: ='00_SAV'!F57 -> 1438207.07 | F61: ='00_SAV'!G57 -> 1451245.21 | G61: ='00_SAV'!H57 -> 1487466.16 | H61: ='00_SAV'!I57 -> 1573225.49 | I61: ='00_SAV'!J57 -> 1551229.97 | J61: ='00_SAV'!K57 -> 1620453.89 | K61: ='00_SAV'!L57 -> 1597357.93 | L61: ='00_SAV'!M57 -> 1576703.84 | M61: ='00_SAV'!N57 -> 1703478.26 | N61: ='00_SAV'!O57 -> 1653586.06 | O61: ='00_SAV'!P57 -> 1790108.85 | P61: ='00_SAV'!Q57 -> 1892840.08 | Q61: ='00_SAV'!R57 -> 1875797.8 | R61: ='00_SAV'!S57 -> 1891765.67 | S61: ='00_SAV'!T57 -> 1886753.04 | U61: 1570380.7 | V61: 1438207.07 | W61: 1451245.21 | X61: 1487466.16 | Y61: 1573225.49 | Z61: 1551229.97 | AA61: 1620453.89 | AB61: 1597357.93 | AC61: 1576703.84 | AD61: 1703478.26 | AE61: 1653586.06 | AF61: 1790108.85 | AG61: 1892840.08 | AH61: 1875797.8 | AI61: 1891765.67 | AJ61: 1886753.04
A62: 1 | B62: 1983 | C62: NB | D62: ='00_SAV'!E58 -> 1842910.98 | E62: ='00_SAV'!F58 -> 1720769.5 | F62: ='00_SAV'!G58 -> 1668180.13 | G62: ='00_SAV'!H58 -> 1716186.35 | H62: ='00_SAV'!I58 -> 1742101.16 | I62: ='00_SAV'!J58 -> 1737744.8 | J62: ='00_SAV'!K58 -> 1932098.16 | K62: ='00_SAV'!L58 -> 1929173.53 | L62: ='00_SAV'!M58 -> 1938042.93 | M62: ='00_SAV'!N58 -> 1959698.26 | N62: ='00_SAV'!O58 -> 1957040.64 | O62: ='00_SAV'!P58 -> 2024618.53 | P62: ='00_SAV'!Q58 -> 2023166.62 | Q62: ='00_SAV'!R58 -> 2013771.14 | R62: ='00_SAV'!S58 -> 2071590.19 | S62: ='00_SAV'!T58 -> 2063951.09 | U62: 1842910.98 | V62: 1720769.5 | W62: 1668180.13 | X62: 1716186.35 | Y62: 1742101.16 | Z62: 1737744.8 | AA62: 1932098.16 | AB62: 1929173.53 | AC62: 1938042.93 | AD62: 1959698.26 | AE62: 1957040.64 | AF62: 2024618.53 | AG62: 2023166.62 | AH62: 2013771.14 | AI62: 2071590.19 | AJ62: 2063951.09
A63: 1 | B63: 1984 | C63: NB | D63: ='00_SAV'!E59 -> 1826377.38 | E63: ='00_SAV'!F59 -> 1784655.37 | F63: ='00_SAV'!G59 -> 1730499.35 | G63: ='00_SAV'!H59 -> 1728889.96 | H63: ='00_SAV'!I59 -> 1758956.33 | I63: ='00_SAV'!J59 -> 1759432.15 | J63: ='00_SAV'!K59 -> 1800774.57 | K63: ='00_SAV'!L59 -> 1799858.55 | L63: ='00_SAV'!M59 -> 1799788 | M63: ='00_SAV'!N59 -> 1810074.05 | N63: ='00_SAV'!O59 -> 1807441.17 | O63: ='00_SAV'!P59 -> 1371203.37 | P63: ='00_SAV'!Q59 -> 1370590.07 | Q63: ='00_SAV'!R59 -> 1364984.84 | R63: ='00_SAV'!S59 -> 1387116.02 | S63: ='00_SAV'!T59 -> 1391871.97 | U63: 1826377.38 | V63: 1784655.37 | W63: 1730499.35 | X63: 1728889.96 | Y63: 1758956.33 | Z63: 1759432.15 | AA63: 1800774.57 | AB63: 1799858.55 | AC63: 1799788 | AD63: 1810074.05 | AE63: 1807441.17 | AF63: 1371203.37 | AG63: 1370590.07 | AH63: 1364984.84 | AI63: 1387116.02 | AJ63: 1391871.97
A64: 1 | B64: 1985 | C64: NB | D64: ='00_SAV'!E60 -> 964012.49 | E64: ='00_SAV'!F60 -> 880049.8 | F64: ='00_SAV'!G60 -> 883207.89 | G64: ='00_SAV'!H60 -> 1003175.56 | H64: ='00_SAV'!I60 -> 1033658.05 | I64: ='00_SAV'!J60 -> 1057595.88 | J64: ='00_SAV'!K60 -> 1076652.52 | K64: ='00_SAV'!L60 -> 1066749.26 | L64: ='00_SAV'!M60 -> 1069543.87 | M64: ='00_SAV'!N60 -> 1130735.62 | N64: ='00_SAV'!O60 -> 1130990.29 | O64: ='00_SAV'!P60 -> 1666558.38 | P64: ='00_SAV'!Q60 -> 1633343.32 | Q64: ='00_SAV'!R60 -> 1634763.68 | R64: ='00_SAV'!S60 -> 1662763.95 | S64: ='00_SAV'!T60 -> 1656906.97 | U64: 964012.49 | V64: 880049.8 | W64: 883207.89 | X64: 1003175.56 | Y64: 1033658.05 | Z64: 1057595.88 | AA64: 1076652.52 | AB64: 1066749.26 | AC64: 1069543.87 | AD64: 1130735.62 | AE64: 1130990.29 | AF64: 1666558.38 | AG64: 1633343.32 | AH64: 1634763.68 | AI64: 1662763.95 | AJ64: 1656906.97
A65: 1 | B65: 1986 | C65: NB | D65: ='00_SAV'!E61 -> 1122242.62 | E65: ='00_SAV'!F61 -> 1064994.42 | F65: ='00_SAV'!G61 -> 1098642.98 | G65: ='00_SAV'!H61 -> 1150082.84 | H65: ='00_SAV'!I61 -> 1158390.04 | I65: ='00_SAV'!J61 -> 1162229.81 | J65: ='00_SAV'!K61 -> 1165350.16 | K65: ='00_SAV'!L61 -> 1164359.44 | L65: ='00_SAV'!M61 -> 1188609.32 | M65: ='00_SAV'!N61 -> 1282058.11 | N65: ='00_SAV'!O61 -> 1306113.93 | O65: ='00_SAV'!P61 -> 1256191.92 | P65: ='00_SAV'!Q61 -> 1249480.83 | Q65: ='00_SAV'!R61 -> 1359178.79 | R65: ='00_SAV'!S61 -> 1442692.33 | S65: ='00_SAV'!T61 -> 1427631.73 | U65: 1122242.62 | V65: 1064994.42 | W65: 1098642.98 | X65: 1150082.84 | Y65: 1158390.04 | Z65: 1162229.81 | AA65: 1165350.16 | AB65: 1164359.44 | AC65: 1188609.32 | AD65: 1282058.11 | AE65: 1306113.93 | AF65: 1256191.92 | AG65: 1249480.83 | AH65: 1359178.79 | AI65: 1442692.33 | AJ65: 1427631.73
A66: 1 | B66: 1987 | C66: NB | D66: ='00_SAV'!E62 -> 1001605.7 | E66: ='00_SAV'!F62 -> 972051.89 | F66: ='00_SAV'!G62 -> 973318.52 | G66: ='00_SAV'!H62 -> 975847.53 | H66: ='00_SAV'!I62 -> 1239783.05 | I66: ='00_SAV'!J62 -> 1270329.02 | J66: ='00_SAV'!K62 -> 1315839.62 | K66: ='00_SAV'!L62 -> 1298372.35 | L66: ='00_SAV'!M62 -> 1302584.16 | M66: ='00_SAV'!N62 -> 1478121.88 | N66: ='00_SAV'!O62 -> 1478857.29 | O66: ='00_SAV'!P62 -> 1462025.38 | P66: ='00_SAV'!Q62 -> 1481455.03 | Q66: ='00_SAV'!R62 -> 1473477.48 | R66: ='00_SAV'!S62 -> 1570286.66 | S66: ='00_SAV'!T62 -> 1630861.16 | U66: 1001605.7 | V66: 972051.89 | W66: 973318.52 | X66: 975847.53 | Y66: 1239783.05 | Z66: 1270329.02 | AA66: 1315839.62 | AB66: 1298372.35 | AC66: 1302584.16 | AD66: 1478121.88 | AE66: 1478857.29 | AF66: 1462025.38 | AG66: 1481455.03 | AH66: 1473477.48 | AI66: 1570286.66 | AJ66: 1630861.16
A67: 1 | B67: 1988 | C67: NB | D67: ='00_SAV'!E63 -> 2224758.16 | E67: ='00_SAV'!F63 -> 2139861.74 | F67: ='00_SAV'!G63 -> 2133427.65 | G67: ='00_SAV'!H63 -> 3046395.33 | H67: ='00_SAV'!I63 -> 3105604.79 | I67: ='00_SAV'!J63 -> 3133203.12 | J67: ='00_SAV'!K63 -> 2877487.98 | K67: ='00_SAV'!L63 -> 2883982.33 | L67: ='00_SAV'!M63 -> 2862518 | M67: ='00_SAV'!N63 -> 3023379.48 | N67: ='00_SAV'!O63 -> 3207914.32 | O67: ='00_SAV'!P63 -> 3268445.6 | P67: ='00_SAV'!Q63 -> 3225676.07 | Q67: ='00_SAV'!R63 -> 3247291.32 | R67: ='00_SAV'!S63 -> 3309093.48 | S67: ='00_SAV'!T63 -> 3309271.23 | U67: 2224758.16 | V67: 2139861.74 | W67: 2133427.65 | X67: 3046395.33 | Y67: 3105604.79 | Z67: 3133203.12 | AA67: 2877487.98 | AB67: 2883982.33 | AC67: 2862518 | AD67: 3023379.48 | AE67: 3207914.32 | AF67: 3268445.6 | AG67: 3225676.07 | AH67: 3247291.32 | AI67: 3309093.48 | AJ67: 3309271.23
A68: 1 | B68: 1989 | C68: NB | D68: ='00_SAV'!E64 -> 774918.55 | E68: ='00_SAV'!F64 -> 717274.17 | F68: ='00_SAV'!G64 -> 713205.13 | G68: ='00_SAV'!H64 -> 1152944.03 | H68: ='00_SAV'!I64 -> 1201537.27 | I68: ='00_SAV'!J64 -> 1201383.45 | J68: ='00_SAV'!K64 -> 1207444.2 | K68: ='00_SAV'!L64 -> 1208484.01 | L68: ='00_SAV'!M64 -> 1208614.1 | M68: ='00_SAV'!N64 -> 1596288.3 | N68: ='00_SAV'!O64 -> 1595949.89 | O68: ='00_SAV'!P64 -> 1648105.07 | P68: ='00_SAV'!Q64 -> 1644749.06 | Q68: ='00_SAV'!R64 -> 1653024.38 | R68: ='00_SAV'!S64 -> 1661129.35 | S68: ='00_SAV'!T64 -> 1660936.34 | U68: 774918.55 | V68: 717274.17 | W68: 713205.13 | X68: 1152944.03 | Y68: 1201537.27 | Z68: 1201383.45 | AA68: 1207444.2 | AB68: 1208484.01 | AC68: 1208614.1 | AD68: 1596288.3 | AE68: 1595949.89 | AF68: 1648105.07 | AG68: 1644749.06 | AH68: 1653024.38 | AI68: 1661129.35 | AJ68: 1660936.34
A69: 1 | B69: 1990 | C69: NB | D69: ='00_SAV'!E65 -> 2551702.16 | E69: ='00_SAV'!F65 -> 2642439.43 | F69: ='00_SAV'!G65 -> 2852978.43 | G69: ='00_SAV'!H65 -> 2930727.77 | H69: ='00_SAV'!I65 -> 3091304.78 | I69: ='00_SAV'!J65 -> 3133945.06 | J69: ='00_SAV'!K65 -> 3972130.71 | K69: ='00_SAV'!L65 -> 3834444.59 | L69: ='00_SAV'!M65 -> 3823174.51 | M69: ='00_SAV'!N65 -> 4268696.16 | N69: ='00_SAV'!O65 -> 4220365.21 | O69: ='00_SAV'!P65 -> 4180738.45 | P69: ='00_SAV'!Q65 -> 4175821.84 | Q69: ='00_SAV'!R65 -> 3991454.59 | R69: ='00_SAV'!S65 -> 3984724.35 | S69: ='00_SAV'!T65 -> 3984150.66 | U69: 2551702.16 | V69: 2642439.43 | W69: 2852978.43 | X69: 2930727.77 | Y69: 3091304.78 | Z69: 3133945.06 | AA69: 3972130.71 | AB69: 3834444.59 | AC69: 3823174.51 | AD69: 4268696.16 | AE69: 4220365.21 | AF69: 4180738.45 | AG69: 4175821.84 | AH69: 3991454.59 | AI69: 3984724.35 | AJ69: 3984150.66
A70: 1 | B70: 1991 | C70: NB | D70: ='00_SAV'!E66 -> 3401266.28 | E70: ='00_SAV'!F66 -> 3182128.67 | F70: ='00_SAV'!G66 -> 3224799.13 | G70: ='00_SAV'!H66 -> 3474927.66 | H70: ='00_SAV'!I66 -> 4065144.8 | I70: ='00_SAV'!J66 -> 4051200.86 | J70: ='00_SAV'!K66 -> 4126301.94 | K70: ='00_SAV'!L66 -> 4120297.33 | L70: ='00_SAV'!M66 -> 4123559.36 | M70: ='00_SAV'!N66 -> 4446079.68 | N70: ='00_SAV'!O66 -> 4413029.32 | O70: ='00_SAV'!P66 -> 4416329.44 | P70: ='00_SAV'!Q66 -> 4380240.06 | Q70: ='00_SAV'!R66 -> 4352281.81 | R70: ='00_SAV'!S66 -> 4442676.59 | S70: ='00_SAV'!T66 -> 4422116.65 | U70: 3401266.28 | V70: 3182128.67 | W70: 3224799.13 | X70: 3474927.66 | Y70: 4065144.8 | Z70: 4051200.86 | AA70: 4126301.94 | AB70: 4120297.33 | AC70: 4123559.36 | AD70: 4446079.68 | AE70: 4413029.32 | AF70: 4416329.44 | AG70: 4380240.06 | AH70: 4352281.81 | AI70: 4442676.59 | AJ70: 4422116.65
A71: 1 | B71: 1992 | C71: NB | D71: ='00_SAV'!E67 -> 1729459.55 | E71: ='00_SAV'!F67 -> 1587020.97 | F71: ='00_SAV'!G67 -> 1597871.28 | G71: ='00_SAV'!H67 -> 1497973.95 | H71: ='00_SAV'!I67 -> 6218819.39 | I71: ='00_SAV'!J67 -> 6136141.52 | J71: ='00_SAV'!K67 -> 8989835.56 | K71: ='00_SAV'!L67 -> 8972910.84 | L71: ='00_SAV'!M67 -> 8974337.12 | M71: ='00_SAV'!N67 -> 9162006.23 | N71: ='00_SAV'!O67 -> 9093146.98 | O71: ='00_SAV'!P67 -> 9066494.24 | P71: ='00_SAV'!Q67 -> 9060815.51 | Q71: ='00_SAV'!R67 -> 9178080.71 | R71: ='00_SAV'!S67 -> 9187304.85 | S71: ='00_SAV'!T67 -> 9185608.43 | U71: 1729459.55 | V71: 1587020.97 | W71: 1597871.28 | X71: 1497973.95 | Y71: 6218819.39 | Z71: 6136141.52 | AA71: 8989835.56 | AB71: 8972910.84 | AC71: 8974337.12 | AD71: 9162006.23 | AE71: 9093146.98 | AF71: 9066494.24 | AG71: 9060815.51 | AH71: 9178080.71 | AI71: 9187304.85 | AJ71: 9185608.43
A72: 1 | B72: 1993 | C72: NB | D72: ='00_SAV'!E68 -> 2323475.07 | E72: ='00_SAV'!F68 -> 2147880.38 | F72: ='00_SAV'!G68 -> 2282094.58 | G72: ='00_SAV'!H68 -> 2282379.93 | H72: ='00_SAV'!I68 -> 4504235.66 | I72: ='00_SAV'!J68 -> 4461461.01 | J72: ='00_SAV'!K68 -> 4600296.06 | K72: ='00_SAV'!L68 -> 4603155.76 | L72: ='00_SAV'!M68 -> 4653762.87 | M72: ='00_SAV'!N68 -> 4633697.38 | N72: ='00_SAV'!O68 -> 5429828.94 | O72: ='00_SAV'!P68 -> 5588790.63 | P72: ='00_SAV'!Q68 -> 5627019.58 | Q72: ='00_SAV'!R68 -> 5599385.44 | R72: ='00_SAV'!S68 -> 5754026.36 | S72: ='00_SAV'!T68 -> 5731320.93 | U72: 2323475.07 | V72: 2147880.38 | W72: 2282094.58 | X72: 2282379.93 | Y72: 4504235.66 | Z72: 4461461.01 | AA72: 4600296.06 | AB72: 4603155.76 | AC72: 4653762.87 | AD72: 4633697.38 | AE72: 5429828.94 | AF72: 5588790.63 | AG72: 5627019.58 | AH72: 5599385.44 | AI72: 5754026.36 | AJ72: 5731320.93
A73: 1 | B73: 1994 | C73: NB | D73: ='00_SAV'!E69 -> 3221323.2 | E73: ='00_SAV'!F69 -> 3098436.71 | F73: ='00_SAV'!G69 -> 3038775.86 | G73: ='00_SAV'!H69 -> 3147752.66 | H73: ='00_SAV'!I69 -> 4135610.08 | I73: ='00_SAV'!J69 -> 4113161.77 | J73: ='00_SAV'!K69 -> 4225594.44 | K73: ='00_SAV'!L69 -> 4174430.97 | L73: ='00_SAV'!M69 -> 4172036.57 | M73: ='00_SAV'!N69 -> 4277235.94 | N73: ='00_SAV'!O69 -> 4419955.37 | O73: ='00_SAV'!P69 -> 4478803.02 | P73: ='00_SAV'!Q69 -> 4523690.93 | Q73: ='00_SAV'!R69 -> 4509371.95 | R73: ='00_SAV'!S69 -> 4498711.25 | S73: ='00_SAV'!T69 -> 4495396.91 | U73: =D73 -> 3221323.2 | V73: 3098436.71 | W73: 3038775.86 | X73: 3147752.66 | Y73: 4135610.08 | Z73: 4113161.77 | AA73: 4225594.44 | AB73: 4174430.97 | AC73: 4172036.57 | AD73: 4277235.94 | AE73: 4419955.37 | AF73: 4478803.02 | AG73: 4523690.93 | AH73: 4509371.95 | AI73: 4498711.25 | AJ73: 4495396.91
A74: 1 | B74: 1995 | C74: NB | D74: ='00_SAV'!E70 -> 3767697.32 | E74: ='00_SAV'!F70 -> 3649726.66 | F74: ='00_SAV'!G70 -> 3652646.77 | G74: ='00_SAV'!H70 -> 3752954.76 | H74: ='00_SAV'!I70 -> 4327655.85 | I74: ='00_SAV'!J70 -> 4194112.11 | J74: ='00_SAV'!K70 -> 4455140.24 | K74: ='00_SAV'!L70 -> 4250473.78 | L74: ='00_SAV'!M70 -> 4394640.33 | M74: ='00_SAV'!N70 -> 4398385.07 | N74: ='00_SAV'!O70 -> 4379932.5 | O74: ='00_SAV'!P70 -> 4602625.89 | P74: ='00_SAV'!Q70 -> 4555512.78 | Q74: ='00_SAV'!R70 -> 4507574.66 | R74: ='00_SAV'!S70 -> 4585011.22 | S74: ='00_SAV'!T70 -> 4832088.09 | U74: 3767697.32 | V74: 3649726.66 | W74: 3652646.77 | X74: 3752954.76 | Y74: 4327655.85 | Z74: 4194112.11 | AA74: 4455140.24 | AB74: 4250473.78 | AC74: 4394640.33 | AD74: 4398385.07 | AE74: 4379932.5 | AF74: 4602625.89 | AG74: 4555512.78 | AH74: 4507574.66 | AI74: 4585011.22 | AJ74: 4832088.09
A75: 1 | B75: 1996 | C75: NB | D75: ='00_SAV'!E71 -> 2581063.71 | E75: ='00_SAV'!F71 -> 2469024.51 | F75: ='00_SAV'!G71 -> 2536514.78 | G75: ='00_SAV'!H71 -> 2536197.87 | H75: ='00_SAV'!I71 -> 3765766.76 | I75: ='00_SAV'!J71 -> 3807988.75 | J75: ='00_SAV'!K71 -> 4261810.95 | K75: ='00_SAV'!L71 -> 4990593.86 | L75: ='00_SAV'!M71 -> 5052676.54 | M75: ='00_SAV'!N71 -> 5099589.22 | N75: ='00_SAV'!O71 -> 5098559.94 | O75: ='00_SAV'!P71 -> 4994321.21 | P75: ='00_SAV'!Q71 -> 5040347.39 | Q75: ='00_SAV'!R71 -> 5052773.73 | R75: ='00_SAV'!S71 -> 4985964.13 | S75: ='00_SAV'!T71 -> 5165346.63 | U75: 2581063.71 | V75: 2469024.51 | W75: 2536514.78 | X75: 2536197.87 | Y75: 3765766.76 | Z75: 3807988.75 | AA75: 4261810.95 | AB75: 4990593.86 | AC75: 5052676.54 | AD75: 5099589.22 | AE75: 5098559.94 | AF75: 4994321.21 | AG75: 5040347.39 | AH75: 5052773.73 | AI75: 4985964.13 | AJ75: 5165346.63
A76: 1 | B76: 1997 | C76: NB | D76: ='00_SAV'!E72 -> 3052719.09 | E76: ='00_SAV'!F72 -> 2742261.03 | F76: ='00_SAV'!G72 -> 2942317.13 | G76: ='00_SAV'!H72 -> 3007126.13 | H76: ='00_SAV'!I72 -> 4632501.64 | I76: ='00_SAV'!J72 -> 4687739.34 | J76: ='00_SAV'!K72 -> 5237199.7 | K76: ='00_SAV'!L72 -> 5269880.26 | L76: ='00_SAV'!M72 -> 5404028.36 | M76: ='00_SAV'!N72 -> 5541570.87 | N76: ='00_SAV'!O72 -> 5426670.55 | O76: ='00_SAV'!P72 -> 5388257.33 | P76: ='00_SAV'!Q72 -> 5385951.34 | Q76: ='00_SAV'!R72 -> 5367757.89 | R76: ='00_SAV'!S72 -> 5458981 | S76: ='00_SAV'!T72 -> 5399084.49 | U76: 3052719.09 | V76: 2742261.03 | W76: 2942317.13 | X76: 3007126.13 | Y76: 4632501.64 | Z76: 4687739.34 | AA76: 5237199.7 | AB76: 5269880.26 | AC76: 5404028.36 | AD76: 5541570.87 | AE76: 5426670.55 | AF76: 5388257.33 | AG76: 5385951.34 | AH76: 5367757.89 | AI76: 5458981 | AJ76: 5399084.49
A77: 1 | B77: 1998 | C77: NB | D77: ='00_SAV'!E73 -> 2381321.45 | E77: ='00_SAV'!F73 -> 2256787.8 | F77: ='00_SAV'!G73 -> 2300350.44 | G77: ='00_SAV'!H73 -> 2408597 | H77: ='00_SAV'!I73 -> 4917982.33 | I77: ='00_SAV'!J73 -> 4937858.58 | J77: ='00_SAV'!K73 -> 5274910.76 | K77: ='00_SAV'!L73 -> 5275058.33 | L77: ='00_SAV'!M73 -> 5216059.31 | M77: ='00_SAV'!N73 -> 5230180.25 | N77: ='00_SAV'!O73 -> 5239282.3 | O77: ='00_SAV'!P73 -> 5247888.66 | P77: ='00_SAV'!Q73 -> 5234573.7 | Q77: ='00_SAV'!R73 -> 5295422.03 | R77: ='00_SAV'!S73 -> 5278921.65 | S77: ='00_SAV'!T73 -> 5268705.26 | U77: 2381321.45 | V77: 2256787.8 | W77: 2300350.44 | X77: 2408597 | Y77: 4917982.33 | Z77: 4937858.58 | AA77: 5274910.76 | AB77: 5275058.33 | AC77: 5216059.31 | AD77: 5230180.25 | AE77: 5239282.3 | AF77: 5247888.66 | AG77: 5234573.7 | AH77: 5295422.03 | AI77: 5278921.65 | AJ77: 5268705.26
A78: 1 | B78: 1999 | C78: NB | D78: ='00_SAV'!E74 -> 2149619.14 | E78: ='00_SAV'!F74 -> 2326858.46 | F78: ='00_SAV'!G74 -> 2275613.63 | G78: ='00_SAV'!H74 -> 2266132.3 | H78: ='00_SAV'!I74 -> 3545290.63 | I78: ='00_SAV'!J74 -> 3566829.82 | J78: ='00_SAV'!K74 -> 3715522.38 | K78: ='00_SAV'!L74 -> 3695100.69 | L78: ='00_SAV'!M74 -> 3701525.82 | M78: ='00_SAV'!N74 -> 3783360.83 | N78: ='00_SAV'!O74 -> 3803363.41 | O78: ='00_SAV'!P74 -> 4271024.43 | P78: ='00_SAV'!Q74 -> 4258843.9 | Q78: ='00_SAV'!R74 -> 4204852.29 | R78: ='00_SAV'!S74 -> 4241978.87 | S78: ='00_SAV'!T74 -> 4229824.01 | U78: 2149619.14 | V78: 2326858.46 | W78: 2275613.63 | X78: 2266132.3 | Y78: 3545290.63 | Z78: 3566829.82 | AA78: 3715522.38 | AB78: 3695100.69 | AC78: 3701525.82 | AD78: 3783360.83 | AE78: 3803363.41 | AF78: 4271024.43 | AG78: 4258843.9 | AH78: 4204852.29 | AI78: 4241978.87 | AJ78: 4229824.01
A79: 1 | B79: 2000 | C79: NB | D79: ='00_SAV'!E75 -> 2578452.46 | E79: ='00_SAV'!F75 -> 2504392.18 | F79: ='00_SAV'!G75 -> 2563559.86 | G79: ='00_SAV'!H75 -> 2579281.99 | H79: ='00_SAV'!I75 -> 2729272.09 | I79: ='00_SAV'!J75 -> 2730362.19 | J79: ='00_SAV'!K75 -> 4698994.9 | K79: ='00_SAV'!L75 -> 4696850.26 | L79: ='00_SAV'!M75 -> 4760917.25 | M79: ='00_SAV'!N75 -> 4988130.12 | N79: ='00_SAV'!O75 -> 4977070.06 | O79: ='00_SAV'!P75 -> 5233860.2 | P79: ='00_SAV'!Q75 -> 5349535.95 | Q79: ='00_SAV'!R75 -> 5315495.59 | R79: ='00_SAV'!S75 -> 5323089.06 | S79: ='00_SAV'!T75 -> 5305015.22 | U79: 2578452.46 | V79: 2504392.18 | W79: 2563559.86 | X79: 2579281.99 | Y79: 2729272.09 | Z79: 2730362.19 | AA79: 4698994.9 | AB79: 4696850.26 | AC79: 4760917.25 | AD79: 4988130.12 | AE79: 4977070.06 | AF79: 5233860.2 | AG79: 5349535.95 | AH79: 5315495.59 | AI79: 5323089.06 | AJ79: 5305015.22
A80: 1 | B80: 2001 | C80: NB | D80: ='00_SAV'!E76 -> 2812333.27 | E80: ='00_SAV'!F76 -> 2795809.31 | F80: ='00_SAV'!G76 -> 2804850.75 | G80: ='00_SAV'!H76 -> 2807585.03 | H80: ='00_SAV'!I76 -> 3354590.87 | I80: ='00_SAV'!J76 -> 3364392.44 | J80: ='00_SAV'!K76 -> 3445834.14 | K80: ='00_SAV'!L76 -> 3424085.24 | L80: ='00_SAV'!M76 -> 3430397.38 | M80: ='00_SAV'!N76 -> 3744811.72 | N80: ='00_SAV'!O76 -> 3723731.3 | O80: ='00_SAV'!P76 -> 2763019.16 | P80: ='00_SAV'!Q76 -> 2778688.62 | Q80: ='00_SAV'!R76 -> 2775056.75 | R80: ='00_SAV'!S76 -> 2781085.14 | S80: ='00_SAV'!T76 -> 2786713.48 | U80: 2812333.27 | V80: 2795809.31 | W80: 2804850.75 | X80: 2807585.03 | Y80: 3354590.87 | Z80: 3364392.44 | AA80: 3445834.14 | AB80: 3424085.24 | AC80: 3430397.38 | AD80: 3744811.72 | AE80: 3723731.3 | AF80: 2763019.16 | AG80: 2778688.62 | AH80: 2775056.75 | AI80: 2781085.14 | AJ80: 2786713.48
A81: 1 | B81: 2002 | C81: NB | D81: ='00_SAV'!E77 -> 1559380.32 | E81: ='00_SAV'!F77 -> 1508910.11 | F81: ='00_SAV'!G77 -> 1496817.78 | G81: ='00_SAV'!H77 -> 1515948.25 | H81: ='00_SAV'!I77 -> 1908292.85 | I81: ='00_SAV'!J77 -> 1949196.99 | J81: ='00_SAV'!K77 -> 1963173.98 | K81: ='00_SAV'!L77 -> 1890095.71 | L81: ='00_SAV'!M77 -> 2642316.17 | M81: ='00_SAV'!N77 -> 2586283.38 | N81: ='00_SAV'!O77 -> 2384058.63 | O81: ='00_SAV'!P77 -> 2498364.52 | P81: ='00_SAV'!Q77 -> 2456431.76 | Q81: ='00_SAV'!R77 -> 2496925.05 | R81: ='00_SAV'!S77 -> 2532760.94 | S81: ='00_SAV'!T77 -> 2509654.71 | U81: 1559380.32 | V81: 1508910.11 | W81: 1496817.78 | X81: 1515948.25 | Y81: 1908292.85 | Z81: 1949196.99 | AA81: 1963173.98 | AB81: 1890095.71 | AC81: 2642316.17 | AD81: 2586283.38 | AE81: 2384058.63 | AF81: 2498364.52 | AG81: 2456431.76 | AH81: 2496925.05 | AI81: 2532760.94 | AJ81: 2509654.71
A82: 1 | B82: 2003 | C82: NB | D82: ='00_SAV'!E78 -> 3863589.44 | E82: ='00_SAV'!F78 -> 3430013.45 | F82: ='00_SAV'!G78 -> 3436668.77 | G82: ='00_SAV'!H78 -> 3437996.36 | H82: ='00_SAV'!I78 -> 3603569.4 | I82: ='00_SAV'!J78 -> 3623913.31 | J82: ='00_SAV'!K78 -> 3590077.64 | K82: ='00_SAV'!L78 -> 3555037.17 | L82: ='00_SAV'!M78 -> 3542058.61 | M82: ='00_SAV'!N78 -> 4323875.81 | N82: ='00_SAV'!O78 -> 4223402.84 | O82: ='00_SAV'!P78 -> 3257265.66 | P82: ='00_SAV'!Q78 -> 3305493.74 | Q82: ='00_SAV'!R78 -> 3291001.97 | R82: ='00_SAV'!S78 -> 3308685.9 | S82: ='00_SAV'!T78 -> 3340221.6 | U82: 3863589.44 | V82: 3430013.45 | W82: 3436668.77 | X82: 3437996.36 | Y82: 3603569.4 | Z82: 3623913.31 | AA82: 3590077.64 | AB82: 3555037.17 | AC82: 3542058.61 | AD82: 4323875.81 | AE82: 4223402.84 | AF82: 3257265.66 | AG82: 3305493.74 | AH82: 3291001.97 | AI82: 3308685.9 | AJ82: 3340221.6
A83: 1 | B83: 2004 | C83: NB | D83: ='00_SAV'!E79 -> 1802632.14 | E83: ='00_SAV'!F79 -> 1631087.43 | F83: ='00_SAV'!G79 -> 1678361.25 | G83: ='00_SAV'!H79 -> 1684136.79 | H83: ='00_SAV'!I79 -> 2143301.34 | I83: ='00_SAV'!J79 -> 2107447.63 | J83: ='00_SAV'!K79 -> 2133662.91 | K83: ='00_SAV'!L79 -> 2111697.35 | L83: ='00_SAV'!M79 -> 2117300.94 | M83: ='00_SAV'!N79 -> 2247387.03 | N83: ='00_SAV'!O79 -> 2237261.66 | O83: ='00_SAV'!P79 -> 2418669.59 | P83: ='00_SAV'!Q79 -> 2409655.9 | Q83: ='00_SAV'!R79 -> 2360450.65 | R83: ='00_SAV'!S79 -> 2403480.71 | S83: ='00_SAV'!T79 -> 2369275.37 | U83: 1802632.14 | V83: 1631087.43 | W83: 1678361.25 | X83: 1684136.79 | Y83: 2143301.34 | Z83: 2107447.63 | AA83: 2133662.91 | AB83: 2111697.35 | AC83: 2117300.94 | AD83: 2247387.03 | AE83: 2237261.66 | AF83: 2418669.59 | AG83: 2409655.9 | AH83: 2360450.65 | AI83: 2403480.71 | AJ83: 2369275.37
A84: 1 | B84: 2005 | C84: NB | D84: ='00_SAV'!E80 -> 1931517.62 | E84: ='00_SAV'!F80 -> 1782434.81 | F84: ='00_SAV'!G80 -> 1790497.74 | G84: ='00_SAV'!H80 -> 1792882.12 | H84: ='00_SAV'!I80 -> 2918443.56 | I84: ='00_SAV'!J80 -> 2932906.79 | J84: ='00_SAV'!K80 -> 3289617.68 | K84: ='00_SAV'!L80 -> 3314868.38 | L84: ='00_SAV'!M80 -> 3341327.49 | M84: ='00_SAV'!N80 -> 3190555.06 | N84: ='00_SAV'!O80 -> 3189930.74 | O84: ='00_SAV'!P80 -> 3338259.04 | P84: ='00_SAV'!Q80 -> 3316567.38 | Q84: ='00_SAV'!R80 -> 3340533.91 | R84: ='00_SAV'!S80 -> 3549354.31 | S84: ='00_SAV'!T80 -> 3535021.13 | U84: 1931517.62 | V84: 1782434.81 | W84: 1790497.74 | X84: 1792882.12 | Y84: 2918443.56 | Z84: 2932906.79 | AA84: 3289617.68 | AB84: 3314868.38 | AC84: 3341327.49 | AD84: 3190555.06 | AE84: 3189930.74 | AF84: 3338259.04 | AG84: 3316567.38 | AH84: 3340533.91 | AI84: 3549354.31 | AJ84: 3535021.13
A85: 1 | B85: 2006 | C85: NB | D85: ='00_SAV'!E81 -> 1649193.66 | E85: ='00_SAV'!F81 -> 1522795.21 | F85: ='00_SAV'!G81 -> 1589622.57 | G85: ='00_SAV'!H81 -> 1650714.42 | H85: ='00_SAV'!I81 -> 1719599.95 | I85: ='00_SAV'!J81 -> 1828826.49 | J85: ='00_SAV'!K81 -> 1998243.31 | K85: ='00_SAV'!L81 -> 2552356.71 | L85: ='00_SAV'!M81 -> 2527013.49 | M85: ='00_SAV'!N81 -> 2590826.12 | N85: ='00_SAV'!O81 -> 2524261.97 | O85: ='00_SAV'!P81 -> 2373863.89 | P85: ='00_SAV'!Q81 -> 2457052.15 | Q85: ='00_SAV'!R81 -> 2437934.19 | R85: ='00_SAV'!S81 -> 2449007.95 | S85: ='00_SAV'!T81 -> 2320295.42 | U85: 1649193.66 | V85: 1522795.21 | W85: 1589622.57 | X85: 1650714.42 | Y85: 1719599.95 | Z85: 1828826.49 | AA85: 1998243.31 | AB85: 2552356.71 | AC85: 2527013.49 | AD85: 2590826.12 | AE85: 2524261.97 | AF85: 2373863.89 | AG85: 2457052.15 | AH85: 2437934.19 | AI85: 2449007.95 | AJ85: 2320295.42
A86: 1 | B86: 2007 | C86: NB | D86: ='00_SAV'!E82 -> 0 | E86: ='00_SAV'!F82 -> 1341048.99 | F86: ='00_SAV'!G82 -> 1251454.32 | G86: ='00_SAV'!H82 -> 1286557.88 | H86: ='00_SAV'!I82 -> 1403854.97 | I86: ='00_SAV'!J82 -> 1431869.41 | J86: ='00_SAV'!K82 -> 1573457.76 | K86: ='00_SAV'!L82 -> 1576006.41 | L86: ='00_SAV'!M82 -> 1564802.55 | M86: ='00_SAV'!N82 -> 1568816.89 | N86: ='00_SAV'!O82 -> 1600577.5 | O86: ='00_SAV'!P82 -> 1601230.78 | P86: ='00_SAV'!Q82 -> 1616557.07 | Q86: ='00_SAV'!R82 -> 1621851.9 | R86: ='00_SAV'!S82 -> 1597259.74 | S86: ='00_SAV'!T82 -> 1596824.63 | U86: 0 | V86: 1341048.99 | W86: 1251454.32 | X86: 1286557.88 | Y86: 1403854.97 | Z86: 1431869.41 | AA86: 1573457.76 | AB86: 1576006.41 | AC86: 1564802.55 | AD86: 1568816.89 | AE86: 1600577.5 | AF86: 1601230.78 | AG86: 1616557.07 | AH86: 1621851.9 | AI86: 1597259.74 | AJ86: 1596824.63
A87: 1 | B87: 2008 | C87: NB | D87: ='00_SAV'!E83 -> 0 | E87: ='00_SAV'!F83 -> 0 | F87: ='00_SAV'!G83 -> 2136669.07 | G87: ='00_SAV'!H83 -> 2526209.23 | H87: ='00_SAV'!I83 -> 2385783.99 | I87: ='00_SAV'!J83 -> 2391131.51 | J87: ='00_SAV'!K83 -> 2368192.23 | K87: ='00_SAV'!L83 -> 2368102.24 | L87: ='00_SAV'!M83 -> 2507863.72 | M87: ='00_SAV'!N83 -> 2921612.3 | N87: ='00_SAV'!O83 -> 2906908.48 | O87: ='00_SAV'!P83 -> 3074777.88 | P87: ='00_SAV'!Q83 -> 3070873.56 | Q87: ='00_SAV'!R83 -> 3065717.96 | R87: ='00_SAV'!S83 -> 3009360.63 | S87: ='00_SAV'!T83 -> 2962666.68 | U87: 0 | V87: 0 | W87: 2136669.07 | X87: 2526209.23 | Y87: 2385783.99 | Z87: 2391131.51 | AA87: 2368192.23 | AB87: 2368102.24 | AC87: 2507863.72 | AD87: 2921612.3 | AE87: 2906908.48 | AF87: 3074777.88 | AG87: 3070873.56 | AH87: 3065717.96 | AI87: 3009360.63 | AJ87: 2962666.68
A88: 1 | B88: 2009 | C88: NB | D88: ='00_SAV'!E84 -> 0 | E88: ='00_SAV'!F84 -> 0 | F88: ='00_SAV'!G84 -> 0 | G88: ='00_SAV'!H84 -> 3078875.47 | H88: ='00_SAV'!I84 -> 2996892.83 | I88: ='00_SAV'!J84 -> 3007171.79 | J88: ='00_SAV'!K84 -> 3020174.33 | K88: ='00_SAV'!L84 -> 3030710.04 | L88: ='00_SAV'!M84 -> 3029159.87 | M88: ='00_SAV'!N84 -> 3122371.14 | N88: ='00_SAV'!O84 -> 3069157.06 | O88: ='00_SAV'!P84 -> 3258621.83 | P88: ='00_SAV'!Q84 -> 3248446.95 | Q88: ='00_SAV'!R84 -> 3243183.14 | R88: ='00_SAV'!S84 -> 3242014.39 | S88: ='00_SAV'!T84 -> 3133923.66 | U88: 0 | V88: 0 | W88: 0 | X88: 3078875.47 | Y88: 2996892.83 | Z88: 3007171.79 | AA88: 3020174.33 | AB88: 3030710.04 | AC88: 3029159.87 | AD88: 3122371.14 | AE88: 3069157.06 | AF88: 3258621.83 | AG88: 3248446.95 | AH88: 3243183.14 | AI88: 3242014.39 | AJ88: 3133923.66
A89: 1 | B89: 2010 | C89: NB | D89: ='00_SAV'!E85 -> 0 | E89: ='00_SAV'!F85 -> 0 | F89: ='00_SAV'!G85 -> 0 | G89: ='00_SAV'!H85 -> 0 | H89: ='00_SAV'!I85 -> 14765147.88 | I89: ='00_SAV'!J85 -> 14481130.36 | J89: ='00_SAV'!K85 -> 14538993.54 | K89: ='00_SAV'!L85 -> 14526538.96 | L89: ='00_SAV'!M85 -> 14523493.35 | M89: ='00_SAV'!N85 -> 14537878.24 | N89: ='00_SAV'!O85 -> 14448266.19 | O89: ='00_SAV'!P85 -> 14759848.47 | P89: ='00_SAV'!Q85 -> 14662858.43 | Q89: ='00_SAV'!R85 -> 14603420.49 | R89: ='00_SAV'!S85 -> 14592083.04 | S89: ='00_SAV'!T85 -> 14590495.69 | U89: 0 | V89: 0 | W89: 0 | X89: 0 | Y89: 14765147.88 | Z89: 14481130.36 | AA89: 14538993.54 | AB89: 14526538.96 | AC89: 14523493.35 | AD89: 14537878.24 | AE89: 14448266.19 | AF89: 14759848.47 | AG89: 14662858.43 | AH89: 14603420.49 | AI89: 14592083.04 | AJ89: 14590495.69
A90: 1 | B90: 2011 | C90: NB | D90: ='00_SAV'!E86 -> 0 | E90: ='00_SAV'!F86 -> 0 | F90: ='00_SAV'!G86 -> 0 | G90: ='00_SAV'!H86 -> 0 | H90: ='00_SAV'!I86 -> 0 | I90: ='00_SAV'!J86 -> 4671581 | J90: ='00_SAV'!K86 -> 4279693.01 | K90: ='00_SAV'!L86 -> 4249750.07 | L90: ='00_SAV'!M86 -> 4180499.27 | M90: ='00_SAV'!N86 -> 4693952.07 | N90: ='00_SAV'!O86 -> 4633247.09 | O90: ='00_SAV'!P86 -> 4458479.96 | P90: ='00_SAV'!Q86 -> 4449436.08 | Q90: ='00_SAV'!R86 -> 4498726.25 | R90: ='00_SAV'!S86 -> 4594512.46 | S90: ='00_SAV'!T86 -> 4557928.85 | U90: =D90 -> 0 | V90: 0 | W90: 0 | X90: 0 | Y90: 0 | Z90: 4671581 | AA90: 4279693.01 | AB90: 4249750.07 | AC90: 4180499.27 | AD90: 4693952.07 | AE90: 4633247.09 | AF90: 4458479.96 | AG90: 4449436.08 | AH90: 4498726.25 | AI90: 4594512.46 | AJ90: 4557928.85
A91: 1 | B91: 2012 | C91: NB | D91: ='00_SAV'!E87 -> 0 | E91: ='00_SAV'!F87 -> 0 | F91: ='00_SAV'!G87 -> 0 | G91: ='00_SAV'!H87 -> 0 | H91: ='00_SAV'!I87 -> 0 | I91: ='00_SAV'!J87 -> 0 | J91: ='00_SAV'!K87 -> 3990876.62 | K91: ='00_SAV'!L87 -> 3704819.95 | L91: ='00_SAV'!M87 -> 2722885.05 | M91: ='00_SAV'!N87 -> 2723861.61 | N91: ='00_SAV'!O87 -> 2383999.2 | O91: ='00_SAV'!P87 -> 2328722.25 | P91: ='00_SAV'!Q87 -> 2326835.8 | Q91: ='00_SAV'!R87 -> 2302504.79 | R91: ='00_SAV'!S87 -> 2300117.34 | S91: ='00_SAV'!T87 -> 2303552.43 | U91: 0 | V91: 0 | W91: 0 | X91: 0 | Y91: 0 | Z91: 0 | AA91: 3990876.62 | AB91: 3704819.95 | AC91: 2722885.05 | AD91: 2723861.61 | AE91: 2383999.2 | AF91: 2328722.25 | AG91: 2326835.8 | AH91: 2302504.79 | AI91: 2300117.34 | AJ91: 2303552.43
A92: 1 | B92: 2013 | C92: NB | D92: ='00_SAV'!E88 -> 0 | E92: ='00_SAV'!F88 -> 0 | F92: ='00_SAV'!G88 -> 0 | G92: ='00_SAV'!H88 -> 0 | H92: ='00_SAV'!I88 -> 0 | I92: ='00_SAV'!J88 -> 0 | J92: ='00_SAV'!K88 -> 0 | K92: ='00_SAV'!L88 -> 2617706.16 | L92: ='00_SAV'!M88 -> 2684077.4 | M92: ='00_SAV'!N88 -> 2675540.46 | N92: ='00_SAV'!O88 -> 2630522.88 | O92: ='00_SAV'!P88 -> 2529354.32 | P92: ='00_SAV'!Q88 -> 2532689.12 | Q92: ='00_SAV'!R88 -> 2562130.97 | R92: ='00_SAV'!S88 -> 2221211.03 | S92: ='00_SAV'!T88 -> 2158886.83 | U92: 0 | V92: 0 | W92: 0 | X92: 0 | Y92: 0 | Z92: 0 | AA92: 0 | AB92: 2617706.16 | AC92: 2684077.4 | AD92: 2675540.46 | AE92: 2630522.88 | AF92: 2529354.32 | AG92: 2532689.12 | AH92: 2562130.97 | AI92: 2221211.03 | AJ92: 2158886.83
A93: 1 | B93: 2014 | C93: NB | D93: ='00_SAV'!E89 -> 0 | E93: ='00_SAV'!F89 -> 0 | F93: ='00_SAV'!G89 -> 0 | G93: ='00_SAV'!H89 -> 0 | H93: ='00_SAV'!I89 -> 0 | I93: ='00_SAV'!J89 -> 0 | J93: ='00_SAV'!K89 -> 0 | K93: ='00_SAV'!L89 -> 0 | L93: ='00_SAV'!M89 -> 5863323.32 | M93: ='00_SAV'!N89 -> 5921153.93 | N93: ='00_SAV'!O89 -> 6092621.39 | O93: ='00_SAV'!P89 -> 6784401.88 | P93: ='00_SAV'!Q89 -> 6459650.04 | Q93: ='00_SAV'!R89 -> 6402447.14 | R93: ='00_SAV'!S89 -> 6465705.48 | S93: ='00_SAV'!T89 -> 6486332.05 | U93: 0 | V93: 0 | W93: 0 | X93: 0 | Y93: 0 | Z93: 0 | AA93: 0 | AB93: 0 | AC93: 5863323.32 | AD93: 5921153.93 | AE93: 6092621.39 | AF93: 6784401.88 | AG93: 6459650.04 | AH93: 6402447.14 | AI93: 6465705.48 | AJ93: 6486332.05
A94: 1 | B94: 2015 | C94: NB | D94: ='00_SAV'!E90 -> 0 | E94: ='00_SAV'!F90 -> 0 | F94: ='00_SAV'!G90 -> 0 | G94: ='00_SAV'!H90 -> 0 | H94: ='00_SAV'!I90 -> 0 | I94: ='00_SAV'!J90 -> 0 | J94: ='00_SAV'!K90 -> 0 | K94: ='00_SAV'!L90 -> 0 | L94: ='00_SAV'!M90 -> 0 | M94: ='00_SAV'!N90 -> 4417175.65 | N94: ='00_SAV'!O90 -> 4351721.15 | O94: ='00_SAV'!P90 -> 4456257.64 | P94: ='00_SAV'!Q90 -> 4453718.33 | Q94: ='00_SAV'!R90 -> 4793983.6 | R94: ='00_SAV'!S90 -> 6422817.34 | S94: ='00_SAV'!T90 -> 6419108.43 | U94: 0 | V94: 0 | W94: 0 | X94: 0 | Y94: 0 | Z94: 0 | AA94: 0 | AB94: 0 | AC94: 0 | AD94: 4417175.65 | AE94: 4351721.15 | AF94: 4456257.64 | AG94: 4453718.33 | AH94: 4793983.6 | AI94: 6422817.34 | AJ94: 6419108.43
A95: 1 | B95: 2016 | C95: NB | D95: ='00_SAV'!E91 -> 0 | E95: ='00_SAV'!F91 -> 0 | F95: ='00_SAV'!G91 -> 0 | G95: ='00_SAV'!H91 -> 0 | H95: ='00_SAV'!I91 -> 0 | I95: ='00_SAV'!J91 -> 0 | J95: ='00_SAV'!K91 -> 0 | K95: ='00_SAV'!L91 -> 0 | L95: ='00_SAV'!M91 -> 0 | M95: ='00_SAV'!N91 -> 0 | N95: ='00_SAV'!O91 -> 5004121.6 | O95: ='00_SAV'!P91 -> 6064623.07 | P95: ='00_SAV'!Q91 -> 5978343.91 | Q95: ='00_SAV'!R91 -> 5988269.16 | R95: ='00_SAV'!S91 -> 6517486.8 | S95: ='00_SAV'!T91 -> 6516539.53 | U95: 0 | V95: 0 | W95: 0 | X95: 0 | Y95: 0 | Z95: 0 | AA95: 0 | AB95: 0 | AC95: 0 | AD95: 0 | AE95: 5004121.6 | AF95: 6064623.07 | AG95: 5978343.91 | AH95: 5988269.16 | AI95: 6517486.8 | AJ95: 6516539.53
A96: 1 | B96: 2017 | C96: NB | D96: ='00_SAV'!E92 -> 0 | E96: ='00_SAV'!F92 -> 0 | F96: ='00_SAV'!G92 -> 0 | G96: ='00_SAV'!H92 -> 0 | H96: ='00_SAV'!I92 -> 0 | I96: ='00_SAV'!J92 -> 0 | J96: ='00_SAV'!K92 -> 0 | K96: ='00_SAV'!L92 -> 0 | L96: ='00_SAV'!M92 -> 0 | M96: ='00_SAV'!N92 -> 0 | N96: ='00_SAV'!O92 -> 0 | O96: ='00_SAV'!P92 -> 2662296.79 | P96: ='00_SAV'!Q92 -> 2621396.07 | Q96: ='00_SAV'!R92 -> 2692033.89 | R96: ='00_SAV'!S92 -> 3029037.28 | S96: ='00_SAV'!T92 -> 3031330.03 | U96: 0 | V96: 0 | W96: 0 | X96: 0 | Y96: 0 | Z96: 0 | AA96: 0 | AB96: 0 | AC96: 0 | AD96: 0 | AE96: 0 | AF96: 2662296.79 | AG96: 2621396.07 | AH96: 2692033.89 | AI96: 3029037.28 | AJ96: 3031330.03
A97: 1 | B97: 2018 | C97: NB | D97: ='00_SAV'!E93 -> 0 | E97: ='00_SAV'!F93 -> 0 | F97: ='00_SAV'!G93 -> 0 | G97: ='00_SAV'!H93 -> 0 | H97: ='00_SAV'!I93 -> 0 | I97: ='00_SAV'!J93 -> 0 | J97: ='00_SAV'!K93 -> 0 | K97: ='00_SAV'!L93 -> 0 | L97: ='00_SAV'!M93 -> 0 | M97: ='00_SAV'!N93 -> 0 | N97: ='00_SAV'!O93 -> 0 | O97: ='00_SAV'!P93 -> 0 | P97: ='00_SAV'!Q93 -> 10309050.86 | Q97: ='00_SAV'!R93 -> 10399173.72 | R97: ='00_SAV'!S93 -> 10851399.82 | S97: ='00_SAV'!T93 -> 10826297.65 | U97: 0 | V97: 0 | W97: 0 | X97: 0 | Y97: 0 | Z97: 0 | AA97: 0 | AB97: 0 | AC97: 0 | AD97: 0 | AE97: 0 | AF97: 0 | AG97: 10309050.86 | AH97: 10399173.72 | AI97: 10851399.82 | AJ97: 10826297.65
A98: 1 | B98: 2019 | C98: NB | D98: ='00_SAV'!E94 -> 0 | E98: ='00_SAV'!F94 -> 0 | F98: ='00_SAV'!G94 -> 0 | G98: ='00_SAV'!H94 -> 0 | H98: ='00_SAV'!I94 -> 0 | I98: ='00_SAV'!J94 -> 0 | J98: ='00_SAV'!K94 -> 0 | K98: ='00_SAV'!L94 -> 0 | L98: ='00_SAV'!M94 -> 0 | M98: ='00_SAV'!N94 -> 0 | N98: ='00_SAV'!O94 -> 0 | O98: ='00_SAV'!P94 -> 0 | P98: ='00_SAV'!Q94 -> 0 | Q98: ='00_SAV'!R94 -> 11872989.71 | R98: ='00_SAV'!S94 -> 11987036.32 | S98: ='00_SAV'!T94 -> 11647642.84 | U98: 0 | V98: 0 | W98: 0 | X98: 0 | Y98: 0 | Z98: 0 | AA98: 0 | AB98: 0 | AC98: 0 | AD98: 0 | AE98: 0 | AF98: 0 | AG98: 0 | AH98: 11872989.71 | AI98: 11987036.32 | AJ98: 11647642.84
A99: 1 | B99: 2020 | C99: NB | D99: ='00_SAV'!E95 -> 0 | E99: ='00_SAV'!F95 -> 0 | F99: ='00_SAV'!G95 -> 0 | G99: ='00_SAV'!H95 -> 0 | H99: ='00_SAV'!I95 -> 0 | I99: ='00_SAV'!J95 -> 0 | J99: ='00_SAV'!K95 -> 0 | K99: ='00_SAV'!L95 -> 0 | L99: ='00_SAV'!M95 -> 0 | M99: ='00_SAV'!N95 -> 0 | N99: ='00_SAV'!O95 -> 0 | O99: ='00_SAV'!P95 -> 0 | P99: ='00_SAV'!Q95 -> 0 | Q99: ='00_SAV'!R95 -> 0 | R99: ='00_SAV'!S95 -> 5358556.09 | S99: ='00_SAV'!T95 -> 5025925.51 | U99: 0 | V99: 0 | W99: 0 | X99: 0 | Y99: 0 | Z99: 0 | AA99: 0 | AB99: 0 | AC99: 0 | AD99: 0 | AE99: 0 | AF99: 0 | AG99: 0 | AH99: 0 | AI99: 5358556.09 | AJ99: 5025925.51
A100: 1 | B100: 2021 | C100: NB | D100: ='00_SAV'!E96 -> 0 | E100: ='00_SAV'!F96 -> 0 | F100: ='00_SAV'!G96 -> 0 | G100: ='00_SAV'!H96 -> 0 | H100: ='00_SAV'!I96 -> 0 | I100: ='00_SAV'!J96 -> 0 | J100: ='00_SAV'!K96 -> 0 | K100: ='00_SAV'!L96 -> 0 | L100: ='00_SAV'!M96 -> 0 | M100: ='00_SAV'!N96 -> 0 | N100: ='00_SAV'!O96 -> 0 | O100: ='00_SAV'!P96 -> 0 | P100: ='00_SAV'!Q96 -> 0 | Q100: ='00_SAV'!R96 -> 0 | R100: ='00_SAV'!S96 -> 0 | S100: ='00_SAV'!T96 -> 6447686.28 | U100: 0 | V100: 0 | W100: 0 | X100: 0 | Y100: 0 | Z100: 0 | AA100: 0 | AB100: 0 | AC100: 0 | AD100: 0 | AE100: 0 | AF100: 0 | AG100: 0 | AH100: 0 | AI100: 0 | AJ100: 6447686.28
A101: 2 | B101: 1930 | C101: NB | D101: =((VLOOKUP($D$8,Faktorreihen!$B$6:$V$205,VLOOKUP($A101,Zuordnung_Faktorreihen!$B$3:$E$100,4,0),0))/(VLOOKUP($B101,Faktorreihen!$B$6:$V$205,VLOOKUP($A101,Zuordnung_Faktorreihen!$B$3:$E$100,4,0),0)))*'00_SAV'!E97 -> 170268.1976 | E101: =((VLOOKUP($D$8,Faktorreihen!$B$6:$V$205,VLOOKUP($A101,Zuordnung_Faktorreihen!$B$3:$E$100,4,0),0))/(VLOOKUP($B101,Faktorreihen!$B$6:$V$205,VLOOKUP($A101,Zuordnung_Faktorreihen!$B$3:$E$100,4,0),0)))*'00_SAV'!F97 -> 170268.1976 | F101: =((VLOOKUP($D$8,Faktorreihen!$B$6:$V$205,VLOOKUP($A101,Zuordnung_Faktorreihen!$B$3:$E$100,4,0),0))/(VLOOKUP($B101,Faktorreihen!$B$6:$V$205,VLOOKUP($A101,Zuordnung_Faktorreihen!$B$3:$E$100,4,0),0)))*'00_SAV'!G97 -> 170268.1976 | G101: =((VLOOKUP($D$8,Faktorreihen!$B$6:$V$205,VLOOKUP($A101,Zuordnung_Faktorreihen!$B$3:$E$100,4,0),0))/(VLOOKUP($B101,Faktorreihen!$B$6:$V$205,VLOOKUP($A101,Zuordnung_Faktorreihen!$B$3:$E$100,4,0),0)))*'00_SAV'!H97 -> 170268.1976 | H101: =((VLOOKUP($D$8,Faktorreihen!$B$6:$V$205,VLOOKUP($A101,Zuordnung_Faktorreihen!$B$3:$E$100,4,0),0))/(VLOOKUP($B101,Faktorreihen!$B$6:$V$205,VLOOKUP($A101,Zuordnung_Faktorreihen!$B$3:$E$100,4,0),0)))*'00_SAV'!I97 -> 170268.1976 | I101: =((VLOOKUP($D$8,Faktorreihen!$B$6:$V$205,VLOOKUP($A101,Zuordnung_Faktorreihen!$B$3:$E$100,4,0),0))/(VLOOKUP($B101,Faktorreihen!$B$6:$V$205,VLOOKUP($A101,Zuordnung_Faktorreihen!$B$3:$E$100,4,0),0)))*'00_SAV'!J97 -> 170268.1976 | J101: =((VLOOKUP($D$8,Faktorreihen!$B$6:$V$205,VLOOKUP($A101,Zuordnung_Faktorreihen!$B$3:$E$100,4,0),0))/(VLOOKUP($B101,Faktorreihen!$B$6:$V$205,VLOOKUP($A101,Zuordnung_Faktorreihen!$B$3:$E$100,4,0),0)))*'00_SAV'!K97 -> 170268.1976 | K101: =((VLOOKUP($D$8,Faktorreihen!$B$6:$V$205,VLOOKUP($A101,Zuordnung_Faktorreihen!$B$3:$E$100,4,0),0))/(VLOOKUP($B101,Faktorreihen!$B$6:$V$205,VLOOKUP($A101,Zuordnung_Faktorreihen!$B$3:$E$100,4,0),0)))*'00_SAV'!L97 -> 170268.1976 | L101: =((VLOOKUP($D$8,Faktorreihen!$B$6:$V$205,VLOOKUP($A101,Zuordnung_Faktorreihen!$B$3:$E$100,4,0),0))/(VLOOKUP($B101,Faktorreihen!$B$6:$V$205,VLOOKUP($A101,Zuordnung_Faktorreihen!$B$3:$E$100,4,0),0)))*'00_SAV'!M97 -> 170268.1976 | M101: =((VLOOKUP($D$8,Faktorreihen!$B$6:$V$205,VLOOKUP($A101,Zuordnung_Faktorreihen!$B$3:$E$100,4,0),0))/(VLOOKUP($B101,Faktorreihen!$B$6:$V$205,VLOOKUP($A101,Zuordnung_Faktorreihen!$B$3:$E$100,4,0),0)))*'00_SAV'!N97 -> 170268.1976 | N101: =((VLOOKUP($D$8,Faktorreihen!$B$6:$V$205,VLOOKUP($A101,Zuordnung_Faktorreihen!$B$3:$E$100,4,0),0))/(VLOOKUP($B101,Faktorreihen!$B$6:$V$205,VLOOKUP($A101,Zuordnung_Faktorreihen!$B$3:$E$100,4,0),0)))*'00_SAV'!O97 -> 170268.1976 | O101: =((VLOOKUP($D$8,Faktorreihen!$B$6:$V$205,VLOOKUP($A101,Zuordnung_Faktorreihen!$B$3:$E$100,4,0),0))/(VLOOKUP($B101,Faktorreihen!$B$6:$V$205,VLOOKUP($A101,Zuordnung_Faktorreihen!$B$3:$E$100,4,0),0)))*'00_SAV'!P97 -> 175802.0518 | P101: =((VLOOKUP($D$8,Faktorreihen!$B$6:$V$205,VLOOKUP($A101,Zuordnung_Faktorreihen!$B$3:$E$100,4,0),0))/(VLOOKUP($B101,Faktorreihen!$B$6:$V$205,VLOOKUP($A101,Zuordnung_Faktorreihen!$B$3:$E$100,4,0),0)))*'00_SAV'!Q97 -> 175802.0518 | Q101: =((VLOOKUP($D$8,Faktorreihen!$B$6:$V$205,VLOOKUP($A101,Zuordnung_Faktorreihen!$B$3:$E$100,4,0),0))/(VLOOKUP($B101,Faktorreihen!$B$6:$V$205,VLOOKUP($A101,Zuordnung_Faktorreihen!$B$3:$E$100,4,0),0)))*'00_SAV'!R97 -> 702889.88 | R101: =((VLOOKUP($D$8,Faktorreihen!$B$6:$V$205,VLOOKUP($A101,Zuordnung_Faktorreihen!$B$3:$E$100,4,0),0))/(VLOOKUP($B101,Faktorreihen!$B$6:$V$205,VLOOKUP($A101,Zuordnung_Faktorreihen!$B$3:$E$100,4,0),0)))*'00_SAV'!S97 -> 702889.88 | S101: =((VLOOKUP($D$8,Faktorreihen!$B$6:$V$205,VLOOKUP($A101,Zuordnung_Faktorreihen!$B$3:$E$100,4,0),0))/(VLOOKUP($B101,Faktorreihen!$B$6:$V$205,VLOOKUP($A101,Zuordnung_Faktorreihen!$B$3:$E$100,4,0),0)))*'00_SAV'!T97 -> 534231.2541 | U101: =((VLOOKUP(U$8,Faktorreihen!$B$6:$V$205,VLOOKUP($A101,Zuordnung_Faktorreihen!$B$3:$E$100,4,0),0))/(VLOOKUP($B101,Faktorreihen!$B$6:$V$205,VLOOKUP($A101,Zuordnung_Faktorreihen!$B$3:$E$100,4,0),0)))*'00_SAV'!E97 -> 116644.7718 | V101: =((VLOOKUP(V$8,Faktorreihen!$B$6:$V$205,VLOOKUP($A101,Zuordnung_Faktorreihen!$B$3:$E$100,4,0),0))/(VLOOKUP($B101,Faktorreihen!$B$6:$V$205,VLOOKUP($A101,Zuordnung_Faktorreihen!$B$3:$E$100,4,0),0)))*'00_SAV'!F97 -> 121804.4141 | W101: =((VLOOKUP(W$8,Faktorreihen!$B$6:$V$205,VLOOKUP($A101,Zuordnung_Faktorreihen!$B$3:$E$100,4,0),0))/(VLOOKUP($B101,Faktorreihen!$B$6:$V$205,VLOOKUP($A101,Zuordnung_Faktorreihen!$B$3:$E$100,4,0),0)))*'00_SAV'!G97 -> 126226.9647 | X101: =((VLOOKUP(X$8,Faktorreihen!$B$6:$V$205,VLOOKUP($A101,Zuordnung_Faktorreihen!$B$3:$E$100,4,0),0))/(VLOOKUP($B101,Faktorreihen!$B$6:$V$205,VLOOKUP($A101,Zuordnung_Faktorreihen!$B$3:$E$100,4,0),0)))*'00_SAV'!H97 -> 127701.1482 | Y101: =((VLOOKUP(Y$8,Faktorreihen!$B$6:$V$205,VLOOKUP($A101,Zuordnung_Faktorreihen!$B$3:$E$100,4,0),0))/(VLOOKUP($B101,Faktorreihen!$B$6:$V$205,VLOOKUP($A101,Zuordnung_Faktorreihen!$B$3:$E$100,4,0),0)))*'00_SAV'!I97 -> 128991.0588 | Z101: =((VLOOKUP(Z$8,Faktorreihen!$B$6:$V$205,VLOOKUP($A101,Zuordnung_Faktorreihen!$B$3:$E$100,4,0),0))/(VLOOKUP($B101,Faktorreihen!$B$6:$V$205,VLOOKUP($A101,Zuordnung_Faktorreihen!$B$3:$E$100,4,0),0)))*'00_SAV'!J97 -> 133045.0635 | AA101: =((VLOOKUP(AA$8,Faktorreihen!$B$6:$V$205,VLOOKUP($A101,Zuordnung_Faktorreihen!$B$3:$E$100,4,0),0))/(VLOOKUP($B101,Faktorreihen!$B$6:$V$205,VLOOKUP($A101,Zuordnung_Faktorreihen!$B$3:$E$100,4,0),0)))*'00_SAV'!K97 -> 136546.2494 | AB101: =((VLOOKUP(AB$8,Faktorreihen!$B$6:$V$205,VLOOKUP($A101,Zuordnung_Faktorreihen!$B$3:$E$100,4,0),0))/(VLOOKUP($B101,Faktorreihen!$B$6:$V$205,VLOOKUP($A101,Zuordnung_Faktorreihen!$B$3:$E$100,4,0),0)))*'00_SAV'!L97 -> 139126.0706 | AC101: =((VLOOKUP(AC$8,Faktorreihen!$B$6:$V$205,VLOOKUP($A101,Zuordnung_Faktorreihen!$B$3:$E$100,4,0),0))/(VLOOKUP($B101,Faktorreihen!$B$6:$V$205,VLOOKUP($A101,Zuordnung_Faktorreihen!$B$3:$E$100,4,0),0)))*'00_SAV'!M97 -> 141521.6188 | AD101: =((VLOOKUP(AD$8,Faktorreihen!$B$6:$V$205,VLOOKUP($A101,Zuordnung_Faktorreihen!$B$3:$E$100,4,0),0))/(VLOOKUP($B101,Faktorreihen!$B$6:$V$205,VLOOKUP($A101,Zuordnung_Faktorreihen!$B$3:$E$100,4,0),0)))*'00_SAV'!N97 -> 143917.1671 | AE101: =((VLOOKUP(AE$8,Faktorreihen!$B$6:$V$205,VLOOKUP($A101,Zuordnung_Faktorreihen!$B$3:$E$100,4,0),0))/(VLOOKUP($B101,Faktorreihen!$B$6:$V$205,VLOOKUP($A101,Zuordnung_Faktorreihen!$B$3:$E$100,4,0),0)))*'00_SAV'!O97 -> 146865.5341 | AF101: =((VLOOKUP(AF$8,Faktorreihen!$B$6:$V$205,VLOOKUP($A101,Zuordnung_Faktorreihen!$B$3:$E$100,4,0),0))/(VLOOKUP($B101,Faktorreihen!$B$6:$V$205,VLOOKUP($A101,Zuordnung_Faktorreihen!$B$3:$E$100,4,0),0)))*'00_SAV'!P97 -> 156775.8557 | AG101: =((VLOOKUP(AG$8,Faktorreihen!$B$6:$V$205,VLOOKUP($A101,Zuordnung_Faktorreihen!$B$3:$E$100,4,0),0))/(VLOOKUP($B101,Faktorreihen!$B$6:$V$205,VLOOKUP($A101,Zuordnung_Faktorreihen!$B$3:$E$100,4,0),0)))*'00_SAV'!Q97 -> 163815.5482 | AH101: =((VLOOKUP(AH$8,Faktorreihen!$B$6:$V$205,VLOOKUP($A101,Zuordnung_Faktorreihen!$B$3:$E$100,4,0),0))/(VLOOKUP($B101,Faktorreihen!$B$6:$V$205,VLOOKUP($A101,Zuordnung_Faktorreihen!$B$3:$E$100,4,0),0)))*'00_SAV'!R97 -> 683872.2967 | AI101: =((VLOOKUP(AI$8,Faktorreihen!$B$6:$V$205,VLOOKUP($A101,Zuordnung_Faktorreihen!$B$3:$E$100,4,0),0))/(VLOOKUP($B101,Faktorreihen!$B$6:$V$205,VLOOKUP($A101,Zuordnung_Faktorreihen!$B$3:$E$100,4,0),0)))*'00_SAV'!S97 -> 702889.88 | AJ101: =((VLOOKUP(AJ$8,Faktorreihen!$B$6:$V$205,VLOOKUP($A101,Zuordnung_Faktorreihen!$B$3:$E$100,4,0),0))/(VLOOKUP($B101,Faktorreihen!$B$6:$V$205,VLOOKUP($A101,Zuordnung_Faktorreihen!$B$3:$E$100,4,0),0)))*'00_SAV'!T97 -> 578172.3529
A102: 2 | B102: 1931 | C102: NB | D102: =((VLOOKUP($D$8,Faktorreihen!$B$6:$V$205,VLOOKUP($A102,Zuordnung_Faktorreihen!$B$3:$E$100,4,0),0))/(VLOOKUP($B102,Faktorreihen!$B$6:$V$205,VLOOKUP($A102,Zuordnung_Faktorreihen!$B$3:$E$100,4,0),0)))*'00_SAV'!E98 -> 0 | E102: =((VLOOKUP($D$8,Faktorreihen!$B$6:$V$205,VLOOKUP($A102,Zuordnung_Faktorreihen!$B$3:$E$100,4,0),0))/(VLOOKUP($B102,Faktorreihen!$B$6:$V$205,VLOOKUP($A102,Zuordnung_Faktorreihen!$B$3:$E$100,4,0),0)))*'00_SAV'!F98 -> 0 | F102: =((VLOOKUP($D$8,Faktorreihen!$B$6:$V$205,VLOOKUP($A102,Zuordnung_Faktorreihen!$B$3:$E$100,4,0),0))/(VLOOKUP($B102,Faktorreihen!$B$6:$V$205,VLOOKUP($A102,Zuordnung_Faktorreihen!$B$3:$E$100,4,0),0)))*'00_SAV'!G98 -> 0 | G102: =((VLOOKUP($D$8,Faktorreihen!$B$6:$V$205,VLOOKUP($A102,Zuordnung_Faktorreihen!$B$3:$E$100,4,0),0))/(VLOOKUP($B102,Faktorreihen!$B$6:$V$205,VLOOKUP($A102,Zuordnung_Faktorreihen!$B$3:$E$100,4,0),0)))*'00_SAV'!H98 -> 0 | H102: =((VLOOKUP($D$8,Faktorreihen!$B$6:$V$205,VLOOKUP($A102,Zuordnung_Faktorreihen!$B$3:$E$100,4,0),0))/(VLOOKUP($B102,Faktorreihen!$B$6:$V$205,VLOOKUP($A102,Zuordnung_Faktorreihen!$B$3:$E$100,4,0),0)))*'00_SAV'!I98 -> 0 | I102: =((VLOOKUP($D$8,Faktorreihen!$B$6:$V$205,VLOOKUP($A102,Zuordnung_Faktorreihen!$B$3:$E$100,4,0),0))/(VLOOKUP($B102,Faktorreihen!$B$6:$V$205,VLOOKUP($A102,Zuordnung_Faktorreihen!$B$3:$E$100,4,0),0)))*'00_SAV'!J98 -> 0 | J102: =((VLOOKUP($D$8,Faktorreihen!$B$6:$V$205,VLOOKUP($A102,Zuordnung_Faktorreihen!$B$3:$E$100,4,0),0))/(VLOOKUP($B102,Faktorreihen!$B$6:$V$205,VLOOKUP($A102,Zuordnung_Faktorreihen!$B$3:$E$100,4,0),0)))*'00_SAV'!K98 -> 0 | K102: =((VLOOKUP($D$8,Faktorreihen!$B$6:$V$205,VLOOKUP($A102,Zuordnung_Faktorreihen!$B$3:$E$100,4,0),0))/(VLOOKUP($B102,Faktorreihen!$B$6:$V$205,VLOOKUP($A102,Zuordnung_Faktorreihen!$B$3:$E$100,4,0),0)))*'00_SAV'!L98 -> 0 | L102: =((VLOOKUP($D$8,Faktorreihen!$B$6:$V$205,VLOOKUP($A102,Zuordnung_Faktorreihen!$B$3:$E$100,4,0),0))/(VLOOKUP($B102,Faktorreihen!$B$6:$V$205,VLOOKUP($A102,Zuordnung_Faktorreihen!$B$3:$E$100,4,0),0)))*'00_SAV'!M98 -> 0 | M102: =((VLOOKUP($D$8,Faktorreihen!$B$6:$V$205,VLOOKUP($A102,Zuordnung_Faktorreihen!$B$3:$E$100,4,0),0))/(VLOOKUP($B102,Faktorreihen!$B$6:$V$205,VLOOKUP($A102,Zuordnung_Faktorreihen!$B$3:$E$100,4,0),0)))*'00_SAV'!N98 -> 0 | N102: =((VLOOKUP($D$8,Faktorreihen!$B$6:$V$205,VLOOKUP($A102,Zuordnung_Faktorreihen!$B$3:$E$100,4,0),0))/(VLOOKUP($B102,Faktorreihen!$B$6:$V$205,VLOOKUP($A102,Zuordnung_Faktorreihen!$B$3:$E$100,4,0),0)))*'00_SAV'!O98 -> 0 | O102: =((VLOOKUP($D$8,Faktorreihen!$B$6:$V$205,VLOOKUP($A102,Zuordnung_Faktorreihen!$B$3:$E$100,4,0),0))/(VLOOKUP($B102,Faktorreihen!$B$6:$V$205,VLOOKUP($A102,Zuordnung_Faktorreihen!$B$3:$E$100,4,0),0)))*'00_SAV'!P98 -> 0 | P102: =((VLOOKUP($D$8,Faktorreihen!$B$6:$V$205,VLOOKUP($A102,Zuordnung_Faktorreihen!$B$3:$E$100,4,0),0))/(VLOOKUP($B102,Faktorreihen!$B$6:$V$205,VLOOKUP($A102,Zuordnung_Faktorreihen!$B$3:$E$100,4,0),0)))*'00_SAV'!Q98 -> 0 | Q102: =((VLOOKUP($D$8,Faktorreihen!$B$6:$V$205,VLOOKUP($A102,Zuordnung_Faktorreihen!$B$3:$E$100,4,0),0))/(VLOOKUP($B102,Faktorreihen!$B$6:$V$205,VLOOKUP($A102,Zuordnung_Faktorreihen!$B$3:$E$100,4,0),0)))*'00_SAV'!R98 -> 0 | R102: =((VLOOKUP($D$8,Faktorreihen!$B$6:$V$205,VLOOKUP($A102,Zuordnung_Faktorreihen!$B$3:$E$100,4,0),0))/(VLOOKUP($B102,Faktorreihen!$B$6:$V$205,VLOOKUP($A102,Zuordnung_Faktorreihen!$B$3:$E$100,4,0),0)))*'00_SAV'!S98 -> 0 | S102: =((VLOOKUP($D$8,Faktorreihen!$B$6:$V$205,VLOOKUP($A102,Zuordnung_Faktorreihen!$B$3:$E$100,4,0),0))/(VLOOKUP($B102,Faktorreihen!$B$6:$V$205,VLOOKUP($A102,Zuordnung_Faktorreihen!$B$3:$E$100,4,0),0)))*'00_SAV'!T98 -> 0 | U102: =((VLOOKUP(U$8,Faktorreihen!$B$6:$V$205,VLOOKUP($A102,Zuordnung_Faktorreihen!$B$3:$E$100,4,0),0))/(VLOOKUP($B102,Faktorreihen!$B$6:$V$205,VLOOKUP($A102,Zuordnung_Faktorreihen!$B$3:$E$100,4,0),0)))*'00_SAV'!E98 -> 0 | V102: =((VLOOKUP(V$8,Faktorreihen!$B$6:$V$205,VLOOKUP($A102,Zuordnung_Faktorreihen!$B$3:$E$100,4,0),0))/(VLOOKUP($B102,Faktorreihen!$B$6:$V$205,VLOOKUP($A102,Zuordnung_Faktorreihen!$B$3:$E$100,4,0),0)))*'00_SAV'!F98 -> 0 | W102: =((VLOOKUP(W$8,Faktorreihen!$B$6:$V$205,VLOOKUP($A102,Zuordnung_Faktorreihen!$B$3:$E$100,4,0),0))/(VLOOKUP($B102,Faktorreihen!$B$6:$V$205,VLOOKUP($A102,Zuordnung_Faktorreihen!$B$3:$E$100,4,0),0)))*'00_SAV'!G98 -> 0 | X102: =((VLOOKUP(X$8,Faktorreihen!$B$6:$V$205,VLOOKUP($A102,Zuordnung_Faktorreihen!$B$3:$E$100,4,0),0))/(VLOOKUP($B102,Faktorreihen!$B$6:$V$205,VLOOKUP($A102,Zuordnung_Faktorreihen!$B$3:$E$100,4,0),0)))*'00_SAV'!H98 -> 0 | Y102: =((VLOOKUP(Y$8,Faktorreihen!$B$6:$V$205,VLOOKUP($A102,Zuordnung_Faktorreihen!$B$3:$E$100,4,0),0))/(VLOOKUP($B102,Faktorreihen!$B$6:$V$205,VLOOKUP($A102,Zuordnung_Faktorreihen!$B$3:$E$100,4,0),0)))*'00_SAV'!I98 -> 0 | Z102: =((VLOOKUP(Z$8,Faktorreihen!$B$6:$V$205,VLOOKUP($A102,Zuordnung_Faktorreihen!$B$3:$E$100,4,0),0))/(VLOOKUP($B102,Faktorreihen!$B$6:$V$205,VLOOKUP($A102,Zuordnung_Faktorreihen!$B$3:$E$100,4,0),0)))*'00_SAV'!J98 -> 0 | AA102: =((VLOOKUP(AA$8,Faktorreihen!$B$6:$V$205,VLOOKUP($A102,Zuordnung_Faktorreihen!$B$3:$E$100,4,0),0))/(VLOOKUP($B102,Faktorreihen!$B$6:$V$205,VLOOKUP($A102,Zuordnung_Faktorreihen!$B$3:$E$100,4,0),0)))*'00_SAV'!K98 -> 0 | AB102: =((VLOOKUP(AB$8,Faktorreihen!$B$6:$V$205,VLOOKUP($A102,Zuordnung_Faktorreihen!$B$3:$E$100,4,0),0))/(VLOOKUP($B102,Faktorreihen!$B$6:$V$205,VLOOKUP($A102,Zuordnung_Faktorreihen!$B$3:$E$100,4,0),0)))*'00_SAV'!L98 -> 0 | AC102: =((VLOOKUP(AC$8,Faktorreihen!$B$6:$V$205,VLOOKUP($A102,Zuordnung_Faktorreihen!$B$3:$E$100,4,0),0))/(VLOOKUP($B102,Faktorreihen!$B$6:$V$205,VLOOKUP($A102,Zuordnung_Faktorreihen!$B$3:$E$100,4,0),0)))*'00_SAV'!M98 -> 0 | AD102: =((VLOOKUP(AD$8,Faktorreihen!$B$6:$V$205,VLOOKUP($A102,Zuordnung_Faktorreihen!$B$3:$E$100,4,0),0))/(VLOOKUP($B102,Faktorreihen!$B$6:$V$205,VLOOKUP($A102,Zuordnung_Faktorreihen!$B$3:$E$100,4,0),0)))*'00_SAV'!N98 -> 0 | AE102: =((VLOOKUP(AE$8,Faktorreihen!$B$6:$V$205,VLOOKUP($A102,Zuordnung_Faktorreihen!$B$3:$E$100,4,0),0))/(VLOOKUP($B102,Faktorreihen!$B$6:$V$205,VLOOKUP($A102,Zuordnung_Faktorreihen!$B$3:$E$100,4,0),0)))*'00_SAV'!O98 -> 0 | AF102: =((VLOOKUP(AF$8,Faktorreihen!$B$6:$V$205,VLOOKUP($A102,Zuordnung_Faktorreihen!$B$3:$E$100,4,0),0))/(VLOOKUP($B102,Faktorreihen!$B$6:$V$205,VLOOKUP($A102,Zuordnung_Faktorreihen!$B$3:$E$100,4,0),0)))*'00_SAV'!P98 -> 0 | AG102: =((VLOOKUP(AG$8,Faktorreihen!$B$6:$V$205,VLOOKUP($A102,Zuordnung_Faktorreihen!$B$3:$E$100,4,0),0))/(VLOOKUP($B102,Faktorreihen!$B$6:$V$205,VLOOKUP($A102,Zuordnung_Faktorreihen!$B$3:$E$100,4,0),0)))*'00_SAV'!Q98 -> 0 | AH102: =((VLOOKUP(AH$8,Faktorreihen!$B$6:$V$205,VLOOKUP($A102,Zuordnung_Faktorreihen!$B$3:$E$100,4,0),0))/(VLOOKUP($B102,Faktorreihen!$B$6:$V$205,VLOOKUP($A102,Zuordnung_Faktorreihen!$B$3:$E$100,4,0),0)))*'00_SAV'!R98 -> 0 | AI102: =((VLOOKUP(AI$8,Faktorreihen!$B$6:$V$205,VLOOKUP($A102,Zuordnung_Faktorreihen!$B$3:$E$100,4,0),0))/(VLOOKUP($B102,Faktorreihen!$B$6:$V$205,VLOOKUP($A102,Zuordnung_Faktorreihen!$B$3:$E$100,4,0),0)))*'00_SAV'!S98 -> 0 | AJ102: =((VLOOKUP(AJ$8,Faktorreihen!$B$6:$V$205,VLOOKUP($A102,Zuordnung_Faktorreihen!$B$3:$E$100,4,0),0))/(VLOOKUP($B102,Faktorreihen!$B$6:$V$205,VLOOKUP($A102,Zuordnung_Faktorreihen!$B$3:$E$100,4,0),0)))*'00_SAV'!T98 -> 0
A103: 2 | B103: 1932 | C103: NB | D103: =((VLOOKUP($D$8,Faktorreihen!$B$6:$V$205,VLOOKUP($A103,Zuordnung_Faktorreihen!$B$3:$E$100,4,0),0))/(VLOOKUP($B103,Faktorreihen!$B$6:$V$205,VLOOKUP($A103,Zuordnung_Faktorreihen!$B$3:$E$100,4,0),0)))*'00_SAV'!E99 -> 0 | E103: =((VLOOKUP($D$8,Faktorreihen!$B$6:$V$205,VLOOKUP($A103,Zuordnung_Faktorreihen!$B$3:$E$100,4,0),0))/(VLOOKUP($B103,Faktorreihen!$B$6:$V$205,VLOOKUP($A103,Zuordnung_Faktorreihen!$B$3:$E$100,4,0),0)))*'00_SAV'!F99 -> 0 | F103: =((VLOOKUP($D$8,Faktorreihen!$B$6:$V$205,VLOOKUP($A103,Zuordnung_Faktorreihen!$B$3:$E$100,4,0),0))/(VLOOKUP($B103,Faktorreihen!$B$6:$V$205,VLOOKUP($A103,Zuordnung_Faktorreihen!$B$3:$E$100,4,0),0)))*'00_SAV'!G99 -> 0 | G103: =((VLOOKUP($D$8,Faktorreihen!$B$6:$V$205,VLOOKUP($A103,Zuordnung_Faktorreihen!$B$3:$E$100,4,0),0))/(VLOOKUP($B103,Faktorreihen!$B$6:$V$205,VLOOKUP($A103,Zuordnung_Faktorreihen!$B$3:$E$100,4,0),0)))*'00_SAV'!H99 -> 0 | H103: =((VLOOKUP($D$8,Faktorreihen!$B$6:$V$205,VLOOKUP($A103,Zuordnung_Faktorreihen!$B$3:$E$100,4,0),0))/(VLOOKUP($B103,Faktorreihen!$B$6:$V$205,VLOOKUP($A103,Zuordnung_Faktorreihen!$B$3:$E$100,4,0),0)))*'00_SAV'!I99 -> 0 | I103: =((VLOOKUP($D$8,Faktorreihen!$B$6:$V$205,VLOOKUP($A103,Zuordnung_Faktorreihen!$B$3:$E$100,4,0),0))/(VLOOKUP($B103,Faktorreihen!$B$6:$V$205,VLOOKUP($A103,Zuordnung_Faktorreihen!$B$3:$E$100,4,0),0)))*'00_SAV'!J99 -> 0 | J103: =((VLOOKUP($D$8,Faktorreihen!$B$6:$V$205,VLOOKUP($A103,Zuordnung_Faktorreihen!$B$3:$E$100,4,0),0))/(VLOOKUP($B103,Faktorreihen!$B$6:$V$205,VLOOKUP($A103,Zuordnung_Faktorreihen!$B$3:$E$100,4,0),0)))*'00_SAV'!K99 -> 0 | K103: =((VLOOKUP($D$8,Faktorreihen!$B$6:$V$205,VLOOKUP($A103,Zuordnung_Faktorreihen!$B$3:$E$100,4,0),0))/(VLOOKUP($B103,Faktorreihen!$B$6:$V$205,VLOOKUP($A103,Zuordnung_Faktorreihen!$B$3:$E$100,4,0),0)))*'00_SAV'!L99 -> 0 | L103: =((VLOOKUP($D$8,Faktorreihen!$B$6:$V$205,VLOOKUP($A103,Zuordnung_Faktorreihen!$B$3:$E$100,4,0),0))/(VLOOKUP($B103,Faktorreihen!$B$6:$V$205,VLOOKUP($A103,Zuordnung_Faktorreihen!$B$3:$E$100,4,0),0)))*'00_SAV'!M99 -> 0 | M103: =((VLOOKUP($D$8,Faktorreihen!$B$6:$V$205,VLOOKUP($A103,Zuordnung_Faktorreihen!$B$3:$E$100,4,0),0))/(VLOOKUP($B103,Faktorreihen!$B$6:$V$205,VLOOKUP($A103,Zuordnung_Faktorreihen!$B$3:$E$100,4,0),0)))*'00_SAV'!N99 -> 0 | N103: =((VLOOKUP($D$8,Faktorreihen!$B$6:$V$205,VLOOKUP($A103,Zuordnung_Faktorreihen!$B$3:$E$100,4,0),0))/(VLOOKUP($B103,Faktorreihen!$B$6:$V$205,VLOOKUP($A103,Zuordnung_Faktorreihen!$B$3:$E$100,4,0),0)))*'00_SAV'!O99 -> 0 | O103: =((VLOOKUP($D$8,Faktorreihen!$B$6:$V$205,VLOOKUP($A103,Zuordnung_Faktorreihen!$B$3:$E$100,4,0),0))/(VLOOKUP($B103,Faktorreihen!$B$6:$V$205,VLOOKUP($A103,Zuordnung_Faktorreihen!$B$3:$E$100,4,0),0)))*'00_SAV'!P99 -> 0 | P103: =((VLOOKUP($D$8,Faktorreihen!$B$6:$V$205,VLOOKUP($A103,Zuordnung_Faktorreihen!$B$3:$E$100,4,0),0))/(VLOOKUP($B103,Faktorreihen!$B$6:$V$205,VLOOKUP($A103,Zuordnung_Faktorreihen!$B$3:$E$100,4,0),0)))*'00_SAV'!Q99 -> 0 | Q103: =((VLOOKUP($D$8,Faktorreihen!$B$6:$V$205,VLOOKUP($A103,Zuordnung_Faktorreihen!$B$3:$E$100,4,0),0))/(VLOOKUP($B103,Faktorreihen!$B$6:$V$205,VLOOKUP($A103,Zuordnung_Faktorreihen!$B$3:$E$100,4,0),0)))*'00_SAV'!R99 -> 0 | R103: =((VLOOKUP($D$8,Faktorreihen!$B$6:$V$205,VLOOKUP($A103,Zuordnung_Faktorreihen!$B$3:$E$100,4,0),0))/(VLOOKUP($B103,Faktorreihen!$B$6:$V$205,VLOOKUP($A103,Zuordnung_Faktorreihen!$B$3:$E$100,4,0),0)))*'00_SAV'!S99 -> 0 | S103: =((VLOOKUP($D$8,Faktorreihen!$B$6:$V$205,VLOOKUP($A103,Zuordnung_Faktorreihen!$B$3:$E$100,4,0),0))/(VLOOKUP($B103,Faktorreihen!$B$6:$V$205,VLOOKUP($A103,Zuordnung_Faktorreihen!$B$3:$E$100,4,0),0)))*'00_SAV'!T99 -> 0 | U103: =((VLOOKUP(U$8,Faktorreihen!$B$6:$V$205,VLOOKUP($A103,Zuordnung_Faktorreihen!$B$3:$E$100,4,0),0))/(VLOOKUP($B103,Faktorreihen!$B$6:$V$205,VLOOKUP($A103,Zuordnung_Faktorreihen!$B$3:$E$100,4,0),0)))*'00_SAV'!E99 -> 0 | V103: =((VLOOKUP(V$8,Faktorreihen!$B$6:$V$205,VLOOKUP($A103,Zuordnung_Faktorreihen!$B$3:$E$100,4,0),0))/(VLOOKUP($B103,Faktorreihen!$B$6:$V$205,VLOOKUP($A103,Zuordnung_Faktorreihen!$B$3:$E$100,4,0),0)))*'00_SAV'!F99 -> 0 | W103: =((VLOOKUP(W$8,Faktorreihen!$B$6:$V$205,VLOOKUP($A103,Zuordnung_Faktorreihen!$B$3:$E$100,4,0),0))/(VLOOKUP($B103,Faktorreihen!$B$6:$V$205,VLOOKUP($A103,Zuordnung_Faktorreihen!$B$3:$E$100,4,0),0)))*'00_SAV'!G99 -> 0 | X103: =((VLOOKUP(X$8,Faktorreihen!$B$6:$V$205,VLOOKUP($A103,Zuordnung_Faktorreihen!$B$3:$E$100,4,0),0))/(VLOOKUP($B103,Faktorreihen!$B$6:$V$205,VLOOKUP($A103,Zuordnung_Faktorreihen!$B$3:$E$100,4,0),0)))*'00_SAV'!H99 -> 0 | Y103: =((VLOOKUP(Y$8,Faktorreihen!$B$6:$V$205,VLOOKUP($A103,Zuordnung_Faktorreihen!$B$3:$E$100,4,0),0))/(VLOOKUP($B103,Faktorreihen!$B$6:$V$205,VLOOKUP($A103,Zuordnung_Faktorreihen!$B$3:$E$100,4,0),0)))*'00_SAV'!I99 -> 0 | Z103: =((VLOOKUP(Z$8,Faktorreihen!$B$6:$V$205,VLOOKUP($A103,Zuordnung_Faktorreihen!$B$3:$E$100,4,0),0))/(VLOOKUP($B103,Faktorreihen!$B$6:$V$205,VLOOKUP($A103,Zuordnung_Faktorreihen!$B$3:$E$100,4,0),0)))*'00_SAV'!J99 -> 0 | AA103: =((VLOOKUP(AA$8,Faktorreihen!$B$6:$V$205,VLOOKUP($A103,Zuordnung_Faktorreihen!$B$3:$E$100,4,0),0))/(VLOOKUP($B103,Faktorreihen!$B$6:$V$205,VLOOKUP($A103,Zuordnung_Faktorreihen!$B$3:$E$100,4,0),0)))*'00_SAV'!K99 -> 0 | AB103: =((VLOOKUP(AB$8,Faktorreihen!$B$6:$V$205,VLOOKUP($A103,Zuordnung_Faktorreihen!$B$3:$E$100,4,0),0))/(VLOOKUP($B103,Faktorreihen!$B$6:$V$205,VLOOKUP($A103,Zuordnung_Faktorreihen!$B$3:$E$100,4,0),0)))*'00_SAV'!L99 -> 0 | AC103: =((VLOOKUP(AC$8,Faktorreihen!$B$6:$V$205,VLOOKUP($A103,Zuordnung_Faktorreihen!$B$3:$E$100,4,0),0))/(VLOOKUP($B103,Faktorreihen!$B$6:$V$205,VLOOKUP($A103,Zuordnung_Faktorreihen!$B$3:$E$100,4,0),0)))*'00_SAV'!M99 -> 0 | AD103: =((VLOOKUP(AD$8,Faktorreihen!$B$6:$V$205,VLOOKUP($A103,Zuordnung_Faktorreihen!$B$3:$E$100,4,0),0))/(VLOOKUP($B103,Faktorreihen!$B$6:$V$205,VLOOKUP($A103,Zuordnung_Faktorreihen!$B$3:$E$100,4,0),0)))*'00_SAV'!N99 -> 0 | AE103: =((VLOOKUP(AE$8,Faktorreihen!$B$6:$V$205,VLOOKUP($A103,Zuordnung_Faktorreihen!$B$3:$E$100,4,0),0))/(VLOOKUP($B103,Faktorreihen!$B$6:$V$205,VLOOKUP($A103,Zuordnung_Faktorreihen!$B$3:$E$100,4,0),0)))*'00_SAV'!O99 -> 0 | AF103: =((VLOOKUP(AF$8,Faktorreihen!$B$6:$V$205,VLOOKUP($A103,Zuordnung_Faktorreihen!$B$3:$E$100,4,0),0))/(VLOOKUP($B103,Faktorreihen!$B$6:$V$205,VLOOKUP($A103,Zuordnung_Faktorreihen!$B$3:$E$100,4,0),0)))*'00_SAV'!P99 -> 0 | AG103: =((VLOOKUP(AG$8,Faktorreihen!$B$6:$V$205,VLOOKUP($A103,Zuordnung_Faktorreihen!$B$3:$E$100,4,0),0))/(VLOOKUP($B103,Faktorreihen!$B$6:$V$205,VLOOKUP($A103,Zuordnung_Faktorreihen!$B$3:$E$100,4,0),0)))*'00_SAV'!Q99 -> 0 | AH103: =((VLOOKUP(AH$8,Faktorreihen!$B$6:$V$205,VLOOKUP($A103,Zuordnung_Faktorreihen!$B$3:$E$100,4,0),0))/(VLOOKUP($B103,Faktorreihen!$B$6:$V$205,VLOOKUP($A103,Zuordnung_Faktorreihen!$B$3:$E$100,4,0),0)))*'00_SAV'!R99 -> 0 | AI103: =((VLOOKUP(AI$8,Faktorreihen!$B$6:$V$205,VLOOKUP($A103,Zuordnung_Faktorreihen!$B$3:$E$100,4,0),0))/(VLOOKUP($B103,Faktorreihen!$B$6:$V$205,VLOOKUP($A103,Zuordnung_Faktorreihen!$B$3:$E$100,4,0),0)))*'00_SAV'!S99 -> 0 | AJ103: =((VLOOKUP(AJ$8,Faktorreihen!$B$6:$V$205,VLOOKUP($A103,Zuordnung_Faktorreihen!$B$3:$E$100,4,0),0))/(VLOOKUP($B103,Faktorreihen!$B$6:$V$205,VLOOKUP($A103,Zuordnung_Faktorreihen!$B$3:$E$100,4,0),0)))*'00_SAV'!T99 -> 0
A104: 2 | B104: 1933 | C104: NB | D104: =((VLOOKUP($D$8,Faktorreihen!$B$6:$V$205,VLOOKUP($A104,Zuordnung_Faktorreihen!$B$3:$E$100,4,0),0))/(VLOOKUP($B104,Faktorreihen!$B$6:$V$205,VLOOKUP($A104,Zuordnung_Faktorreihen!$B$3:$E$100,4,0),0)))*'00_SAV'!E100 -> 27790.29647 | E104: =((VLOOKUP($D$8,Faktorreihen!$B$6:$V$205,VLOOKUP($A104,Zuordnung_Faktorreihen!$B$3:$E$100,4,0),0))/(VLOOKUP($B104,Faktorreihen!$B$6:$V$205,VLOOKUP($A104,Zuordnung_Faktorreihen!$B$3:$E$100,4,0),0)))*'00_SAV'!F100 -> 27790.29647 | F104: =((VLOOKUP($D$8,Faktorreihen!$B$6:$V$205,VLOOKUP($A104,Zuordnung_Faktorreihen!$B$3:$E$100,4,0),0))/(VLOOKUP($B104,Faktorreihen!$B$6:$V$205,VLOOKUP($A104,Zuordnung_Faktorreihen!$B$3:$E$100,4,0),0)))*'00_SAV'!G100 -> 27790.29647 | G104: =((VLOOKUP($D$8,Faktorreihen!$B$6:$V$205,VLOOKUP($A104,Zuordnung_Faktorreihen!$B$3:$E$100,4,0),0))/(VLOOKUP($B104,Faktorreihen!$B$6:$V$205,VLOOKUP($A104,Zuordnung_Faktorreihen!$B$3:$E$100,4,0),0)))*'00_SAV'!H100 -> 27790.29647 | H104: =((VLOOKUP($D$8,Faktorreihen!$B$6:$V$205,VLOOKUP($A104,Zuordnung_Faktorreihen!$B$3:$E$100,4,0),0))/(VLOOKUP($B104,Faktorreihen!$B$6:$V$205,VLOOKUP($A104,Zuordnung_Faktorreihen!$B$3:$E$100,4,0),0)))*'00_SAV'!I100 -> 27790.29647 | I104: =((VLOOKUP($D$8,Faktorreihen!$B$6:$V$205,VLOOKUP($A104,Zuordnung_Faktorreihen!$B$3:$E$100,4,0),0))/(VLOOKUP($B104,Faktorreihen!$B$6:$V$205,VLOOKUP($A104,Zuordnung_Faktorreihen!$B$3:$E$100,4,0),0)))*'00_SAV'!J100 -> 27790.29647 | J104: =((VLOOKUP($D$8,Faktorreihen!$B$6:$V$205,VLOOKUP($A104,Zuordnung_Faktorreihen!$B$3:$E$100,4,0),0))/(VLOOKUP($B104,Faktorreihen!$B$6:$V$205,VLOOKUP($A104,Zuordnung_Faktorreihen!$B$3:$E$100,4,0),0)))*'00_SAV'!K100 -> 27790.29647 | K104: =((VLOOKUP($D$8,Faktorreihen!$B$6:$V$205,VLOOKUP($A104,Zuordnung_Faktorreihen!$B$3:$E$100,4,0),0))/(VLOOKUP($B104,Faktorreihen!$B$6:$V$205,VLOOKUP($A104,Zuordnung_Faktorreihen!$B$3:$E$100,4,0),0)))*'00_SAV'!L100 -> 27790.29647 | L104: =((VLOOKUP($D$8,Faktorreihen!$B$6:$V$205,VLOOKUP($A104,Zuordnung_Faktorreihen!$B$3:$E$100,4,0),0))/(VLOOKUP($B104,Faktorreihen!$B$6:$V$205,VLOOKUP($A104,Zuordnung_Faktorreihen!$B$3:$E$100,4,0),0)))*'00_SAV'!M100 -> 27790.29647 | M104: =((VLOOKUP($D$8,Faktorreihen!$B$6:$V$205,VLOOKUP($A104,Zuordnung_Faktorreihen!$B$3:$E$100,4,0),0))/(VLOOKUP($B104,Faktorreihen!$B$6:$V$205,VLOOKUP($A104,Zuordnung_Faktorreihen!$B$3:$E$100,4,0),0)))*'00_SAV'!N100 -> 27790.29647 | N104: =((VLOOKUP($D$8,Faktorreihen!$B$6:$V$205,VLOOKUP($A104,Zuordnung_Faktorreihen!$B$3:$E$100,4,0),0))/(VLOOKUP($B104,Faktorreihen!$B$6:$V$205,VLOOKUP($A104,Zuordnung_Faktorreihen!$B$3:$E$100,4,0),0)))*'00_SAV'!O100 -> 27790.29647 | O104: =((VLOOKUP($D$8,Faktorreihen!$B$6:$V$205,VLOOKUP($A104,Zuordnung_Faktorreihen!$B$3:$E$100,4,0),0))/(VLOOKUP($B104,Faktorreihen!$B$6:$V$205,VLOOKUP($A104,Zuordnung_Faktorreihen!$B$3:$E$100,4,0),0)))*'00_SAV'!P100 -> 27790.29647 | P104: =((VLOOKUP($D$8,Faktorreihen!$B$6:$V$205,VLOOKUP($A104,Zuordnung_Faktorreihen!$B$3:$E$100,4,0),0))/(VLOOKUP($B104,Faktorreihen!$B$6:$V$205,VLOOKUP($A104,Zuordnung_Faktorreihen!$B$3:$E$100,4,0),0)))*'00_SAV'!Q100 -> 27790.29647 | Q104: =((VLOOKUP($D$8,Faktorreihen!$B$6:$V$205,VLOOKUP($A104,Zuordnung_Faktorreihen!$B$3:$E$100,4,0),0))/(VLOOKUP($B104,Faktorreihen!$B$6:$V$205,VLOOKUP($A104,Zuordnung_Faktorreihen!$B$3:$E$100,4,0),0)))*'00_SAV'!R100 -> 27790.29647 | R104: =((VLOOKUP($D$8,Faktorreihen!$B$6:$V$205,VLOOKUP($A104,Zuordnung_Faktorreihen!$B$3:$E$100,4,0),0))/(VLOOKUP($B104,Faktorreihen!$B$6:$V$205,VLOOKUP($A104,Zuordnung_Faktorreihen!$B$3:$E$100,4,0),0)))*'00_SAV'!S100 -> 27790.29647 | S104: =((VLOOKUP($D$8,Faktorreihen!$B$6:$V$205,VLOOKUP($A104,Zuordnung_Faktorreihen!$B$3:$E$100,4,0),0))/(VLOOKUP($B104,Faktorreihen!$B$6:$V$205,VLOOKUP($A104,Zuordnung_Faktorreihen!$B$3:$E$100,4,0),0)))*'00_SAV'!T100 -> 27790.29647 | U104: =((VLOOKUP(U$8,Faktorreihen!$B$6:$V$205,VLOOKUP($A104,Zuordnung_Faktorreihen!$B$3:$E$100,4,0),0))/(VLOOKUP($B104,Faktorreihen!$B$6:$V$205,VLOOKUP($A104,Zuordnung_Faktorreihen!$B$3:$E$100,4,0),0)))*'00_SAV'!E100 -> 19038.15765 | V104: =((VLOOKUP(V$8,Faktorreihen!$B$6:$V$205,VLOOKUP($A104,Zuordnung_Faktorreihen!$B$3:$E$100,4,0),0))/(VLOOKUP($B104,Faktorreihen!$B$6:$V$205,VLOOKUP($A104,Zuordnung_Faktorreihen!$B$3:$E$100,4,0),0)))*'00_SAV'!F100 -> 19880.28784 | W104: =((VLOOKUP(W$8,Faktorreihen!$B$6:$V$205,VLOOKUP($A104,Zuordnung_Faktorreihen!$B$3:$E$100,4,0),0))/(VLOOKUP($B104,Faktorreihen!$B$6:$V$205,VLOOKUP($A104,Zuordnung_Faktorreihen!$B$3:$E$100,4,0),0)))*'00_SAV'!G100 -> 20602.11373 | X104: =((VLOOKUP(X$8,Faktorreihen!$B$6:$V$205,VLOOKUP($A104,Zuordnung_Faktorreihen!$B$3:$E$100,4,0),0))/(VLOOKUP($B104,Faktorreihen!$B$6:$V$205,VLOOKUP($A104,Zuordnung_Faktorreihen!$B$3:$E$100,4,0),0)))*'00_SAV'!H100 -> 20842.72235 | Y104: =((VLOOKUP(Y$8,Faktorreihen!$B$6:$V$205,VLOOKUP($A104,Zuordnung_Faktorreihen!$B$3:$E$100,4,0),0))/(VLOOKUP($B104,Faktorreihen!$B$6:$V$205,VLOOKUP($A104,Zuordnung_Faktorreihen!$B$3:$E$100,4,0),0)))*'00_SAV'!I100 -> 21053.2549 | Z104: =((VLOOKUP(Z$8,Faktorreihen!$B$6:$V$205,VLOOKUP($A104,Zuordnung_Faktorreihen!$B$3:$E$100,4,0),0))/(VLOOKUP($B104,Faktorreihen!$B$6:$V$205,VLOOKUP($A104,Zuordnung_Faktorreihen!$B$3:$E$100,4,0),0)))*'00_SAV'!J100 -> 21714.92863 | AA104: =((VLOOKUP(AA$8,Faktorreihen!$B$6:$V$205,VLOOKUP($A104,Zuordnung_Faktorreihen!$B$3:$E$100,4,0),0))/(VLOOKUP($B104,Faktorreihen!$B$6:$V$205,VLOOKUP($A104,Zuordnung_Faktorreihen!$B$3:$E$100,4,0),0)))*'00_SAV'!K100 -> 22286.37412 | AB104: =((VLOOKUP(AB$8,Faktorreihen!$B$6:$V$205,VLOOKUP($A104,Zuordnung_Faktorreihen!$B$3:$E$100,4,0),0))/(VLOOKUP($B104,Faktorreihen!$B$6:$V$205,VLOOKUP($A104,Zuordnung_Faktorreihen!$B$3:$E$100,4,0),0)))*'00_SAV'!L100 -> 22707.43922 | AC104: =((VLOOKUP(AC$8,Faktorreihen!$B$6:$V$205,VLOOKUP($A104,Zuordnung_Faktorreihen!$B$3:$E$100,4,0),0))/(VLOOKUP($B104,Faktorreihen!$B$6:$V$205,VLOOKUP($A104,Zuordnung_Faktorreihen!$B$3:$E$100,4,0),0)))*'00_SAV'!M100 -> 23098.42824 | AD104: =((VLOOKUP(AD$8,Faktorreihen!$B$6:$V$205,VLOOKUP($A104,Zuordnung_Faktorreihen!$B$3:$E$100,4,0),0))/(VLOOKUP($B104,Faktorreihen!$B$6:$V$205,VLOOKUP($A104,Zuordnung_Faktorreihen!$B$3:$E$100,4,0),0)))*'00_SAV'!N100 -> 23489.41725 | AE104: =((VLOOKUP(AE$8,Faktorreihen!$B$6:$V$205,VLOOKUP($A104,Zuordnung_Faktorreihen!$B$3:$E$100,4,0),0))/(VLOOKUP($B104,Faktorreihen!$B$6:$V$205,VLOOKUP($A104,Zuordnung_Faktorreihen!$B$3:$E$100,4,0),0)))*'00_SAV'!O100 -> 23970.63451 | AF104: =((VLOOKUP(AF$8,Faktorreihen!$B$6:$V$205,VLOOKUP($A104,Zuordnung_Faktorreihen!$B$3:$E$100,4,0),0))/(VLOOKUP($B104,Faktorreihen!$B$6:$V$205,VLOOKUP($A104,Zuordnung_Faktorreihen!$B$3:$E$100,4,0),0)))*'00_SAV'!P100 -> 24782.68863 | AG104: =((VLOOKUP(AG$8,Faktorreihen!$B$6:$V$205,VLOOKUP($A104,Zuordnung_Faktorreihen!$B$3:$E$100,4,0),0))/(VLOOKUP($B104,Faktorreihen!$B$6:$V$205,VLOOKUP($A104,Zuordnung_Faktorreihen!$B$3:$E$100,4,0),0)))*'00_SAV'!Q100 -> 25895.50353 | AH104: =((VLOOKUP(AH$8,Faktorreihen!$B$6:$V$205,VLOOKUP($A104,Zuordnung_Faktorreihen!$B$3:$E$100,4,0),0))/(VLOOKUP($B104,Faktorreihen!$B$6:$V$205,VLOOKUP($A104,Zuordnung_Faktorreihen!$B$3:$E$100,4,0),0)))*'00_SAV'!R100 -> 27038.39451 | AI104: =((VLOOKUP(AI$8,Faktorreihen!$B$6:$V$205,VLOOKUP($A104,Zuordnung_Faktorreihen!$B$3:$E$100,4,0),0))/(VLOOKUP($B104,Faktorreihen!$B$6:$V$205,VLOOKUP($A104,Zuordnung_Faktorreihen!$B$3:$E$100,4,0),0)))*'00_SAV'!S100 -> 27790.29647 | AJ104: =((VLOOKUP(AJ$8,Faktorreihen!$B$6:$V$205,VLOOKUP($A104,Zuordnung_Faktorreihen!$B$3:$E$100,4,0),0))/(VLOOKUP($B104,Faktorreihen!$B$6:$V$205,VLOOKUP($A104,Zuordnung_Faktorreihen!$B$3:$E$100,4,0),0)))*'00_SAV'!T100 -> 30076.07843
A105: 2 | B105: 1934 | C105: NB | D105: =((VLOOKUP($D$8,Faktorreihen!$B$6:$V$205,VLOOKUP($A105,Zuordnung_Faktorreihen!$B$3:$E$100,4,0),0))/(VLOOKUP($B105,Faktorreihen!$B$6:$V$205,VLOOKUP($A105,Zuordnung_Faktorreihen!$B$3:$E$100,4,0),0)))*'00_SAV'!E101 -> 0 | E105: =((VLOOKUP($D$8,Faktorreihen!$B$6:$V$205,VLOOKUP($A105,Zuordnung_Faktorreihen!$B$3:$E$100,4,0),0))/(VLOOKUP($B105,Faktorreihen!$B$6:$V$205,VLOOKUP($A105,Zuordnung_Faktorreihen!$B$3:$E$100,4,0),0)))*'00_SAV'!F101 -> 0 | F105: =((VLOOKUP($D$8,Faktorreihen!$B$6:$V$205,VLOOKUP($A105,Zuordnung_Faktorreihen!$B$3:$E$100,4,0),0))/(VLOOKUP($B105,Faktorreihen!$B$6:$V$205,VLOOKUP($A105,Zuordnung_Faktorreihen!$B$3:$E$100,4,0),0)))*'00_SAV'!G101 -> 0 | G105: =((VLOOKUP($D$8,Faktorreihen!$B$6:$V$205,VLOOKUP($A105,Zuordnung_Faktorreihen!$B$3:$E$100,4,0),0))/(VLOOKUP($B105,Faktorreihen!$B$6:$V$205,VLOOKUP($A105,Zuordnung_Faktorreihen!$B$3:$E$100,4,0),0)))*'00_SAV'!H101 -> 0 | H105: =((VLOOKUP($D$8,Faktorreihen!$B$6:$V$205,VLOOKUP($A105,Zuordnung_Faktorreihen!$B$3:$E$100,4,0),0))/(VLOOKUP($B105,Faktorreihen!$B$6:$V$205,VLOOKUP($A105,Zuordnung_Faktorreihen!$B$3:$E$100,4,0),0)))*'00_SAV'!I101 -> 0 | I105: =((VLOOKUP($D$8,Faktorreihen!$B$6:$V$205,VLOOKUP($A105,Zuordnung_Faktorreihen!$B$3:$E$100,4,0),0))/(VLOOKUP($B105,Faktorreihen!$B$6:$V$205,VLOOKUP($A105,Zuordnung_Faktorreihen!$B$3:$E$100,4,0),0)))*'00_SAV'!J101 -> 0 | J105: =((VLOOKUP($D$8,Faktorreihen!$B$6:$V$205,VLOOKUP($A105,Zuordnung_Faktorreihen!$B$3:$E$100,4,0),0))/(VLOOKUP($B105,Faktorreihen!$B$6:$V$205,VLOOKUP($A105,Zuordnung_Faktorreihen!$B$3:$E$100,4,0),0)))*'00_SAV'!K101 -> 0 | K105: =((VLOOKUP($D$8,Faktorreihen!$B$6:$V$205,VLOOKUP($A105,Zuordnung_Faktorreihen!$B$3:$E$100,4,0),0))/(VLOOKUP($B105,Faktorreihen!$B$6:$V$205,VLOOKUP($A105,Zuordnung_Faktorreihen!$B$3:$E$100,4,0),0)))*'00_SAV'!L101 -> 0 | L105: =((VLOOKUP($D$8,Faktorreihen!$B$6:$V$205,VLOOKUP($A105,Zuordnung_Faktorreihen!$B$3:$E$100,4,0),0))/(VLOOKUP($B105,Faktorreihen!$B$6:$V$205,VLOOKUP($A105,Zuordnung_Faktorreihen!$B$3:$E$100,4,0),0)))*'00_SAV'!M101 -> 0 | M105: =((VLOOKUP($D$8,Faktorreihen!$B$6:$V$205,VLOOKUP($A105,Zuordnung_Faktorreihen!$B$3:$E$100,4,0),0))/(VLOOKUP($B105,Faktorreihen!$B$6:$V$205,VLOOKUP($A105,Zuordnung_Faktorreihen!$B$3:$E$100,4,0),0)))*'00_SAV'!N101 -> 0 | N105: =((VLOOKUP($D$8,Faktorreihen!$B$6:$V$205,VLOOKUP($A105,Zuordnung_Faktorreihen!$B$3:$E$100,4,0),0))/(VLOOKUP($B105,Faktorreihen!$B$6:$V$205,VLOOKUP($A105,Zuordnung_Faktorreihen!$B$3:$E$100,4,0),0)))*'00_SAV'!O101 -> 0 | O105: =((VLOOKUP($D$8,Faktorreihen!$B$6:$V$205,VLOOKUP($A105,Zuordnung_Faktorreihen!$B$3:$E$100,4,0),0))/(VLOOKUP($B105,Faktorreihen!$B$6:$V$205,VLOOKUP($A105,Zuordnung_Faktorreihen!$B$3:$E$100,4,0),0)))*'00_SAV'!P101 -> 1132.534118 | P105: =((VLOOKUP($D$8,Faktorreihen!$B$6:$V$205,VLOOKUP($A105,Zuordnung_Faktorreihen!$B$3:$E$100,4,0),0))/(VLOOKUP($B105,Faktorreihen!$B$6:$V$205,VLOOKUP($A105,Zuordnung_Faktorreihen!$B$3:$E$100,4,0),0)))*'00_SAV'!Q101 -> 1132.534118 | Q105: =((VLOOKUP($D$8,Faktorreihen!$B$6:$V$205,VLOOKUP($A105,Zuordnung_Faktorreihen!$B$3:$E$100,4,0),0))/(VLOOKUP($B105,Faktorreihen!$B$6:$V$205,VLOOKUP($A105,Zuordnung_Faktorreihen!$B$3:$E$100,4,0),0)))*'00_SAV'!R101 -> 1132.534118 | R105: =((VLOOKUP($D$8,Faktorreihen!$B$6:$V$205,VLOOKUP($A105,Zuordnung_Faktorreihen!$B$3:$E$100,4,0),0))/(VLOOKUP($B105,Faktorreihen!$B$6:$V$205,VLOOKUP($A105,Zuordnung_Faktorreihen!$B$3:$E$100,4,0),0)))*'00_SAV'!S101 -> 1132.534118 | S105: =((VLOOKUP($D$8,Faktorreihen!$B$6:$V$205,VLOOKUP($A105,Zuordnung_Faktorreihen!$B$3:$E$100,4,0),0))/(VLOOKUP($B105,Faktorreihen!$B$6:$V$205,VLOOKUP($A105,Zuordnung_Faktorreihen!$B$3:$E$100,4,0),0)))*'00_SAV'!T101 -> 1461.912941 | U105: =((VLOOKUP(U$8,Faktorreihen!$B$6:$V$205,VLOOKUP($A105,Zuordnung_Faktorreihen!$B$3:$E$100,4,0),0))/(VLOOKUP($B105,Faktorreihen!$B$6:$V$205,VLOOKUP($A105,Zuordnung_Faktorreihen!$B$3:$E$100,4,0),0)))*'00_SAV'!E101 -> 0 | V105: =((VLOOKUP(V$8,Faktorreihen!$B$6:$V$205,VLOOKUP($A105,Zuordnung_Faktorreihen!$B$3:$E$100,4,0),0))/(VLOOKUP($B105,Faktorreihen!$B$6:$V$205,VLOOKUP($A105,Zuordnung_Faktorreihen!$B$3:$E$100,4,0),0)))*'00_SAV'!F101 -> 0 | W105: =((VLOOKUP(W$8,Faktorreihen!$B$6:$V$205,VLOOKUP($A105,Zuordnung_Faktorreihen!$B$3:$E$100,4,0),0))/(VLOOKUP($B105,Faktorreihen!$B$6:$V$205,VLOOKUP($A105,Zuordnung_Faktorreihen!$B$3:$E$100,4,0),0)))*'00_SAV'!G101 -> 0 | X105: =((VLOOKUP(X$8,Faktorreihen!$B$6:$V$205,VLOOKUP($A105,Zuordnung_Faktorreihen!$B$3:$E$100,4,0),0))/(VLOOKUP($B105,Faktorreihen!$B$6:$V$205,VLOOKUP($A105,Zuordnung_Faktorreihen!$B$3:$E$100,4,0),0)))*'00_SAV'!H101 -> 0 | Y105: =((VLOOKUP(Y$8,Faktorreihen!$B$6:$V$205,VLOOKUP($A105,Zuordnung_Faktorreihen!$B$3:$E$100,4,0),0))/(VLOOKUP($B105,Faktorreihen!$B$6:$V$205,VLOOKUP($A105,Zuordnung_Faktorreihen!$B$3:$E$100,4,0),0)))*'00_SAV'!I101 -> 0 | Z105: =((VLOOKUP(Z$8,Faktorreihen!$B$6:$V$205,VLOOKUP($A105,Zuordnung_Faktorreihen!$B$3:$E$100,4,0),0))/(VLOOKUP($B105,Faktorreihen!$B$6:$V$205,VLOOKUP($A105,Zuordnung_Faktorreihen!$B$3:$E$100,4,0),0)))*'00_SAV'!J101 -> 0 | AA105: =((VLOOKUP(AA$8,Faktorreihen!$B$6:$V$205,VLOOKUP($A105,Zuordnung_Faktorreihen!$B$3:$E$100,4,0),0))/(VLOOKUP($B105,Faktorreihen!$B$6:$V$205,VLOOKUP($A105,Zuordnung_Faktorreihen!$B$3:$E$100,4,0),0)))*'00_SAV'!K101 -> 0 | AB105: =((VLOOKUP(AB$8,Faktorreihen!$B$6:$V$205,VLOOKUP($A105,Zuordnung_Faktorreihen!$B$3:$E$100,4,0),0))/(VLOOKUP($B105,Faktorreihen!$B$6:$V$205,VLOOKUP($A105,Zuordnung_Faktorreihen!$B$3:$E$100,4,0),0)))*'00_SAV'!L101 -> 0 | AC105: =((VLOOKUP(AC$8,Faktorreihen!$B$6:$V$205,VLOOKUP($A105,Zuordnung_Faktorreihen!$B$3:$E$100,4,0),0))/(VLOOKUP($B105,Faktorreihen!$B$6:$V$205,VLOOKUP($A105,Zuordnung_Faktorreihen!$B$3:$E$100,4,0),0)))*'00_SAV'!M101 -> 0 | AD105: =((VLOOKUP(AD$8,Faktorreihen!$B$6:$V$205,VLOOKUP($A105,Zuordnung_Faktorreihen!$B$3:$E$100,4,0),0))/(VLOOKUP($B105,Faktorreihen!$B$6:$V$205,VLOOKUP($A105,Zuordnung_Faktorreihen!$B$3:$E$100,4,0),0)))*'00_SAV'!N101 -> 0 | AE105: =((VLOOKUP(AE$8,Faktorreihen!$B$6:$V$205,VLOOKUP($A105,Zuordnung_Faktorreihen!$B$3:$E$100,4,0),0))/(VLOOKUP($B105,Faktorreihen!$B$6:$V$205,VLOOKUP($A105,Zuordnung_Faktorreihen!$B$3:$E$100,4,0),0)))*'00_SAV'!O101 -> 0 | AF105: =((VLOOKUP(AF$8,Faktorreihen!$B$6:$V$205,VLOOKUP($A105,Zuordnung_Faktorreihen!$B$3:$E$100,4,0),0))/(VLOOKUP($B105,Faktorreihen!$B$6:$V$205,VLOOKUP($A105,Zuordnung_Faktorreihen!$B$3:$E$100,4,0),0)))*'00_SAV'!P101 -> 1009.96549 | AG105: =((VLOOKUP(AG$8,Faktorreihen!$B$6:$V$205,VLOOKUP($A105,Zuordnung_Faktorreihen!$B$3:$E$100,4,0),0))/(VLOOKUP($B105,Faktorreihen!$B$6:$V$205,VLOOKUP($A105,Zuordnung_Faktorreihen!$B$3:$E$100,4,0),0)))*'00_SAV'!Q101 -> 1055.315882 | AH105: =((VLOOKUP(AH$8,Faktorreihen!$B$6:$V$205,VLOOKUP($A105,Zuordnung_Faktorreihen!$B$3:$E$100,4,0),0))/(VLOOKUP($B105,Faktorreihen!$B$6:$V$205,VLOOKUP($A105,Zuordnung_Faktorreihen!$B$3:$E$100,4,0),0)))*'00_SAV'!R101 -> 1101.891961 | AI105: =((VLOOKUP(AI$8,Faktorreihen!$B$6:$V$205,VLOOKUP($A105,Zuordnung_Faktorreihen!$B$3:$E$100,4,0),0))/(VLOOKUP($B105,Faktorreihen!$B$6:$V$205,VLOOKUP($A105,Zuordnung_Faktorreihen!$B$3:$E$100,4,0),0)))*'00_SAV'!S101 -> 1132.534118 | AJ105: =((VLOOKUP(AJ$8,Faktorreihen!$B$6:$V$205,VLOOKUP($A105,Zuordnung_Faktorreihen!$B$3:$E$100,4,0),0))/(VLOOKUP($B105,Faktorreihen!$B$6:$V$205,VLOOKUP($A105,Zuordnung_Faktorreihen!$B$3:$E$100,4,0),0)))*'00_SAV'!T101 -> 1582.156863
A106: 2 | B106: 1935 | C106: NB | D106: =((VLOOKUP($D$8,Faktorreihen!$B$6:$V$205,VLOOKUP($A106,Zuordnung_Faktorreihen!$B$3:$E$100,4,0),0))/(VLOOKUP($B106,Faktorreihen!$B$6:$V$205,VLOOKUP($A106,Zuordnung_Faktorreihen!$B$3:$E$100,4,0),0)))*'00_SAV'!E102 -> 982.52 | E106: =((VLOOKUP($D$8,Faktorreihen!$B$6:$V$205,VLOOKUP($A106,Zuordnung_Faktorreihen!$B$3:$E$100,4,0),0))/(VLOOKUP($B106,Faktorreihen!$B$6:$V$205,VLOOKUP($A106,Zuordnung_Faktorreihen!$B$3:$E$100,4,0),0)))*'00_SAV'!F102 -> 982.52 | F106: =((VLOOKUP($D$8,Faktorreihen!$B$6:$V$205,VLOOKUP($A106,Zuordnung_Faktorreihen!$B$3:$E$100,4,0),0))/(VLOOKUP($B106,Faktorreihen!$B$6:$V$205,VLOOKUP($A106,Zuordnung_Faktorreihen!$B$3:$E$100,4,0),0)))*'00_SAV'!G102 -> 982.52 | G106: =((VLOOKUP($D$8,Faktorreihen!$B$6:$V$205,VLOOKUP($A106,Zuordnung_Faktorreihen!$B$3:$E$100,4,0),0))/(VLOOKUP($B106,Faktorreihen!$B$6:$V$205,VLOOKUP($A106,Zuordnung_Faktorreihen!$B$3:$E$100,4,0),0)))*'00_SAV'!H102 -> 982.52 | H106: =((VLOOKUP($D$8,Faktorreihen!$B$6:$V$205,VLOOKUP($A106,Zuordnung_Faktorreihen!$B$3:$E$100,4,0),0))/(VLOOKUP($B106,Faktorreihen!$B$6:$V$205,VLOOKUP($A106,Zuordnung_Faktorreihen!$B$3:$E$100,4,0),0)))*'00_SAV'!I102 -> 982.52 | I106: =((VLOOKUP($D$8,Faktorreihen!$B$6:$V$205,VLOOKUP($A106,Zuordnung_Faktorreihen!$B$3:$E$100,4,0),0))/(VLOOKUP($B106,Faktorreihen!$B$6:$V$205,VLOOKUP($A106,Zuordnung_Faktorreihen!$B$3:$E$100,4,0),0)))*'00_SAV'!J102 -> 982.52 | J106: =((VLOOKUP($D$8,Faktorreihen!$B$6:$V$205,VLOOKUP($A106,Zuordnung_Faktorreihen!$B$3:$E$100,4,0),0))/(VLOOKUP($B106,Faktorreihen!$B$6:$V$205,VLOOKUP($A106,Zuordnung_Faktorreihen!$B$3:$E$100,4,0),0)))*'00_SAV'!K102 -> 982.52 | K106: =((VLOOKUP($D$8,Faktorreihen!$B$6:$V$205,VLOOKUP($A106,Zuordnung_Faktorreihen!$B$3:$E$100,4,0),0))/(VLOOKUP($B106,Faktorreihen!$B$6:$V$205,VLOOKUP($A106,Zuordnung_Faktorreihen!$B$3:$E$100,4,0),0)))*'00_SAV'!L102 -> 982.52 | L106: =((VLOOKUP($D$8,Faktorreihen!$B$6:$V$205,VLOOKUP($A106,Zuordnung_Faktorreihen!$B$3:$E$100,4,0),0))/(VLOOKUP($B106,Faktorreihen!$B$6:$V$205,VLOOKUP($A106,Zuordnung_Faktorreihen!$B$3:$E$100,4,0),0)))*'00_SAV'!M102 -> 982.52 | M106: =((VLOOKUP($D$8,Faktorreihen!$B$6:$V$205,VLOOKUP($A106,Zuordnung_Faktorreihen!$B$3:$E$100,4,0),0))/(VLOOKUP($B106,Faktorreihen!$B$6:$V$205,VLOOKUP($A106,Zuordnung_Faktorreihen!$B$3:$E$100,4,0),0)))*'00_SAV'!N102 -> 982.52 | N106: =((VLOOKUP($D$8,Faktorreihen!$B$6:$V$205,VLOOKUP($A106,Zuordnung_Faktorreihen!$B$3:$E$100,4,0),0))/(VLOOKUP($B106,Faktorreihen!$B$6:$V$205,VLOOKUP($A106,Zuordnung_Faktorreihen!$B$3:$E$100,4,0),0)))*'00_SAV'!O102 -> 982.52 | O106: =((VLOOKUP($D$8,Faktorreihen!$B$6:$V$205,VLOOKUP($A106,Zuordnung_Faktorreihen!$B$3:$E$100,4,0),0))/(VLOOKUP($B106,Faktorreihen!$B$6:$V$205,VLOOKUP($A106,Zuordnung_Faktorreihen!$B$3:$E$100,4,0),0)))*'00_SAV'!P102 -> 0 | P106: =((VLOOKUP($D$8,Faktorreihen!$B$6:$V$205,VLOOKUP($A106,Zuordnung_Faktorreihen!$B$3:$E$100,4,0),0))/(VLOOKUP($B106,Faktorreihen!$B$6:$V$205,VLOOKUP($A106,Zuordnung_Faktorreihen!$B$3:$E$100,4,0),0)))*'00_SAV'!Q102 -> 0 | Q106: =((VLOOKUP($D$8,Faktorreihen!$B$6:$V$205,VLOOKUP($A106,Zuordnung_Faktorreihen!$B$3:$E$100,4,0),0))/(VLOOKUP($B106,Faktorreihen!$B$6:$V$205,VLOOKUP($A106,Zuordnung_Faktorreihen!$B$3:$E$100,4,0),0)))*'00_SAV'!R102 -> 0 | R106: =((VLOOKUP($D$8,Faktorreihen!$B$6:$V$205,VLOOKUP($A106,Zuordnung_Faktorreihen!$B$3:$E$100,4,0),0))/(VLOOKUP($B106,Faktorreihen!$B$6:$V$205,VLOOKUP($A106,Zuordnung_Faktorreihen!$B$3:$E$100,4,0),0)))*'00_SAV'!S102 -> 0 | S106: =((VLOOKUP($D$8,Faktorreihen!$B$6:$V$205,VLOOKUP($A106,Zuordnung_Faktorreihen!$B$3:$E$100,4,0),0))/(VLOOKUP($B106,Faktorreihen!$B$6:$V$205,VLOOKUP($A106,Zuordnung_Faktorreihen!$B$3:$E$100,4,0),0)))*'00_SAV'!T102 -> 0 | U106: =((VLOOKUP(U$8,Faktorreihen!$B$6:$V$205,VLOOKUP($A106,Zuordnung_Faktorreihen!$B$3:$E$100,4,0),0))/(VLOOKUP($B106,Faktorreihen!$B$6:$V$205,VLOOKUP($A106,Zuordnung_Faktorreihen!$B$3:$E$100,4,0),0)))*'00_SAV'!E102 -> 673.09 | V106: =((VLOOKUP(V$8,Faktorreihen!$B$6:$V$205,VLOOKUP($A106,Zuordnung_Faktorreihen!$B$3:$E$100,4,0),0))/(VLOOKUP($B106,Faktorreihen!$B$6:$V$205,VLOOKUP($A106,Zuordnung_Faktorreihen!$B$3:$E$100,4,0),0)))*'00_SAV'!F102 -> 702.8633333 | W106: =((VLOOKUP(W$8,Faktorreihen!$B$6:$V$205,VLOOKUP($A106,Zuordnung_Faktorreihen!$B$3:$E$100,4,0),0))/(VLOOKUP($B106,Faktorreihen!$B$6:$V$205,VLOOKUP($A106,Zuordnung_Faktorreihen!$B$3:$E$100,4,0),0)))*'00_SAV'!G102 -> 728.3833333 | X106: =((VLOOKUP(X$8,Faktorreihen!$B$6:$V$205,VLOOKUP($A106,Zuordnung_Faktorreihen!$B$3:$E$100,4,0),0))/(VLOOKUP($B106,Faktorreihen!$B$6:$V$205,VLOOKUP($A106,Zuordnung_Faktorreihen!$B$3:$E$100,4,0),0)))*'00_SAV'!H102 -> 736.89 | Y106: =((VLOOKUP(Y$8,Faktorreihen!$B$6:$V$205,VLOOKUP($A106,Zuordnung_Faktorreihen!$B$3:$E$100,4,0),0))/(VLOOKUP($B106,Faktorreihen!$B$6:$V$205,VLOOKUP($A106,Zuordnung_Faktorreihen!$B$3:$E$100,4,0),0)))*'00_SAV'!I102 -> 744.3333333 | Z106: =((VLOOKUP(Z$8,Faktorreihen!$B$6:$V$205,VLOOKUP($A106,Zuordnung_Faktorreihen!$B$3:$E$100,4,0),0))/(VLOOKUP($B106,Faktorreihen!$B$6:$V$205,VLOOKUP($A106,Zuordnung_Faktorreihen!$B$3:$E$100,4,0),0)))*'00_SAV'!J102 -> 767.7266667 | AA106: =((VLOOKUP(AA$8,Faktorreihen!$B$6:$V$205,VLOOKUP($A106,Zuordnung_Faktorreihen!$B$3:$E$100,4,0),0))/(VLOOKUP($B106,Faktorreihen!$B$6:$V$205,VLOOKUP($A106,Zuordnung_Faktorreihen!$B$3:$E$100,4,0),0)))*'00_SAV'!K102 -> 787.93 | AB106: =((VLOOKUP(AB$8,Faktorreihen!$B$6:$V$205,VLOOKUP($A106,Zuordnung_Faktorreihen!$B$3:$E$100,4,0),0))/(VLOOKUP($B106,Faktorreihen!$B$6:$V$205,VLOOKUP($A106,Zuordnung_Faktorreihen!$B$3:$E$100,4,0),0)))*'00_SAV'!L102 -> 802.8166667 | AC106: =((VLOOKUP(AC$8,Faktorreihen!$B$6:$V$205,VLOOKUP($A106,Zuordnung_Faktorreihen!$B$3:$E$100,4,0),0))/(VLOOKUP($B106,Faktorreihen!$B$6:$V$205,VLOOKUP($A106,Zuordnung_Faktorreihen!$B$3:$E$100,4,0),0)))*'00_SAV'!M102 -> 816.64 | AD106: =((VLOOKUP(AD$8,Faktorreihen!$B$6:$V$205,VLOOKUP($A106,Zuordnung_Faktorreihen!$B$3:$E$100,4,0),0))/(VLOOKUP($B106,Faktorreihen!$B$6:$V$205,VLOOKUP($A106,Zuordnung_Faktorreihen!$B$3:$E$100,4,0),0)))*'00_SAV'!N102 -> 830.4633333 | AE106: =((VLOOKUP(AE$8,Faktorreihen!$B$6:$V$205,VLOOKUP($A106,Zuordnung_Faktorreihen!$B$3:$E$100,4,0),0))/(VLOOKUP($B106,Faktorreihen!$B$6:$V$205,VLOOKUP($A106,Zuordnung_Faktorreihen!$B$3:$E$100,4,0),0)))*'00_SAV'!O102 -> 847.4766667 | AF106: =((VLOOKUP(AF$8,Faktorreihen!$B$6:$V$205,VLOOKUP($A106,Zuordnung_Faktorreihen!$B$3:$E$100,4,0),0))/(VLOOKUP($B106,Faktorreihen!$B$6:$V$205,VLOOKUP($A106,Zuordnung_Faktorreihen!$B$3:$E$100,4,0),0)))*'00_SAV'!P102 -> 0 | AG106: =((VLOOKUP(AG$8,Faktorreihen!$B$6:$V$205,VLOOKUP($A106,Zuordnung_Faktorreihen!$B$3:$E$100,4,0),0))/(VLOOKUP($B106,Faktorreihen!$B$6:$V$205,VLOOKUP($A106,Zuordnung_Faktorreihen!$B$3:$E$100,4,0),0)))*'00_SAV'!Q102 -> 0 | AH106: =((VLOOKUP(AH$8,Faktorreihen!$B$6:$V$205,VLOOKUP($A106,Zuordnung_Faktorreihen!$B$3:$E$100,4,0),0))/(VLOOKUP($B106,Faktorreihen!$B$6:$V$205,VLOOKUP($A106,Zuordnung_Faktorreihen!$B$3:$E$100,4,0),0)))*'00_SAV'!R102 -> 0 | AI106: =((VLOOKUP(AI$8,Faktorreihen!$B$6:$V$205,VLOOKUP($A106,Zuordnung_Faktorreihen!$B$3:$E$100,4,0),0))/(VLOOKUP($B106,Faktorreihen!$B$6:$V$205,VLOOKUP($A106,Zuordnung_Faktorreihen!$B$3:$E$100,4,0),0)))*'00_SAV'!S102 -> 0 | AJ106: =((VLOOKUP(AJ$8,Faktorreihen!$B$6:$V$205,VLOOKUP($A106,Zuordnung_Faktorreihen!$B$3:$E$100,4,0),0))/(VLOOKUP($B106,Faktorreihen!$B$6:$V$205,VLOOKUP($A106,Zuordnung_Faktorreihen!$B$3:$E$100,4,0),0)))*'00_SAV'!T102 -> 0
A107: 2 | B107: 1936 | C107: NB | D107: =((VLOOKUP($D$8,Faktorreihen!$B$6:$V$205,VLOOKUP($A107,Zuordnung_Faktorreihen!$B$3:$E$100,4,0),0))/(VLOOKUP($B107,Faktorreihen!$B$6:$V$205,VLOOKUP($A107,Zuordnung_Faktorreihen!$B$3:$E$100,4,0),0)))*'00_SAV'!E103 -> 309.0870588 | E107: =((VLOOKUP($D$8,Faktorreihen!$B$6:$V$205,VLOOKUP($A107,Zuordnung_Faktorreihen!$B$3:$E$100,4,0),0))/(VLOOKUP($B107,Faktorreihen!$B$6:$V$205,VLOOKUP($A107,Zuordnung_Faktorreihen!$B$3:$E$100,4,0),0)))*'00_SAV'!F103 -> 309.0870588 | F107: =((VLOOKUP($D$8,Faktorreihen!$B$6:$V$205,VLOOKUP($A107,Zuordnung_Faktorreihen!$B$3:$E$100,4,0),0))/(VLOOKUP($B107,Faktorreihen!$B$6:$V$205,VLOOKUP($A107,Zuordnung_Faktorreihen!$B$3:$E$100,4,0),0)))*'00_SAV'!G103 -> 309.0870588 | G107: =((VLOOKUP($D$8,Faktorreihen!$B$6:$V$205,VLOOKUP($A107,Zuordnung_Faktorreihen!$B$3:$E$100,4,0),0))/(VLOOKUP($B107,Faktorreihen!$B$6:$V$205,VLOOKUP($A107,Zuordnung_Faktorreihen!$B$3:$E$100,4,0),0)))*'00_SAV'!H103 -> 309.0870588 | H107: =((VLOOKUP($D$8,Faktorreihen!$B$6:$V$205,VLOOKUP($A107,Zuordnung_Faktorreihen!$B$3:$E$100,4,0),0))/(VLOOKUP($B107,Faktorreihen!$B$6:$V$205,VLOOKUP($A107,Zuordnung_Faktorreihen!$B$3:$E$100,4,0),0)))*'00_SAV'!I103 -> 309.0870588 | I107: =((VLOOKUP($D$8,Faktorreihen!$B$6:$V$205,VLOOKUP($A107,Zuordnung_Faktorreihen!$B$3:$E$100,4,0),0))/(VLOOKUP($B107,Faktorreihen!$B$6:$V$205,VLOOKUP($A107,Zuordnung_Faktorreihen!$B$3:$E$100,4,0),0)))*'00_SAV'!J103 -> 309.0870588 | J107: =((VLOOKUP($D$8,Faktorreihen!$B$6:$V$205,VLOOKUP($A107,Zuordnung_Faktorreihen!$B$3:$E$100,4,0),0))/(VLOOKUP($B107,Faktorreihen!$B$6:$V$205,VLOOKUP($A107,Zuordnung_Faktorreihen!$B$3:$E$100,4,0),0)))*'00_SAV'!K103 -> 309.0870588 | K107: =((VLOOKUP($D$8,Faktorreihen!$B$6:$V$205,VLOOKUP($A107,Zuordnung_Faktorreihen!$B$3:$E$100,4,0),0))/(VLOOKUP($B107,Faktorreihen!$B$6:$V$205,VLOOKUP($A107,Zuordnung_Faktorreihen!$B$3:$E$100,4,0),0)))*'00_SAV'!L103 -> 309.0870588 | L107: =((VLOOKUP($D$8,Faktorreihen!$B$6:$V$205,VLOOKUP($A107,Zuordnung_Faktorreihen!$B$3:$E$100,4,0),0))/(VLOOKUP($B107,Faktorreihen!$B$6:$V$205,VLOOKUP($A107,Zuordnung_Faktorreihen!$B$3:$E$100,4,0),0)))*'00_SAV'!M103 -> 309.0870588 | M107: =((VLOOKUP($D$8,Faktorreihen!$B$6:$V$205,VLOOKUP($A107,Zuordnung_Faktorreihen!$B$3:$E$100,4,0),0))/(VLOOKUP($B107,Faktorreihen!$B$6:$V$205,VLOOKUP($A107,Zuordnung_Faktorreihen!$B$3:$E$100,4,0),0)))*'00_SAV'!N103 -> 309.0870588 | N107: =((VLOOKUP($D$8,Faktorreihen!$B$6:$V$205,VLOOKUP($A107,Zuordnung_Faktorreihen!$B$3:$E$100,4,0),0))/(VLOOKUP($B107,Faktorreihen!$B$6:$V$205,VLOOKUP($A107,Zuordnung_Faktorreihen!$B$3:$E$100,4,0),0)))*'00_SAV'!O103 -> 309.0870588 | O107: =((VLOOKUP($D$8,Faktorreihen!$B$6:$V$205,VLOOKUP($A107,Zuordnung_Faktorreihen!$B$3:$E$100,4,0),0))/(VLOOKUP($B107,Faktorreihen!$B$6:$V$205,VLOOKUP($A107,Zuordnung_Faktorreihen!$B$3:$E$100,4,0),0)))*'00_SAV'!P103 -> 0 | P107: =((VLOOKUP($D$8,Faktorreihen!$B$6:$V$205,VLOOKUP($A107,Zuordnung_Faktorreihen!$B$3:$E$100,4,0),0))/(VLOOKUP($B107,Faktorreihen!$B$6:$V$205,VLOOKUP($A107,Zuordnung_Faktorreihen!$B$3:$E$100,4,0),0)))*'00_SAV'!Q103 -> 0 | Q107: =((VLOOKUP($D$8,Faktorreihen!$B$6:$V$205,VLOOKUP($A107,Zuordnung_Faktorreihen!$B$3:$E$100,4,0),0))/(VLOOKUP($B107,Faktorreihen!$B$6:$V$205,VLOOKUP($A107,Zuordnung_Faktorreihen!$B$3:$E$100,4,0),0)))*'00_SAV'!R103 -> 0 | R107: =((VLOOKUP($D$8,Faktorreihen!$B$6:$V$205,VLOOKUP($A107,Zuordnung_Faktorreihen!$B$3:$E$100,4,0),0))/(VLOOKUP($B107,Faktorreihen!$B$6:$V$205,VLOOKUP($A107,Zuordnung_Faktorreihen!$B$3:$E$100,4,0),0)))*'00_SAV'!S103 -> 0 | S107: =((VLOOKUP($D$8,Faktorreihen!$B$6:$V$205,VLOOKUP($A107,Zuordnung_Faktorreihen!$B$3:$E$100,4,0),0))/(VLOOKUP($B107,Faktorreihen!$B$6:$V$205,VLOOKUP($A107,Zuordnung_Faktorreihen!$B$3:$E$100,4,0),0)))*'00_SAV'!T103 -> 0 | U107: =((VLOOKUP(U$8,Faktorreihen!$B$6:$V$205,VLOOKUP($A107,Zuordnung_Faktorreihen!$B$3:$E$100,4,0),0))/(VLOOKUP($B107,Faktorreihen!$B$6:$V$205,VLOOKUP($A107,Zuordnung_Faktorreihen!$B$3:$E$100,4,0),0)))*'00_SAV'!E103 -> 211.7447059 | V107: =((VLOOKUP(V$8,Faktorreihen!$B$6:$V$205,VLOOKUP($A107,Zuordnung_Faktorreihen!$B$3:$E$100,4,0),0))/(VLOOKUP($B107,Faktorreihen!$B$6:$V$205,VLOOKUP($A107,Zuordnung_Faktorreihen!$B$3:$E$100,4,0),0)))*'00_SAV'!F103 -> 221.1109804 | W107: =((VLOOKUP(W$8,Faktorreihen!$B$6:$V$205,VLOOKUP($A107,Zuordnung_Faktorreihen!$B$3:$E$100,4,0),0))/(VLOOKUP($B107,Faktorreihen!$B$6:$V$205,VLOOKUP($A107,Zuordnung_Faktorreihen!$B$3:$E$100,4,0),0)))*'00_SAV'!G103 -> 229.1392157 | X107: =((VLOOKUP(X$8,Faktorreihen!$B$6:$V$205,VLOOKUP($A107,Zuordnung_Faktorreihen!$B$3:$E$100,4,0),0))/(VLOOKUP($B107,Faktorreihen!$B$6:$V$205,VLOOKUP($A107,Zuordnung_Faktorreihen!$B$3:$E$100,4,0),0)))*'00_SAV'!H103 -> 231.8152941 | Y107: =((VLOOKUP(Y$8,Faktorreihen!$B$6:$V$205,VLOOKUP($A107,Zuordnung_Faktorreihen!$B$3:$E$100,4,0),0))/(VLOOKUP($B107,Faktorreihen!$B$6:$V$205,VLOOKUP($A107,Zuordnung_Faktorreihen!$B$3:$E$100,4,0),0)))*'00_SAV'!I103 -> 234.1568627 | Z107: =((VLOOKUP(Z$8,Faktorreihen!$B$6:$V$205,VLOOKUP($A107,Zuordnung_Faktorreihen!$B$3:$E$100,4,0),0))/(VLOOKUP($B107,Faktorreihen!$B$6:$V$205,VLOOKUP($A107,Zuordnung_Faktorreihen!$B$3:$E$100,4,0),0)))*'00_SAV'!J103 -> 241.5160784 | AA107: =((VLOOKUP(AA$8,Faktorreihen!$B$6:$V$205,VLOOKUP($A107,Zuordnung_Faktorreihen!$B$3:$E$100,4,0),0))/(VLOOKUP($B107,Faktorreihen!$B$6:$V$205,VLOOKUP($A107,Zuordnung_Faktorreihen!$B$3:$E$100,4,0),0)))*'00_SAV'!K103 -> 247.8717647 | AB107: =((VLOOKUP(AB$8,Faktorreihen!$B$6:$V$205,VLOOKUP($A107,Zuordnung_Faktorreihen!$B$3:$E$100,4,0),0))/(VLOOKUP($B107,Faktorreihen!$B$6:$V$205,VLOOKUP($A107,Zuordnung_Faktorreihen!$B$3:$E$100,4,0),0)))*'00_SAV'!L103 -> 252.554902 | AC107: =((VLOOKUP(AC$8,Faktorreihen!$B$6:$V$205,VLOOKUP($A107,Zuordnung_Faktorreihen!$B$3:$E$100,4,0),0))/(VLOOKUP($B107,Faktorreihen!$B$6:$V$205,VLOOKUP($A107,Zuordnung_Faktorreihen!$B$3:$E$100,4,0),0)))*'00_SAV'!M103 -> 256.9035294 | AD107: =((VLOOKUP(AD$8,Faktorreihen!$B$6:$V$205,VLOOKUP($A107,Zuordnung_Faktorreihen!$B$3:$E$100,4,0),0))/(VLOOKUP($B107,Faktorreihen!$B$6:$V$205,VLOOKUP($A107,Zuordnung_Faktorreihen!$B$3:$E$100,4,0),0)))*'00_SAV'!N103 -> 261.2521569 | AE107: =((VLOOKUP(AE$8,Faktorreihen!$B$6:$V$205,VLOOKUP($A107,Zuordnung_Faktorreihen!$B$3:$E$100,4,0),0))/(VLOOKUP($B107,Faktorreihen!$B$6:$V$205,VLOOKUP($A107,Zuordnung_Faktorreihen!$B$3:$E$100,4,0),0)))*'00_SAV'!O103 -> 266.6043137 | AF107: =((VLOOKUP(AF$8,Faktorreihen!$B$6:$V$205,VLOOKUP($A107,Zuordnung_Faktorreihen!$B$3:$E$100,4,0),0))/(VLOOKUP($B107,Faktorreihen!$B$6:$V$205,VLOOKUP($A107,Zuordnung_Faktorreihen!$B$3:$E$100,4,0),0)))*'00_SAV'!P103 -> 0 | AG107: =((VLOOKUP(AG$8,Faktorreihen!$B$6:$V$205,VLOOKUP($A107,Zuordnung_Faktorreihen!$B$3:$E$100,4,0),0))/(VLOOKUP($B107,Faktorreihen!$B$6:$V$205,VLOOKUP($A107,Zuordnung_Faktorreihen!$B$3:$E$100,4,0),0)))*'00_SAV'!Q103 -> 0 | AH107: =((VLOOKUP(AH$8,Faktorreihen!$B$6:$V$205,VLOOKUP($A107,Zuordnung_Faktorreihen!$B$3:$E$100,4,0),0))/(VLOOKUP($B107,Faktorreihen!$B$6:$V$205,VLOOKUP($A107,Zuordnung_Faktorreihen!$B$3:$E$100,4,0),0)))*'00_SAV'!R103 -> 0 | AI107: =((VLOOKUP(AI$8,Faktorreihen!$B$6:$V$205,VLOOKUP($A107,Zuordnung_Faktorreihen!$B$3:$E$100,4,0),0))/(VLOOKUP($B107,Faktorreihen!$B$6:$V$205,VLOOKUP($A107,Zuordnung_Faktorreihen!$B$3:$E$100,4,0),0)))*'00_SAV'!S103 -> 0 | AJ107: =((VLOOKUP(AJ$8,Faktorreihen!$B$6:$V$205,VLOOKUP($A107,Zuordnung_Faktorreihen!$B$3:$E$100,4,0),0))/(VLOOKUP($B107,Faktorreihen!$B$6:$V$205,VLOOKUP($A107,Zuordnung_Faktorreihen!$B$3:$E$100,4,0),0)))*'00_SAV'!T103 -> 0
A108: 2 | B108: 1937 | C108: NB | D108: =((VLOOKUP($D$8,Faktorreihen!$B$6:$V$205,VLOOKUP($A108,Zuordnung_Faktorreihen!$B$3:$E$100,4,0),0))/(VLOOKUP($B108,Faktorreihen!$B$6:$V$205,VLOOKUP($A108,Zuordnung_Faktorreihen!$B$3:$E$100,4,0),0)))*'00_SAV'!E104 -> 0 | E108: =((VLOOKUP($D$8,Faktorreihen!$B$6:$V$205,VLOOKUP($A108,Zuordnung_Faktorreihen!$B$3:$E$100,4,0),0))/(VLOOKUP($B108,Faktorreihen!$B$6:$V$205,VLOOKUP($A108,Zuordnung_Faktorreihen!$B$3:$E$100,4,0),0)))*'00_SAV'!F104 -> 0 | F108: =((VLOOKUP($D$8,Faktorreihen!$B$6:$V$205,VLOOKUP($A108,Zuordnung_Faktorreihen!$B$3:$E$100,4,0),0))/(VLOOKUP($B108,Faktorreihen!$B$6:$V$205,VLOOKUP($A108,Zuordnung_Faktorreihen!$B$3:$E$100,4,0),0)))*'00_SAV'!G104 -> 0 | G108: =((VLOOKUP($D$8,Faktorreihen!$B$6:$V$205,VLOOKUP($A108,Zuordnung_Faktorreihen!$B$3:$E$100,4,0),0))/(VLOOKUP($B108,Faktorreihen!$B$6:$V$205,VLOOKUP($A108,Zuordnung_Faktorreihen!$B$3:$E$100,4,0),0)))*'00_SAV'!H104 -> 0 | H108: =((VLOOKUP($D$8,Faktorreihen!$B$6:$V$205,VLOOKUP($A108,Zuordnung_Faktorreihen!$B$3:$E$100,4,0),0))/(VLOOKUP($B108,Faktorreihen!$B$6:$V$205,VLOOKUP($A108,Zuordnung_Faktorreihen!$B$3:$E$100,4,0),0)))*'00_SAV'!I104 -> 0 | I108: =((VLOOKUP($D$8,Faktorreihen!$B$6:$V$205,VLOOKUP($A108,Zuordnung_Faktorreihen!$B$3:$E$100,4,0),0))/(VLOOKUP($B108,Faktorreihen!$B$6:$V$205,VLOOKUP($A108,Zuordnung_Faktorreihen!$B$3:$E$100,4,0),0)))*'00_SAV'!J104 -> 0 | J108: =((VLOOKUP($D$8,Faktorreihen!$B$6:$V$205,VLOOKUP($A108,Zuordnung_Faktorreihen!$B$3:$E$100,4,0),0))/(VLOOKUP($B108,Faktorreihen!$B$6:$V$205,VLOOKUP($A108,Zuordnung_Faktorreihen!$B$3:$E$100,4,0),0)))*'00_SAV'!K104 -> 0 | K108: =((VLOOKUP($D$8,Faktorreihen!$B$6:$V$205,VLOOKUP($A108,Zuordnung_Faktorreihen!$B$3:$E$100,4,0),0))/(VLOOKUP($B108,Faktorreihen!$B$6:$V$205,VLOOKUP($A108,Zuordnung_Faktorreihen!$B$3:$E$100,4,0),0)))*'00_SAV'!L104 -> 0 | L108: =((VLOOKUP($D$8,Faktorreihen!$B$6:$V$205,VLOOKUP($A108,Zuordnung_Faktorreihen!$B$3:$E$100,4,0),0))/(VLOOKUP($B108,Faktorreihen!$B$6:$V$205,VLOOKUP($A108,Zuordnung_Faktorreihen!$B$3:$E$100,4,0),0)))*'00_SAV'!M104 -> 0 | M108: =((VLOOKUP($D$8,Faktorreihen!$B$6:$V$205,VLOOKUP($A108,Zuordnung_Faktorreihen!$B$3:$E$100,4,0),0))/(VLOOKUP($B108,Faktorreihen!$B$6:$V$205,VLOOKUP($A108,Zuordnung_Faktorreihen!$B$3:$E$100,4,0),0)))*'00_SAV'!N104 -> 0 | N108: =((VLOOKUP($D$8,Faktorreihen!$B$6:$V$205,VLOOKUP($A108,Zuordnung_Faktorreihen!$B$3:$E$100,4,0),0))/(VLOOKUP($B108,Faktorreihen!$B$6:$V$205,VLOOKUP($A108,Zuordnung_Faktorreihen!$B$3:$E$100,4,0),0)))*'00_SAV'!O104 -> 0 | O108: =((VLOOKUP($D$8,Faktorreihen!$B$6:$V$205,VLOOKUP($A108,Zuordnung_Faktorreihen!$B$3:$E$100,4,0),0))/(VLOOKUP($B108,Faktorreihen!$B$6:$V$205,VLOOKUP($A108,Zuordnung_Faktorreihen!$B$3:$E$100,4,0),0)))*'00_SAV'!P104 -> 0 | P108: =((VLOOKUP($D$8,Faktorreihen!$B$6:$V$205,VLOOKUP($A108,Zuordnung_Faktorreihen!$B$3:$E$100,4,0),0))/(VLOOKUP($B108,Faktorreihen!$B$6:$V$205,VLOOKUP($A108,Zuordnung_Faktorreihen!$B$3:$E$100,4,0),0)))*'00_SAV'!Q104 -> 0 | Q108: =((VLOOKUP($D$8,Faktorreihen!$B$6:$V$205,VLOOKUP($A108,Zuordnung_Faktorreihen!$B$3:$E$100,4,0),0))/(VLOOKUP($B108,Faktorreihen!$B$6:$V$205,VLOOKUP($A108,Zuordnung_Faktorreihen!$B$3:$E$100,4,0),0)))*'00_SAV'!R104 -> 108066.8729 | R108: =((VLOOKUP($D$8,Faktorreihen!$B$6:$V$205,VLOOKUP($A108,Zuordnung_Faktorreihen!$B$3:$E$100,4,0),0))/(VLOOKUP($B108,Faktorreihen!$B$6:$V$205,VLOOKUP($A108,Zuordnung_Faktorreihen!$B$3:$E$100,4,0),0)))*'00_SAV'!S104 -> 108066.8729 | S108: =((VLOOKUP($D$8,Faktorreihen!$B$6:$V$205,VLOOKUP($A108,Zuordnung_Faktorreihen!$B$3:$E$100,4,0),0))/(VLOOKUP($B108,Faktorreihen!$B$6:$V$205,VLOOKUP($A108,Zuordnung_Faktorreihen!$B$3:$E$100,4,0),0)))*'00_SAV'!T104 -> 108066.8729 | U108: =((VLOOKUP(U$8,Faktorreihen!$B$6:$V$205,VLOOKUP($A108,Zuordnung_Faktorreihen!$B$3:$E$100,4,0),0))/(VLOOKUP($B108,Faktorreihen!$B$6:$V$205,VLOOKUP($A108,Zuordnung_Faktorreihen!$B$3:$E$100,4,0),0)))*'00_SAV'!E104 -> 0 | V108: =((VLOOKUP(V$8,Faktorreihen!$B$6:$V$205,VLOOKUP($A108,Zuordnung_Faktorreihen!$B$3:$E$100,4,0),0))/(VLOOKUP($B108,Faktorreihen!$B$6:$V$205,VLOOKUP($A108,Zuordnung_Faktorreihen!$B$3:$E$100,4,0),0)))*'00_SAV'!F104 -> 0 | W108: =((VLOOKUP(W$8,Faktorreihen!$B$6:$V$205,VLOOKUP($A108,Zuordnung_Faktorreihen!$B$3:$E$100,4,0),0))/(VLOOKUP($B108,Faktorreihen!$B$6:$V$205,VLOOKUP($A108,Zuordnung_Faktorreihen!$B$3:$E$100,4,0),0)))*'00_SAV'!G104 -> 0 | X108: =((VLOOKUP(X$8,Faktorreihen!$B$6:$V$205,VLOOKUP($A108,Zuordnung_Faktorreihen!$B$3:$E$100,4,0),0))/(VLOOKUP($B108,Faktorreihen!$B$6:$V$205,VLOOKUP($A108,Zuordnung_Faktorreihen!$B$3:$E$100,4,0),0)))*'00_SAV'!H104 -> 0 | Y108: =((VLOOKUP(Y$8,Faktorreihen!$B$6:$V$205,VLOOKUP($A108,Zuordnung_Faktorreihen!$B$3:$E$100,4,0),0))/(VLOOKUP($B108,Faktorreihen!$B$6:$V$205,VLOOKUP($A108,Zuordnung_Faktorreihen!$B$3:$E$100,4,0),0)))*'00_SAV'!I104 -> 0 | Z108: =((VLOOKUP(Z$8,Faktorreihen!$B$6:$V$205,VLOOKUP($A108,Zuordnung_Faktorreihen!$B$3:$E$100,4,0),0))/(VLOOKUP($B108,Faktorreihen!$B$6:$V$205,VLOOKUP($A108,Zuordnung_Faktorreihen!$B$3:$E$100,4,0),0)))*'00_SAV'!J104 -> 0 | AA108: =((VLOOKUP(AA$8,Faktorreihen!$B$6:$V$205,VLOOKUP($A108,Zuordnung_Faktorreihen!$B$3:$E$100,4,0),0))/(VLOOKUP($B108,Faktorreihen!$B$6:$V$205,VLOOKUP($A108,Zuordnung_Faktorreihen!$B$3:$E$100,4,0),0)))*'00_SAV'!K104 -> 0 | AB108: =((VLOOKUP(AB$8,Faktorreihen!$B$6:$V$205,VLOOKUP($A108,Zuordnung_Faktorreihen!$B$3:$E$100,4,0),0))/(VLOOKUP($B108,Faktorreihen!$B$6:$V$205,VLOOKUP($A108,Zuordnung_Faktorreihen!$B$3:$E$100,4,0),0)))*'00_SAV'!L104 -> 0 | AC108: =((VLOOKUP(AC$8,Faktorreihen!$B$6:$V$205,VLOOKUP($A108,Zuordnung_Faktorreihen!$B$3:$E$100,4,0),0))/(VLOOKUP($B108,Faktorreihen!$B$6:$V$205,VLOOKUP($A108,Zuordnung_Faktorreihen!$B$3:$E$100,4,0),0)))*'00_SAV'!M104 -> 0 | AD108: =((VLOOKUP(AD$8,Faktorreihen!$B$6:$V$205,VLOOKUP($A108,Zuordnung_Faktorreihen!$B$3:$E$100,4,0),0))/(VLOOKUP($B108,Faktorreihen!$B$6:$V$205,VLOOKUP($A108,Zuordnung_Faktorreihen!$B$3:$E$100,4,0),0)))*'00_SAV'!N104 -> 0 | AE108: =((VLOOKUP(AE$8,Faktorreihen!$B$6:$V$205,VLOOKUP($A108,Zuordnung_Faktorreihen!$B$3:$E$100,4,0),0))/(VLOOKUP($B108,Faktorreihen!$B$6:$V$205,VLOOKUP($A108,Zuordnung_Faktorreihen!$B$3:$E$100,4,0),0)))*'00_SAV'!O104 -> 0 | AF108: =((VLOOKUP(AF$8,Faktorreihen!$B$6:$V$205,VLOOKUP($A108,Zuordnung_Faktorreihen!$B$3:$E$100,4,0),0))/(VLOOKUP($B108,Faktorreihen!$B$6:$V$205,VLOOKUP($A108,Zuordnung_Faktorreihen!$B$3:$E$100,4,0),0)))*'00_SAV'!P104 -> 0 | AG108: =((VLOOKUP(AG$8,Faktorreihen!$B$6:$V$205,VLOOKUP($A108,Zuordnung_Faktorreihen!$B$3:$E$100,4,0),0))/(VLOOKUP($B108,Faktorreihen!$B$6:$V$205,VLOOKUP($A108,Zuordnung_Faktorreihen!$B$3:$E$100,4,0),0)))*'00_SAV'!Q104 -> 0 | AH108: =((VLOOKUP(AH$8,Faktorreihen!$B$6:$V$205,VLOOKUP($A108,Zuordnung_Faktorreihen!$B$3:$E$100,4,0),0))/(VLOOKUP($B108,Faktorreihen!$B$6:$V$205,VLOOKUP($A108,Zuordnung_Faktorreihen!$B$3:$E$100,4,0),0)))*'00_SAV'!R104 -> 105142.9857 | AI108: =((VLOOKUP(AI$8,Faktorreihen!$B$6:$V$205,VLOOKUP($A108,Zuordnung_Faktorreihen!$B$3:$E$100,4,0),0))/(VLOOKUP($B108,Faktorreihen!$B$6:$V$205,VLOOKUP($A108,Zuordnung_Faktorreihen!$B$3:$E$100,4,0),0)))*'00_SAV'!S104 -> 108066.8729 | AJ108: =((VLOOKUP(AJ$8,Faktorreihen!$B$6:$V$205,VLOOKUP($A108,Zuordnung_Faktorreihen!$B$3:$E$100,4,0),0))/(VLOOKUP($B108,Faktorreihen!$B$6:$V$205,VLOOKUP($A108,Zuordnung_Faktorreihen!$B$3:$E$100,4,0),0)))*'00_SAV'!T104 -> 116955.4902
A109: 2 | B109: 1938 | C109: NB | D109: =((VLOOKUP($D$8,Faktorreihen!$B$6:$V$205,VLOOKUP($A109,Zuordnung_Faktorreihen!$B$3:$E$100,4,0),0))/(VLOOKUP($B109,Faktorreihen!$B$6:$V$205,VLOOKUP($A109,Zuordnung_Faktorreihen!$B$3:$E$100,4,0),0)))*'00_SAV'!E105 -> 0 | E109: =((VLOOKUP($D$8,Faktorreihen!$B$6:$V$205,VLOOKUP($A109,Zuordnung_Faktorreihen!$B$3:$E$100,4,0),0))/(VLOOKUP($B109,Faktorreihen!$B$6:$V$205,VLOOKUP($A109,Zuordnung_Faktorreihen!$B$3:$E$100,4,0),0)))*'00_SAV'!F105 -> 0 | F109: =((VLOOKUP($D$8,Faktorreihen!$B$6:$V$205,VLOOKUP($A109,Zuordnung_Faktorreihen!$B$3:$E$100,4,0),0))/(VLOOKUP($B109,Faktorreihen!$B$6:$V$205,VLOOKUP($A109,Zuordnung_Faktorreihen!$B$3:$E$100,4,0),0)))*'00_SAV'!G105 -> 0 | G109: =((VLOOKUP($D$8,Faktorreihen!$B$6:$V$205,VLOOKUP($A109,Zuordnung_Faktorreihen!$B$3:$E$100,4,0),0))/(VLOOKUP($B109,Faktorreihen!$B$6:$V$205,VLOOKUP($A109,Zuordnung_Faktorreihen!$B$3:$E$100,4,0),0)))*'00_SAV'!H105 -> 0 | H109: =((VLOOKUP($D$8,Faktorreihen!$B$6:$V$205,VLOOKUP($A109,Zuordnung_Faktorreihen!$B$3:$E$100,4,0),0))/(VLOOKUP($B109,Faktorreihen!$B$6:$V$205,VLOOKUP($A109,Zuordnung_Faktorreihen!$B$3:$E$100,4,0),0)))*'00_SAV'!I105 -> 0 | I109: =((VLOOKUP($D$8,Faktorreihen!$B$6:$V$205,VLOOKUP($A109,Zuordnung_Faktorreihen!$B$3:$E$100,4,0),0))/(VLOOKUP($B109,Faktorreihen!$B$6:$V$205,VLOOKUP($A109,Zuordnung_Faktorreihen!$B$3:$E$100,4,0),0)))*'00_SAV'!J105 -> 0 | J109: =((VLOOKUP($D$8,Faktorreihen!$B$6:$V$205,VLOOKUP($A109,Zuordnung_Faktorreihen!$B$3:$E$100,4,0),0))/(VLOOKUP($B109,Faktorreihen!$B$6:$V$205,VLOOKUP($A109,Zuordnung_Faktorreihen!$B$3:$E$100,4,0),0)))*'00_SAV'!K105 -> 0 | K109: =((VLOOKUP($D$8,Faktorreihen!$B$6:$V$205,VLOOKUP($A109,Zuordnung_Faktorreihen!$B$3:$E$100,4,0),0))/(VLOOKUP($B109,Faktorreihen!$B$6:$V$205,VLOOKUP($A109,Zuordnung_Faktorreihen!$B$3:$E$100,4,0),0)))*'00_SAV'!L105 -> 0 | L109: =((VLOOKUP($D$8,Faktorreihen!$B$6:$V$205,VLOOKUP($A109,Zuordnung_Faktorreihen!$B$3:$E$100,4,0),0))/(VLOOKUP($B109,Faktorreihen!$B$6:$V$205,VLOOKUP($A109,Zuordnung_Faktorreihen!$B$3:$E$100,4,0),0)))*'00_SAV'!M105 -> 0 | M109: =((VLOOKUP($D$8,Faktorreihen!$B$6:$V$205,VLOOKUP($A109,Zuordnung_Faktorreihen!$B$3:$E$100,4,0),0))/(VLOOKUP($B109,Faktorreihen!$B$6:$V$205,VLOOKUP($A109,Zuordnung_Faktorreihen!$B$3:$E$100,4,0),0)))*'00_SAV'!N105 -> 0 | N109: =((VLOOKUP($D$8,Faktorreihen!$B$6:$V$205,VLOOKUP($A109,Zuordnung_Faktorreihen!$B$3:$E$100,4,0),0))/(VLOOKUP($B109,Faktorreihen!$B$6:$V$205,VLOOKUP($A109,Zuordnung_Faktorreihen!$B$3:$E$100,4,0),0)))*'00_SAV'!O105 -> 0 | O109: =((VLOOKUP($D$8,Faktorreihen!$B$6:$V$205,VLOOKUP($A109,Zuordnung_Faktorreihen!$B$3:$E$100,4,0),0))/(VLOOKUP($B109,Faktorreihen!$B$6:$V$205,VLOOKUP($A109,Zuordnung_Faktorreihen!$B$3:$E$100,4,0),0)))*'00_SAV'!P105 -> 0 | P109: =((VLOOKUP($D$8,Faktorreihen!$B$6:$V$205,VLOOKUP($A109,Zuordnung_Faktorreihen!$B$3:$E$100,4,0),0))/(VLOOKUP($B109,Faktorreihen!$B$6:$V$205,VLOOKUP($A109,Zuordnung_Faktorreihen!$B$3:$E$100,4,0),0)))*'00_SAV'!Q105 -> 0 | Q109: =((VLOOKUP($D$8,Faktorreihen!$B$6:$V$205,VLOOKUP($A109,Zuordnung_Faktorreihen!$B$3:$E$100,4,0),0))/(VLOOKUP($B109,Faktorreihen!$B$6:$V$205,VLOOKUP($A109,Zuordnung_Faktorreihen!$B$3:$E$100,4,0),0)))*'00_SAV'!R105 -> 0 | R109: =((VLOOKUP($D$8,Faktorreihen!$B$6:$V$205,VLOOKUP($A109,Zuordnung_Faktorreihen!$B$3:$E$100,4,0),0))/(VLOOKUP($B109,Faktorreihen!$B$6:$V$205,VLOOKUP($A109,Zuordnung_Faktorreihen!$B$3:$E$100,4,0),0)))*'00_SAV'!S105 -> 489339.3482 | S109: =((VLOOKUP($D$8,Faktorreihen!$B$6:$V$205,VLOOKUP($A109,Zuordnung_Faktorreihen!$B$3:$E$100,4,0),0))/(VLOOKUP($B109,Faktorreihen!$B$6:$V$205,VLOOKUP($A109,Zuordnung_Faktorreihen!$B$3:$E$100,4,0),0)))*'00_SAV'!T105 -> 489339.3482 | U109: =((VLOOKUP(U$8,Faktorreihen!$B$6:$V$205,VLOOKUP($A109,Zuordnung_Faktorreihen!$B$3:$E$100,4,0),0))/(VLOOKUP($B109,Faktorreihen!$B$6:$V$205,VLOOKUP($A109,Zuordnung_Faktorreihen!$B$3:$E$100,4,0),0)))*'00_SAV'!E105 -> 0 | V109: =((VLOOKUP(V$8,Faktorreihen!$B$6:$V$205,VLOOKUP($A109,Zuordnung_Faktorreihen!$B$3:$E$100,4,0),0))/(VLOOKUP($B109,Faktorreihen!$B$6:$V$205,VLOOKUP($A109,Zuordnung_Faktorreihen!$B$3:$E$100,4,0),0)))*'00_SAV'!F105 -> 0 | W109: =((VLOOKUP(W$8,Faktorreihen!$B$6:$V$205,VLOOKUP($A109,Zuordnung_Faktorreihen!$B$3:$E$100,4,0),0))/(VLOOKUP($B109,Faktorreihen!$B$6:$V$205,VLOOKUP($A109,Zuordnung_Faktorreihen!$B$3:$E$100,4,0),0)))*'00_SAV'!G105 -> 0 | X109: =((VLOOKUP(X$8,Faktorreihen!$B$6:$V$205,VLOOKUP($A109,Zuordnung_Faktorreihen!$B$3:$E$100,4,0),0))/(VLOOKUP($B109,Faktorreihen!$B$6:$V$205,VLOOKUP($A109,Zuordnung_Faktorreihen!$B$3:$E$100,4,0),0)))*'00_SAV'!H105 -> 0 | Y109: =((VLOOKUP(Y$8,Faktorreihen!$B$6:$V$205,VLOOKUP($A109,Zuordnung_Faktorreihen!$B$3:$E$100,4,0),0))/(VLOOKUP($B109,Faktorreihen!$B$6:$V$205,VLOOKUP($A109,Zuordnung_Faktorreihen!$B$3:$E$100,4,0),0)))*'00_SAV'!I105 -> 0 | Z109: =((VLOOKUP(Z$8,Faktorreihen!$B$6:$V$205,VLOOKUP($A109,Zuordnung_Faktorreihen!$B$3:$E$100,4,0),0))/(VLOOKUP($B109,Faktorreihen!$B$6:$V$205,VLOOKUP($A109,Zuordnung_Faktorreihen!$B$3:$E$100,4,0),0)))*'00_SAV'!J105 -> 0 | AA109: =((VLOOKUP(AA$8,Faktorreihen!$B$6:$V$205,VLOOKUP($A109,Zuordnung_Faktorreihen!$B$3:$E$100,4,0),0))/(VLOOKUP($B109,Faktorreihen!$B$6:$V$205,VLOOKUP($A109,Zuordnung_Faktorreihen!$B$3:$E$100,4,0),0)))*'00_SAV'!K105 -> 0 | AB109: =((VLOOKUP(AB$8,Faktorreihen!$B$6:$V$205,VLOOKUP($A109,Zuordnung_Faktorreihen!$B$3:$E$100,4,0),0))/(VLOOKUP($B109,Faktorreihen!$B$6:$V$205,VLOOKUP($A109,Zuordnung_Faktorreihen!$B$3:$E$100,4,0),0)))*'00_SAV'!L105 -> 0 | AC109: =((VLOOKUP(AC$8,Faktorreihen!$B$6:$V$205,VLOOKUP($A109,Zuordnung_Faktorreihen!$B$3:$E$100,4,0),0))/(VLOOKUP($B109,Faktorreihen!$B$6:$V$205,VLOOKUP($A109,Zuordnung_Faktorreihen!$B$3:$E$100,4,0),0)))*'00_SAV'!M105 -> 0 | AD109: =((VLOOKUP(AD$8,Faktorreihen!$B$6:$V$205,VLOOKUP($A109,Zuordnung_Faktorreihen!$B$3:$E$100,4,0),0))/(VLOOKUP($B109,Faktorreihen!$B$6:$V$205,VLOOKUP($A109,Zuordnung_Faktorreihen!$B$3:$E$100,4,0),0)))*'00_SAV'!N105 -> 0 | AE109: =((VLOOKUP(AE$8,Faktorreihen!$B$6:$V$205,VLOOKUP($A109,Zuordnung_Faktorreihen!$B$3:$E$100,4,0),0))/(VLOOKUP($B109,Faktorreihen!$B$6:$V$205,VLOOKUP($A109,Zuordnung_Faktorreihen!$B$3:$E$100,4,0),0)))*'00_SAV'!O105 -> 0 | AF109: =((VLOOKUP(AF$8,Faktorreihen!$B$6:$V$205,VLOOKUP($A109,Zuordnung_Faktorreihen!$B$3:$E$100,4,0),0))/(VLOOKUP($B109,Faktorreihen!$B$6:$V$205,VLOOKUP($A109,Zuordnung_Faktorreihen!$B$3:$E$100,4,0),0)))*'00_SAV'!P105 -> 0 | AG109: =((VLOOKUP(AG$8,Faktorreihen!$B$6:$V$205,VLOOKUP($A109,Zuordnung_Faktorreihen!$B$3:$E$100,4,0),0))/(VLOOKUP($B109,Faktorreihen!$B$6:$V$205,VLOOKUP($A109,Zuordnung_Faktorreihen!$B$3:$E$100,4,0),0)))*'00_SAV'!Q105 -> 0 | AH109: =((VLOOKUP(AH$8,Faktorreihen!$B$6:$V$205,VLOOKUP($A109,Zuordnung_Faktorreihen!$B$3:$E$100,4,0),0))/(VLOOKUP($B109,Faktorreihen!$B$6:$V$205,VLOOKUP($A109,Zuordnung_Faktorreihen!$B$3:$E$100,4,0),0)))*'00_SAV'!R105 -> 0 | AI109: =((VLOOKUP(AI$8,Faktorreihen!$B$6:$V$205,VLOOKUP($A109,Zuordnung_Faktorreihen!$B$3:$E$100,4,0),0))/(VLOOKUP($B109,Faktorreihen!$B$6:$V$205,VLOOKUP($A109,Zuordnung_Faktorreihen!$B$3:$E$100,4,0),0)))*'00_SAV'!S105 -> 489339.3482 | AJ109: =((VLOOKUP(AJ$8,Faktorreihen!$B$6:$V$205,VLOOKUP($A109,Zuordnung_Faktorreihen!$B$3:$E$100,4,0),0))/(VLOOKUP($B109,Faktorreihen!$B$6:$V$205,VLOOKUP($A109,Zuordnung_Faktorreihen!$B$3:$E$100,4,0),0)))*'00_SAV'!T105 -> 529588.0392
